Workbook

Sheet Presentación
L121: 0

Sheet Instructivo
A6: Instrucciones de uso
A7: Este apartado tiene como finalidad brindar al usuario una guia práctica sobre la navegación y consulta al interior de los diferentes apartados que integran el presente producto.
A8: Apartado Nacional: (mapa de los Estados Unidos Mexicanos sin división política)
A9: Comparativo Anual: (Comp.Anual-N) En este apartado se muestra un tabulado con las cifras de las 20 grandes causas de Mortalidad, a nivel Nacional para los años 2020, 2021 y 2022; además de las respectivas gráficas con el total de defunciones registradas por año.
A10: Grandes Causas de Mortalidad: (GCMxAño-N) En esta sección, al igual que en la anterior, encontrará el tabulado con los datos de las 20 grandes causas de Mortalidad a nivel Nacional para los años 2020, 2021 y 2022 con la diferencia que incluye las gráficas con los totales desagregados por gran causa para los años considerados.
A11: Comparativo Grandes Causas de Mortalidad por Entidad Federativa: (Comp.xEnt.Fed) Se muestra un tabulado con los datos de cada una de las grandes causas de Mortalidad correspondientes a cada entidad federativa para los años 2020, 2021 y 2022; la celda que muestra el nombre de las grandes causas de mortalidad funciona como filtro para seleccionar una de estas; al momento de hacer la selección de alguna de las grandes causas se visualizará la gráfica correspondiente.
A12: Grandes Causas de Mortalidad por sexo: (GCMxSexo-N) Se representa el tabulado con las cifras para cada una de las grandes causas de mortalidad, a nivel nacional desagregada por sexo de los fallecidos; para los años 2020, 2021 y 2022. Así como cada una de las gráficas correspondientes.
A13: Apartado Estatal (mapa de los Estados Unidos Mexicanos con división política)
A14: Comparativo Anual: (Comp.Anual-E) Esta sección permite visualizar a través de un cuadro las cifras correspondientes a las grandes causas de Mortalidad desagregadas por entidad federativa; además, la celda con el nombre de la entidad federativa funciona como filtro, permitiéndonos seleccionar la entidad de interés para mostrar la información para los años 2020, 2021 y 2022; al tiempo que se visualiza la gráfica correspondiente a la elección de la entidad con el total de defunciones registradas por año.
A15: Grandes Causas de Mortalidad: (GCMxAño-E) En este apartado se muestra el tabulado con los datos de las grandes casusas de mortalidad por entidad federativa para los años 2020, 2021 y 2022; la celda que muestra el nombre de la entidad federativa funciona como filtro para realizar la elección de interés. Ahí mismo se presentan las gráficas de los años ya mencionados, en cada una de ellas se grafican los totales de las grandes causas de mortalidad del estado previamente seleccionado.
A16: Desagregado por Grandes Causas de Mortalidad: (1D-GCM, 2D-GCM, 3D-GCM, etc) En este grupo de hojas se muestra el total de defunciones por causa especifica que integran cada una de las grandes causas de mortalidad para cada entidad federativa desagregadas por sexo; cada hoja muestra la desagregación de un grupo de grandes causas respectivamente; además de que cada hoja cuenta con la celda donde se encuentra el nombre de la entidad federativa, dicha celda sirve como filtro para hacer la elección deseada.
A18: Cabe señalar que al interior de las hojas que integran la sección de "Grandes Causas de Mortalidad" se encuentra el botón "Siguiente D-GCM", el cual, al darle clic "avanzará" a la hoja de la siguiente desagregación; de la misma manera se encuentra el botón "Anterior D-GCM" el cual nos permite "regresar" a la hoja inmediata anterior.
A19: Así mismo encontrará dos tipos de graficas; la primera corresponde a los totales de cada una de las enfermedades que integran la Gran Causa para los años 2020, 2021 y 2022; y la segunda enlista las enfermedades que integran la Gran Causa por sexo y por año.
A20: Grandes Causas de Mortalidad por sexo: (GCMxSexo-E) Este espacio muestra el tabulado y las gráficas con los totales para cada una de las grandes causas de mortalidad por entidad federativa, desagregadas por sexo; para los años 2020, 2021 y 2022; además presenta una celda con el nombre de la entidad federativa que, a la vez, funciona como filtro para seleccionar la entidad de interes.
A21: Grandes Causas de Mortalidad por grupo de edad: (1GCM-G_Edad) Este apartado presenta el tabulado y las gráficas con la desagregación de cada gran causa de mortalidad por grupo quinquenal de edad por entidad federativa, desagregadas por sexo; al igual que el apartado anterior cuenta con la celda con el nombre de la entidad federativa, que, además, funciona como filtro para seleccionar la entidad de interes.
A22: Cabe señalar que al interior de las hojas que integran la sección de "Grandes Causas de Mortalidad por grupo de edad" se encuentra el botón "Siguiente GCM-G_Edad", el cual, al darle clic "avanzará" a la hoja de la siguiente desagregación; de la misma manera se encuentra el botón "Anterior GCM-G_Edad" el cual nos permite "regresar" a la hoja inmediata anterior.
A23: Así mismo encontrará dos tipos de gráficas; la primera corresponde a los totales de cada gran causa para los años 2020, 2021 y 2022; y la segunda enlista los valores por grupo de edad y sexo de la gran causa, para los años mencionados.
A24: Grandes Causas de Mortalidad por grupo de edad por Entidad Federativa: (1GCM-G-Edad_Ent.Fed) Este gran apartado nos permite conocer los datos sobre las grandes causas de mortalidad por entidad federativa desagregados por grupos quinquenales de edad; para cada una de ellas se considera una hoja de cálculo enumerada; cada hoja cuenta con la celda donde se presenta el grupo quinquenal de edad, la cual funciona como filtro para poder seleccionar uno de los 20 grupos de edad considerados.
A25: Cabe señalar que al interior de las hojas que integran la sección de "Grandes Causas de Mortalidad por grupo de edad por Entidad Federativa" se encuentra el botón "Siguiente GCM-G_Edad_ Ent.Fed", el cual, al darle clic "avanzará" a la hoja de la siguiente desagregación; de la misma manera se encuentra el botón "Anterior GCM-G_Edad_ Ent.Fed" el cual nos permite "regresar" a la hoja inmediata anterior.
A26: Muestra las graficas de las grandes causas de mortalidad por grupo de edad, por entidad federativa, para los años 2020, 2021 y 2022.
A27: Apartado Chiapas
A28: Comparativo Anual: (Comp.Anual-M) Esta sección permite visualizar las cifras totales de mortalidad de las grandes causas a nivel municipal para los años 2020, 2021 y 2022, así como las graficas con los totales anuales correspondientes; la celda donde se presenta el nombre del municipio funciona como filtro que permite seleccionar alguno de los municipios que integran el Estado de Chiapas.
A29: Grandes Causas de Mortalidad: (GCMxAño-M) Este apartado muestra los datos y gráficas de mortalidad para cada una de las grandes causas a nivel Municipal, con información correspondiente a los años 2020, 2021 y 2022; al igual que la sección anterior, cuenta con la celda donde se presenta el nombre del municipio la cual funciona como filtro para seleccionar alguno de los municipios que integran el Estado de Chiapas.
A30: Grandes Causas de Mortalidad por tipo de sexo: En este último apartado se encuentran los datos y gráficas de cada una de las grandes causas de mortalidad desagregados por sexo para los años 2020, 2021 y 2022; para cada municipio de la entidad; de la misma manera que las hojas anteriores, la celda donde se presenta el nombre del municipio funciona como filtro para seleccionar alguno de los municipios que integran el Estado de Chiapas.
A31: En cada una de las hojas consideradas encontrará el botón de "Inicio", el cual tiene la función de "regresar" a la hoja portada y poder seleccionar algún apartado de interes.

Sheet Portada

Sheet Comp.Anual-N
A1: Mortalidad Nacional
A3: Enfermedades | B3: 2020 | C3: 2021 | D3: 2022
A4: Enfermedades del sistema circulatorio | B4: 259921 | C4: 266789 | D4: 240883
A5: Asignación provisoria de nuevas afecciones de etiología incierta o de uso emergente, sin especificación | B5: 200265 | C5: 238781 | D5: 36877
A6: Enfermedades endocrinas, nutricionales y metabólicas | B6: 170580 | C6: 160604 | D6: 133558
A7: Tumores (neoplasias) | B7: 97274 | C7: 97338 | D7: 98049
A8: Enfermedades del sistema respiratorio | B8: 96714 | C8: 88455 | D8: 63055
A9: Causas externas de morbilidad y de mortalidad | B9: 82075 | C9: 84149 | D9: 83217
A10: Ciertas enfermedades infecciosas y parasitarias | B10: 17956 | C10: 21849 | D10: 19174
A11: Enfermedades de la sangre y de los órganos hematopoyéticos, y ciertos trastornos que afectan el mecanismo de la inmunidad | B11: 5310 | C11: 5637 | D11: 5381
A12: Trastornos mentales y del comportamiento | B12: 5195 | C12: 5340 | D12: 5143
A13: Enfermedades del sistema nervioso | B13: 13019 | C13: 12927 | D13: 13907
A14: Enfermedades del ojo y sus anexos | B14: 10 | C14: 20 | D14: 25
A15: Enfermedades del oído y de la apófisis mastoides | B15: 47 | C15: 34 | D15: 49
A16: Enfermedades del sistema digestivo | B16: 71480 | C16: 74702 | D16: 75253
A17: Enfermedades de la piel y del tejido subcutáneo | B17: 3228 | C17: 3791 | D17: 4693
A18: Enfermedades del sistema osteomuscular y del tejido conjuntivo | B18: 5497 | C18: 5585 | D18: 5621
A19: Enfermedades del sistema genitourinario | B19: 26948 | C19: 26647 | D19: 28598
A20: Embarazo, parto y puerperio | B20: 1171 | C20: 1259 | D20: 872
A21: Ciertas afecciones originadas en el periodo perinatal | B21: 10089 | C21: 10359 | D21: 7944
A22: Malformaciones congénitas, deformidades y anomalías cromosómicas | B22: 8049 | C22: 7827 | D22: 7364
A23: Síntomas, signos y hallazgos anormales clínicos y de laboratorio, no clasificados en otra parte | B23: 11158 | C23: 12512 | D23: 11573
A24: Total | B24: =SUM(B4:B23) -> 1085986 | C24: =SUM(C4:C23) -> 1124605 | D24: =SUM(D4:D23) -> 841236

Sheet GCMxAño-N
A1: Grandes Causas de Mortalidad
A3: Enfermedades | C3: 2020 | D3: 2021 | E3: 2022
A4: 1 | B4: Enfermedades del sistema circulatorio | C4: 259921 | D4: 266789 | E4: 240883
A5: 2 | B5: Asignación provisoria de nuevas afecciones de etiología incierta o de uso emergente, sin especificación | C5: 200265 | D5: 238781 | E5: 36877
A6: 3 | B6: Enfermedades endocrinas, nutricionales y metabólicas | C6: 170580 | D6: 160604 | E6: 133558
A7: 4 | B7: Tumores (neoplasias) | C7: 97274 | D7: 97338 | E7: 98049
A8: 5 | B8: Enfermedades del sistema respiratorio | C8: 96714 | D8: 88455 | E8: 63055
A9: 6 | B9: Causas externas de morbilidad y de mortalidad | C9: 82075 | D9: 84149 | E9: 83217
A10: 7 | B10: Ciertas enfermedades infecciosas y parasitarias | C10: 17956 | D10: 21849 | E10: 19174
A11: 8 | B11: Enfermedades de la sangre y de los órganos hematopoyéticos, y ciertos trastornos que afectan el mecanismo de la inmunidad | C11: 5310 | D11: 5637 | E11: 5381
A12: 9 | B12: Trastornos mentales y del comportamiento | C12: 5195 | D12: 5340 | E12: 5143
A13: 10 | B13: Enfermedades del sistema nervioso | C13: 13019 | D13: 12927 | E13: 13907
A14: 11 | B14: Enfermedades del ojo y sus anexos | C14: 10 | D14: 20 | E14: 25
A15: 12 | B15: Enfermedades del oído y de la apófisis mastoides | C15: 47 | D15: 34 | E15: 49
A16: 13 | B16: Enfermedades del sistema digestivo | C16: 71480 | D16: 74702 | E16: 75253
A17: 14 | B17: Enfermedades de la piel y del tejido subcutáneo | C17: 3228 | D17: 3791 | E17: 4693
A18: 15 | B18: Enfermedades del sistema osteomuscular y del tejido conjuntivo | C18: 5497 | D18: 5585 | E18: 5621
A19: 16 | B19: Enfermedades del sistema genitourinario | C19: 26948 | D19: 26647 | E19: 28598
A20: 17 | B20: Embarazo, parto y puerperio | C20: 1171 | D20: 1259 | E20: 872
A21: 18 | B21: Ciertas afecciones originadas en el periodo perinatal | C21: 10089 | D21: 10359 | E21: 7944
A22: 19 | B22: Malformaciones congénitas, deformidades y anomalías cromosómicas | C22: 8049 | D22: 7827 | E22: 7364
A23: 20 | B23: Síntomas, signos y hallazgos anormales clínicos y de laboratorio, no clasificados en otra parte | C23: 11158 | D23: 12512 | E23: 11573
B24: Total | C24: =SUM(C4:C23) -> 1085986 | D24: =SUM(D4:D23) -> 1124605 | E24: =SUM(E4:E23) -> 841236

Sheet Nac. Invertida 2020 (hidden)
A2: CONCEPTO | B2: Aguascalientes | C2: Baja California | D2: Baja California Sur | E2: Campeche | F2: Coahuila | G2: Colima | H2: Chiapas | I2: Chihuahua | J2: Ciudad de México | K2: Durango | L2: Guanajuato | M2: Guerrero | N2: Hidalgo | O2: Jalisco | P2: México | Q2: Michoacán | R2: Morelos | S2: Nayarit | T2: Nuevo León | U2: Oaxaca | V2: Puebla | W2: Querétaro | X2: Quintana Roo | Y2: San Luis Potosí | Z2: Sinaloa | AA2: Sonora | AB2: Tabasco | AC2: Tamaulipas | AD2: Tlaxcala | AE2: Veracruz | AF2: Yucatán | AG2: Zacatecas
A3: Enfermedades del sistema circulatorio | B3: 1787 | C3: 6821 | D3: 1101 | E3: 1752 | F3: 6731 | G3: 1333 | H3: 9952 | I3: 9407 | J3: 28616 | K3: 4187 | L3: 12721 | M3: 5891 | N3: 5925 | O3: 15584 | P3: 29761 | Q3: 8909 | R3: 4409 | S3: 2018 | T3: 11033 | U3: 8642 | V3: 14708 | W3: 3485 | X3: 1675 | Y3: 6311 | Z3: 6094 | AA3: 6978 | AB3: 5262 | AC3: 7018 | AD3: 2629 | AE3: 20867 | AF3: 5179 | AG3: 3135
A4: Asignación provisoria de nuevas afecciones de etiología incierta o de uso emergente, sin especificación | B4: 2445 | C4: 8248 | D4: 943 | E4: 1452 | F4: 6397 | G4: 956 | H4: 2704 | I4: 7370 | J4: 37978 | K4: 2787 | L4: 7256 | M4: 4459 | N4: 4258 | O4: 8834 | P4: 28613 | Q4: 3813 | R4: 2796 | S4: 1286 | T4: 9227 | U4: 3344 | V4: 8371 | W4: 2812 | X4: 2700 | Y4: 4039 | Z4: 5505 | AA4: 6242 | AB4: 4201 | AC4: 4888 | AD4: 1504 | AE4: 9343 | AF4: 3165 | AG4: 2329
A5: Enfermedades endocrinas, nutricionales y metabólicas | B5: 1141 | C5: 4004 | D5: 582 | E5: 1158 | F5: 4423 | G5: 838 | H5: 7048 | I5: 4541 | J5: 19083 | K5: 1647 | L5: 8431 | M5: 4634 | N5: 3398 | O5: 8471 | P5: 25957 | Q5: 6437 | R5: 3046 | S5: 1197 | T5: 4772 | U5: 6151 | V5: 11278 | W5: 2224 | X5: 1439 | Y5: 3736 | Z5: 2403 | AA5: 2667 | AB5: 4608 | AC5: 4485 | AD5: 2366 | AE5: 14332 | AF5: 2153 | AG5: 1930
A6: Tumores (neoplasias) | B6: 1018 | C6: 2972 | D6: 619 | E6: 646 | F6: 2520 | G6: 642 | H6: 3746 | I6: 3350 | J6: 12532 | K6: 1194 | L6: 4101 | M6: 1956 | N6: 2182 | O6: 7108 | P6: 9305 | Q6: 3539 | R6: 1700 | S6: 970 | T6: 4787 | U6: 2961 | V6: 4566 | W6: 1602 | X6: 862 | Y6: 2098 | Z6: 2439 | AA6: 2782 | AB6: 1688 | AC6: 2757 | AD6: 821 | AE6: 6897 | AF6: 1644 | AG6: 1270
A7: Enfermedades del sistema respiratorio | B7: 1037 | C7: 3198 | D7: 471 | E7: 698 | F7: 2425 | G7: 557 | H7: 3257 | I7: 3592 | J7: 11483 | K7: 1260 | L7: 4390 | M7: 1909 | N7: 1546 | O7: 7220 | P7: 11164 | Q7: 3053 | R7: 1594 | S7: 718 | T7: 4499 | U7: 2132 | V7: 4951 | W7: 1243 | X7: 911 | Y7: 2382 | Z7: 2538 | AA7: 2679 | AB7: 1846 | AC7: 3122 | AD7: 1996 | AE7: 5467 | AF7: 1962 | AG7: 1414
A8: Causas externas de morbilidad y de mortalidad | B8: 742 | C8: 4820 | D8: 369 | E8: 415 | F8: 1339 | G8: 1040 | H8: 1745 | I8: 5625 | J8: 4295 | K8: 915 | L8: 7750 | M8: 2525 | N8: 1449 | O8: 5996 | P8: 7888 | Q8: 4526 | R8: 1706 | S8: 828 | T8: 2428 | U8: 2244 | V8: 3261 | W8: 1025 | X8: 1340 | Y8: 2033 | Z8: 2371 | AA8: 3018 | AB8: 1341 | AC8: 2055 | AD8: 594 | AE8: 3536 | AF8: 789 | AG8: 2067
A9: Ciertas enfermedades infecciosas y parasitarias | B9: 162 | C9: 1104 | D9: 151 | E9: 134 | F9: 377 | G9: 150 | H9: 1173 | I9: 719 | J9: 2020 | K9: 162 | L9: 524 | M9: 394 | N9: 279 | O9: 1259 | P9: 1305 | Q9: 514 | R9: 255 | S9: 197 | T9: 732 | U9: 578 | V9: 662 | W9: 291 | X9: 365 | Y9: 390 | Z9: 408 | AA9: 627 | AB9: 320 | AC9: 495 | AD9: 91 | AE9: 1486 | AF9: 456 | AG9: 176
A10: Enfermedades de la sangre y de los órganos hematopoyéticos, y ciertos trastornos que afectan el mecanismo de la inmunidad | B10: 42 | C10: 150 | D10: 19 | E10: 28 | F10: 103 | G10: 14 | H10: 386 | I10: 121 | J10: 560 | K10: 55 | L10: 193 | M10: 262 | N10: 110 | O10: 287 | P10: 324 | Q10: 185 | R10: 139 | S10: 36 | T10: 112 | U10: 346 | V10: 376 | W10: 55 | X10: 52 | Y10: 111 | Z10: 81 | AA10: 110 | AB10: 102 | AC10: 108 | AD10: 43 | AE10: 632 | AF10: 87 | AG10: 81
A11: Trastornos mentales y del comportamiento | B11: 104 | C11: 246 | D11: 30 | E11: 25 | F11: 81 | G11: 33 | H11: 182 | I11: 287 | J11: 407 | K11: 30 | L11: 200 | M11: 121 | N11: 75 | O11: 471 | P11: 489 | Q11: 182 | R11: 117 | S11: 49 | T11: 193 | U11: 360 | V11: 253 | W11: 69 | X11: 72 | Y11: 151 | Z11: 76 | AA11: 144 | AB11: 40 | AC11: 80 | AD11: 52 | AE11: 401 | AF11: 61 | AG11: 114
A12: Enfermedades del sistema nervioso | B12: 188 | C12: 388 | D12: 82 | E12: 81 | F12: 361 | G12: 101 | H12: 554 | I12: 570 | J12: 1349 | K12: 150 | L12: 558 | M12: 257 | N12: 258 | O12: 988 | P12: 1051 | Q12: 471 | R12: 240 | S12: 171 | T12: 668 | U12: 446 | V12: 578 | W12: 222 | X12: 121 | Y12: 348 | Z12: 375 | AA12: 446 | AB12: 221 | AC12: 331 | AD12: 138 | AE12: 879 | AF12: 217 | AG12: 211
A13: Enfermedades del ojo y sus anexos | B13: 0 | C13: 0 | D13: 0 | E13: 0 | F13: 0 | G13: 0 | H13: 0 | I13: 0 | J13: 2 | K13: 1 | L13: 1 | M13: 0 | N13: 1 | O13: 0 | P13: 0 | Q13: 0 | R13: 0 | S13: 0 | T13: 1 | U13: 1 | V13: 0 | W13: 0 | X13: 0 | Y13: 0 | Z13: 1 | AA13: 0 | AB13: 1 | AC13: 0 | AD13: 0 | AE13: 1 | AF13: 0 | AG13: 0
A14: Enfermedades del oído y de la apófisis mastoides | B14: 1 | C14: 1 | D14: 1 | E14: 0 | F14: 1 | G14: 1 | H14: 4 | I14: 3 | J14: 7 | K14: 3 | L14: 0 | M14: 2 | N14: 1 | O14: 0 | P14: 1 | Q14: 0 | R14: 2 | S14: 0 | T14: 3 | U14: 0 | V14: 3 | W14: 0 | X14: 1 | Y14: 1 | Z14: 2 | AA14: 1 | AB14: 3 | AC14: 3 | AD14: 0 | AE14: 0 | AF14: 1 | AG14: 1
A15: Enfermedades del sistema digestivo | B15: 636 | C15: 1816 | D15: 286 | E15: 425 | F15: 1591 | G15: 421 | H15: 3451 | I15: 2208 | J15: 8085 | K15: 797 | L15: 3305 | M15: 1505 | N15: 1656 | O15: 4475 | P15: 8814 | Q15: 2636 | R15: 1586 | S15: 567 | T15: 2481 | U15: 2634 | V15: 4799 | W15: 1475 | X15: 735 | Y15: 1522 | Z15: 853 | AA15: 1320 | AB15: 1057 | AC15: 1639 | AD15: 684 | AE15: 5721 | AF15: 1442 | AG15: 858
A16: Enfermedades de la piel y del tejido subcutáneo | B16: 24 | C16: 63 | D16: 10 | E16: 31 | F16: 54 | G16: 26 | H16: 40 | I16: 87 | J16: 639 | K16: 38 | L16: 153 | M16: 33 | N16: 38 | O16: 379 | P16: 408 | Q16: 69 | R16: 69 | S16: 28 | T16: 246 | U16: 60 | V16: 68 | W16: 67 | X16: 45 | Y16: 67 | Z16: 33 | AA16: 107 | AB16: 25 | AC16: 99 | AD16: 9 | AE16: 95 | AF16: 83 | AG16: 35
A17: Enfermedades del sistema osteomuscular y del tejido conjuntivo | B17: 57 | C17: 158 | D17: 22 | E17: 19 | F17: 111 | G17: 25 | H17: 175 | I17: 153 | J17: 693 | K17: 64 | L17: 220 | M17: 126 | N17: 123 | O17: 405 | P17: 685 | Q17: 185 | R17: 85 | S17: 45 | T17: 293 | U17: 205 | V17: 386 | W17: 88 | X17: 35 | Y17: 116 | Z17: 152 | AA17: 123 | AB17: 79 | AC17: 114 | AD17: 54 | AE17: 311 | AF17: 86 | AG17: 104
A18: Enfermedades del sistema genitourinario | B18: 273 | C18: 625 | D18: 123 | E18: 186 | F18: 757 | G18: 174 | H18: 1474 | I18: 738 | J18: 2970 | K18: 267 | L18: 1152 | M18: 628 | N18: 562 | O18: 2133 | P18: 2830 | Q18: 920 | R18: 569 | S18: 215 | T18: 1166 | U18: 834 | V18: 1357 | W18: 459 | X18: 236 | Y18: 599 | Z18: 490 | AA18: 646 | AB18: 513 | AC18: 806 | AD18: 309 | AE18: 1987 | AF18: 629 | AG18: 321
A19: Embarazo, parto y puerperio | B19: 17 | C19: 30 | D19: 3 | E19: 9 | F19: 34 | G19: 3 | H19: 74 | I19: 50 | J19: 102 | K19: 13 | L19: 46 | M19: 45 | N19: 14 | O19: 74 | P19: 126 | Q19: 50 | R19: 14 | S19: 14 | T19: 41 | U19: 52 | V19: 62 | W19: 12 | X19: 22 | Y19: 30 | Z19: 34 | AA19: 28 | AB19: 32 | AC19: 38 | AD19: 13 | AE19: 45 | AF19: 22 | AG19: 22
A20: Ciertas afecciones originadas en el periodo perinatal | B20: 117 | C20: 250 | D20: 66 | E20: 86 | F20: 307 | G20: 49 | H20: 450 | I20: 405 | J20: 854 | K20: 142 | L20: 477 | M20: 214 | N20: 183 | O20: 743 | P20: 1288 | Q20: 264 | R20: 123 | S20: 56 | T20: 394 | U20: 280 | V20: 725 | W20: 185 | X20: 131 | Y20: 182 | Z20: 159 | AA20: 173 | AB20: 326 | AC20: 320 | AD20: 130 | AE20: 707 | AF20: 171 | AG20: 132
A21: Malformaciones congénitas, deformidades y anomalías cromosómicas | B21: 93 | C21: 227 | D21: 41 | E21: 55 | F21: 200 | G21: 21 | H21: 375 | I21: 214 | J21: 996 | K21: 77 | L21: 434 | M21: 154 | N21: 139 | O21: 594 | P21: 909 | Q21: 245 | R21: 111 | S21: 43 | T21: 404 | U21: 240 | V21: 614 | W21: 150 | X21: 85 | Y21: 148 | Z21: 106 | AA21: 133 | AB21: 205 | AC21: 168 | AD21: 110 | AE21: 544 | AF21: 141 | AG21: 73
A22: Síntomas, signos y hallazgos anormales clínicos y de laboratorio, no clasificados en otra parte | B22: 36 | C22: 218 | D22: 21 | E22: 288 | F22: 661 | G22: 116 | H22: 1864 | I22: 285 | J22: 76 | K22: 152 | L22: 219 | M22: 508 | N22: 166 | O22: 523 | P22: 179 | Q22: 420 | R22: 143 | S22: 116 | T22: 188 | U22: 1094 | V22: 591 | W22: 187 | X22: 188 | Y22: 300 | Z22: 188 | AA22: 204 | AB22: 515 | AC22: 347 | AD22: 147 | AE22: 727 | AF22: 340 | AG22: 151

Sheet Nac. Invertida 2021 (hidden)
A2: CONCEPTO | B2: Aguascalientes | C2: Baja California | D2: Baja California Sur | E2: Campeche | F2: Coahuila | G2: Colima | H2: Chiapas | I2: Chihuahua | J2: Ciudad de México | K2: Durango | L2: Guanajuato | M2: Guerrero | N2: Hidalgo | O2: Jalisco | P2: México | Q2: Michoacán | R2: Morelos | S2: Nayarit | T2: Nuevo León | U2: Oaxaca | V2: Puebla | W2: Querétaro | X2: Quintana Roo | Y2: San Luis Potosí | Z2: Sinaloa | AA2: Sonora | AB2: Tabasco | AC2: Tamaulipas | AD2: Tlaxcala | AE2: Veracruz | AF2: Yucatán | AG2: Zacatecas
A3: Enfermedades del sistema circulatorio | B3: 1978 | C3: 6447 | D3: 1126 | E3: 1746 | F3: 6060 | G3: 1448 | H3: 10307 | I3: 7980 | J3: 26261 | K3: 4117 | L3: 14343 | M3: 6101 | N3: 6247 | O3: 16821 | P3: 28546 | Q3: 10581 | R3: 5156 | S3: 2169 | T3: 11559 | U3: 9987 | V3: 17623 | W3: 3946 | X3: 1996 | Y3: 6571 | Z3: 6007 | AA3: 6345 | AB3: 4919 | AC3: 7087 | AD3: 2762 | AE3: 21853 | AF3: 5322 | AG3: 3378
A4: Asignación provisoria de nuevas afecciones de etiología incierta o de uso emergente, sin especificación | B4: 2200 | C4: 5586 | D4: 2057 | E4: 1533 | F4: 4608 | G4: 1685 | H4: 3119 | I4: 4012 | J4: 42272 | K4: 2189 | L4: 10111 | M4: 6694 | N4: 6034 | O4: 16673 | P4: 30583 | Q4: 9246 | R4: 5947 | S4: 2333 | T4: 11182 | U4: 6731 | V4: 13179 | W4: 4919 | X4: 2597 | Y4: 4554 | Z4: 5583 | AA4: 4780 | AB4: 3185 | AC4: 5042 | AD4: 2204 | AE4: 11823 | AF4: 4062 | AG4: 2058
A5: Enfermedades endocrinas, nutricionales y metabólicas | B5: 1175 | C5: 3109 | D5: 492 | E5: 989 | F5: 3624 | G5: 916 | H5: 6665 | I5: 3415 | J5: 15515 | K5: 1610 | L5: 8745 | M5: 4398 | N5: 3388 | O5: 8437 | P5: 24291 | Q5: 7237 | R5: 3067 | S5: 1268 | T5: 4859 | U5: 6830 | V5: 11717 | W5: 2225 | X5: 1285 | Y5: 3584 | Z5: 2065 | AA5: 2135 | AB5: 3607 | AC5: 3901 | AD5: 2146 | AE5: 14264 | AF5: 1740 | AG5: 1905
A6: Tumores (neoplasias) | B6: 1048 | C6: 3026 | D6: 613 | E6: 640 | F6: 2475 | G6: 700 | H6: 3844 | I6: 3310 | J6: 12192 | K6: 1227 | L6: 4130 | M6: 1899 | N6: 2110 | O6: 7090 | P6: 9372 | Q6: 3551 | R6: 1645 | S6: 1033 | T6: 4791 | U6: 3191 | V6: 4293 | W6: 1635 | X6: 894 | Y6: 2218 | Z6: 2530 | AA6: 2628 | AB6: 1730 | AC6: 2731 | AD6: 698 | AE6: 6944 | AF6: 1839 | AG6: 1311
A7: Enfermedades del sistema respiratorio | B7: 969 | C7: 2345 | D7: 347 | E7: 488 | F7: 1618 | G7: 604 | H7: 3208 | I7: 2423 | J7: 8543 | K7: 1154 | L7: 4376 | M7: 1722 | N7: 1543 | O7: 7445 | P7: 10539 | Q7: 3751 | R7: 1419 | S7: 862 | T7: 4211 | U7: 2502 | V7: 5801 | W7: 1285 | X7: 731 | Y7: 2215 | Z7: 2251 | AA7: 2313 | AB7: 1344 | AC7: 2113 | AD7: 1790 | AE7: 5739 | AF7: 1604 | AG7: 1200
A8: Causas externas de morbilidad y de mortalidad | B8: 746 | C8: 5440 | D8: 381 | E8: 525 | F8: 1403 | G8: 986 | H8: 1896 | I8: 4966 | J8: 3979 | K8: 999 | L8: 6798 | M8: 2527 | N8: 1480 | O8: 6192 | P8: 7970 | Q8: 4940 | R8: 2238 | S8: 949 | T8: 2876 | U8: 2258 | V8: 2986 | W8: 1170 | X8: 1513 | Y8: 2134 | Z8: 2293 | AA8: 3625 | AB8: 1310 | AC8: 2049 | AD8: 594 | AE8: 3317 | AF8: 982 | AG8: 2627
A9: Ciertas enfermedades infecciosas y parasitarias | B9: 197 | C9: 1185 | D9: 170 | E9: 175 | F9: 464 | G9: 146 | H9: 1265 | I9: 882 | J9: 2127 | K9: 233 | L9: 709 | M9: 499 | N9: 357 | O9: 1693 | P9: 1624 | Q9: 664 | R9: 327 | S9: 243 | T9: 963 | U9: 673 | V9: 754 | W9: 402 | X9: 440 | Y9: 452 | Z9: 673 | AA9: 870 | AB9: 398 | AC9: 671 | AD9: 114 | AE9: 1723 | AF9: 554 | AG9: 202
A10: Enfermedades de la sangre y de los órganos hematopoyéticos, y ciertos trastornos que afectan el mecanismo de la inmunidad | B10: 57 | C10: 96 | D10: 18 | E10: 33 | F10: 83 | G10: 30 | H10: 423 | I10: 159 | J10: 578 | K10: 50 | L10: 195 | M10: 244 | N10: 127 | O10: 276 | P10: 401 | Q10: 250 | R10: 151 | S10: 39 | T10: 103 | U10: 407 | V10: 383 | W10: 60 | X10: 55 | Y10: 117 | Z10: 104 | AA10: 122 | AB10: 97 | AC10: 110 | AD10: 47 | AE10: 654 | AF10: 79 | AG10: 89
A11: Trastornos mentales y del comportamiento | B11: 132 | C11: 229 | D11: 30 | E11: 27 | F11: 72 | G11: 37 | H11: 158 | I11: 279 | J11: 412 | K11: 33 | L11: 177 | M11: 111 | N11: 88 | O11: 485 | P11: 494 | Q11: 202 | R11: 105 | S11: 65 | T11: 188 | U11: 379 | V11: 250 | W11: 68 | X11: 91 | Y11: 139 | Z11: 81 | AA11: 161 | AB11: 38 | AC11: 85 | AD11: 38 | AE11: 518 | AF11: 59 | AG11: 109
A12: Enfermedades del sistema nervioso | B12: 168 | C12: 409 | D12: 80 | E12: 82 | F12: 309 | G12: 98 | H12: 509 | I12: 457 | J12: 1313 | K12: 144 | L12: 583 | M12: 262 | N12: 237 | O12: 1112 | P12: 1116 | Q12: 475 | R12: 219 | S12: 185 | T12: 676 | U12: 478 | V12: 587 | W12: 195 | X12: 140 | Y12: 310 | Z12: 344 | AA12: 437 | AB12: 240 | AC12: 319 | AD12: 107 | AE12: 914 | AF12: 218 | AG12: 204
A13: Enfermedades del ojo y sus anexos | B13: 0 | C13: 0 | D13: 0 | E13: 0 | F13: 3 | G13: 0 | H13: 1 | I13: 0 | J13: 0 | K13: 0 | L13: 0 | M13: 2 | N13: 0 | O13: 0 | P13: 1 | Q13: 0 | R13: 0 | S13: 0 | T13: 1 | U13: 2 | V13: 1 | W13: 0 | X13: 0 | Y13: 0 | Z13: 0 | AA13: 0 | AB13: 1 | AC13: 4 | AD13: 1 | AE13: 2 | AF13: 0 | AG13: 1
A14: Enfermedades del oído y de la apófisis mastoides | B14: 0 | C14: 0 | D14: 1 | E14: 0 | F14: 0 | G14: 1 | H14: 2 | I14: 0 | J14: 0 | K14: 0 | L14: 2 | M14: 2 | N14: 1 | O14: 2 | P14: 3 | Q14: 2 | R14: 1 | S14: 1 | T14: 1 | U14: 1 | V14: 1 | W14: 0 | X14: 0 | Y14: 4 | Z14: 1 | AA14: 1 | AB14: 0 | AC14: 4 | AD14: 0 | AE14: 3 | AF14: 0 | AG14: 0
A15: Enfermedades del sistema digestivo | B15: 807 | C15: 1904 | D15: 371 | E15: 484 | F15: 1490 | G15: 454 | H15: 3582 | I15: 2318 | J15: 8255 | K15: 829 | L15: 3609 | M15: 1603 | N15: 1785 | O15: 4781 | P15: 8805 | Q15: 2899 | R15: 1578 | S15: 602 | T15: 2699 | U15: 2815 | V15: 4803 | W15: 1526 | X15: 785 | Y15: 1613 | Z15: 989 | AA15: 1294 | AB15: 1042 | AC15: 1735 | AD15: 744 | AE15: 5958 | AF15: 1568 | AG15: 975
A16: Enfermedades de la piel y del tejido subcutáneo | B16: 30 | C16: 101 | D16: 20 | E16: 24 | F16: 84 | G16: 31 | H16: 62 | I16: 109 | J16: 724 | K16: 46 | L16: 162 | M16: 37 | N16: 42 | O16: 359 | P16: 442 | Q16: 102 | R16: 85 | S16: 45 | T16: 263 | U16: 70 | V16: 87 | W16: 101 | X16: 54 | Y16: 63 | Z16: 38 | AA16: 84 | AB16: 32 | AC16: 134 | AD16: 15 | AE16: 187 | AF16: 112 | AG16: 46
A17: Enfermedades del sistema osteomuscular y del tejido conjuntivo | B17: 56 | C17: 118 | D17: 26 | E17: 35 | F17: 114 | G17: 24 | H17: 162 | I17: 106 | J17: 806 | K17: 71 | L17: 203 | M17: 105 | N17: 108 | O17: 390 | P17: 713 | Q17: 242 | R17: 89 | S17: 53 | T17: 240 | U17: 255 | V17: 403 | W17: 120 | X17: 49 | Y17: 125 | Z17: 127 | AA17: 89 | AB17: 68 | AC17: 96 | AD17: 45 | AE17: 336 | AF17: 95 | AG17: 116
A18: Enfermedades del sistema genitourinario | B18: 274 | C18: 673 | D18: 147 | E18: 199 | F18: 618 | G18: 207 | H18: 1437 | I18: 722 | J18: 2835 | K18: 286 | L18: 1220 | M18: 655 | N18: 479 | O18: 2120 | P18: 2642 | Q18: 1012 | R18: 503 | S18: 231 | T18: 1023 | U18: 918 | V18: 1423 | W18: 469 | X18: 254 | Y18: 592 | Z18: 497 | AA18: 644 | AB18: 502 | AC18: 783 | AD18: 285 | AE18: 2044 | AF18: 634 | AG18: 319
A19: Embarazo, parto y puerperio | B19: 14 | C19: 35 | D19: 7 | E19: 11 | F19: 27 | G19: 5 | H19: 69 | I19: 43 | J19: 89 | K19: 18 | L19: 41 | M19: 44 | N19: 34 | O19: 80 | P19: 135 | Q19: 51 | R19: 14 | S19: 21 | T19: 57 | U19: 48 | V19: 91 | W19: 19 | X19: 19 | Y19: 21 | Z19: 40 | AA19: 25 | AB19: 28 | AC19: 44 | AD19: 7 | AE19: 79 | AF19: 30 | AG19: 13
A20: Ciertas afecciones originadas en el periodo perinatal | B20: 137 | C20: 228 | D20: 62 | E20: 76 | F20: 356 | G20: 44 | H20: 639 | I20: 424 | J20: 763 | K20: 223 | L20: 449 | M20: 295 | N20: 257 | O20: 649 | P20: 1172 | Q20: 393 | R20: 135 | S20: 91 | T20: 398 | U20: 315 | V20: 639 | W20: 188 | X20: 124 | Y20: 207 | Z20: 224 | AA20: 179 | AB20: 264 | AC20: 380 | AD20: 98 | AE20: 665 | AF20: 170 | AG20: 115
A21: Malformaciones congénitas, deformidades y anomalías cromosómicas | B21: 86 | C21: 199 | D21: 32 | E21: 48 | F21: 190 | G21: 36 | H21: 453 | I21: 224 | J21: 868 | K21: 91 | L21: 408 | M21: 166 | N21: 104 | O21: 601 | P21: 772 | Q21: 283 | R21: 87 | S21: 46 | T21: 406 | U21: 260 | V21: 571 | W21: 148 | X21: 90 | Y21: 186 | Z21: 121 | AA21: 151 | AB21: 219 | AC21: 165 | AD21: 107 | AE21: 489 | AF21: 135 | AG21: 85
A22: Síntomas, signos y hallazgos anormales clínicos y de laboratorio, no clasificados en otra parte | B22: 58 | C22: 210 | D22: 14 | E22: 299 | F22: 562 | G22: 192 | H22: 1924 | I22: 228 | J22: 320 | K22: 237 | L22: 238 | M22: 493 | N22: 193 | O22: 700 | P22: 147 | Q22: 573 | R22: 77 | S22: 151 | T22: 165 | U22: 1393 | V22: 654 | W22: 188 | X22: 170 | Y22: 284 | Z22: 202 | AA22: 230 | AB22: 702 | AC22: 376 | AD22: 153 | AE22: 815 | AF22: 408 | AG22: 156

Sheet Nac. Invertida 2022 (hidden)
A2: CONCEPTO | B2: Aguascalientes | C2: Baja California | D2: Baja California Sur | E2: Campeche | F2: Coahuila | G2: Colima | H2: Chiapas | I2: Chihuahua | J2: Ciudad de México | K2: Durango | L2: Guanajuato | M2: Guerrero | N2: Hidalgo | O2: Jalisco | P2: México | Q2: Michoacán | R2: Morelos | S2: Nayarit | T2: Nuevo León | U2: Oaxaca | V2: Puebla | W2: Querétaro | X2: Quintana Roo | Y2: San Luis Potosí | Z2: Sinaloa | AA2: Sonora | AB2: Tabasco | AC2: Tamaulipas | AD2: Tlaxcala | AE2: Veracruz | AF2: Yucatán | AG2: Zacatecas
A3: Enfermedades del sistema circulatorio | B3: 1926 | C3: 6654 | D3: 1181 | E3: 1512 | F3: 6275 | G3: 1275 | H3: 8861 | I3: 7923 | J3: 22757 | K3: 3836 | L3: 12383 | M3: 5438 | N3: 5693 | O3: 15297 | P3: 24797 | Q3: 9087 | R3: 4475 | S3: 1929 | T3: 12241 | U3: 8672 | V3: 13854 | W3: 3644 | X3: 1919 | Y3: 6208 | Z3: 5316 | AA3: 6326 | AB3: 4646 | AC3: 6878 | AD3: 2359 | AE3: 19350 | AF3: 5040 | AG3: 3131
A4: Asignación provisoria de nuevas afecciones de etiología incierta o de uso emergente, sin especificación | B4: 646 | C4: 1413 | D4: 399 | E4: 197 | F4: 1441 | G4: 256 | H4: 336 | I4: 1656 | J4: 5428 | K4: 608 | L4: 1777 | M4: 740 | N4: 591 | O4: 2955 | P4: 3336 | Q4: 956 | R4: 770 | S4: 361 | T4: 2002 | U4: 911 | V4: 1178 | W4: 864 | X4: 312 | Y4: 900 | Z4: 844 | AA4: 1295 | AB4: 395 | AC4: 1169 | AD4: 200 | AE4: 1623 | AF4: 756 | AG4: 562
A5: Enfermedades endocrinas, nutricionales y metabólicas | B5: 1219 | C5: 3023 | D5: 479 | E5: 847 | F5: 3549 | G5: 754 | H5: 5249 | I5: 3507 | J5: 11711 | K5: 1399 | L5: 7275 | M5: 3852 | N5: 2901 | O5: 7273 | P5: 18992 | Q5: 5376 | R5: 2632 | S5: 1044 | T5: 4675 | U5: 5577 | V5: 8657 | W5: 1760 | X5: 1264 | Y5: 3171 | Z5: 2004 | AA5: 2022 | AB5: 3124 | AC5: 3536 | AD5: 1503 | AE5: 11889 | AF5: 1614 | AG5: 1680
A6: Tumores (neoplasias) | B6: 1012 | C6: 3027 | D6: 630 | E6: 695 | F6: 2539 | G6: 655 | H6: 3506 | I6: 3305 | J6: 12367 | K6: 1287 | L6: 4092 | M6: 1994 | N6: 2157 | O6: 6933 | P6: 9988 | Q6: 3505 | R6: 1620 | S6: 975 | T6: 5291 | U6: 2990 | V6: 4315 | W6: 1687 | X6: 971 | Y6: 2173 | Z6: 2478 | AA6: 2772 | AB6: 1699 | AC6: 2756 | AD6: 778 | AE6: 6840 | AF6: 1826 | AG6: 1186
A7: Enfermedades del sistema respiratorio | B7: 744 | C7: 2039 | D7: 359 | E7: 314 | F7: 1464 | G7: 412 | H7: 2058 | I7: 2172 | J7: 6750 | K7: 1026 | L7: 2719 | M7: 1094 | N7: 1194 | O7: 6112 | P7: 6726 | Q7: 2323 | R7: 1039 | S7: 725 | T7: 3485 | U7: 1836 | V7: 2766 | W7: 1150 | X7: 515 | Y7: 1541 | Z7: 1394 | AA7: 1922 | AB7: 849 | AC7: 1544 | AD7: 483 | AE7: 4001 | AF7: 1279 | AG7: 1020
A8: Causas externas de morbilidad y de mortalidad | B8: 744 | C8: 4888 | D8: 425 | E8: 522 | F8: 1571 | G8: 1290 | H8: 1895 | I8: 4400 | J8: 4105 | K8: 975 | L8: 6903 | M8: 2508 | N8: 1597 | O8: 5728 | P8: 8447 | Q8: 4611 | R8: 2028 | S8: 929 | T8: 3300 | U8: 2194 | V8: 3458 | W8: 1206 | X8: 1476 | Y8: 2104 | Z8: 2134 | AA8: 3290 | AB8: 1399 | AC8: 1917 | AD8: 648 | AE8: 3100 | AF8: 1084 | AG8: 2341
A9: Ciertas enfermedades infecciosas y parasitarias | B9: 161 | C9: 1119 | D9: 136 | E9: 170 | F9: 409 | G9: 153 | H9: 914 | I9: 805 | J9: 2054 | K9: 198 | L9: 586 | M9: 407 | N9: 302 | O9: 1462 | P9: 1531 | Q9: 459 | R9: 313 | S9: 256 | T9: 966 | U9: 537 | V9: 668 | W9: 317 | X9: 349 | Y9: 424 | Z9: 459 | AA9: 920 | AB9: 396 | AC9: 514 | AD9: 108 | AE9: 1459 | AF9: 453 | AG9: 169
A10: Enfermedades de la sangre y de los órganos hematopoyéticos, y ciertos trastornos que afectan el mecanismo de la inmunidad | B10: 72 | C10: 146 | D10: 19 | E10: 32 | F10: 70 | G10: 21 | H10: 440 | I10: 148 | J10: 535 | K10: 44 | L10: 212 | M10: 220 | N10: 119 | O10: 252 | P10: 405 | Q10: 201 | R10: 137 | S10: 33 | T10: 128 | U10: 374 | V10: 293 | W10: 55 | X10: 66 | Y10: 121 | Z10: 82 | AA10: 118 | AB10: 84 | AC10: 130 | AD10: 46 | AE10: 625 | AF10: 80 | AG10: 73
A11: Trastornos mentales y del comportamiento | B11: 120 | C11: 310 | D11: 21 | E11: 25 | F11: 95 | G11: 30 | H11: 148 | I11: 272 | J11: 400 | K11: 45 | L11: 155 | M11: 102 | N11: 57 | O11: 504 | P11: 500 | Q11: 150 | R11: 90 | S11: 39 | T11: 231 | U11: 336 | V11: 191 | W11: 62 | X11: 84 | Y11: 124 | Z11: 70 | AA11: 167 | AB11: 43 | AC11: 66 | AD11: 35 | AE11: 489 | AF11: 65 | AG11: 117
A12: Enfermedades del sistema nervioso | B12: 198 | C12: 424 | D12: 81 | E12: 88 | F12: 391 | G12: 110 | H12: 507 | I12: 523 | J12: 1398 | K12: 146 | L12: 571 | M12: 259 | N12: 286 | O12: 1120 | P12: 1350 | Q12: 473 | R12: 224 | S12: 174 | T12: 820 | U12: 455 | V12: 639 | W12: 271 | X12: 154 | Y12: 374 | Z12: 333 | AA12: 465 | AB12: 230 | AC12: 366 | AD12: 125 | AE12: 938 | AF12: 216 | AG12: 198
A13: Enfermedades del ojo y sus anexos | B13: 2 | C13: 1 | D13: 0 | E13: 0 | F13: 0 | G13: 0 | H13: 0 | I13: 0 | J13: 4 | K13: 0 | L13: 1 | M13: 0 | N13: 2 | O13: 2 | P13: 4 | Q13: 1 | R13: 0 | S13: 0 | T13: 0 | U13: 1 | V13: 1 | W13: 0 | X13: 1 | Y13: 0 | Z13: 0 | AA13: 1 | AB13: 1 | AC13: 1 | AD13: 0 | AE13: 2 | AF13: 0 | AG13: 0
A14: Enfermedades del oído y de la apófisis mastoides | B14: 0 | C14: 2 | D14: 0 | E14: 1 | F14: 1 | G14: 0 | H14: 1 | I14: 1 | J14: 7 | K14: 3 | L14: 2 | M14: 2 | N14: 0 | O14: 3 | P14: 5 | Q14: 1 | R14: 0 | S14: 2 | T14: 6 | U14: 1 | V14: 0 | W14: 1 | X14: 1 | Y14: 2 | Z14: 0 | AA14: 0 | AB14: 0 | AC14: 2 | AD14: 0 | AE14: 5 | AF14: 0 | AG14: 0
A15: Enfermedades del sistema digestivo | B15: 741 | C15: 1927 | D15: 343 | E15: 475 | F15: 1676 | G15: 519 | H15: 3213 | I15: 2319 | J15: 8424 | K15: 849 | L15: 3452 | M15: 1603 | N15: 1734 | O15: 4893 | P15: 9240 | Q15: 2710 | R15: 1521 | S15: 590 | T15: 3259 | U15: 2717 | V15: 4729 | W15: 1511 | X15: 941 | Y15: 1714 | Z15: 985 | AA15: 1391 | AB15: 1024 | AC15: 1709 | AD15: 772 | AE15: 5714 | AF15: 1640 | AG15: 918
A16: Enfermedades de la piel y del tejido subcutáneo | B16: 46 | C16: 144 | D16: 27 | E16: 30 | F16: 129 | G16: 47 | H16: 76 | I16: 118 | J16: 907 | K16: 43 | L16: 155 | M16: 50 | N16: 35 | O16: 425 | P16: 597 | Q16: 119 | R16: 93 | S16: 53 | T16: 377 | U16: 69 | V16: 65 | W16: 90 | X16: 53 | Y16: 74 | Z16: 82 | AA16: 134 | AB16: 40 | AC16: 130 | AD16: 14 | AE16: 292 | AF16: 115 | AG16: 64
A17: Enfermedades del sistema osteomuscular y del tejido conjuntivo | B17: 56 | C17: 131 | D17: 20 | E17: 29 | F17: 148 | G17: 31 | H17: 140 | I17: 144 | J17: 866 | K17: 64 | L17: 215 | M17: 110 | N17: 113 | O17: 376 | P17: 671 | Q17: 214 | R17: 83 | S17: 73 | T17: 266 | U17: 233 | V17: 361 | W17: 165 | X17: 55 | Y17: 99 | Z17: 139 | AA17: 129 | AB17: 58 | AC17: 100 | AD17: 40 | AE17: 304 | AF17: 81 | AG17: 107
A18: Enfermedades del sistema genitourinario | B18: 318 | C18: 827 | D18: 139 | E18: 180 | F18: 667 | G18: 191 | H18: 1217 | I18: 917 | J18: 3142 | K18: 311 | L18: 1362 | M18: 631 | N18: 549 | O18: 2373 | P18: 2972 | Q18: 921 | R18: 626 | S18: 257 | T18: 1334 | U18: 843 | V18: 1372 | W18: 569 | X18: 267 | Y18: 673 | Z18: 534 | AA18: 701 | AB18: 500 | AC18: 858 | AD18: 281 | AE18: 2110 | AF18: 596 | AG18: 360
A19: Embarazo, parto y puerperio | B19: 6 | C19: 29 | D19: 2 | E19: 3 | F19: 22 | G19: 4 | H19: 42 | I19: 36 | J19: 60 | K19: 42 | L19: 35 | M19: 36 | N19: 16 | O19: 57 | P19: 87 | Q19: 38 | R19: 6 | S19: 17 | T19: 45 | U19: 41 | V19: 39 | W19: 13 | X19: 10 | Y19: 18 | Z19: 13 | AA19: 19 | AB19: 26 | AC19: 21 | AD19: 15 | AE19: 55 | AF19: 11 | AG19: 8
A20: Ciertas afecciones originadas en el periodo perinatal | B20: 68 | C20: 241 | D20: 56 | E20: 72 | F20: 164 | G20: 46 | H20: 275 | I20: 357 | J20: 805 | K20: 20 | L20: 441 | M20: 37 | N20: 168 | O20: 632 | P20: 1155 | Q20: 153 | R20: 100 | S20: 38 | T20: 351 | U20: 202 | V20: 583 | W20: 188 | X20: 111 | Y20: 173 | Z20: 58 | AA20: 172 | AB20: 217 | AC20: 123 | AD20: 91 | AE20: 629 | AF20: 142 | AG20: 76
A21: Malformaciones congénitas, deformidades y anomalías cromosómicas | B21: 68 | C21: 210 | D21: 36 | E21: 63 | F21: 153 | G21: 35 | H21: 310 | I21: 202 | J21: 884 | K21: 32 | L21: 413 | M21: 100 | N21: 127 | O21: 593 | P21: 799 | Q21: 205 | R21: 107 | S21: 42 | T21: 363 | U21: 224 | V21: 620 | W21: 154 | X21: 81 | Y21: 185 | Z21: 70 | AA21: 122 | AB21: 190 | AC21: 119 | AD21: 115 | AE21: 513 | AF21: 157 | AG21: 72
A22: Síntomas, signos y hallazgos anormales clínicos y de laboratorio, no clasificados en otra parte | B22: 64 | C22: 316 | D22: 30 | E22: 209 | F22: 400 | G22: 213 | H22: 1569 | I22: 313 | J22: 302 | K22: 175 | L22: 269 | M22: 509 | N22: 242 | O22: 642 | P22: 152 | Q22: 462 | R22: 55 | S22: 219 | T22: 169 | U22: 1095 | V22: 545 | W22: 208 | X22: 179 | Y22: 254 | Z22: 233 | AA22: 271 | AB22: 485 | AC22: 433 | AD22: 128 | AE22: 743 | AF22: 523 | AG22: 166

Sheet Comp.xEnt.Fed
A1: Comparativo por Entidad Federativa
A2: SELECCIONE UNA CAUSA
A3: Ciertas afecciones originadas en el periodo perinatal | B3: 2020 | C3: 2021 | D3: 2022
A4: Aguascalientes | B4: =VLOOKUP($A$3,Tabla10[],MATCH(TablaA1[[#This Row],[Ciertas afecciones originadas en el periodo perinatal]],Tabla10[#Headers],0),0) -> 117 | C4: =VLOOKUP($A$3,Tabla11[],MATCH(TablaA1[[#This Row],[Ciertas afecciones originadas en el periodo perinatal]],Tabla11[#Headers],0),0) -> 137 | D4: =VLOOKUP($A$3,Tabla12[],MATCH(TablaA1[[#This Row],[Ciertas afecciones originadas en el periodo perinatal]],Tabla12[#Headers],0),0) -> 68
A5: Baja California | B5: =VLOOKUP($A$3,Tabla10[],MATCH(TablaA1[[#This Row],[Ciertas afecciones originadas en el periodo perinatal]],Tabla10[#Headers],0),0) -> 250 | C5: =VLOOKUP($A$3,Tabla11[],MATCH(TablaA1[[#This Row],[Ciertas afecciones originadas en el periodo perinatal]],Tabla11[#Headers],0),0) -> 228 | D5: =VLOOKUP($A$3,Tabla12[],MATCH(TablaA1[[#This Row],[Ciertas afecciones originadas en el periodo perinatal]],Tabla12[#Headers],0),0) -> 241
A6: Baja California Sur | B6: =VLOOKUP($A$3,Tabla10[],MATCH(TablaA1[[#This Row],[Ciertas afecciones originadas en el periodo perinatal]],Tabla10[#Headers],0),0) -> 66 | C6: =VLOOKUP($A$3,Tabla11[],MATCH(TablaA1[[#This Row],[Ciertas afecciones originadas en el periodo perinatal]],Tabla11[#Headers],0),0) -> 62 | D6: =VLOOKUP($A$3,Tabla12[],MATCH(TablaA1[[#This Row],[Ciertas afecciones originadas en el periodo perinatal]],Tabla12[#Headers],0),0) -> 56
A7: Campeche | B7: =VLOOKUP($A$3,Tabla10[],MATCH(TablaA1[[#This Row],[Ciertas afecciones originadas en el periodo perinatal]],Tabla10[#Headers],0),0) -> 86 | C7: =VLOOKUP($A$3,Tabla11[],MATCH(TablaA1[[#This Row],[Ciertas afecciones originadas en el periodo perinatal]],Tabla11[#Headers],0),0) -> 76 | D7: =VLOOKUP($A$3,Tabla12[],MATCH(TablaA1[[#This Row],[Ciertas afecciones originadas en el periodo perinatal]],Tabla12[#Headers],0),0) -> 72
A8: Chiapas | B8: =VLOOKUP($A$3,Tabla10[],MATCH(TablaA1[[#This Row],[Ciertas afecciones originadas en el periodo perinatal]],Tabla10[#Headers],0),0) -> 450 | C8: =VLOOKUP($A$3,Tabla11[],MATCH(TablaA1[[#This Row],[Ciertas afecciones originadas en el periodo perinatal]],Tabla11[#Headers],0),0) -> 639 | D8: =VLOOKUP($A$3,Tabla12[],MATCH(TablaA1[[#This Row],[Ciertas afecciones originadas en el periodo perinatal]],Tabla12[#Headers],0),0) -> 275
A9: Chihuahua | B9: =VLOOKUP($A$3,Tabla10[],MATCH(TablaA1[[#This Row],[Ciertas afecciones originadas en el periodo perinatal]],Tabla10[#Headers],0),0) -> 405 | C9: =VLOOKUP($A$3,Tabla11[],MATCH(TablaA1[[#This Row],[Ciertas afecciones originadas en el periodo perinatal]],Tabla11[#Headers],0),0) -> 424 | D9: =VLOOKUP($A$3,Tabla12[],MATCH(TablaA1[[#This Row],[Ciertas afecciones originadas en el periodo perinatal]],Tabla12[#Headers],0),0) -> 357
A10: Ciudad de México | B10: =VLOOKUP($A$3,Tabla10[],MATCH(TablaA1[[#This Row],[Ciertas afecciones originadas en el periodo perinatal]],Tabla10[#Headers],0),0) -> 854 | C10: =VLOOKUP($A$3,Tabla11[],MATCH(TablaA1[[#This Row],[Ciertas afecciones originadas en el periodo perinatal]],Tabla11[#Headers],0),0) -> 763 | D10: =VLOOKUP($A$3,Tabla12[],MATCH(TablaA1[[#This Row],[Ciertas afecciones originadas en el periodo perinatal]],Tabla12[#Headers],0),0) -> 805
A11: Coahuila | B11: =VLOOKUP($A$3,Tabla10[],MATCH(TablaA1[[#This Row],[Ciertas afecciones originadas en el periodo perinatal]],Tabla10[#Headers],0),0) -> 307 | C11: =VLOOKUP($A$3,Tabla11[],MATCH(TablaA1[[#This Row],[Ciertas afecciones originadas en el periodo perinatal]],Tabla11[#Headers],0),0) -> 356 | D11: =VLOOKUP($A$3,Tabla12[],MATCH(TablaA1[[#This Row],[Ciertas afecciones originadas en el periodo perinatal]],Tabla12[#Headers],0),0) -> 164
A12: Colima | B12: =VLOOKUP($A$3,Tabla10[],MATCH(TablaA1[[#This Row],[Ciertas afecciones originadas en el periodo perinatal]],Tabla10[#Headers],0),0) -> 49 | C12: =VLOOKUP($A$3,Tabla11[],MATCH(TablaA1[[#This Row],[Ciertas afecciones originadas en el periodo perinatal]],Tabla11[#Headers],0),0) -> 44 | D12: =VLOOKUP($A$3,Tabla12[],MATCH(TablaA1[[#This Row],[Ciertas afecciones originadas en el periodo perinatal]],Tabla12[#Headers],0),0) -> 46
A13: Durango | B13: =VLOOKUP($A$3,Tabla10[],MATCH(TablaA1[[#This Row],[Ciertas afecciones originadas en el periodo perinatal]],Tabla10[#Headers],0),0) -> 142 | C13: =VLOOKUP($A$3,Tabla11[],MATCH(TablaA1[[#This Row],[Ciertas afecciones originadas en el periodo perinatal]],Tabla11[#Headers],0),0) -> 223 | D13: =VLOOKUP($A$3,Tabla12[],MATCH(TablaA1[[#This Row],[Ciertas afecciones originadas en el periodo perinatal]],Tabla12[#Headers],0),0) -> 20
A14: Guanajuato | B14: =VLOOKUP($A$3,Tabla10[],MATCH(TablaA1[[#This Row],[Ciertas afecciones originadas en el periodo perinatal]],Tabla10[#Headers],0),0) -> 477 | C14: =VLOOKUP($A$3,Tabla11[],MATCH(TablaA1[[#This Row],[Ciertas afecciones originadas en el periodo perinatal]],Tabla11[#Headers],0),0) -> 449 | D14: =VLOOKUP($A$3,Tabla12[],MATCH(TablaA1[[#This Row],[Ciertas afecciones originadas en el periodo perinatal]],Tabla12[#Headers],0),0) -> 441
A15: Guerrero | B15: =VLOOKUP($A$3,Tabla10[],MATCH(TablaA1[[#This Row],[Ciertas afecciones originadas en el periodo perinatal]],Tabla10[#Headers],0),0) -> 214 | C15: =VLOOKUP($A$3,Tabla11[],MATCH(TablaA1[[#This Row],[Ciertas afecciones originadas en el periodo perinatal]],Tabla11[#Headers],0),0) -> 295 | D15: =VLOOKUP($A$3,Tabla12[],MATCH(TablaA1[[#This Row],[Ciertas afecciones originadas en el periodo perinatal]],Tabla12[#Headers],0),0) -> 37
A16: Hidalgo | B16: =VLOOKUP($A$3,Tabla10[],MATCH(TablaA1[[#This Row],[Ciertas afecciones originadas en el periodo perinatal]],Tabla10[#Headers],0),0) -> 183 | C16: =VLOOKUP($A$3,Tabla11[],MATCH(TablaA1[[#This Row],[Ciertas afecciones originadas en el periodo perinatal]],Tabla11[#Headers],0),0) -> 257 | D16: =VLOOKUP($A$3,Tabla12[],MATCH(TablaA1[[#This Row],[Ciertas afecciones originadas en el periodo perinatal]],Tabla12[#Headers],0),0) -> 168
A17: Jalisco | B17: =VLOOKUP($A$3,Tabla10[],MATCH(TablaA1[[#This Row],[Ciertas afecciones originadas en el periodo perinatal]],Tabla10[#Headers],0),0) -> 743 | C17: =VLOOKUP($A$3,Tabla11[],MATCH(TablaA1[[#This Row],[Ciertas afecciones originadas en el periodo perinatal]],Tabla11[#Headers],0),0) -> 649 | D17: =VLOOKUP($A$3,Tabla12[],MATCH(TablaA1[[#This Row],[Ciertas afecciones originadas en el periodo perinatal]],Tabla12[#Headers],0),0) -> 632
A18: México | B18: =VLOOKUP($A$3,Tabla10[],MATCH(TablaA1[[#This Row],[Ciertas afecciones originadas en el periodo perinatal]],Tabla10[#Headers],0),0) -> 1288 | C18: =VLOOKUP($A$3,Tabla11[],MATCH(TablaA1[[#This Row],[Ciertas afecciones originadas en el periodo perinatal]],Tabla11[#Headers],0),0) -> 1172 | D18: =VLOOKUP($A$3,Tabla12[],MATCH(TablaA1[[#This Row],[Ciertas afecciones originadas en el periodo perinatal]],Tabla12[#Headers],0),0) -> 1155
A19: Michoacán | B19: =VLOOKUP($A$3,Tabla10[],MATCH(TablaA1[[#This Row],[Ciertas afecciones originadas en el periodo perinatal]],Tabla10[#Headers],0),0) -> 264 | C19: =VLOOKUP($A$3,Tabla11[],MATCH(TablaA1[[#This Row],[Ciertas afecciones originadas en el periodo perinatal]],Tabla11[#Headers],0),0) -> 393 | D19: =VLOOKUP($A$3,Tabla12[],MATCH(TablaA1[[#This Row],[Ciertas afecciones originadas en el periodo perinatal]],Tabla12[#Headers],0),0) -> 153
A20: Morelos | B20: =VLOOKUP($A$3,Tabla10[],MATCH(TablaA1[[#This Row],[Ciertas afecciones originadas en el periodo perinatal]],Tabla10[#Headers],0),0) -> 123 | C20: =VLOOKUP($A$3,Tabla11[],MATCH(TablaA1[[#This Row],[Ciertas afecciones originadas en el periodo perinatal]],Tabla11[#Headers],0),0) -> 135 | D20: =VLOOKUP($A$3,Tabla12[],MATCH(TablaA1[[#This Row],[Ciertas afecciones originadas en el periodo perinatal]],Tabla12[#Headers],0),0) -> 100
A21: Nayarit | B21: =VLOOKUP($A$3,Tabla10[],MATCH(TablaA1[[#This Row],[Ciertas afecciones originadas en el periodo perinatal]],Tabla10[#Headers],0),0) -> 56 | C21: =VLOOKUP($A$3,Tabla11[],MATCH(TablaA1[[#This Row],[Ciertas afecciones originadas en el periodo perinatal]],Tabla11[#Headers],0),0) -> 91 | D21: =VLOOKUP($A$3,Tabla12[],MATCH(TablaA1[[#This Row],[Ciertas afecciones originadas en el periodo perinatal]],Tabla12[#Headers],0),0) -> 38
A22: Nuevo León | B22: =VLOOKUP($A$3,Tabla10[],MATCH(TablaA1[[#This Row],[Ciertas afecciones originadas en el periodo perinatal]],Tabla10[#Headers],0),0) -> 394 | C22: =VLOOKUP($A$3,Tabla11[],MATCH(TablaA1[[#This Row],[Ciertas afecciones originadas en el periodo perinatal]],Tabla11[#Headers],0),0) -> 398 | D22: =VLOOKUP($A$3,Tabla12[],MATCH(TablaA1[[#This Row],[Ciertas afecciones originadas en el periodo perinatal]],Tabla12[#Headers],0),0) -> 351
A23: Oaxaca | B23: =VLOOKUP($A$3,Tabla10[],MATCH(TablaA1[[#This Row],[Ciertas afecciones originadas en el periodo perinatal]],Tabla10[#Headers],0),0) -> 280 | C23: =VLOOKUP($A$3,Tabla11[],MATCH(TablaA1[[#This Row],[Ciertas afecciones originadas en el periodo perinatal]],Tabla11[#Headers],0),0) -> 315 | D23: =VLOOKUP($A$3,Tabla12[],MATCH(TablaA1[[#This Row],[Ciertas afecciones originadas en el periodo perinatal]],Tabla12[#Headers],0),0) -> 202
A24: Puebla | B24: =VLOOKUP($A$3,Tabla10[],MATCH(TablaA1[[#This Row],[Ciertas afecciones originadas en el periodo perinatal]],Tabla10[#Headers],0),0) -> 725 | C24: =VLOOKUP($A$3,Tabla11[],MATCH(TablaA1[[#This Row],[Ciertas afecciones originadas en el periodo perinatal]],Tabla11[#Headers],0),0) -> 639 | D24: =VLOOKUP($A$3,Tabla12[],MATCH(TablaA1[[#This Row],[Ciertas afecciones originadas en el periodo perinatal]],Tabla12[#Headers],0),0) -> 583
A25: Querétaro | B25: =VLOOKUP($A$3,Tabla10[],MATCH(TablaA1[[#This Row],[Ciertas afecciones originadas en el periodo perinatal]],Tabla10[#Headers],0),0) -> 185 | C25: =VLOOKUP($A$3,Tabla11[],MATCH(TablaA1[[#This Row],[Ciertas afecciones originadas en el periodo perinatal]],Tabla11[#Headers],0),0) -> 188 | D25: =VLOOKUP($A$3,Tabla12[],MATCH(TablaA1[[#This Row],[Ciertas afecciones originadas en el periodo perinatal]],Tabla12[#Headers],0),0) -> 188
A26: Quintana Roo | B26: =VLOOKUP($A$3,Tabla10[],MATCH(TablaA1[[#This Row],[Ciertas afecciones originadas en el periodo perinatal]],Tabla10[#Headers],0),0) -> 131 | C26: =VLOOKUP($A$3,Tabla11[],MATCH(TablaA1[[#This Row],[Ciertas afecciones originadas en el periodo perinatal]],Tabla11[#Headers],0),0) -> 124 | D26: =VLOOKUP($A$3,Tabla12[],MATCH(TablaA1[[#This Row],[Ciertas afecciones originadas en el periodo perinatal]],Tabla12[#Headers],0),0) -> 111
A27: San Luis Potosí | B27: =VLOOKUP($A$3,Tabla10[],MATCH(TablaA1[[#This Row],[Ciertas afecciones originadas en el periodo perinatal]],Tabla10[#Headers],0),0) -> 182 | C27: =VLOOKUP($A$3,Tabla11[],MATCH(TablaA1[[#This Row],[Ciertas afecciones originadas en el periodo perinatal]],Tabla11[#Headers],0),0) -> 207 | D27: =VLOOKUP($A$3,Tabla12[],MATCH(TablaA1[[#This Row],[Ciertas afecciones originadas en el periodo perinatal]],Tabla12[#Headers],0),0) -> 173
A28: Sinaloa | B28: =VLOOKUP($A$3,Tabla10[],MATCH(TablaA1[[#This Row],[Ciertas afecciones originadas en el periodo perinatal]],Tabla10[#Headers],0),0) -> 159 | C28: =VLOOKUP($A$3,Tabla11[],MATCH(TablaA1[[#This Row],[Ciertas afecciones originadas en el periodo perinatal]],Tabla11[#Headers],0),0) -> 224 | D28: =VLOOKUP($A$3,Tabla12[],MATCH(TablaA1[[#This Row],[Ciertas afecciones originadas en el periodo perinatal]],Tabla12[#Headers],0),0) -> 58
A29: Sonora | B29: =VLOOKUP($A$3,Tabla10[],MATCH(TablaA1[[#This Row],[Ciertas afecciones originadas en el periodo perinatal]],Tabla10[#Headers],0),0) -> 173 | C29: =VLOOKUP($A$3,Tabla11[],MATCH(TablaA1[[#This Row],[Ciertas afecciones originadas en el periodo perinatal]],Tabla11[#Headers],0),0) -> 179 | D29: =VLOOKUP($A$3,Tabla12[],MATCH(TablaA1[[#This Row],[Ciertas afecciones originadas en el periodo perinatal]],Tabla12[#Headers],0),0) -> 172
A30: Tabasco | B30: =VLOOKUP($A$3,Tabla10[],MATCH(TablaA1[[#This Row],[Ciertas afecciones originadas en el periodo perinatal]],Tabla10[#Headers],0),0) -> 326 | C30: =VLOOKUP($A$3,Tabla11[],MATCH(TablaA1[[#This Row],[Ciertas afecciones originadas en el periodo perinatal]],Tabla11[#Headers],0),0) -> 264 | D30: =VLOOKUP($A$3,Tabla12[],MATCH(TablaA1[[#This Row],[Ciertas afecciones originadas en el periodo perinatal]],Tabla12[#Headers],0),0) -> 217
A31: Tamaulipas | B31: =VLOOKUP($A$3,Tabla10[],MATCH(TablaA1[[#This Row],[Ciertas afecciones originadas en el periodo perinatal]],Tabla10[#Headers],0),0) -> 320 | C31: =VLOOKUP($A$3,Tabla11[],MATCH(TablaA1[[#This Row],[Ciertas afecciones originadas en el periodo perinatal]],Tabla11[#Headers],0),0) -> 380 | D31: =VLOOKUP($A$3,Tabla12[],MATCH(TablaA1[[#This Row],[Ciertas afecciones originadas en el periodo perinatal]],Tabla12[#Headers],0),0) -> 123
A32: Tlaxcala | B32: =VLOOKUP($A$3,Tabla10[],MATCH(TablaA1[[#This Row],[Ciertas afecciones originadas en el periodo perinatal]],Tabla10[#Headers],0),0) -> 130 | C32: =VLOOKUP($A$3,Tabla11[],MATCH(TablaA1[[#This Row],[Ciertas afecciones originadas en el periodo perinatal]],Tabla11[#Headers],0),0) -> 98 | D32: =VLOOKUP($A$3,Tabla12[],MATCH(TablaA1[[#This Row],[Ciertas afecciones originadas en el periodo perinatal]],Tabla12[#Headers],0),0) -> 91
A33: Veracruz | B33: =VLOOKUP($A$3,Tabla10[],MATCH(TablaA1[[#This Row],[Ciertas afecciones originadas en el periodo perinatal]],Tabla10[#Headers],0),0) -> 707 | C33: =VLOOKUP($A$3,Tabla11[],MATCH(TablaA1[[#This Row],[Ciertas afecciones originadas en el periodo perinatal]],Tabla11[#Headers],0),0) -> 665 | D33: =VLOOKUP($A$3,Tabla12[],MATCH(TablaA1[[#This Row],[Ciertas afecciones originadas en el periodo perinatal]],Tabla12[#Headers],0),0) -> 629
A34: Yucatán | B34: =VLOOKUP($A$3,Tabla10[],MATCH(TablaA1[[#This Row],[Ciertas afecciones originadas en el periodo perinatal]],Tabla10[#Headers],0),0) -> 171 | C34: =VLOOKUP($A$3,Tabla11[],MATCH(TablaA1[[#This Row],[Ciertas afecciones originadas en el periodo perinatal]],Tabla11[#Headers],0),0) -> 170 | D34: =VLOOKUP($A$3,Tabla12[],MATCH(TablaA1[[#This Row],[Ciertas afecciones originadas en el periodo perinatal]],Tabla12[#Headers],0),0) -> 142
A35: Zacatecas | B35: =VLOOKUP($A$3,Tabla10[],MATCH(TablaA1[[#This Row],[Ciertas afecciones originadas en el periodo perinatal]],Tabla10[#Headers],0),0) -> 132 | C35: =VLOOKUP($A$3,Tabla11[],MATCH(TablaA1[[#This Row],[Ciertas afecciones originadas en el periodo perinatal]],Tabla11[#Headers],0),0) -> 115 | D35: =VLOOKUP($A$3,Tabla12[],MATCH(TablaA1[[#This Row],[Ciertas afecciones originadas en el periodo perinatal]],Tabla12[#Headers],0),0) -> 76
A36: Total | B36: =SUBTOTAL(109,TablaA1[2020]) -> 10089 | C36: =SUBTOTAL(109,TablaA1[2021]) -> 10359 | D36: =SUBTOTAL(109,TablaA1[2022]) -> 7944

Sheet GCMxSexo-N
A1: Grandes Causas de Mortalidad por Sexo
A3: Enfermedades | C3: 2020 | E3: 2021 | G3: 2022
C4: Hombres | D4: Mujeres | E4: Hombres | F4: Mujeres | G4: Hombres | H4: Mujeres
A5: 1 | B5: Enfermedades del sistema circulatorio | C5: 142726 | D5: 117195 | E5: 144513 | F5: 122276 | G5: 127358 | H5: 113525
A6: 2 | B6: Asignación provisoria de nuevas afecciones de etiología incierta o de uso emergente, sin especificación | C6: 128802 | D6: 71463 | E6: 145123 | F6: 93653 | G6: 22394 | H6: 14483
A7: 3 | B7: Enfermedades endocrinas, nutricionales y metabólicas | C7: 89195 | D7: 81385 | E7: 81559 | F7: 79045 | G7: 66646 | H7: 66912
A8: 4 | B8: Tumores (neoplasias) | C8: 47897 | D8: 49377 | E8: 47087 | F8: 50251 | G8: 47145 | H8: 50904
A9: 5 | B9: Enfermedades del sistema respiratorio | C9: 57507 | D9: 39207 | E9: 52045 | F9: 36410 | G9: 35098 | H9: 27957
A10: 6 | B10: Causas externas de morbilidad y de mortalidad | C10: 68781 | D10: 13294 | E10: 69745 | F10: 14404 | G10: 68179 | H10: 15038
A11: 7 | B11: Ciertas enfermedades infecciosas y parasitarias | C11: 11037 | D11: 6919 | E11: 11554 | F11: 10295 | G11: 11535 | H11: 7639
A12: 8 | B12: Enfermedades de la sangre y de los órganos hematopoyéticos, y ciertos trastornos que afectan el mecanismo de la inmunidad | C12: 2566 | D12: 2744 | E12: 2744 | F12: 2893 | G12: 2660 | H12: 2721
A13: 9 | B13: Trastornos mentales y del comportamiento | C13: 3707 | D13: 1488 | E13: 3791 | F13: 1549 | G13: 3594 | H13: 1549
A14: 10 | B14: Enfermedades del sistema nervioso | C14: 1161 | D14: 5786 | E14: 7067 | F14: 5860 | G14: 7618 | H14: 6289
A15: 11 | B15: Enfermedades del ojo y sus anexos | C15: 6 | D15: 4 | E15: 13 | F15: 7 | G15: 14 | H15: 11
A16: 12 | B16: Enfermedades del oído y de la apófisis mastoides | C16: 28 | D16: 19 | E16: 21 | F16: 13 | G16: 26 | H16: 23
A17: 13 | B17: Enfermedades del sistema digestivo | C17: 45787 | D17: 25693 | E17: 47261 | F17: 27441 | G17: 47234 | H17: 28019
A18: 14 | B18: Enfermedades de la piel y del tejido subcutáneo | C18: 1429 | D18: 1799 | E18: 1696 | F18: 2095 | G18: 2052 | H18: 2641
A19: 15 | B19: Enfermedades del sistema osteomuscular y del tejido conjuntivo | C19: 1804 | D19: 3693 | E19: 1928 | F19: 3657 | G19: 1916 | H19: 3705
A20: 16 | B20: Enfermedades del sistema genitourinario | C20: 14597 | D20: 12351 | E20: 13916 | F20: 12731 | G20: 14640 | H20: 13958
A21: 17 | B21: Embarazo, parto y puerperio | D21: 1171 | F21: 1259 | H21: 872
A22: 18 | B22: Ciertas afecciones originadas en el periodo perinatal | C22: 5768 | D22: 4321 | E22: 5901 | F22: 4458 | G22: 4471 | H22: 3473
A23: 19 | B23: Malformaciones congénitas, deformidades y anomalías cromosómicas | C23: 4434 | D23: 3615 | E23: 4252 | F23: 3575 | G23: 3918 | H23: 3446
A24: 20 | B24: Síntomas, signos y hallazgos anormales clínicos y de laboratorio, no clasificados en otra parte | C24: 5973 | D24: 5185 | E24: 6609 | F24: 5903 | G24: 5823 | H24: 5750
B25: Total | C25: =SUM(C5:C24) -> 633205 | D25: =SUM(D5:D11) -> 378840 | E25: 551626 | F25: 406334 | G25: 378355 | H25: 296458

Sheet 2020 (hidden)
A1: 1 | B1: 2 | C1: 3 | D1: 4 | E1: 5 | F1: 6 | G1: 7 | H1: 8 | I1: 9 | J1: 10 | K1: 11 | L1: 12 | M1: 13 | N1: 14 | O1: 15 | P1: 16 | Q1: 17 | R1: 18 | S1: 19 | T1: 20 | U1: 21 | V1: 22 | W1: 23 | X1: 24 | Y1: 25 | Z1: 26 | AA1: 27 | AB1: 28 | AC1: 29 | AD1: 30 | AE1: 31 | AF1: 32 | AG1: 33 | AH1: 34 | AI1: 35 | AJ1: 36 | AK1: 37 | AL1: 38 | AM1: 39 | AN1: 40 | AO1: 41 | AP1: 42 | AQ1: 43 | AR1: 44 | AS1: 45 | AT1: 46 | AU1: 47 | AV1: 48 | AW1: 49 | AX1: 50 | AY1: 51 | AZ1: 52 | BA1: 53 | BB1: 54 | BC1: 55 | BD1: 56 | BE1: 57 | BF1: 58 | BG1: 59 | BH1: 60 | BI1: 61
A2: ESTADO | B2: Enfermedades del sistema circulatorio | C2: Hombres 1 | D2: Mujeres 1 | E2: Asignación provisoria de nuevas afecciones de etiología incierta o de uso emergente, sin especificación | F2: Hombres 2 | G2: Mujeres 2 | H2: Enfermedades endocrinas, nutricionales y metabólicas | I2: Hombres 3 | J2: Mujeres 3 | K2: Tumores (neoplasias) | L2: Hombres 4 | M2: Mujeres 4 | N2: Enfermedades del sistema respiratorio | O2: Hombres 5 | P2: Mujeres 5 | Q2: Causas externas de morbilidad y de mortalidad | R2: Hombres 6 | S2: Mujeres 6 | T2: Ciertas enfermedades infecciosas y parasitarias | U2: Hombres 7 | V2: Mujeres 7 | W2: Enfermedades de la sangre y de los órganos hematopoyéticos, y ciertos trastornos que afectan el mecanismo de la inmunidad | X2: Hombres 8 | Y2: Mujeres 8 | Z2: Trastornos mentales y del comportamiento | AA2: Hombres 9 | AB2: Mujeres 9 | AC2: Enfermedades del sistema nervioso | AD2: Hombres 10 | AE2: Mujeres 10 | AF2: Enfermedades del ojo y sus anexos | AG2: Hombres 11 | AH2: Mujeres 11 | AI2: Enfermedades del oído y de la apófisis mastoides | AJ2: Hombres 12 | AK2: Mujeres 12 | AL2: Enfermedades del sistema digestivo | AM2: Hombres 13 | AN2: Mujeres 13 | AO2: Enfermedades de la piel y del tejido subcutáneo | AP2: Hombres 14 | AQ2: Mujeres 14 | AR2: Enfermedades del sistema osteomuscular y del tejido conjuntivo | AS2: Hombres 15 | AT2: Mujeres 15 | AU2: Enfermedades del sistema genitourinario | AV2: Hombres 16 | AW2: Mujeres 16 | AX2: Embarazo, parto y puerperio | AY2: Hombres 17 | AZ2: Mujeres 17 | BA2: Ciertas afecciones originadas en el periodo perinatal | BB2: Hombres 18 | BC2: Mujeres 18 | BD2: Malformaciones congénitas, deformidades y anomalías cromosómicas | BE2: Hombres 19 | BF2: Mujeres 19 | BG2: Síntomas, signos y hallazgos anormales clínicos y de laboratorio, no clasificados en otra parte | BH2: Hombres 20 | BI2: Mujeres 20
A3: Aguascalientes | B3: 1787 | C3: 968 | D3: 819 | E3: 2445 | F3: 1525 | G3: 920 | H3: 1141 | I3: 587 | J3: 554 | K3: 1018 | L3: 533 | M3: 485 | N3: 1037 | O3: 588 | P3: 449 | Q3: 742 | R3: 580 | S3: 162 | T3: 162 | U3: 98 | V3: 64 | W3: 42 | X3: 18 | Y3: 24 | Z3: 104 | AA3: 71 | AB3: 33 | AC3: 188 | AD3: 110 | AE3: 78 | AF3: 0 | AG3: 0 | AH3: 0 | AI3: 1 | AJ3: 1 | AK3: 0 | AL3: 636 | AM3: 389 | AN3: 247 | AO3: 24 | AP3: 11 | AQ3: 13 | AR3: 57 | AS3: 18 | AT3: 39 | AU3: 273 | AV3: 152 | AW3: 121 | AX3: 17 | AZ3: 17 | BA3: 117 | BB3: 78 | BC3: 39 | BD3: 93 | BE3: 48 | BF3: 45 | BG3: 36 | BH3: 10 | BI3: 26
A4: Baja California | B4: 6821 | C4: 4205 | D4: 2616 | E4: 8248 | F4: 5020 | G4: 3228 | H4: 4004 | I4: 2201 | J4: 1803 | K4: 2972 | L4: 1458 | M4: 1514 | N4: 3198 | O4: 2120 | P4: 1078 | Q4: 4820 | R4: 4172 | S4: 648 | T4: 1104 | U4: 772 | V4: 332 | W4: 150 | X4: 77 | Y4: 73 | Z4: 246 | AA4: 175 | AB4: 71 | AC4: 388 | AD4: 37 | AE4: 207 | AF4: 0 | AG4: 0 | AH4: 0 | AI4: 1 | AJ4: 0 | AK4: 1 | AL4: 1816 | AM4: 1252 | AN4: 564 | AO4: 63 | AP4: 29 | AQ4: 34 | AR4: 158 | AS4: 47 | AT4: 111 | AU4: 625 | AV4: 365 | AW4: 260 | AX4: 30 | AZ4: 30 | BA4: 250 | BB4: 136 | BC4: 114 | BD4: 227 | BE4: 137 | BF4: 90 | BG4: 218 | BH4: 149 | BI4: 69
A5: Baja California Sur | B5: 1101 | C5: 678 | D5: 423 | E5: 943 | F5: 577 | G5: 366 | H5: 582 | I5: 306 | J5: 276 | K5: 619 | L5: 322 | M5: 297 | N5: 471 | O5: 276 | P5: 195 | Q5: 369 | R5: 307 | S5: 62 | T5: 151 | U5: 114 | V5: 37 | W5: 19 | X5: 6 | Y5: 13 | Z5: 30 | AA5: 16 | AB5: 14 | AC5: 82 | AD5: 7 | AE5: 37 | AF5: 0 | AG5: 0 | AH5: 0 | AI5: 1 | AJ5: 1 | AK5: 0 | AL5: 286 | AM5: 188 | AN5: 98 | AO5: 10 | AP5: 5 | AQ5: 5 | AR5: 22 | AS5: 10 | AT5: 12 | AU5: 123 | AV5: 57 | AW5: 66 | AX5: 3 | AZ5: 3 | BA5: 66 | BB5: 43 | BC5: 23 | BD5: 41 | BE5: 23 | BF5: 18 | BG5: 21 | BH5: 11 | BI5: 10
A6: Campeche | B6: 1752 | C6: 1020 | D6: 732 | E6: 1452 | F6: 947 | G6: 505 | H6: 1158 | I6: 577 | J6: 581 | K6: 646 | L6: 340 | M6: 306 | N6: 698 | O6: 416 | P6: 282 | Q6: 415 | R6: 326 | S6: 89 | T6: 134 | U6: 95 | V6: 39 | W6: 28 | X6: 11 | Y6: 17 | Z6: 25 | AA6: 16 | AB6: 9 | AC6: 81 | AD6: 9 | AE6: 35 | AF6: 0 | AG6: 0 | AH6: 0 | AI6: 0 | AJ6: 0 | AK6: 0 | AL6: 425 | AM6: 251 | AN6: 174 | AO6: 31 | AP6: 18 | AQ6: 13 | AR6: 19 | AS6: 3 | AT6: 16 | AU6: 186 | AV6: 103 | AW6: 83 | AX6: 9 | AZ6: 9 | BA6: 86 | BB6: 47 | BC6: 39 | BD6: 55 | BE6: 37 | BF6: 18 | BG6: 288 | BH6: 167 | BI6: 121
A7: Coahuila | B7: 6731 | C7: 3778 | D7: 2953 | E7: 6397 | F7: 3838 | G7: 2559 | H7: 4423 | I7: 2243 | J7: 2180 | K7: 2520 | L7: 1275 | M7: 1245 | N7: 2425 | O7: 1451 | P7: 974 | Q7: 1339 | R7: 1088 | S7: 251 | T7: 377 | U7: 237 | V7: 140 | W7: 103 | X7: 52 | Y7: 51 | Z7: 81 | AA7: 57 | AB7: 24 | AC7: 361 | AD7: 33 | AE7: 163 | AF7: 0 | AG7: 0 | AH7: 0 | AI7: 1 | AJ7: 1 | AK7: 0 | AL7: 1591 | AM7: 984 | AN7: 607 | AO7: 54 | AP7: 22 | AQ7: 32 | AR7: 111 | AS7: 30 | AT7: 81 | AU7: 757 | AV7: 411 | AW7: 346 | AX7: 34 | AZ7: 34 | BA7: 307 | BB7: 172 | BC7: 135 | BD7: 200 | BE7: 105 | BF7: 95 | BG7: 661 | BH7: 316 | BI7: 345
A8: Colima | B8: 1333 | C8: 748 | D8: 585 | E8: 956 | F8: 592 | G8: 364 | H8: 838 | I8: 452 | J8: 386 | K8: 642 | L8: 305 | M8: 337 | N8: 557 | O8: 335 | P8: 222 | Q8: 1040 | R8: 866 | S8: 174 | T8: 150 | U8: 113 | V8: 37 | W8: 14 | X8: 8 | Y8: 6 | Z8: 33 | AA8: 26 | AB8: 7 | AC8: 101 | AD8: 12 | AE8: 38 | AF8: 0 | AG8: 0 | AH8: 0 | AI8: 1 | AJ8: 1 | AK8: 0 | AL8: 421 | AM8: 274 | AN8: 147 | AO8: 26 | AP8: 14 | AQ8: 12 | AR8: 25 | AS8: 11 | AT8: 14 | AU8: 174 | AV8: 93 | AW8: 81 | AX8: 3 | AZ8: 3 | BA8: 49 | BB8: 31 | BC8: 18 | BD8: 21 | BE8: 14 | BF8: 7 | BG8: 116 | BH8: 61 | BI8: 55
A9: Chiapas | B9: 9952 | C9: 5682 | D9: 4270 | E9: 2704 | F9: 1871 | G9: 833 | H9: 7048 | I9: 3458 | J9: 3590 | K9: 3746 | L9: 1834 | M9: 1912 | N9: 3257 | O9: 2009 | P9: 1248 | Q9: 1745 | R9: 1442 | S9: 303 | T9: 1173 | U9: 710 | V9: 463 | W9: 386 | X9: 201 | Y9: 185 | Z9: 182 | AA9: 141 | AB9: 41 | AC9: 554 | AD9: 26 | AE9: 224 | AF9: 0 | AG9: 0 | AH9: 0 | AI9: 4 | AJ9: 3 | AK9: 1 | AL9: 3451 | AM9: 2144 | AN9: 1307 | AO9: 40 | AP9: 16 | AQ9: 24 | AR9: 175 | AS9: 62 | AT9: 113 | AU9: 1474 | AV9: 867 | AW9: 607 | AX9: 74 | AZ9: 74 | BA9: 450 | BB9: 267 | BC9: 183 | BD9: 375 | BE9: 216 | BF9: 159 | BG9: 1864 | BH9: 1040 | BI9: 824
A10: Chihuahua | B10: 9407 | C10: 5242 | D10: 4165 | E10: 7370 | F10: 4532 | G10: 2838 | H10: 4541 | I10: 2307 | J10: 2234 | K10: 3350 | L10: 1672 | M10: 1678 | N10: 3592 | O10: 2158 | P10: 1434 | Q10: 5625 | R10: 4783 | S10: 842 | T10: 719 | U10: 401 | V10: 318 | W10: 121 | X10: 60 | Y10: 61 | Z10: 287 | AA10: 213 | AB10: 74 | AC10: 570 | AD10: 59 | AE10: 266 | AF10: 0 | AG10: 0 | AH10: 0 | AI10: 3 | AJ10: 3 | AK10: 0 | AL10: 2208 | AM10: 1436 | AN10: 772 | AO10: 87 | AP10: 41 | AQ10: 46 | AR10: 153 | AS10: 47 | AT10: 106 | AU10: 738 | AV10: 381 | AW10: 357 | AX10: 50 | AZ10: 50 | BA10: 405 | BB10: 245 | BC10: 160 | BD10: 214 | BE10: 119 | BF10: 95 | BG10: 285 | BH10: 150 | BI10: 135
A11: Ciudad de México | B11: 28616 | C11: 14788 | D11: 13828 | E11: 37978 | F11: 25342 | G11: 12636 | H11: 19083 | I11: 10407 | J11: 8676 | K11: 12532 | L11: 5936 | M11: 6596 | N11: 11483 | O11: 6819 | P11: 4664 | Q11: 4295 | R11: 3517 | S11: 778 | T11: 2020 | U11: 1210 | V11: 810 | W11: 560 | X11: 250 | Y11: 310 | Z11: 407 | AA11: 293 | AB11: 114 | AC11: 1349 | AD11: 71 | AE11: 608 | AF11: 2 | AG11: 2 | AH11: 0 | AI11: 7 | AJ11: 2 | AK11: 5 | AL11: 8085 | AM11: 5051 | AN11: 3034 | AO11: 639 | AP11: 295 | AQ11: 344 | AR11: 693 | AS11: 188 | AT11: 505 | AU11: 2970 | AV11: 1560 | AW11: 1410 | AX11: 102 | AZ11: 102 | BA11: 854 | BB11: 489 | BC11: 365 | BD11: 996 | BE11: 529 | BF11: 467 | BG11: 76 | BH11: 41 | BI11: 35
A12: Durango | B12: 4187 | C12: 2329 | D12: 1858 | E12: 2787 | F12: 1696 | G12: 1091 | H12: 1647 | I12: 845 | J12: 802 | K12: 1194 | L12: 592 | M12: 602 | N12: 1260 | O12: 746 | P12: 514 | Q12: 915 | R12: 731 | S12: 184 | T12: 162 | U12: 101 | V12: 61 | W12: 55 | X12: 31 | Y12: 24 | Z12: 30 | AA12: 26 | AB12: 4 | AC12: 150 | AD12: 10 | AE12: 63 | AF12: 1 | AG12: 1 | AH12: 0 | AI12: 3 | AJ12: 2 | AK12: 1 | AL12: 797 | AM12: 462 | AN12: 335 | AO12: 38 | AP12: 14 | AQ12: 24 | AR12: 64 | AS12: 22 | AT12: 42 | AU12: 267 | AV12: 138 | AW12: 129 | AX12: 13 | AZ12: 13 | BA12: 142 | BB12: 80 | BC12: 62 | BD12: 77 | BE12: 43 | BF12: 34 | BG12: 152 | BH12: 79 | BI12: 73
A13: Guanajuato | B13: 12721 | C13: 6750 | D13: 5971 | E13: 7256 | F13: 4581 | G13: 2675 | H13: 8431 | I13: 4322 | J13: 4109 | K13: 4101 | L13: 2002 | M13: 2099 | N13: 4390 | O13: 2544 | P13: 1846 | Q13: 7750 | R13: 6644 | S13: 1106 | T13: 524 | U13: 290 | V13: 234 | W13: 193 | X13: 85 | Y13: 108 | Z13: 200 | AA13: 152 | AB13: 48 | AC13: 558 | AD13: 33 | AE13: 250 | AF13: 1 | AG13: 1 | AH13: 0 | AI13: 0 | AJ13: 0 | AK13: 0 | AL13: 3305 | AM13: 2144 | AN13: 1161 | AO13: 153 | AP13: 59 | AQ13: 94 | AR13: 220 | AS13: 81 | AT13: 139 | AU13: 1152 | AV13: 611 | AW13: 541 | AX13: 46 | AZ13: 46 | BA13: 477 | BB13: 276 | BC13: 201 | BD13: 434 | BE13: 239 | BF13: 195 | BG13: 219 | BH13: 110 | BI13: 109
A14: Guerrero | B14: 5891 | C14: 3234 | D14: 2657 | E14: 4459 | F14: 2989 | G14: 1470 | H14: 4634 | I14: 2395 | J14: 2239 | K14: 1956 | L14: 972 | M14: 984 | N14: 1909 | O14: 1182 | P14: 727 | Q14: 2525 | R14: 2120 | S14: 405 | T14: 394 | U14: 240 | V14: 154 | W14: 262 | X14: 138 | Y14: 124 | Z14: 121 | AA14: 96 | AB14: 25 | AC14: 257 | AD14: 19 | AE14: 110 | AF14: 0 | AG14: 0 | AH14: 0 | AI14: 2 | AJ14: 1 | AK14: 1 | AL14: 1505 | AM14: 916 | AN14: 589 | AO14: 33 | AP14: 17 | AQ14: 16 | AR14: 126 | AS14: 47 | AT14: 79 | AU14: 628 | AV14: 370 | AW14: 258 | AX14: 45 | AZ14: 45 | BA14: 214 | BB14: 109 | BC14: 105 | BD14: 154 | BE14: 86 | BF14: 68 | BG14: 508 | BH14: 281 | BI14: 227
A15: Hidalgo | B15: 5925 | C15: 3153 | D15: 2772 | E15: 4258 | F15: 2823 | G15: 1435 | H15: 3398 | I15: 1756 | J15: 1642 | K15: 2182 | L15: 1090 | M15: 1092 | N15: 1546 | O15: 838 | P15: 708 | Q15: 1449 | R15: 1182 | S15: 267 | T15: 279 | U15: 146 | V15: 133 | W15: 110 | X15: 62 | Y15: 48 | Z15: 75 | AA15: 49 | AB15: 26 | AC15: 258 | AD15: 17 | AE15: 118 | AF15: 1 | AG15: 0 | AH15: 1 | AI15: 1 | AJ15: 1 | AK15: 0 | AL15: 1656 | AM15: 1027 | AN15: 629 | AO15: 38 | AP15: 12 | AQ15: 26 | AR15: 123 | AS15: 42 | AT15: 81 | AU15: 562 | AV15: 311 | AW15: 251 | AX15: 14 | AZ15: 14 | BA15: 183 | BB15: 109 | BC15: 74 | BD15: 139 | BE15: 75 | BF15: 64 | BG15: 166 | BH15: 85 | BI15: 81
A16: Jalisco | B16: 15584 | C16: 8533 | D16: 7051 | E16: 8834 | F16: 5669 | G16: 3165 | H16: 8471 | I16: 4511 | J16: 3960 | K16: 7108 | L16: 3550 | M16: 3558 | N16: 7220 | O16: 4012 | P16: 3208 | Q16: 5996 | R16: 4985 | S16: 1011 | T16: 1259 | U16: 760 | V16: 499 | W16: 287 | X16: 136 | Y16: 151 | Z16: 471 | AA16: 293 | AB16: 178 | AC16: 988 | AD16: 111 | AE16: 458 | AF16: 0 | AG16: 0 | AH16: 0 | AI16: 0 | AJ16: 0 | AK16: 0 | AL16: 4475 | AM16: 2794 | AN16: 1681 | AO16: 379 | AP16: 176 | AQ16: 203 | AR16: 405 | AS16: 137 | AT16: 268 | AU16: 2133 | AV16: 1122 | AW16: 1011 | AX16: 74 | AZ16: 74 | BA16: 743 | BB16: 415 | BC16: 328 | BD16: 594 | BE16: 327 | BF16: 267 | BG16: 523 | BH16: 274 | BI16: 249
A17: México | B17: 29761 | C17: 16507 | D17: 13254 | E17: 28613 | F17: 19059 | G17: 9554 | H17: 25957 | I17: 14316 | J17: 11641 | K17: 9305 | L17: 4429 | M17: 4876 | N17: 11164 | O17: 6753 | P17: 4411 | Q17: 7888 | R17: 6420 | S17: 1468 | T17: 1305 | U17: 754 | V17: 551 | W17: 324 | X17: 143 | Y17: 181 | Z17: 489 | AA17: 370 | AB17: 119 | AC17: 1051 | AD17: 55 | AE17: 458 | AF17: 0 | AG17: 0 | AH17: 0 | AI17: 1 | AJ17: 0 | AK17: 1 | AL17: 8814 | AM17: 6051 | AN17: 2763 | AO17: 408 | AP17: 187 | AQ17: 221 | AR17: 685 | AS17: 237 | AT17: 448 | AU17: 2830 | AV17: 1553 | AW17: 1277 | AX17: 126 | AZ17: 126 | BA17: 1288 | BB17: 750 | BC17: 538 | BD17: 909 | BE17: 531 | BF17: 378 | BG17: 179 | BH17: 87 | BI17: 92
A18: Michoacán | B18: 8909 | C18: 4689 | D18: 4220 | E18: 3813 | F18: 2432 | G18: 1381 | H18: 6437 | I18: 3279 | J18: 3158 | K18: 3539 | L18: 1770 | M18: 1769 | N18: 3053 | O18: 1772 | P18: 1281 | Q18: 4526 | R18: 3864 | S18: 662 | T18: 514 | U18: 290 | V18: 224 | W18: 185 | X18: 89 | Y18: 96 | Z18: 182 | AA18: 140 | AB18: 42 | AC18: 471 | AD18: 37 | AE18: 213 | AF18: 0 | AG18: 0 | AH18: 0 | AI18: 0 | AJ18: 0 | AK18: 0 | AL18: 2636 | AM18: 1685 | AN18: 951 | AO18: 69 | AP18: 35 | AQ18: 34 | AR18: 185 | AS18: 55 | AT18: 130 | AU18: 920 | AV18: 516 | AW18: 404 | AX18: 50 | AZ18: 50 | BA18: 264 | BB18: 147 | BC18: 117 | BD18: 245 | BE18: 134 | BF18: 111 | BG18: 420 | BH18: 194 | BI18: 226
A19: Morelos | B19: 4409 | C19: 2386 | D19: 2023 | E19: 2796 | F19: 1900 | G19: 896 | H19: 3046 | I19: 1613 | J19: 1433 | K19: 1700 | L19: 834 | M19: 866 | N19: 1594 | O19: 959 | P19: 635 | Q19: 1706 | R19: 1445 | S19: 261 | T19: 255 | U19: 170 | V19: 85 | W19: 139 | X19: 59 | Y19: 80 | Z19: 117 | AA19: 71 | AB19: 46 | AC19: 240 | AD19: 15 | AE19: 107 | AF19: 0 | AG19: 0 | AH19: 0 | AI19: 2 | AJ19: 1 | AK19: 1 | AL19: 1586 | AM19: 992 | AN19: 594 | AO19: 69 | AP19: 37 | AQ19: 32 | AR19: 85 | AS19: 30 | AT19: 55 | AU19: 569 | AV19: 305 | AW19: 264 | AX19: 14 | AZ19: 14 | BA19: 123 | BB19: 76 | BC19: 47 | BD19: 111 | BE19: 69 | BF19: 42 | BG19: 143 | BH19: 79 | BI19: 64
A20: Nayarit | B20: 2018 | C20: 1171 | D20: 847 | E20: 1286 | F20: 835 | G20: 451 | H20: 1197 | I20: 612 | J20: 585 | K20: 970 | L20: 521 | M20: 449 | N20: 718 | O20: 416 | P20: 302 | Q20: 828 | R20: 661 | S20: 167 | T20: 197 | U20: 124 | V20: 73 | W20: 36 | X20: 17 | Y20: 19 | Z20: 49 | AA20: 25 | AB20: 24 | AC20: 171 | AD20: 19 | AE20: 80 | AF20: 0 | AG20: 0 | AH20: 0 | AI20: 0 | AJ20: 0 | AK20: 0 | AL20: 567 | AM20: 349 | AN20: 218 | AO20: 28 | AP20: 8 | AQ20: 20 | AR20: 45 | AS20: 14 | AT20: 31 | AU20: 215 | AV20: 117 | AW20: 98 | AX20: 14 | AZ20: 14 | BA20: 56 | BB20: 34 | BC20: 22 | BD20: 43 | BE20: 26 | BF20: 17 | BG20: 116 | BH20: 51 | BI20: 65
A21: Nuevo León | B21: 11033 | C21: 6332 | D21: 4701 | E21: 9227 | F21: 5729 | G21: 3498 | H21: 4772 | I21: 2542 | J21: 2230 | K21: 4787 | L21: 2431 | M21: 2356 | N21: 4499 | O21: 2674 | P21: 1825 | Q21: 2428 | R21: 2017 | S21: 411 | T21: 732 | U21: 501 | V21: 231 | W21: 112 | X21: 58 | Y21: 54 | Z21: 193 | AA21: 90 | AB21: 103 | AC21: 668 | AD21: 88 | AE21: 323 | AF21: 1 | AG21: 1 | AH21: 0 | AI21: 3 | AJ21: 3 | AK21: 0 | AL21: 2481 | AM21: 1506 | AN21: 975 | AO21: 246 | AP21: 102 | AQ21: 144 | AR21: 293 | AS21: 98 | AT21: 195 | AU21: 1166 | AV21: 567 | AW21: 599 | AX21: 41 | AZ21: 41 | BA21: 394 | BB21: 218 | BC21: 176 | BD21: 404 | BE21: 208 | BF21: 196 | BG21: 188 | BH21: 93 | BI21: 95
A22: Oaxaca | B22: 8642 | C22: 4435 | D22: 4207 | E22: 3344 | F22: 2258 | G22: 1086 | H22: 6151 | I22: 3067 | J22: 3084 | K22: 2961 | L22: 1420 | M22: 1541 | N22: 2132 | O22: 1235 | P22: 897 | Q22: 2244 | R22: 1860 | S22: 384 | T22: 578 | U22: 338 | V22: 240 | W22: 346 | X22: 181 | Y22: 165 | Z22: 360 | AA22: 297 | AB22: 63 | AC22: 446 | AD22: 33 | AE22: 184 | AF22: 1 | AG22: 0 | AH22: 1 | AI22: 0 | AJ22: 0 | AK22: 0 | AL22: 2634 | AM22: 1759 | AN22: 875 | AO22: 60 | AP22: 31 | AQ22: 29 | AR22: 205 | AS22: 74 | AT22: 131 | AU22: 834 | AV22: 459 | AW22: 375 | AX22: 52 | AZ22: 52 | BA22: 280 | BB22: 161 | BC22: 119 | BD22: 240 | BE22: 139 | BF22: 101 | BG22: 1094 | BH22: 577 | BI22: 517
A23: Puebla | B23: 14708 | C23: 7758 | D23: 6950 | E23: 8371 | F23: 5487 | G23: 2884 | H23: 11278 | I23: 5782 | J23: 5496 | K23: 4566 | L23: 2096 | M23: 2470 | N23: 4951 | O23: 2908 | P23: 2043 | Q23: 3261 | R23: 2683 | S23: 578 | T23: 662 | U23: 402 | V23: 260 | W23: 376 | X23: 174 | Y23: 202 | Z23: 253 | AA23: 214 | AB23: 39 | AC23: 578 | AD23: 29 | AE23: 247 | AF23: 0 | AG23: 0 | AH23: 0 | AI23: 3 | AJ23: 0 | AK23: 3 | AL23: 4799 | AM23: 3136 | AN23: 1663 | AO23: 68 | AP23: 24 | AQ23: 44 | AR23: 386 | AS23: 116 | AT23: 270 | AU23: 1357 | AV23: 737 | AW23: 620 | AX23: 62 | AZ23: 62 | BA23: 725 | BB23: 409 | BC23: 316 | BD23: 614 | BE23: 338 | BF23: 276 | BG23: 591 | BH23: 317 | BI23: 274
A24: Querétaro | B24: 3485 | C24: 1878 | D24: 1607 | E24: 2812 | F24: 1805 | G24: 1007 | H24: 2224 | I24: 1208 | J24: 1016 | K24: 1602 | L24: 780 | M24: 822 | N24: 1243 | O24: 728 | P24: 515 | Q24: 1025 | R24: 864 | S24: 161 | T24: 291 | U24: 171 | V24: 120 | W24: 55 | X24: 27 | Y24: 28 | Z24: 69 | AA24: 44 | AB24: 25 | AC24: 222 | AD24: 11 | AE24: 93 | AF24: 0 | AG24: 0 | AH24: 0 | AI24: 0 | AJ24: 0 | AK24: 0 | AL24: 1475 | AM24: 959 | AN24: 516 | AO24: 67 | AP24: 23 | AQ24: 44 | AR24: 88 | AS24: 25 | AT24: 63 | AU24: 459 | AV24: 229 | AW24: 230 | AX24: 12 | AZ24: 12 | BA24: 185 | BB24: 100 | BC24: 85 | BD24: 150 | BE24: 79 | BF24: 71 | BG24: 187 | BH24: 87 | BI24: 100
A25: Quintana Roo | B25: 1675 | C25: 1012 | D25: 663 | E25: 2700 | F25: 1803 | G25: 897 | H25: 1439 | I25: 756 | J25: 683 | K25: 862 | L25: 411 | M25: 451 | N25: 911 | O25: 580 | P25: 331 | Q25: 1340 | R25: 1136 | S25: 204 | T25: 365 | U25: 257 | V25: 108 | W25: 52 | X25: 30 | Y25: 22 | Z25: 72 | AA25: 33 | AB25: 39 | AC25: 121 | AD25: 12 | AE25: 43 | AF25: 0 | AG25: 0 | AH25: 0 | AI25: 1 | AJ25: 1 | AK25: 0 | AL25: 735 | AM25: 468 | AN25: 267 | AO25: 45 | AP25: 27 | AQ25: 18 | AR25: 35 | AS25: 12 | AT25: 23 | AU25: 236 | AV25: 131 | AW25: 105 | AX25: 22 | AZ25: 22 | BA25: 131 | BB25: 80 | BC25: 51 | BD25: 85 | BE25: 42 | BF25: 43 | BG25: 188 | BH25: 118 | BI25: 70
A26: San Luis Potosí | B26: 6311 | C26: 3408 | D26: 2903 | E26: 4039 | F26: 2478 | G26: 1561 | H26: 3736 | I26: 1892 | J26: 1844 | K26: 2098 | L26: 1024 | M26: 1074 | N26: 2382 | O26: 1369 | P26: 1013 | Q26: 2033 | R26: 1700 | S26: 333 | T26: 390 | U26: 232 | V26: 158 | W26: 111 | X26: 51 | Y26: 60 | Z26: 151 | AA26: 115 | AB26: 36 | AC26: 348 | AD26: 34 | AE26: 140 | AF26: 0 | AG26: 0 | AH26: 0 | AI26: 1 | AJ26: 1 | AK26: 0 | AL26: 1522 | AM26: 967 | AN26: 555 | AO26: 67 | AP26: 27 | AQ26: 40 | AR26: 116 | AS26: 30 | AT26: 86 | AU26: 599 | AV26: 344 | AW26: 255 | AX26: 30 | AZ26: 30 | BA26: 182 | BB26: 103 | BC26: 79 | BD26: 148 | BE26: 70 | BF26: 78 | BG26: 300 | BH26: 167 | BI26: 133
A27: Sinaloa | B27: 6094 | C27: 3565 | D27: 2529 | E27: 5505 | F27: 3279 | G27: 2226 | H27: 2403 | I27: 1245 | J27: 1158 | K27: 2439 | L27: 1329 | M27: 1110 | N27: 2538 | O27: 1543 | P27: 995 | Q27: 2371 | R27: 2098 | S27: 273 | T27: 408 | U27: 255 | V27: 153 | W27: 81 | X27: 41 | Y27: 40 | Z27: 76 | AA27: 46 | AB27: 30 | AC27: 375 | AD27: 50 | AE27: 176 | AF27: 1 | AG27: 0 | AH27: 1 | AI27: 2 | AJ27: 2 | AK27: 0 | AL27: 853 | AM27: 527 | AN27: 326 | AO27: 33 | AP27: 11 | AQ27: 22 | AR27: 152 | AS27: 59 | AT27: 93 | AU27: 490 | AV27: 269 | AW27: 221 | AX27: 34 | AZ27: 34 | BA27: 159 | BB27: 95 | BC27: 64 | BD27: 106 | BE27: 60 | BF27: 46 | BG27: 188 | BH27: 115 | BI27: 73
A28: Sonora | B28: 6978 | C28: 4122 | D28: 2856 | E28: 6242 | F28: 3679 | G28: 2563 | H28: 2667 | I28: 1363 | J28: 1304 | K28: 2782 | L28: 1475 | M28: 1307 | N28: 2679 | O28: 1647 | P28: 1032 | Q28: 3018 | R28: 2678 | S28: 340 | T28: 627 | U28: 421 | V28: 206 | W28: 110 | X28: 58 | Y28: 52 | Z28: 144 | AA28: 100 | AB28: 44 | AC28: 446 | AD28: 56 | AE28: 198 | AF28: 0 | AG28: 0 | AH28: 0 | AI28: 1 | AJ28: 0 | AK28: 1 | AL28: 1320 | AM28: 801 | AN28: 519 | AO28: 107 | AP28: 56 | AQ28: 51 | AR28: 123 | AS28: 39 | AT28: 84 | AU28: 646 | AV28: 343 | AW28: 303 | AX28: 28 | AZ28: 28 | BA28: 173 | BB28: 98 | BC28: 75 | BD28: 133 | BE28: 67 | BF28: 66 | BG28: 204 | BH28: 137 | BI28: 67
A29: Tabasco | B29: 5262 | C29: 3005 | D29: 2257 | E29: 4201 | F29: 2621 | G29: 1580 | H29: 4608 | I29: 2335 | J29: 2273 | K29: 1688 | L29: 873 | M29: 815 | N29: 1846 | O29: 1140 | P29: 706 | Q29: 1341 | R29: 1153 | S29: 188 | T29: 320 | U29: 198 | V29: 122 | W29: 102 | X29: 58 | Y29: 44 | Z29: 40 | AA29: 31 | AB29: 9 | AC29: 221 | AD29: 12 | AE29: 83 | AF29: 1 | AG29: 0 | AH29: 1 | AI29: 3 | AJ29: 2 | AK29: 1 | AL29: 1057 | AM29: 654 | AN29: 403 | AO29: 25 | AP29: 10 | AQ29: 15 | AR29: 79 | AS29: 23 | AT29: 56 | AU29: 513 | AV29: 300 | AW29: 213 | AX29: 32 | AZ29: 32 | BA29: 326 | BB29: 181 | BC29: 145 | BD29: 205 | BE29: 102 | BF29: 103 | BG29: 515 | BH29: 282 | BI29: 233
A30: Tamaulipas | B30: 7018 | C30: 4102 | D30: 2916 | E30: 4888 | F30: 2951 | G30: 1937 | H30: 4485 | I30: 2307 | J30: 2178 | K30: 2757 | L30: 1400 | M30: 1357 | N30: 3122 | O30: 1902 | P30: 1220 | Q30: 2055 | R30: 1715 | S30: 340 | T30: 495 | U30: 294 | V30: 201 | W30: 108 | X30: 50 | Y30: 58 | Z30: 80 | AA30: 45 | AB30: 35 | AC30: 331 | AD30: 29 | AE30: 156 | AF30: 0 | AG30: 0 | AH30: 0 | AI30: 3 | AJ30: 1 | AK30: 2 | AL30: 1639 | AM30: 1036 | AN30: 603 | AO30: 99 | AP30: 40 | AQ30: 59 | AR30: 114 | AS30: 44 | AT30: 70 | AU30: 806 | AV30: 416 | AW30: 390 | AX30: 38 | AZ30: 38 | BA30: 320 | BB30: 176 | BC30: 144 | BD30: 168 | BE30: 84 | BF30: 84 | BG30: 347 | BH30: 196 | BI30: 151
A31: Tlaxcala | B31: 2629 | C31: 1430 | D31: 1199 | E31: 1504 | F31: 991 | G31: 513 | H31: 2366 | I31: 1308 | J31: 1058 | K31: 821 | L31: 380 | M31: 441 | N31: 1996 | O31: 1264 | P31: 732 | Q31: 594 | R31: 462 | S31: 132 | T31: 91 | U31: 50 | V31: 41 | W31: 43 | X31: 27 | Y31: 16 | Z31: 52 | AA31: 38 | AB31: 14 | AC31: 138 | AD31: 10 | AE31: 50 | AF31: 0 | AG31: 0 | AH31: 0 | AI31: 0 | AJ31: 0 | AK31: 0 | AL31: 684 | AM31: 439 | AN31: 245 | AO31: 9 | AP31: 4 | AQ31: 5 | AR31: 54 | AS31: 17 | AT31: 37 | AU31: 309 | AV31: 161 | AW31: 148 | AX31: 13 | AZ31: 13 | BA31: 130 | BB31: 71 | BC31: 59 | BD31: 110 | BE31: 66 | BF31: 44 | BG31: 147 | BH31: 69 | BI31: 78
A32: Veracruz | B32: 20867 | C32: 11322 | D32: 9545 | E32: 9343 | F32: 6058 | G32: 3285 | H32: 14332 | I32: 7193 | J32: 7139 | K32: 6897 | L32: 3336 | M32: 3561 | N32: 5467 | O32: 3154 | P32: 2313 | Q32: 3536 | R32: 2930 | S32: 606 | T32: 1486 | U32: 921 | V32: 565 | W32: 632 | X32: 277 | Y32: 355 | Z32: 401 | AA32: 301 | AB32: 100 | AC32: 879 | AD32: 77 | AE32: 394 | AF32: 1 | AG32: 1 | AH32: 0 | AI32: 0 | AJ32: 0 | AK32: 0 | AL32: 5721 | AM32: 3756 | AN32: 1965 | AO32: 95 | AP32: 33 | AQ32: 62 | AR32: 311 | AS32: 121 | AT32: 190 | AU32: 1987 | AV32: 1109 | AW32: 878 | AX32: 45 | AZ32: 45 | BA32: 707 | BB32: 395 | BC32: 312 | BD32: 544 | BE32: 305 | BF32: 239 | BG32: 727 | BH32: 353 | BI32: 374
A33: Yucatán | B33: 5179 | C33: 2850 | D33: 2329 | E33: 3165 | F33: 2016 | G33: 1149 | H33: 2153 | I33: 1026 | J33: 1127 | K33: 1644 | L33: 821 | M33: 823 | N33: 1962 | O33: 1146 | P33: 816 | Q33: 789 | R33: 603 | S33: 186 | T33: 456 | U33: 277 | V33: 179 | W33: 87 | X33: 46 | Y33: 41 | Z33: 61 | AA33: 40 | AB33: 21 | AC33: 217 | AD33: 24 | AE33: 90 | AF33: 0 | AG33: 0 | AH33: 0 | AI33: 1 | AJ33: 0 | AK33: 1 | AL33: 1442 | AM33: 854 | AN33: 588 | AO33: 83 | AP33: 35 | AQ33: 48 | AR33: 86 | AS33: 31 | AT33: 55 | AU33: 629 | AV33: 312 | AW33: 317 | AX33: 22 | AZ33: 22 | BA33: 171 | BB33: 108 | BC33: 63 | BD33: 141 | BE33: 76 | BF33: 65 | BG33: 340 | BH33: 195 | BI33: 145
A34: Zacatecas | B34: 3135 | C34: 1646 | D34: 1489 | E34: 2329 | F34: 1419 | G34: 910 | H34: 1930 | I34: 984 | J34: 946 | K34: 1270 | L34: 686 | M34: 584 | N34: 1414 | O34: 823 | P34: 591 | Q34: 2067 | R34: 1749 | S34: 318 | T34: 176 | U34: 95 | V34: 81 | W34: 81 | X34: 45 | Y34: 36 | Z34: 114 | AA34: 83 | AB34: 31 | AC34: 211 | AD34: 16 | AE34: 96 | AF34: 0 | AG34: 0 | AH34: 0 | AI34: 1 | AJ34: 1 | AK34: 0 | AL34: 858 | AM34: 536 | AN34: 322 | AO34: 35 | AP34: 10 | AQ34: 25 | AR34: 104 | AS34: 34 | AT34: 70 | AU34: 321 | AV34: 188 | AW34: 133 | AX34: 22 | AZ34: 22 | BA34: 132 | BB34: 69 | BC34: 63 | BD34: 73 | BE34: 40 | BF34: 33 | BG34: 151 | BH34: 82 | BI34: 69
B35: =SUBTOTAL(109,B3:B34) -> 259921 | C35: 142726 | D35: 117195 | E35: 200265 | F35: 128802 | G35: 71463 | H35: 170580 | I35: 89195 | J35: 81385 | K35: =SUBTOTAL(109,K3:K34) -> 97274 | L35: =SUBTOTAL(109,L3:L34) -> 47897 | M35: 49377 | N35: 96714 | O35: 57507 | P35: 39207 | Q35: 82075 | R35: 68781 | S35: 13294 | T35: 17956 | U35: 11037 | V35: 6919 | W35: 5310 | X35: 2566 | Y35: 2744 | Z35: 5195 | AA35: 3707 | AB35: 1488 | AC35: 13019 | AD35: 1161 | AE35: 5786 | AF35: 10 | AG35: 6 | AH35: 4 | AI35: 47 | AJ35: 28 | AK35: 19 | AL35: 71480 | AM35: 45787 | AN35: 25693 | AO35: 3228 | AP35: 1429 | AQ35: 1799 | AR35: 5497 | AS35: 1804 | AT35: 3693 | AU35: 26948 | AV35: 14597 | AW35: 12351 | AX35: 1171 | AY35: 0 | AZ35: 1171 | BA35: 10089 | BB35: 5768 | BC35: 4321 | BD35: 8049 | BE35: 4434 | BF35: 3615 | BG35: 11158 | BH35: 5973 | BI35: 5185

Sheet 2021 (hidden)
A1: ESTADO | B1: Enfermedades del sistema circulatorio | C1: Hombres 1 | D1: Mujeres 1 | E1: Asignación provisoria de nuevas afecciones de etiología incierta o de uso emergente, sin especificación | F1: Hombres 2 | G1: Mujeres 2 | H1: Enfermedades endocrinas, nutricionales y metabólicas | I1: Hombres 3 | J1: Mujeres 3 | K1: Tumores (neoplasias) | L1: Hombres 4 | M1: Mujeres 4 | N1: Enfermedades del sistema respiratorio | O1: Hombres 5 | P1: Mujeres 5 | Q1: Causas externas de morbilidad y de mortalidad | R1: Hombres 6 | S1: Mujeres 6 | T1: Ciertas enfermedades infecciosas y parasitarias | U1: Hombres 7 | V1: Mujeres 7 | W1: Enfermedades de la sangre y de los órganos hematopoyéticos, y ciertos trastornos que afectan el mecanismo de la inmunidad | X1: Hombres 8 | Y1: Mujeres 8 | Z1: Trastornos mentales y del comportamiento | AA1: Hombres 9 | AB1: Mujeres 9 | AC1: Enfermedades del sistema nervioso | AD1: Hombres 10 | AE1: Mujeres 10 | AF1: Enfermedades del ojo y sus anexos | AG1: Hombres 11 | AH1: Mujeres 11 | AI1: Enfermedades del oído y de la apófisis mastoides | AJ1: Hombres 12 | AK1: Mujeres 12 | AL1: Enfermedades del sistema digestivo | AM1: Hombres 13 | AN1: Mujeres 13 | AO1: Enfermedades de la piel y del tejido subcutáneo | AP1: Hombres 14 | AQ1: Mujeres 14 | AR1: Enfermedades del sistema osteomuscular y del tejido conjuntivo | AS1: Hombres 15 | AT1: Mujeres 15 | AU1: Enfermedades del sistema genitourinario | AV1: Hombres 16 | AW1: Mujeres 16 | AX1: Embarazo, parto y puerperio | AY1: Hombres 17 | AZ1: Mujeres 17 | BA1: Ciertas afecciones originadas en el periodo perinatal | BB1: Hombres 18 | BC1: Mujeres 18 | BD1: Malformaciones congénitas, deformidades y anomalías cromosómicas | BE1: Hombres 19 | BF1: Mujeres 19 | BG1: Síntomas, signos y hallazgos anormales clínicos y de laboratorio, no clasificados en otra parte | BH1: Hombres 20 | BI1: Mujeres 20
A2: Aguascalientes | B2: 1978 | C2: 1088 | D2: 890 | E2: 2200 | F2: 1281 | G2: 919 | H2: 1175 | I2: 624 | J2: 551 | K2: 1048 | L2: 473 | M2: 575 | N2: 969 | O2: 540 | P2: 429 | Q2: 746 | R2: 586 | S2: 160 | T2: 197 | U2: 100 | V2: 97 | W2: 57 | X2: 19 | Y2: 38 | Z2: 132 | AA2: 97 | AB2: 35 | AC2: 168 | AD2: 80 | AE2: 88 | AF2: 0 | AG2: 0 | AH2: 0 | AI2: 0 | AJ2: 0 | AK2: 0 | AL2: 807 | AM2: 478 | AN2: 329 | AO2: 30 | AP2: 16 | AQ2: 14 | AR2: 56 | AS2: 23 | AT2: 33 | AU2: 274 | AV2: 146 | AW2: 128 | AX2: 14 | AZ2: 14 | BA2: 137 | BB2: 69 | BC2: 68 | BD2: 86 | BE2: 40 | BF2: 46 | BG2: 58 | BH2: 31 | BI2: 27
A3: Baja California | B3: 6447 | C3: 3977 | D3: 2470 | E3: 5586 | F3: 3442 | G3: 2143 | H3: 3109 | I3: 1745 | J3: 1364 | K3: 3026 | L3: 1515 | M3: 1511 | N3: 2345 | O3: 1533 | P3: 812 | Q3: 5440 | R3: 4670 | S3: 770 | T3: 1185 | U3: 767 | V3: 418 | W3: 96 | X3: 50 | Y3: 46 | Z3: 229 | AA3: 154 | AB3: 75 | AC3: 409 | AD3: 230 | AE3: 179 | AF3: 0 | AG3: 0 | AH3: 0 | AI3: 0 | AJ3: 0 | AK3: 0 | AL3: 1904 | AM3: 1353 | AN3: 551 | AO3: 101 | AP3: 48 | AQ3: 53 | AR3: 118 | AS3: 42 | AT3: 76 | AU3: 673 | AV3: 350 | AW3: 323 | AX3: 35 | AZ3: 35 | BA3: 228 | BB3: 132 | BC3: 96 | BD3: 199 | BE3: 113 | BF3: 86 | BG3: 210 | BH3: 162 | BI3: 48
A4: Baja California Sur | B4: 1126 | C4: 677 | D4: 449 | E4: 2057 | F4: 1263 | G4: 794 | H4: 492 | I4: 261 | J4: 231 | K4: 613 | L4: 333 | M4: 280 | N4: 347 | O4: 225 | P4: 122 | Q4: 381 | R4: 300 | S4: 81 | T4: 170 | U4: 109 | V4: 61 | W4: 18 | X4: 9 | Y4: 9 | Z4: 30 | AA4: 19 | AB4: 11 | AC4: 80 | AD4: 46 | AE4: 34 | AF4: 0 | AG4: 0 | AH4: 0 | AI4: 1 | AJ4: 0 | AK4: 1 | AL4: 371 | AM4: 254 | AN4: 117 | AO4: 20 | AP4: 7 | AQ4: 13 | AR4: 26 | AS4: 7 | AT4: 19 | AU4: 147 | AV4: 78 | AW4: 69 | AX4: 7 | AZ4: 7 | BA4: 62 | BB4: 31 | BC4: 31 | BD4: 32 | BE4: 20 | BF4: 12 | BG4: 14 | BH4: 6 | BI4: 8
A5: Campeche | B5: 1746 | C5: 1015 | D5: 731 | E5: 1533 | F5: 911 | G5: 622 | H5: 989 | I5: 458 | J5: 531 | K5: 640 | L5: 319 | M5: 321 | N5: 488 | O5: 291 | P5: 197 | Q5: 525 | R5: 425 | S5: 100 | T5: 175 | U5: 105 | V5: 70 | W5: 33 | X5: 19 | Y5: 14 | Z5: 27 | AA5: 14 | AB5: 13 | AC5: 82 | AD5: 47 | AE5: 35 | AF5: 0 | AG5: 0 | AH5: 0 | AI5: 0 | AJ5: 0 | AK5: 0 | AL5: 484 | AM5: 280 | AN5: 204 | AO5: 24 | AP5: 8 | AQ5: 16 | AR5: 35 | AS5: 12 | AT5: 23 | AU5: 199 | AV5: 104 | AW5: 95 | AX5: 11 | AZ5: 11 | BA5: 76 | BB5: 45 | BC5: 31 | BD5: 48 | BE5: 23 | BF5: 25 | BG5: 299 | BH5: 163 | BI5: 136
A6: Coahuila | B6: 6060 | C6: 3468 | D6: 2592 | E6: 4608 | F6: 2670 | G6: 1938 | H6: 3624 | I6: 1743 | J6: 1881 | K6: 2475 | L6: 1230 | M6: 1245 | N6: 1618 | O6: 964 | P6: 654 | Q6: 1403 | R6: 1095 | S6: 308 | T6: 464 | U6: 234 | V6: 230 | W6: 83 | X6: 42 | Y6: 41 | Z6: 72 | AA6: 52 | AB6: 20 | AC6: 309 | AD6: 172 | AE6: 137 | AF6: 3 | AG6: 2 | AH6: 1 | AI6: 0 | AJ6: 0 | AK6: 0 | AL6: 1490 | AM6: 903 | AN6: 587 | AO6: 84 | AP6: 33 | AQ6: 51 | AR6: 114 | AS6: 35 | AT6: 79 | AU6: 618 | AV6: 308 | AW6: 310 | AX6: 27 | AZ6: 27 | BA6: 356 | BB6: 197 | BC6: 159 | BD6: 190 | BE6: 109 | BF6: 81 | BG6: 562 | BH6: 279 | BI6: 283
A7: Colima | B7: 1448 | C7: 831 | D7: 617 | E7: 1685 | F7: 1031 | G7: 654 | H7: 916 | I7: 490 | J7: 426 | K7: 700 | L7: 346 | M7: 354 | N7: 604 | O7: 369 | P7: 235 | Q7: 986 | R7: 835 | S7: 151 | T7: 146 | U7: 72 | V7: 74 | W7: 30 | X7: 11 | Y7: 19 | Z7: 37 | AA7: 27 | AB7: 10 | AC7: 98 | AD7: 67 | AE7: 31 | AF7: 0 | AG7: 0 | AH7: 0 | AI7: 1 | AJ7: 1 | AK7: 0 | AL7: 454 | AM7: 288 | AN7: 166 | AO7: 31 | AP7: 11 | AQ7: 20 | AR7: 24 | AS7: 4 | AT7: 20 | AU7: 207 | AV7: 86 | AW7: 121 | AX7: 5 | AZ7: 5 | BA7: 44 | BB7: 31 | BC7: 13 | BD7: 36 | BE7: 22 | BF7: 14 | BG7: 192 | BH7: 84 | BI7: 108
A8: Chiapas | B8: 10307 | C8: 5821 | D8: 4486 | E8: 3119 | F8: 1892 | G8: 1227 | H8: 6665 | I8: 3087 | J8: 3578 | K8: 3844 | L8: 1884 | M8: 1960 | N8: 3208 | O8: 1883 | P8: 1325 | Q8: 1896 | R8: 1524 | S8: 372 | T8: 1265 | U8: 737 | V8: 528 | W8: 423 | X8: 221 | Y8: 202 | Z8: 158 | AA8: 132 | AB8: 26 | AC8: 509 | AD8: 293 | AE8: 216 | AF8: 1 | AG8: 1 | AH8: 0 | AI8: 2 | AJ8: 0 | AK8: 2 | AL8: 3582 | AM8: 2243 | AN8: 1339 | AO8: 62 | AP8: 32 | AQ8: 30 | AR8: 162 | AS8: 55 | AT8: 107 | AU8: 1437 | AV8: 790 | AW8: 647 | AX8: 69 | AZ8: 69 | BA8: 639 | BB8: 352 | BC8: 287 | BD8: 453 | BE8: 245 | BF8: 208 | BG8: 1924 | BH8: 1053 | BI8: 871
A9: Chihuahua | B9: 7980 | C9: 4458 | D9: 3522 | E9: 4012 | F9: 2239 | G9: 1773 | H9: 3415 | I9: 1669 | J9: 1746 | K9: 3310 | L9: 1615 | M9: 1695 | N9: 2423 | O9: 1397 | P9: 1026 | Q9: 4966 | R9: 4107 | S9: 859 | T9: 882 | U9: 431 | V9: 451 | W9: 159 | X9: 65 | Y9: 94 | Z9: 279 | AA9: 222 | AB9: 57 | AC9: 457 | AD9: 257 | AE9: 200 | AF9: 0 | AG9: 0 | AH9: 0 | AI9: 0 | AJ9: 0 | AK9: 0 | AL9: 2318 | AM9: 1428 | AN9: 890 | AO9: 109 | AP9: 51 | AQ9: 58 | AR9: 106 | AS9: 34 | AT9: 72 | AU9: 722 | AV9: 353 | AW9: 369 | AX9: 43 | AZ9: 43 | BA9: 424 | BB9: 235 | BC9: 189 | BD9: 224 | BE9: 127 | BF9: 97 | BG9: 228 | BH9: 137 | BI9: 91
A10: Ciudad de México | B10: 26261 | C10: 13105 | D10: 13156 | E10: 42272 | F10: 26146 | G10: 16126 | H10: 15515 | I10: 8335 | J10: 7180 | K10: 12192 | L10: 5668 | M10: 6524 | N10: 8543 | O10: 4968 | P10: 3575 | Q10: 3979 | R10: 3220 | S10: 759 | T10: 2127 | U10: 1052 | V10: 1075 | W10: 578 | X10: 281 | Y10: 297 | Z10: 412 | AA10: 293 | AB10: 119 | AC10: 1313 | AD10: 704 | AE10: 609 | AF10: 0 | AG10: 0 | AH10: 0 | AI10: 0 | AJ10: 0 | AK10: 0 | AL10: 8255 | AM10: 4945 | AN10: 3310 | AO10: 724 | AP10: 310 | AQ10: 414 | AR10: 806 | AS10: 269 | AT10: 537 | AU10: 2835 | AV10: 1334 | AW10: 1501 | AX10: 89 | AZ10: 89 | BA10: 763 | BB10: 412 | BC10: 351 | BD10: 868 | BE10: 431 | BF10: 437 | BG10: 320 | BH10: 209 | BI10: 111
A11: Durango | B11: 4117 | C11: 2222 | D11: 1895 | E11: 2189 | F11: 1206 | G11: 983 | H11: 1610 | I11: 803 | J11: 807 | K11: 1227 | L11: 610 | M11: 617 | N11: 1154 | O11: 668 | P11: 486 | Q11: 999 | R11: 819 | S11: 180 | T11: 233 | U11: 116 | V11: 117 | W11: 50 | X11: 27 | Y11: 23 | Z11: 33 | AA11: 23 | AB11: 10 | AC11: 144 | AD11: 79 | AE11: 65 | AF11: 0 | AG11: 0 | AH11: 0 | AI11: 0 | AJ11: 0 | AK11: 0 | AL11: 829 | AM11: 482 | AN11: 347 | AO11: 46 | AP11: 20 | AQ11: 26 | AR11: 71 | AS11: 28 | AT11: 43 | AU11: 286 | AV11: 146 | AW11: 140 | AX11: 18 | AZ11: 18 | BA11: 223 | BB11: 135 | BC11: 88 | BD11: 91 | BE11: 54 | BF11: 37 | BG11: 237 | BH11: 132 | BI11: 105
A12: Guanajuato | B12: 14343 | C12: 7665 | D12: 6678 | E12: 10111 | F12: 5965 | G12: 4146 | H12: 8745 | I12: 4314 | J12: 4431 | K12: 4130 | L12: 2019 | M12: 2111 | N12: 4376 | O12: 2567 | P12: 1809 | Q12: 6798 | R12: 5697 | S12: 1101 | T12: 709 | U12: 311 | V12: 398 | W12: 195 | X12: 89 | Y12: 106 | Z12: 177 | AA12: 139 | AB12: 38 | AC12: 583 | AD12: 327 | AE12: 256 | AF12: 0 | AG12: 0 | AH12: 0 | AI12: 2 | AJ12: 1 | AK12: 1 | AL12: 3609 | AM12: 2332 | AN12: 1277 | AO12: 162 | AP12: 74 | AQ12: 88 | AR12: 203 | AS12: 72 | AT12: 131 | AU12: 1220 | AV12: 619 | AW12: 601 | AX12: 41 | AZ12: 41 | BA12: 449 | BB12: 258 | BC12: 191 | BD12: 408 | BE12: 235 | BF12: 173 | BG12: 238 | BH12: 103 | BI12: 135
A13: Guerrero | B13: 6101 | C13: 3314 | D13: 2787 | E13: 6694 | F13: 4123 | G13: 2571 | H13: 4398 | I13: 2250 | J13: 2148 | K13: 1899 | L13: 919 | M13: 980 | N13: 1722 | O13: 1059 | P13: 663 | Q13: 2527 | R13: 2084 | S13: 443 | T13: 499 | U13: 262 | V13: 237 | W13: 244 | X13: 119 | Y13: 125 | Z13: 111 | AA13: 85 | AB13: 26 | AC13: 262 | AD13: 133 | AE13: 129 | AF13: 2 | AG13: 1 | AH13: 1 | AI13: 2 | AJ13: 1 | AK13: 1 | AL13: 1603 | AM13: 980 | AN13: 623 | AO13: 37 | AP13: 18 | AQ13: 19 | AR13: 105 | AS13: 29 | AT13: 76 | AU13: 655 | AV13: 357 | AW13: 298 | AX13: 44 | AZ13: 44 | BA13: 295 | BB13: 165 | BC13: 130 | BD13: 166 | BE13: 98 | BF13: 68 | BG13: 493 | BH13: 278 | BI13: 215
A14: Hidalgo | B14: 6247 | C14: 3354 | D14: 2893 | E14: 6034 | F14: 3759 | G14: 2275 | H14: 3388 | I14: 1765 | J14: 1623 | K14: 2110 | L14: 1070 | M14: 1040 | N14: 1543 | O14: 909 | P14: 634 | Q14: 1480 | R14: 1163 | S14: 317 | T14: 357 | U14: 180 | V14: 177 | W14: 127 | X14: 71 | Y14: 56 | Z14: 88 | AA14: 63 | AB14: 25 | AC14: 237 | AD14: 129 | AE14: 108 | AF14: 0 | AG14: 0 | AH14: 0 | AI14: 1 | AJ14: 1 | AK14: 0 | AL14: 1785 | AM14: 1130 | AN14: 655 | AO14: 42 | AP14: 25 | AQ14: 17 | AR14: 108 | AS14: 35 | AT14: 73 | AU14: 479 | AV14: 286 | AW14: 193 | AX14: 34 | AZ14: 34 | BA14: 257 | BB14: 146 | BC14: 111 | BD14: 104 | BE14: 58 | BF14: 46 | BG14: 193 | BH14: 84 | BI14: 109
A15: Jalisco | B15: 16821 | C15: 9168 | D15: 7653 | E15: 16673 | F15: 10112 | G15: 6560 | H15: 8437 | I15: 4392 | J15: 4045 | K15: 7090 | L15: 3536 | M15: 3554 | N15: 7445 | O15: 4177 | P15: 3268 | Q15: 6192 | R15: 5118 | S15: 1074 | T15: 1693 | U15: 883 | V15: 810 | W15: 276 | X15: 129 | Y15: 147 | Z15: 485 | AA15: 357 | AB15: 128 | AC15: 1112 | AD15: 582 | AE15: 530 | AF15: 0 | AG15: 0 | AH15: 0 | AI15: 2 | AJ15: 2 | AK15: 0 | AL15: 4781 | AM15: 2987 | AN15: 1794 | AO15: 359 | AP15: 165 | AQ15: 194 | AR15: 390 | AS15: 139 | AT15: 251 | AU15: 2120 | AV15: 1148 | AW15: 972 | AX15: 80 | AZ15: 80 | BA15: 649 | BB15: 349 | BC15: 300 | BD15: 601 | BE15: 307 | BF15: 294 | BG15: 700 | BH15: 338 | BI15: 362
A16: México | B16: 28546 | C16: 15068 | D16: 13478 | E16: 30583 | F16: 19209 | G16: 11372 | H16: 24291 | I16: 12824 | J16: 11467 | K16: 9372 | L16: 4298 | M16: 5074 | N16: 10539 | O16: 6256 | P16: 4283 | Q16: 7970 | R16: 6426 | S16: 1544 | T16: 1624 | U16: 815 | V16: 809 | W16: 401 | X16: 198 | Y16: 203 | Z16: 494 | AA16: 370 | AB16: 124 | AC16: 1116 | AD16: 613 | AE16: 503 | AF16: 1 | AG16: 0 | AH16: 1 | AI16: 3 | AJ16: 2 | AK16: 1 | AL16: 8805 | AM16: 5822 | AN16: 2983 | AO16: 442 | AP16: 199 | AQ16: 243 | AR16: 713 | AS16: 248 | AT16: 465 | AU16: 2642 | AV16: 1400 | AW16: 1242 | AX16: 135 | AZ16: 135 | BA16: 1172 | BB16: 667 | BC16: 505 | BD16: 772 | BE16: 458 | BF16: 314 | BG16: 147 | BH16: 76 | BI16: 71
A17: Michoacán | B17: 10581 | C17: 5678 | D17: 4903 | E17: 9246 | F17: 5597 | G17: 3649 | H17: 7237 | I17: 3629 | J17: 3608 | K17: 3551 | L17: 1819 | M17: 1732 | N17: 3751 | O17: 2185 | P17: 1566 | Q17: 4940 | R17: 4181 | S17: 759 | T17: 664 | U17: 329 | V17: 335 | W17: 250 | X17: 105 | Y17: 145 | Z17: 202 | AA17: 157 | AB17: 45 | AC17: 475 | AD17: 254 | AE17: 221 | AF17: 0 | AG17: 0 | AH17: 0 | AI17: 2 | AJ17: 1 | AK17: 1 | AL17: 2899 | AM17: 1868 | AN17: 1031 | AO17: 102 | AP17: 51 | AQ17: 51 | AR17: 242 | AS17: 81 | AT17: 161 | AU17: 1012 | AV17: 564 | AW17: 448 | AX17: 51 | AZ17: 51 | BA17: 393 | BB17: 240 | BC17: 153 | BD17: 283 | BE17: 165 | BF17: 118 | BG17: 573 | BH17: 276 | BI17: 297
A18: Morelos | B18: 5156 | C18: 2793 | D18: 2363 | E18: 5947 | F18: 3788 | G18: 2159 | H18: 3067 | I18: 1581 | J18: 1486 | K18: 1645 | L18: 794 | M18: 851 | N18: 1419 | O18: 819 | P18: 600 | Q18: 2238 | R18: 1948 | S18: 290 | T18: 327 | U18: 171 | V18: 156 | W18: 151 | X18: 71 | Y18: 80 | Z18: 105 | AA18: 63 | AB18: 42 | AC18: 219 | AD18: 110 | AE18: 109 | AF18: 0 | AG18: 0 | AH18: 0 | AI18: 1 | AJ18: 1 | AK18: 0 | AL18: 1578 | AM18: 1000 | AN18: 578 | AO18: 85 | AP18: 35 | AQ18: 50 | AR18: 89 | AS18: 27 | AT18: 62 | AU18: 503 | AV18: 248 | AW18: 255 | AX18: 14 | AZ18: 14 | BA18: 135 | BB18: 76 | BC18: 59 | BD18: 87 | BE18: 50 | BF18: 37 | BG18: 77 | BH18: 55 | BI18: 22
A19: Nayarit | B19: 2169 | C19: 1208 | D19: 961 | E19: 2333 | F19: 1413 | G19: 920 | H19: 1268 | I19: 665 | J19: 603 | K19: 1033 | L19: 569 | M19: 464 | N19: 862 | O19: 539 | P19: 323 | Q19: 949 | R19: 770 | S19: 179 | T19: 243 | U19: 143 | V19: 100 | W19: 39 | X19: 18 | Y19: 21 | Z19: 65 | AA19: 43 | AB19: 22 | AC19: 185 | AD19: 106 | AE19: 79 | AF19: 0 | AG19: 0 | AH19: 0 | AI19: 1 | AJ19: 0 | AK19: 1 | AL19: 602 | AM19: 379 | AN19: 223 | AO19: 45 | AP19: 13 | AQ19: 32 | AR19: 53 | AS19: 17 | AT19: 36 | AU19: 231 | AV19: 117 | AW19: 114 | AX19: 21 | AZ19: 21 | BA19: 91 | BB19: 51 | BC19: 40 | BD19: 46 | BE19: 27 | BF19: 19 | BG19: 151 | BH19: 86 | BI19: 65
A20: Nuevo León | B20: 11559 | C20: 6586 | D20: 4973 | E20: 11182 | F20: 6713 | G20: 4469 | H20: 4859 | I20: 2497 | J20: 2362 | K20: 4791 | L20: 2386 | M20: 2405 | N20: 4211 | O20: 2522 | P20: 1689 | Q20: 2876 | R20: 2398 | S20: 478 | T20: 963 | U20: 548 | V20: 415 | W20: 103 | X20: 50 | Y20: 53 | Z20: 188 | AA20: 86 | AB20: 102 | AC20: 676 | AD20: 365 | AE20: 311 | AF20: 1 | AG20: 1 | AH20: 0 | AI20: 1 | AJ20: 1 | AK20: 0 | AL20: 2699 | AM20: 1581 | AN20: 1118 | AO20: 263 | AP20: 132 | AQ20: 131 | AR20: 240 | AS20: 86 | AT20: 154 | AU20: 1023 | AV20: 495 | AW20: 528 | AX20: 57 | AZ20: 57 | BA20: 398 | BB20: 237 | BC20: 161 | BD20: 406 | BE20: 226 | BF20: 180 | BG20: 165 | BH20: 92 | BI20: 73
A21: Oaxaca | B21: 9987 | C21: 5172 | D21: 4815 | E21: 6731 | F21: 4202 | G21: 2529 | H21: 6830 | I21: 3227 | J21: 3603 | K21: 3191 | L21: 1503 | M21: 1688 | N21: 2502 | O21: 1487 | P21: 1015 | Q21: 2258 | R21: 1851 | S21: 407 | T21: 673 | U21: 365 | V21: 308 | W21: 407 | X21: 185 | Y21: 222 | Z21: 379 | AA21: 298 | AB21: 81 | AC21: 478 | AD21: 274 | AE21: 204 | AF21: 2 | AG21: 1 | AH21: 1 | AI21: 1 | AJ21: 0 | AK21: 1 | AL21: 2815 | AM21: 1863 | AN21: 952 | AO21: 70 | AP21: 34 | AQ21: 36 | AR21: 255 | AS21: 94 | AT21: 161 | AU21: 918 | AV21: 526 | AW21: 392 | AX21: 48 | AZ21: 48 | BA21: 315 | BB21: 187 | BC21: 128 | BD21: 260 | BE21: 122 | BF21: 138 | BG21: 1393 | BH21: 720 | BI21: 673
A22: Puebla | B22: 17623 | C22: 9058 | D22: 8565 | E22: 13179 | F22: 8174 | G22: 5004 | H22: 11717 | I22: 5952 | J22: 5765 | K22: 4293 | L22: 1992 | M22: 2301 | N22: 5801 | O22: 3408 | P22: 2393 | Q22: 2986 | R22: 2377 | S22: 609 | T22: 754 | U22: 365 | V22: 389 | W22: 383 | X22: 182 | Y22: 201 | Z22: 250 | AA22: 194 | AB22: 56 | AC22: 587 | AD22: 321 | AE22: 266 | AF22: 1 | AG22: 1 | AH22: 0 | AI22: 1 | AJ22: 0 | AK22: 1 | AL22: 4803 | AM22: 3120 | AN22: 1683 | AO22: 87 | AP22: 35 | AQ22: 52 | AR22: 403 | AS22: 154 | AT22: 249 | AU22: 1423 | AV22: 769 | AW22: 654 | AX22: 91 | AZ22: 91 | BA22: 639 | BB22: 380 | BC22: 259 | BD22: 571 | BE22: 303 | BF22: 268 | BG22: 654 | BH22: 317 | BI22: 337
A23: Querétaro | B23: 3946 | C23: 2087 | D23: 1859 | E23: 4919 | F23: 3085 | G23: 1834 | H23: 2225 | I23: 1161 | J23: 1064 | K23: 1635 | L23: 771 | M23: 864 | N23: 1285 | O23: 736 | P23: 549 | Q23: 1170 | R23: 944 | S23: 226 | T23: 402 | U23: 189 | V23: 213 | W23: 60 | X23: 30 | Y23: 30 | Z23: 68 | AA23: 53 | AB23: 15 | AC23: 195 | AD23: 117 | AE23: 78 | AF23: 0 | AG23: 0 | AH23: 0 | AI23: 0 | AJ23: 0 | AK23: 0 | AL23: 1526 | AM23: 987 | AN23: 539 | AO23: 101 | AP23: 38 | AQ23: 63 | AR23: 120 | AS23: 40 | AT23: 80 | AU23: 469 | AV23: 242 | AW23: 227 | AX23: 19 | AZ23: 19 | BA23: 188 | BB23: 104 | BC23: 84 | BD23: 148 | BE23: 71 | BF23: 77 | BG23: 188 | BH23: 91 | BI23: 97
A24: Quintana Roo | B24: 1996 | C24: 1214 | D24: 782 | E24: 2597 | F24: 1639 | G24: 958 | H24: 1285 | I24: 674 | J24: 611 | K24: 894 | L24: 434 | M24: 460 | N24: 731 | O24: 456 | P24: 275 | Q24: 1513 | R24: 1256 | S24: 257 | T24: 440 | U24: 271 | V24: 169 | W24: 55 | X24: 29 | Y24: 26 | Z24: 91 | AA24: 39 | AB24: 52 | AC24: 140 | AD24: 82 | AE24: 58 | AF24: 0 | AG24: 0 | AH24: 0 | AI24: 0 | AJ24: 0 | AK24: 0 | AL24: 785 | AM24: 522 | AN24: 263 | AO24: 54 | AP24: 25 | AQ24: 29 | AR24: 49 | AS24: 14 | AT24: 35 | AU24: 254 | AV24: 115 | AW24: 139 | AX24: 19 | AZ24: 19 | BA24: 124 | BB24: 64 | BC24: 60 | BD24: 90 | BE24: 47 | BF24: 43 | BG24: 170 | BH24: 98 | BI24: 72
A25: San Luis Potosí | B25: 6571 | C25: 3598 | D25: 2973 | E25: 4554 | F25: 2714 | G25: 1840 | H25: 3584 | I25: 1770 | J25: 1814 | K25: 2218 | L25: 1099 | M25: 1119 | N25: 2215 | O25: 1342 | P25: 873 | Q25: 2134 | R25: 1786 | S25: 348 | T25: 452 | U25: 218 | V25: 234 | W25: 117 | X25: 52 | Y25: 65 | Z25: 139 | AA25: 103 | AB25: 36 | AC25: 310 | AD25: 181 | AE25: 129 | AF25: 0 | AG25: 0 | AH25: 0 | AI25: 4 | AJ25: 2 | AK25: 2 | AL25: 1613 | AM25: 1009 | AN25: 604 | AO25: 63 | AP25: 33 | AQ25: 30 | AR25: 125 | AS25: 40 | AT25: 85 | AU25: 592 | AV25: 303 | AW25: 289 | AX25: 21 | AZ25: 21 | BA25: 207 | BB25: 118 | BC25: 89 | BD25: 186 | BE25: 105 | BF25: 81 | BG25: 284 | BH25: 151 | BI25: 133
A26: Sinaloa | B26: 6007 | C26: 3354 | D26: 2653 | E26: 5583 | F26: 3179 | G26: 2404 | H26: 2065 | I26: 1107 | J26: 958 | K26: 2530 | L26: 1326 | M26: 1204 | N26: 2251 | O26: 1385 | P26: 866 | Q26: 2293 | R26: 1957 | S26: 336 | T26: 673 | U26: 338 | V26: 335 | W26: 104 | X26: 55 | Y26: 49 | Z26: 81 | AA26: 50 | AB26: 31 | AC26: 344 | AD26: 187 | AE26: 157 | AF26: 0 | AG26: 0 | AH26: 0 | AI26: 1 | AJ26: 1 | AK26: 0 | AL26: 989 | AM26: 568 | AN26: 421 | AO26: 38 | AP26: 18 | AQ26: 20 | AR26: 127 | AS26: 38 | AT26: 89 | AU26: 497 | AV26: 273 | AW26: 224 | AX26: 40 | AZ26: 40 | BA26: 224 | BB26: 140 | BC26: 84 | BD26: 121 | BE26: 64 | BF26: 57 | BG26: 202 | BH26: 110 | BI26: 92
A27: Sonora | B27: 6345 | C27: 3720 | D27: 2625 | E27: 4780 | F27: 2711 | G27: 2069 | H27: 2135 | I27: 1091 | J27: 1044 | K27: 2628 | L27: 1306 | M27: 1322 | N27: 2313 | O27: 1379 | P27: 934 | Q27: 3625 | R27: 3138 | S27: 487 | T27: 870 | U27: 467 | V27: 403 | W27: 122 | X27: 72 | Y27: 50 | Z27: 161 | AA27: 105 | AB27: 56 | AC27: 437 | AD27: 229 | AE27: 208 | AF27: 0 | AG27: 0 | AH27: 0 | AI27: 1 | AJ27: 1 | AK27: 0 | AL27: 1294 | AM27: 787 | AN27: 507 | AO27: 84 | AP27: 43 | AQ27: 41 | AR27: 89 | AS27: 31 | AT27: 58 | AU27: 644 | AV27: 326 | AW27: 318 | AX27: 25 | AZ27: 25 | BA27: 179 | BB27: 111 | BC27: 68 | BD27: 151 | BE27: 85 | BF27: 66 | BG27: 230 | BH27: 141 | BI27: 89
A28: Tabasco | B28: 4919 | C28: 2790 | D28: 2129 | E28: 3185 | F28: 1876 | G28: 1309 | H28: 3607 | I28: 1705 | J28: 1902 | K28: 1730 | L28: 877 | M28: 853 | N28: 1344 | O28: 772 | P28: 572 | Q28: 1310 | R28: 1119 | S28: 191 | T28: 398 | U28: 216 | V28: 182 | W28: 97 | X28: 47 | Y28: 50 | Z28: 38 | AA28: 29 | AB28: 9 | AC28: 240 | AD28: 130 | AE28: 110 | AF28: 1 | AG28: 1 | AH28: 0 | AI28: 0 | AJ28: 0 | AK28: 0 | AL28: 1042 | AM28: 643 | AN28: 399 | AO28: 32 | AP28: 13 | AQ28: 19 | AR28: 68 | AS28: 19 | AT28: 49 | AU28: 502 | AV28: 272 | AW28: 230 | AX28: 28 | AZ28: 28 | BA28: 264 | BB28: 161 | BC28: 103 | BD28: 219 | BE28: 129 | BF28: 90 | BG28: 702 | BH28: 356 | BI28: 346
A29: Tamaulipas | B29: 7087 | C29: 4073 | D29: 3014 | E29: 5042 | F29: 2956 | G29: 2086 | H29: 3901 | I29: 1946 | J29: 1955 | K29: 2731 | L29: 1288 | M29: 1443 | N29: 2113 | O29: 1248 | P29: 865 | Q29: 2049 | R29: 1699 | S29: 350 | T29: 671 | U29: 337 | V29: 334 | W29: 110 | X29: 58 | Y29: 52 | Z29: 85 | AA29: 50 | AB29: 35 | AC29: 319 | AD29: 157 | AE29: 162 | AF29: 4 | AG29: 3 | AH29: 1 | AI29: 4 | AJ29: 3 | AK29: 1 | AL29: 1735 | AM29: 1081 | AN29: 654 | AO29: 134 | AP29: 46 | AQ29: 88 | AR29: 96 | AS29: 36 | AT29: 60 | AU29: 783 | AV29: 419 | AW29: 364 | AX29: 44 | AZ29: 44 | BA29: 380 | BB29: 215 | BC29: 165 | BD29: 165 | BE29: 79 | BF29: 86 | BG29: 376 | BH29: 200 | BI29: 176
A30: Tlaxcala | B30: 2762 | C30: 1496 | D30: 1266 | E30: 2204 | F30: 1322 | G30: 882 | H30: 2146 | I30: 1121 | J30: 1025 | K30: 698 | L30: 309 | M30: 389 | N30: 1790 | O30: 1103 | P30: 687 | Q30: 594 | R30: 450 | S30: 144 | T30: 114 | U30: 54 | V30: 60 | W30: 47 | X30: 27 | Y30: 20 | Z30: 38 | AA30: 31 | AB30: 7 | AC30: 107 | AD30: 65 | AE30: 42 | AF30: 1 | AG30: 0 | AH30: 1 | AI30: 0 | AJ30: 0 | AK30: 0 | AL30: 744 | AM30: 477 | AN30: 267 | AO30: 15 | AP30: 10 | AQ30: 5 | AR30: 45 | AS30: 15 | AT30: 30 | AU30: 285 | AV30: 161 | AW30: 124 | AX30: 7 | AZ30: 7 | BA30: 98 | BB30: 64 | BC30: 34 | BD30: 107 | BE30: 56 | BF30: 51 | BG30: 153 | BH30: 68 | BI30: 85
A31: Veracruz | B31: 21853 | C31: 11765 | D31: 10088 | E31: 11823 | F31: 6870 | G31: 4953 | H31: 14264 | I31: 6914 | J31: 7350 | K31: 6944 | L31: 3247 | M31: 3697 | N31: 5739 | O31: 3214 | P31: 2525 | Q31: 3317 | R31: 2767 | S31: 550 | T31: 1723 | U31: 996 | V31: 727 | W31: 654 | X31: 329 | Y31: 325 | Z31: 518 | AA31: 328 | AB31: 190 | AC31: 914 | AD31: 499 | AE31: 415 | AF31: 2 | AG31: 1 | AH31: 1 | AI31: 3 | AJ31: 3 | AK31: 0 | AL31: 5958 | AM31: 3900 | AN31: 2058 | AO31: 187 | AP31: 82 | AQ31: 105 | AR31: 336 | AS31: 122 | AT31: 214 | AU31: 2044 | AV31: 1088 | AW31: 956 | AX31: 79 | AZ31: 79 | BA31: 665 | BB31: 354 | BC31: 311 | BD31: 489 | BE31: 265 | BF31: 224 | BG31: 815 | BH31: 419 | BI31: 396
A32: Yucatán | B32: 5322 | C32: 2918 | D32: 2404 | E32: 4062 | F32: 2438 | G32: 1624 | H32: 1740 | I32: 777 | J32: 963 | K32: 1839 | L32: 892 | M32: 947 | N32: 1604 | O32: 940 | P32: 664 | Q32: 982 | R32: 782 | S32: 200 | T32: 554 | U32: 285 | V32: 269 | W32: 79 | X32: 39 | Y32: 40 | Z32: 59 | AA32: 36 | AB32: 23 | AC32: 218 | AD32: 119 | AE32: 99 | AF32: 0 | AG32: 0 | AH32: 0 | AI32: 0 | AJ32: 0 | AK32: 0 | AL32: 1568 | AM32: 975 | AN32: 593 | AO32: 112 | AP32: 55 | AQ32: 57 | AR32: 95 | AS32: 37 | AT32: 58 | AU32: 634 | AV32: 325 | AW32: 309 | AX32: 30 | AZ32: 30 | BA32: 170 | BB32: 102 | BC32: 68 | BD32: 135 | BE32: 70 | BF32: 65 | BG32: 408 | BH32: 203 | BI32: 205
A33: Zacatecas | B33: 3378 | C33: 1772 | D33: 1606 | E33: 2058 | F33: 1197 | G33: 861 | H33: 1905 | I33: 982 | J33: 923 | K33: 1311 | L33: 640 | M33: 671 | N33: 1200 | O33: 704 | P33: 496 | Q33: 2627 | R33: 2253 | S33: 374 | T33: 202 | U33: 88 | V33: 114 | W33: 89 | X33: 45 | Y33: 44 | Z33: 109 | AA33: 79 | AB33: 30 | AC33: 204 | AD33: 112 | AE33: 92 | AF33: 1 | AG33: 1 | AH33: 0 | AI33: 0 | AJ33: 0 | AK33: 0 | AL33: 975 | AM33: 596 | AN33: 379 | AO33: 46 | AP33: 16 | AQ33: 30 | AR33: 116 | AS33: 45 | AT33: 71 | AU33: 319 | AV33: 168 | AW33: 151 | AX33: 13 | AZ33: 13 | BA33: 115 | BB33: 73 | BC33: 42 | BD33: 85 | BE33: 48 | BF33: 37 | BG33: 156 | BH33: 91 | BI33: 65

Sheet 2022 (hidden)
A1: ESTADO | B1: Enfermedades del sistema circulatorio | C1: Enfermedades del sistema circulatorio. Hombres | D1: Enfermedades del sistema circulatorio. Mujeres | E1: Asignación provisoria de nuevas afecciones de etiología incierta o de uso emergente, sin especificación | F1: Asignación provisoria de nuevas afecciones de etiología incierta o de uso emergente, sin especificación. Hombres | G1: Asignación provisoria de nuevas afecciones de etiología incierta o de uso emergente, sin especificación. Mujeres | H1: Enfermedades endocrinas, nutricionales y metabólicas | I1: Enfermedades endocrinas, nutricionales y metabólicas. Hombres | J1: Enfermedades endocrinas, nutricionales y metabólicas. Mujeres | K1: Tumores (neoplasias) | L1: Tumores (neoplasias) Hombres | M1: Tumores (neoplasias) Mujeres | N1: Enfermedades del sistema respiratorio | O1: Enfermedades del sistema respiratorio. Hombres | P1: Enfermedades del sistema respiratorio. Mujeres | Q1: Causas externas de morbilidad y de mortalidad | R1: Causas externas de morbilidad y de mortalidad. Hombres | S1: Causas externas de morbilidad y de mortalidad. Mujeres | T1: Ciertas enfermedades infecciosas y parasitarias | U1: Ciertas enfermedades infecciosas y parasitarias. Hombres | V1: Ciertas enfermedades infecciosas y parasitarias. Mujeres | W1: Enfermedades de la sangre y de los órganos hematopoyéticos, y ciertos trastornos que afectan el mecanismo de la inmunidad | X1: Hombres 8 | Y1: Mujeres 8 | Z1: Trastornos mentales y del comportamiento | AA1: Hombres 9 | AB1: Mujeres 9 | AC1: Enfermedades del sistema nervioso | AD1: Hombres 10 | AE1: Mujeres 10 | AF1: Enfermedades del ojo y sus anexos | AG1: Hombres 11 | AH1: Mujeres 11 | AI1: Enfermedades del oído y de la apófisis mastoides | AJ1: Hombres 12 | AK1: Mujeres 12 | AL1: Enfermedades del sistema digestivo | AM1: Hombres 13 | AN1: Mujeres 13 | AO1: Enfermedades de la piel y del tejido subcutáneo | AP1: Hombres 14 | AQ1: Mujeres 14 | AR1: Enfermedades del sistema osteomuscular y del tejido conjuntivo | AS1: Hombres 15 | AT1: Mujeres 15 | AU1: Enfermedades del sistema genitourinario | AV1: Hombres 16 | AW1: Mujeres 16 | AX1: Embarazo, parto y puerperio | AY1: Hombres 17 | AZ1: Mujeres 17 | BA1: Ciertas afecciones originadas en el periodo perinatal | BB1: Hombres 18 | BC1: Mujeres 18 | BD1: Malformaciones congénitas, deformidades y anomalías cromosómicas | BE1: Hombres 19 | BF1: Mujeres 19 | BG1: Síntomas, signos y hallazgos anormales clínicos y de laboratorio, no clasificados en otra parte | BH1: Hombres 20 | BI1: Mujeres 20
A2: Aguascalientes | B2: 1926 | C2: 1042 | D2: 884 | E2: 646 | F2: 412 | G2: 234 | H2: 1219 | I2: 611 | J2: 608 | K2: 1012 | L2: 482 | M2: 530 | N2: 744 | O2: 403 | P2: 341 | Q2: 744 | R2: 580 | S2: 164 | T2: 161 | U2: 68 | V2: 93 | W2: 72 | X2: 33 | Y2: 39 | Z2: 120 | AA2: 80 | AB2: 40 | AC2: 198 | AD2: 92 | AE2: 106 | AF2: 2 | AG2: 2 | AH2: 0 | AI2: 0 | AJ2: 0 | AK2: 0 | AL2: 741 | AM2: 440 | AN2: 301 | AO2: 46 | AP2: 17 | AQ2: 29 | AR2: 56 | AS2: 18 | AT2: 38 | AU2: 318 | AV2: 160 | AW2: 158 | AX2: 6 | AZ2: 6 | BA2: 68 | BB2: 42 | BC2: 26 | BD2: 68 | BE2: 35 | BF2: 33 | BG2: 64 | BH2: 32 | BI2: 32
A3: Baja California | B3: 6654 | C3: 4099 | D3: 2555 | E3: 1414 | F3: 832 | G3: 581 | H3: 3023 | I3: 1656 | J3: 1367 | K3: 3027 | L3: 1446 | M3: 1581 | N3: 2039 | O3: 1332 | P3: 707 | Q3: 4888 | R3: 4138 | S3: 750 | T3: 1119 | U3: 785 | V3: 334 | W3: 146 | X3: 66 | Y3: 80 | Z3: 310 | AA3: 234 | AB3: 76 | AC3: 424 | AD3: 246 | AE3: 178 | AF3: 1 | AG3: 1 | AH3: 0 | AI3: 2 | AJ3: 0 | AK3: 2 | AL3: 1927 | AM3: 1337 | AN3: 590 | AO3: 144 | AP3: 77 | AQ3: 67 | AR3: 131 | AS3: 48 | AT3: 83 | AU3: 827 | AV3: 418 | AW3: 409 | AX3: 29 | AZ3: 29 | BA3: 241 | BB3: 136 | BC3: 105 | BD3: 210 | BE3: 102 | BF3: 108 | BG3: 316 | BH3: 232 | BI3: 84
A4: Baja California Sur | B4: 1181 | C4: 701 | D4: 480 | E4: 399 | F4: 253 | G4: 146 | H4: 479 | I4: 253 | J4: 226 | K4: 630 | L4: 348 | M4: 282 | N4: 359 | O4: 210 | P4: 149 | Q4: 425 | R4: 341 | S4: 84 | T4: 136 | U4: 85 | V4: 51 | W4: 19 | X4: 10 | Y4: 9 | Z4: 21 | AA4: 11 | AB4: 10 | AC4: 81 | AD4: 47 | AE4: 34 | AF4: 0 | AG4: 0 | AH4: 0 | AI4: 0 | AJ4: 0 | AK4: 0 | AL4: 343 | AM4: 236 | AN4: 107 | AO4: 27 | AP4: 15 | AQ4: 12 | AR4: 20 | AS4: 5 | AT4: 15 | AU4: 139 | AV4: 85 | AW4: 54 | AX4: 2 | AZ4: 2 | BA4: 56 | BB4: 31 | BC4: 25 | BD4: 36 | BE4: 19 | BF4: 17 | BG4: 30 | BH4: 18 | BI4: 12
A5: Campeche | B5: 1512 | C5: 820 | D5: 692 | E5: 197 | F5: 118 | G5: 79 | H5: 847 | I5: 389 | J5: 458 | K5: 695 | L5: 347 | M5: 348 | N5: 314 | O5: 190 | P5: 124 | Q5: 522 | R5: 427 | S5: 95 | T5: 170 | U5: 129 | V5: 41 | W5: 32 | X5: 18 | Y5: 14 | Z5: 25 | AA5: 18 | AB5: 7 | AC5: 88 | AD5: 49 | AE5: 39 | AF5: 0 | AG5: 0 | AH5: 0 | AI5: 1 | AJ5: 1 | AK5: 0 | AL5: 475 | AM5: 281 | AN5: 194 | AO5: 30 | AP5: 16 | AQ5: 14 | AR5: 29 | AS5: 9 | AT5: 20 | AU5: 180 | AV5: 91 | AW5: 89 | AX5: 3 | AZ5: 3 | BA5: 72 | BB5: 37 | BC5: 35 | BD5: 63 | BE5: 40 | BF5: 23 | BG5: 209 | BH5: 94 | BI5: 115
A6: Chiapas | B6: 8861 | C6: 4801 | D6: 4060 | E6: 336 | F6: 213 | G6: 123 | H6: 5249 | I6: 2352 | J6: 2897 | K6: 2539 | L6: 1217 | M6: 1322 | N6: 1464 | O6: 819 | P6: 645 | Q6: 1571 | R6: 1215 | S6: 356 | T6: 409 | U6: 235 | V6: 174 | W6: 70 | X6: 33 | Y6: 37 | Z6: 95 | AA6: 63 | AB6: 32 | AC6: 391 | AD6: 210 | AE6: 181 | AF6: 0 | AG6: 0 | AH6: 0 | AI6: 1 | AJ6: 0 | AK6: 1 | AL6: 1676 | AM6: 965 | AN6: 711 | AO6: 129 | AP6: 58 | AQ6: 71 | AR6: 148 | AS6: 47 | AT6: 101 | AU6: 667 | AV6: 328 | AW6: 339 | AX6: 22 | AZ6: 22 | BA6: 164 | BB6: 82 | BC6: 82 | BD6: 153 | BE6: 80 | BF6: 73 | BG6: 400 | BH6: 213 | BI6: 187
A7: Chihuahua | B7: 7923 | C7: 4487 | D7: 3436 | E7: 1656 | F7: 953 | G7: 703 | H7: 3507 | I7: 1807 | J7: 1700 | K7: 655 | L7: 333 | M7: 322 | N7: 412 | O7: 229 | P7: 183 | Q7: 1290 | R7: 1087 | S7: 203 | T7: 153 | U7: 91 | V7: 62 | W7: 21 | X7: 11 | Y7: 10 | Z7: 30 | AA7: 19 | AB7: 11 | AC7: 110 | AD7: 73 | AE7: 37 | AF7: 0 | AG7: 0 | AH7: 0 | AI7: 0 | AJ7: 0 | AK7: 0 | AL7: 519 | AM7: 332 | AN7: 187 | AO7: 47 | AP7: 23 | AQ7: 24 | AR7: 31 | AS7: 15 | AT7: 16 | AU7: 191 | AV7: 100 | AW7: 91 | AX7: 4 | AZ7: 4 | BA7: 46 | BB7: 24 | BC7: 22 | BD7: 35 | BE7: 15 | BF7: 20 | BG7: 213 | BH7: 98 | BI7: 115
A8: Ciudad de México | B8: 22757 | C8: 10903 | D8: 11854 | E8: 5428 | F8: 3273 | G8: 2155 | H8: 11711 | I8: 6040 | J8: 5671 | K8: 3506 | L8: 1668 | M8: 1838 | N8: 2058 | O8: 1193 | P8: 865 | Q8: 1895 | R8: 1561 | S8: 334 | T8: 914 | U8: 557 | V8: 357 | W8: 440 | X8: 220 | Y8: 220 | Z8: 148 | AA8: 117 | AB8: 31 | AC8: 507 | AD8: 286 | AE8: 221 | AF8: 0 | AG8: 0 | AH8: 0 | AI8: 1 | AJ8: 1 | AK8: 0 | AL8: 3213 | AM8: 2056 | AN8: 1157 | AO8: 76 | AP8: 36 | AQ8: 40 | AR8: 140 | AS8: 60 | AT8: 80 | AU8: 1217 | AV8: 648 | AW8: 569 | AX8: 42 | AZ8: 42 | BA8: 275 | BB8: 158 | BC8: 117 | BD8: 310 | BE8: 161 | BF8: 149 | BG8: 1569 | BH8: 816 | BI8: 753
A9: Coahuila | B9: 6275 | C9: 3500 | D9: 2775 | E9: 1441 | F9: 841 | G9: 600 | H9: 3549 | I9: 1779 | J9: 1770 | K9: 3305 | L9: 1618 | M9: 1687 | N9: 2172 | O9: 1255 | P9: 917 | Q9: 4400 | R9: 3589 | S9: 811 | T9: 805 | U9: 481 | V9: 324 | W9: 148 | X9: 84 | Y9: 64 | Z9: 272 | AA9: 198 | AB9: 74 | AC9: 523 | AD9: 296 | AE9: 227 | AF9: 0 | AG9: 0 | AH9: 0 | AI9: 1 | AJ9: 1 | AK9: 0 | AL9: 2319 | AM9: 1448 | AN9: 871 | AO9: 118 | AP9: 52 | AQ9: 66 | AR9: 144 | AS9: 60 | AT9: 84 | AU9: 917 | AV9: 470 | AW9: 447 | AX9: 36 | AZ9: 36 | BA9: 357 | BB9: 203 | BC9: 154 | BD9: 202 | BE9: 122 | BF9: 80 | BG9: 313 | BH9: 145 | BI9: 168
A10: Colima | B10: 1275 | C10: 730 | D10: 545 | E10: 256 | F10: 167 | G10: 89 | H10: 754 | I10: 380 | J10: 374 | K10: 12367 | L10: 5627 | M10: 6740 | N10: 6750 | O10: 3612 | P10: 3138 | Q10: 4105 | R10: 3210 | S10: 895 | T10: 2054 | U10: 1188 | V10: 866 | W10: 535 | X10: 245 | Y10: 290 | Z10: 400 | AA10: 246 | AB10: 154 | AC10: 1398 | AD10: 725 | AE10: 673 | AF10: 4 | AG10: 3 | AH10: 1 | AI10: 7 | AJ10: 4 | AK10: 3 | AL10: 8424 | AM10: 4892 | AN10: 3532 | AO10: 907 | AP10: 381 | AQ10: 526 | AR10: 866 | AS10: 257 | AT10: 609 | AU10: 3142 | AV10: 1536 | AW10: 1606 | AX10: 60 | AZ10: 60 | BA10: 805 | BB10: 438 | BC10: 367 | BD10: 884 | BE10: 463 | BF10: 421 | BG10: 302 | BH10: 188 | BI10: 114
A11: Durango | B11: 3836 | C11: 2092 | D11: 1744 | E11: 608 | F11: 361 | G11: 247 | H11: 1399 | I11: 698 | J11: 701 | K11: 1287 | L11: 645 | M11: 642 | N11: 1026 | O11: 615 | P11: 411 | Q11: 975 | R11: 764 | S11: 211 | T11: 198 | U11: 106 | V11: 92 | W11: 44 | X11: 22 | Y11: 22 | Z11: 45 | AA11: 36 | AB11: 9 | AC11: 146 | AD11: 83 | AE11: 63 | AF11: 0 | AG11: 0 | AH11: 0 | AI11: 3 | AJ11: 2 | AK11: 1 | AL11: 849 | AM11: 485 | AN11: 364 | AO11: 43 | AP11: 20 | AQ11: 23 | AR11: 64 | AS11: 19 | AT11: 45 | AU11: 311 | AV11: 157 | AW11: 154 | AX11: 42 | AZ11: 42 | BA11: 20 | BB11: 13 | BC11: 7 | BD11: 32 | BE11: 21 | BF11: 11 | BG11: 175 | BH11: 92 | BI11: 83
A12: Guanajuato | B12: 12383 | C12: 6470 | D12: 5913 | E12: 1777 | F12: 1067 | G12: 710 | H12: 7275 | I12: 3585 | J12: 3690 | K12: 4092 | L12: 1927 | M12: 2165 | N12: 2719 | O12: 1489 | P12: 1230 | Q12: 6903 | R12: 5717 | S12: 1186 | T12: 586 | U12: 334 | V12: 252 | W12: 212 | X12: 110 | Y12: 102 | Z12: 155 | AA12: 123 | AB12: 32 | AC12: 571 | AD12: 320 | AE12: 251 | AF12: 1 | AG12: 0 | AH12: 1 | AI12: 2 | AJ12: 1 | AK12: 1 | AL12: 3452 | AM12: 2215 | AN12: 1237 | AO12: 155 | AP12: 69 | AQ12: 86 | AR12: 215 | AS12: 66 | AT12: 149 | AU12: 1362 | AV12: 692 | AW12: 670 | AX12: 35 | AZ12: 35 | BA12: 441 | BB12: 235 | BC12: 206 | BD12: 413 | BE12: 231 | BF12: 182 | BG12: 269 | BH12: 127 | BI12: 142
A13: Guerrero | B13: 5438 | C13: 2912 | D13: 2526 | E13: 740 | F13: 470 | G13: 270 | H13: 3852 | I13: 1932 | J13: 1920 | K13: 1994 | L13: 953 | M13: 1041 | N13: 1094 | O13: 648 | P13: 446 | Q13: 2508 | R13: 2081 | S13: 427 | T13: 407 | U13: 235 | V13: 172 | W13: 220 | X13: 125 | Y13: 95 | Z13: 102 | AA13: 81 | AB13: 21 | AC13: 259 | AD13: 142 | AE13: 117 | AF13: 0 | AG13: 0 | AH13: 0 | AI13: 2 | AJ13: 0 | AK13: 2 | AL13: 1603 | AM13: 1023 | AN13: 580 | AO13: 50 | AP13: 26 | AQ13: 24 | AR13: 110 | AS13: 39 | AT13: 71 | AU13: 631 | AV13: 358 | AW13: 273 | AX13: 36 | AZ13: 36 | BA13: 37 | BB13: 23 | BC13: 14 | BD13: 100 | BE13: 53 | BF13: 47 | BG13: 509 | BH13: 264 | BI13: 245
A14: Hidalgo | B14: 5693 | C14: 2950 | D14: 2743 | E14: 591 | F14: 362 | G14: 229 | H14: 2901 | I14: 1436 | J14: 1465 | K14: 2157 | L14: 1051 | M14: 1106 | N14: 1194 | O14: 662 | P14: 532 | Q14: 1597 | R14: 1251 | S14: 346 | T14: 302 | U14: 171 | V14: 131 | W14: 119 | X14: 59 | Y14: 60 | Z14: 57 | AA14: 43 | AB14: 14 | AC14: 286 | AD14: 157 | AE14: 129 | AF14: 2 | AG14: 0 | AH14: 2 | AI14: 0 | AJ14: 0 | AK14: 0 | AL14: 1734 | AM14: 1058 | AN14: 676 | AO14: 35 | AP14: 10 | AQ14: 25 | AR14: 113 | AS14: 43 | AT14: 70 | AU14: 549 | AV14: 284 | AW14: 265 | AX14: 16 | AZ14: 16 | BA14: 168 | BB14: 96 | BC14: 72 | BD14: 127 | BE14: 74 | BF14: 53 | BG14: 242 | BH14: 120 | BI14: 122
A15: Jalisco | B15: 15297 | C15: 8252 | D15: 7045 | E15: 2955 | F15: 1821 | G15: 1134 | H15: 7273 | I15: 3758 | J15: 3515 | K15: 6933 | L15: 3471 | M15: 3462 | N15: 6112 | O15: 3310 | P15: 2802 | Q15: 5728 | R15: 4652 | S15: 1076 | T15: 1462 | U15: 867 | V15: 595 | W15: 252 | X15: 126 | Y15: 126 | Z15: 504 | AA15: 357 | AB15: 147 | AC15: 1120 | AD15: 608 | AE15: 512 | AF15: 2 | AG15: 1 | AH15: 1 | AI15: 3 | AJ15: 1 | AK15: 2 | AL15: 4893 | AM15: 3070 | AN15: 1823 | AO15: 425 | AP15: 177 | AQ15: 248 | AR15: 376 | AS15: 129 | AT15: 247 | AU15: 2373 | AV15: 1279 | AW15: 1094 | AX15: 57 | AZ15: 57 | BA15: 632 | BB15: 369 | BC15: 263 | BD15: 593 | BE15: 286 | BF15: 307 | BG15: 642 | BH15: 293 | BI15: 349
A16: México | B16: 24797 | C16: 12562 | D16: 12235 | E16: 3336 | F16: 2078 | G16: 1258 | H16: 18992 | I16: 9723 | J16: 9269 | K16: 9988 | L16: 4534 | M16: 5454 | N16: 6726 | O16: 3573 | P16: 3153 | Q16: 8447 | R16: 6809 | S16: 1638 | T16: 1531 | U16: 882 | V16: 649 | W16: 405 | X16: 191 | Y16: 214 | Z16: 500 | AA16: 388 | AB16: 112 | AC16: 1350 | AD16: 735 | AE16: 615 | AF16: 4 | AG16: 2 | AH16: 2 | AI16: 5 | AJ16: 2 | AK16: 3 | AL16: 9240 | AM16: 6051 | AN16: 3189 | AO16: 597 | AP16: 279 | AQ16: 318 | AR16: 671 | AS16: 209 | AT16: 462 | AU16: 2972 | AV16: 1496 | AW16: 1476 | AX16: 87 | AZ16: 87 | BA16: 1155 | BB16: 657 | BC16: 498 | BD16: 799 | BE16: 430 | BF16: 369 | BG16: 152 | BH16: 57 | BI16: 95
A17: Michoacán | B17: 9087 | C17: 4810 | D17: 4277 | E17: 957 | F17: 600 | G17: 356 | H17: 5376 | I17: 2755 | J17: 2621 | K17: 3505 | L17: 1768 | M17: 1737 | N17: 2323 | O17: 1305 | P17: 1018 | Q17: 4611 | R17: 3877 | S17: 734 | T17: 459 | U17: 254 | V17: 205 | W17: 201 | X17: 101 | Y17: 100 | Z17: 150 | AA17: 106 | AB17: 44 | AC17: 473 | AD17: 256 | AE17: 217 | AF17: 1 | AG17: 1 | AH17: 0 | AI17: 1 | AJ17: 1 | AK17: 0 | AL17: 2710 | AM17: 1779 | AN17: 931 | AO17: 119 | AP17: 55 | AQ17: 64 | AR17: 214 | AS17: 77 | AT17: 137 | AU17: 921 | AV17: 497 | AW17: 424 | AX17: 38 | AZ17: 38 | BA17: 153 | BB17: 86 | BC17: 67 | BD17: 205 | BE17: 92 | BF17: 113 | BG17: 462 | BH17: 239 | BI17: 223
A18: Morelos | B18: 4475 | C18: 2370 | D18: 2105 | E18: 770 | F18: 496 | G18: 274 | H18: 2632 | I18: 1245 | J18: 1387 | K18: 1620 | L18: 754 | M18: 866 | N18: 1039 | O18: 567 | P18: 472 | Q18: 2028 | R18: 1715 | S18: 313 | T18: 313 | U18: 178 | V18: 135 | W18: 137 | X18: 74 | Y18: 63 | Z18: 90 | AA18: 58 | AB18: 32 | AC18: 224 | AD18: 130 | AE18: 94 | AF18: 0 | AG18: 0 | AH18: 0 | AI18: 0 | AJ18: 0 | AK18: 0 | AL18: 1521 | AM18: 978 | AN18: 543 | AO18: 93 | AP18: 45 | AQ18: 48 | AR18: 83 | AS18: 28 | AT18: 55 | AU18: 626 | AV18: 326 | AW18: 300 | AX18: 6 | AZ18: 6 | BA18: 100 | BB18: 59 | BC18: 41 | BD18: 107 | BE18: 64 | BF18: 43 | BG18: 55 | BH18: 24 | BI18: 31
A19: Nayarit | B19: 1929 | C19: 1088 | D19: 841 | E19: 361 | F19: 227 | G19: 134 | H19: 1044 | I19: 538 | J19: 506 | K19: 975 | L19: 521 | M19: 454 | N19: 725 | O19: 444 | P19: 281 | Q19: 929 | R19: 758 | S19: 171 | T19: 256 | U19: 162 | V19: 94 | W19: 33 | X19: 20 | Y19: 13 | Z19: 39 | AA19: 27 | AB19: 12 | AC19: 174 | AD19: 96 | AE19: 78 | AF19: 0 | AG19: 0 | AH19: 0 | AI19: 2 | AJ19: 1 | AK19: 1 | AL19: 590 | AM19: 352 | AN19: 238 | AO19: 53 | AP19: 29 | AQ19: 24 | AR19: 73 | AS19: 28 | AT19: 45 | AU19: 257 | AV19: 135 | AW19: 122 | AX19: 17 | AZ19: 17 | BA19: 38 | BB19: 19 | BC19: 19 | BD19: 42 | BE19: 22 | BF19: 20 | BG19: 219 | BH19: 104 | BI19: 115
A20: Nuevo León | B20: 12241 | C20: 6719 | D20: 5522 | E20: 2002 | F20: 1184 | G20: 818 | H20: 4675 | I20: 2419 | J20: 2256 | K20: 5291 | L20: 2652 | M20: 2639 | N20: 3485 | O20: 1977 | P20: 1508 | Q20: 3300 | R20: 2679 | S20: 621 | T20: 966 | U20: 623 | V20: 343 | W20: 128 | X20: 66 | Y20: 62 | Z20: 231 | AA20: 107 | AB20: 124 | AC20: 820 | AD20: 421 | AE20: 399 | AF20: 0 | AG20: 0 | AH20: 0 | AI20: 6 | AJ20: 4 | AK20: 2 | AL20: 3259 | AM20: 1917 | AN20: 1342 | AO20: 377 | AP20: 156 | AQ20: 221 | AR20: 266 | AS20: 89 | AT20: 177 | AU20: 1334 | AV20: 652 | AW20: 682 | AX20: 45 | AZ20: 45 | BA20: 351 | BB20: 198 | BC20: 153 | BD20: 363 | BE20: 198 | BF20: 165 | BG20: 169 | BH20: 64 | BI20: 105
A21: Oaxaca | B21: 8672 | C21: 4251 | D21: 4421 | E21: 911 | F21: 588 | G21: 323 | H21: 5577 | I21: 2630 | J21: 2947 | K21: 2990 | L21: 1345 | M21: 1645 | N21: 1836 | O21: 1003 | P21: 833 | Q21: 2194 | R21: 1781 | S21: 413 | T21: 537 | U21: 292 | V21: 245 | W21: 374 | X21: 173 | Y21: 201 | Z21: 336 | AA21: 273 | AB21: 63 | AC21: 455 | AD21: 248 | AE21: 207 | AF21: 1 | AG21: 1 | AH21: 0 | AI21: 1 | AJ21: 0 | AK21: 1 | AL21: 2717 | AM21: 1784 | AN21: 933 | AO21: 69 | AP21: 31 | AQ21: 38 | AR21: 233 | AS21: 90 | AT21: 143 | AU21: 843 | AV21: 444 | AW21: 399 | AX21: 41 | AZ21: 41 | BA21: 202 | BB21: 112 | BC21: 90 | BD21: 224 | BE21: 120 | BF21: 104 | BG21: 1095 | BH21: 514 | BI21: 581
A22: Puebla | B22: 13854 | C22: 6923 | D22: 6931 | E22: 1179 | F22: 702 | G22: 476 | H22: 8657 | I22: 4188 | J22: 4469 | K22: 4315 | L22: 1970 | M22: 2345 | N22: 2766 | O22: 1423 | P22: 1343 | Q22: 3458 | R22: 2793 | S22: 665 | T22: 668 | U22: 382 | V22: 286 | W22: 293 | X22: 151 | Y22: 142 | Z22: 191 | AA22: 150 | AB22: 41 | AC22: 639 | AD22: 368 | AE22: 271 | AF22: 1 | AG22: 0 | AH22: 1 | AI22: 0 | AJ22: 0 | AK22: 0 | AL22: 4729 | AM22: 3088 | AN22: 1641 | AO22: 65 | AP22: 22 | AQ22: 43 | AR22: 361 | AS22: 124 | AT22: 237 | AU22: 1372 | AV22: 713 | AW22: 659 | AX22: 39 | AZ22: 39 | BA22: 583 | BB22: 315 | BC22: 268 | BD22: 620 | BE22: 340 | BF22: 280 | BG22: 545 | BH22: 272 | BI22: 273
A23: Querétaro | B23: 3644 | C23: 1934 | D23: 1710 | E23: 864 | F23: 555 | G23: 309 | H23: 1760 | I23: 866 | J23: 894 | K23: 1687 | L23: 825 | M23: 862 | N23: 1150 | O23: 646 | P23: 504 | Q23: 1206 | R23: 963 | S23: 243 | T23: 317 | U23: 188 | V23: 129 | W23: 55 | X23: 28 | Y23: 27 | Z23: 62 | AA23: 44 | AB23: 18 | AC23: 271 | AD23: 139 | AE23: 132 | AF23: 0 | AG23: 0 | AH23: 0 | AI23: 1 | AJ23: 1 | AK23: 0 | AL23: 1511 | AM23: 971 | AN23: 540 | AO23: 90 | AP23: 36 | AQ23: 54 | AR23: 165 | AS23: 74 | AT23: 91 | AU23: 569 | AV23: 289 | AW23: 280 | AX23: 13 | AZ23: 13 | BA23: 188 | BB23: 103 | BC23: 85 | BD23: 154 | BE23: 86 | BF23: 68 | BG23: 208 | BH23: 96 | BI23: 112
A24: Quintana Roo | B24: 1919 | C24: 1135 | D24: 784 | E24: 312 | F24: 203 | G24: 109 | H24: 1264 | I24: 664 | J24: 600 | K24: 971 | L24: 478 | M24: 493 | N24: 515 | O24: 316 | P24: 199 | Q24: 1476 | R24: 1247 | S24: 229 | T24: 349 | U24: 255 | V24: 94 | W24: 66 | X24: 33 | Y24: 33 | Z24: 84 | AA24: 42 | AB24: 42 | AC24: 154 | AD24: 87 | AE24: 67 | AF24: 1 | AG24: 0 | AH24: 1 | AI24: 1 | AJ24: 0 | AK24: 1 | AL24: 941 | AM24: 630 | AN24: 311 | AO24: 53 | AP24: 25 | AQ24: 28 | AR24: 55 | AS24: 23 | AT24: 32 | AU24: 267 | AV24: 133 | AW24: 134 | AX24: 10 | AZ24: 10 | BA24: 111 | BB24: 58 | BC24: 53 | BD24: 81 | BE24: 48 | BF24: 33 | BG24: 179 | BH24: 99 | BI24: 80
A25: San Luis Potosí | B25: 6208 | C25: 3279 | D25: 2929 | E25: 900 | F25: 565 | G25: 335 | H25: 3171 | I25: 1580 | J25: 1591 | K25: 2173 | L25: 1107 | M25: 1066 | N25: 1541 | O25: 860 | P25: 681 | Q25: 2104 | R25: 1771 | S25: 333 | T25: 424 | U25: 239 | V25: 185 | W25: 121 | X25: 48 | Y25: 73 | Z25: 124 | AA25: 89 | AB25: 35 | AC25: 374 | AD25: 217 | AE25: 157 | AF25: 0 | AG25: 0 | AH25: 0 | AI25: 2 | AJ25: 2 | AK25: 0 | AL25: 1714 | AM25: 1025 | AN25: 689 | AO25: 74 | AP25: 32 | AQ25: 42 | AR25: 99 | AS25: 34 | AT25: 65 | AU25: 673 | AV25: 340 | AW25: 333 | AX25: 18 | AZ25: 18 | BA25: 173 | BB25: 110 | BC25: 63 | BD25: 185 | BE25: 104 | BF25: 81 | BG25: 254 | BH25: 136 | BI25: 118
A26: Sinaloa | B26: 5316 | C26: 2946 | D26: 2370 | E26: 844 | F26: 500 | G26: 344 | H26: 2004 | I26: 1067 | J26: 937 | K26: 2478 | L26: 1354 | M26: 1124 | N26: 1394 | O26: 796 | P26: 598 | Q26: 2134 | R26: 1830 | S26: 304 | T26: 459 | U26: 276 | V26: 183 | W26: 82 | X26: 38 | Y26: 44 | Z26: 70 | AA26: 42 | AB26: 28 | AC26: 333 | AD26: 163 | AE26: 170 | AF26: 0 | AG26: 0 | AH26: 0 | AI26: 0 | AJ26: 0 | AK26: 0 | AL26: 985 | AM26: 583 | AN26: 402 | AO26: 82 | AP26: 37 | AQ26: 45 | AR26: 139 | AS26: 51 | AT26: 88 | AU26: 534 | AV26: 254 | AW26: 280 | AX26: 13 | AZ26: 13 | BA26: 58 | BB26: 41 | BC26: 17 | BD26: 70 | BE26: 42 | BF26: 28 | BG26: 233 | BH26: 132 | BI26: 101
A27: Sonora | B27: 6326 | C27: 3669 | D27: 2657 | E27: 1295 | F27: 763 | G27: 532 | H27: 2022 | I27: 1019 | J27: 1003 | K27: 2772 | L27: 1436 | M27: 1336 | N27: 1922 | O27: 1160 | P27: 762 | Q27: 3290 | R27: 2788 | S27: 502 | T27: 920 | U27: 577 | V27: 343 | W27: 118 | X27: 69 | Y27: 49 | Z27: 167 | AA27: 106 | AB27: 61 | AC27: 465 | AD27: 272 | AE27: 193 | AF27: 1 | AG27: 0 | AH27: 1 | AI27: 0 | AJ27: 0 | AK27: 0 | AL27: 1391 | AM27: 843 | AN27: 548 | AO27: 134 | AP27: 60 | AQ27: 74 | AR27: 129 | AS27: 51 | AT27: 78 | AU27: 701 | AV27: 335 | AW27: 366 | AX27: 19 | AZ27: 19 | BA27: 172 | BB27: 93 | BC27: 79 | BD27: 122 | BE27: 67 | BF27: 55 | BG27: 271 | BH27: 143 | BI27: 128
A28: Tabasco | B28: 4646 | C28: 2578 | D28: 2068 | E28: 395 | F28: 214 | G28: 181 | H28: 3124 | I28: 1523 | J28: 1601 | K28: 1699 | L28: 835 | M28: 864 | N28: 849 | O28: 463 | P28: 386 | Q28: 1399 | R28: 1162 | S28: 237 | T28: 396 | U28: 275 | V28: 121 | W28: 84 | X28: 50 | Y28: 34 | Z28: 43 | AA28: 27 | AB28: 16 | AC28: 230 | AD28: 136 | AE28: 94 | AF28: 1 | AG28: 1 | AH28: 0 | AI28: 0 | AJ28: 0 | AK28: 0 | AL28: 1024 | AM28: 631 | AN28: 393 | AO28: 40 | AP28: 18 | AQ28: 22 | AR28: 58 | AS28: 18 | AT28: 40 | AU28: 500 | AV28: 256 | AW28: 244 | AX28: 26 | AZ28: 26 | BA28: 217 | BB28: 124 | BC28: 93 | BD28: 190 | BE28: 96 | BF28: 94 | BG28: 485 | BH28: 252 | BI28: 233
A29: Tamaulipas | B29: 6878 | C29: 3878 | D29: 3000 | E29: 1169 | F29: 705 | G29: 464 | H29: 3536 | I29: 1825 | J29: 1711 | K29: 2756 | L29: 1400 | M29: 1356 | N29: 1544 | O29: 898 | P29: 646 | Q29: 1917 | R29: 1524 | S29: 393 | T29: 514 | U29: 300 | V29: 214 | W29: 130 | X29: 61 | Y29: 69 | Z29: 66 | AA29: 31 | AB29: 35 | AC29: 366 | AD29: 188 | AE29: 178 | AF29: 1 | AG29: 0 | AH29: 1 | AI29: 2 | AJ29: 2 | AK29: 0 | AL29: 1709 | AM29: 1052 | AN29: 657 | AO29: 130 | AP29: 59 | AQ29: 71 | AR29: 100 | AS29: 33 | AT29: 67 | AU29: 858 | AV29: 402 | AW29: 456 | AX29: 21 | AZ29: 21 | BA29: 123 | BB29: 72 | BC29: 51 | BD29: 119 | BE29: 66 | BF29: 53 | BG29: 433 | BH29: 213 | BI29: 220
A30: Tlaxcala | B30: 2359 | C30: 1174 | D30: 1185 | E30: 200 | F30: 141 | G30: 59 | H30: 1503 | I30: 725 | J30: 778 | K30: 778 | L30: 370 | M30: 408 | N30: 483 | O30: 270 | P30: 213 | Q30: 648 | R30: 502 | S30: 146 | T30: 108 | U30: 59 | V30: 49 | W30: 46 | X30: 23 | Y30: 23 | Z30: 35 | AA30: 26 | AB30: 9 | AC30: 125 | AD30: 79 | AE30: 46 | AF30: 0 | AG30: 0 | AH30: 0 | AI30: 0 | AJ30: 0 | AK30: 0 | AL30: 772 | AM30: 479 | AN30: 293 | AO30: 14 | AP30: 7 | AQ30: 7 | AR30: 40 | AS30: 9 | AT30: 31 | AU30: 281 | AV30: 156 | AW30: 125 | AX30: 15 | AZ30: 15 | BA30: 91 | BB30: 49 | BC30: 42 | BD30: 115 | BE30: 65 | BF30: 50 | BG30: 128 | BH30: 57 | BI30: 71
A31: Veracruz | B31: 19350 | C31: 9951 | D31: 9399 | E31: 1623 | F31: 961 | G31: 662 | H31: 11889 | I31: 5671 | J31: 6218 | K31: 6840 | L31: 3237 | M31: 3603 | N31: 4001 | O31: 2153 | P31: 1848 | Q31: 3100 | R31: 2541 | S31: 559 | T31: 1459 | U31: 897 | V31: 562 | W31: 625 | X31: 293 | Y31: 332 | Z31: 489 | AA31: 318 | AB31: 171 | AC31: 938 | AD31: 524 | AE31: 414 | AF31: 2 | AG31: 2 | AH31: 0 | AI31: 5 | AJ31: 2 | AK31: 3 | AL31: 5714 | AM31: 3690 | AN31: 2024 | AO31: 292 | AP31: 110 | AQ31: 182 | AR31: 304 | AS31: 108 | AT31: 196 | AU31: 2110 | AV31: 1119 | AW31: 991 | AX31: 55 | AZ31: 55 | BA31: 629 | BB31: 359 | BC31: 270 | BD31: 513 | BE31: 262 | BF31: 251 | BG31: 743 | BH31: 355 | BI31: 388
A32: Yucatán | B32: 5040 | C32: 2708 | D32: 2332 | E32: 756 | F32: 445 | G32: 311 | H32: 1614 | I32: 717 | J32: 897 | K32: 1826 | L32: 846 | M32: 980 | N32: 1279 | O32: 689 | P32: 590 | Q32: 1084 | R32: 872 | S32: 212 | T32: 453 | U32: 279 | V32: 174 | W32: 80 | X32: 41 | Y32: 39 | Z32: 65 | AA32: 43 | AB32: 22 | AC32: 216 | AD32: 114 | AE32: 102 | AF32: 0 | AG32: 0 | AH32: 0 | AI32: 0 | AJ32: 0 | AK32: 0 | AL32: 1640 | AM32: 995 | AN32: 645 | AO32: 115 | AP32: 49 | AQ32: 66 | AR32: 81 | AS32: 24 | AT32: 57 | AU32: 596 | AV32: 300 | AW32: 296 | AX32: 11 | AZ32: 11 | BA32: 142 | BB32: 84 | BC32: 58 | BD32: 157 | BE32: 77 | BF32: 80 | BG32: 523 | BH32: 240 | BI32: 283
A33: Zacatecas | B33: 3131 | C33: 1624 | D33: 1507 | E33: 562 | F33: 324 | G33: 238 | H33: 1680 | I33: 815 | J33: 865 | K33: 1186 | L33: 580 | M33: 606 | N33: 1020 | O33: 588 | P33: 432 | Q33: 2341 | R33: 1954 | S33: 387 | T33: 169 | U33: 85 | V33: 84 | W33: 73 | X33: 38 | Y33: 35 | Z33: 117 | AA33: 91 | AB33: 26 | AC33: 198 | AD33: 111 | AE33: 87 | AF33: 0 | AG33: 0 | AH33: 0 | AI33: 0 | AJ33: 0 | AK33: 0 | AL33: 918 | AM33: 548 | AN33: 370 | AO33: 64 | AP33: 25 | AQ33: 39 | AR33: 107 | AS33: 31 | AT33: 76 | AU33: 360 | AV33: 187 | AW33: 173 | AX33: 8 | AZ33: 8 | BA33: 76 | BB33: 45 | BC33: 31 | BD33: 72 | BE33: 37 | BF33: 35 | BG33: 166 | BH33: 94 | BI33: 72

Sheet Comp.Anual-E
A1: Mortalidad Estatal
A2: SELECCIONE UNA ENTIDAD
A3: Guanajuato | B3: 2020 | C3: 2021 | D3: 2022
A4: Enfermedades del sistema circulatorio | B4: =VLOOKUP($A$3,Tabla1[],MATCH(A4,Tabla1[#Headers],0),FALSE) -> 12721 | C4: =VLOOKUP($A$3,Tabla2[],MATCH(A4,Tabla2[#Headers],0),FALSE) -> 14343 | D4: =VLOOKUP($A$3,Tabla3[],MATCH(A4,Tabla3[#Headers],0),FALSE) -> 12383
A5: Asignación provisoria de nuevas afecciones de etiología incierta o de uso emergente, sin especificación | B5: =VLOOKUP($A$3,Tabla1[],MATCH(A5,Tabla1[#Headers],0),FALSE) -> 7256 | C5: =VLOOKUP($A$3,Tabla2[],MATCH(A5,Tabla2[#Headers],0),FALSE) -> 10111 | D5: =VLOOKUP($A$3,Tabla3[],MATCH(A5,Tabla3[#Headers],0),FALSE) -> 1777
A6: Enfermedades endocrinas, nutricionales y metabólicas | B6: =VLOOKUP($A$3,Tabla1[],MATCH(A6,Tabla1[#Headers],0),FALSE) -> 8431 | C6: =VLOOKUP($A$3,Tabla2[],MATCH(A6,Tabla2[#Headers],0),FALSE) -> 8745 | D6: =VLOOKUP($A$3,Tabla3[],MATCH(A6,Tabla3[#Headers],0),FALSE) -> 7275
A7: Tumores (neoplasias) | B7: =VLOOKUP($A$3,Tabla1[],MATCH(A7,Tabla1[#Headers],0),FALSE) -> 4101 | C7: =VLOOKUP($A$3,Tabla2[],MATCH(A7,Tabla2[#Headers],0),FALSE) -> 4130 | D7: =VLOOKUP($A$3,Tabla3[],MATCH(A7,Tabla3[#Headers],0),FALSE) -> 4092
A8: Enfermedades del sistema respiratorio | B8: =VLOOKUP($A$3,Tabla1[],MATCH(A8,Tabla1[#Headers],0),FALSE) -> 4390 | C8: =VLOOKUP($A$3,Tabla2[],MATCH(A8,Tabla2[#Headers],0),FALSE) -> 4376 | D8: =VLOOKUP($A$3,Tabla3[],MATCH(A8,Tabla3[#Headers],0),FALSE) -> 2719
A9: Causas externas de morbilidad y de mortalidad | B9: =VLOOKUP($A$3,Tabla1[],MATCH(A9,Tabla1[#Headers],0),FALSE) -> 7750 | C9: =VLOOKUP($A$3,Tabla2[],MATCH(A9,Tabla2[#Headers],0),FALSE) -> 6798 | D9: =VLOOKUP($A$3,Tabla3[],MATCH(A9,Tabla3[#Headers],0),FALSE) -> 6903
A10: Ciertas enfermedades infecciosas y parasitarias | B10: =VLOOKUP($A$3,Tabla1[],MATCH(A10,Tabla1[#Headers],0),FALSE) -> 524 | C10: =VLOOKUP($A$3,Tabla2[],MATCH(A10,Tabla2[#Headers],0),FALSE) -> 709 | D10: =VLOOKUP($A$3,Tabla3[],MATCH(A10,Tabla3[#Headers],0),FALSE) -> 586
A11: Enfermedades de la sangre y de los órganos hematopoyéticos, y ciertos trastornos que afectan el mecanismo de la inmunidad | B11: =VLOOKUP($A$3,Tabla1[],MATCH(A11,Tabla1[#Headers],0),FALSE) -> 193 | C11: =VLOOKUP($A$3,Tabla2[],MATCH(A11,Tabla2[#Headers],0),FALSE) -> 195 | D11: =VLOOKUP($A$3,Tabla3[],MATCH(A11,Tabla3[#Headers],0),FALSE) -> 212
A12: Trastornos mentales y del comportamiento | B12: =VLOOKUP($A$3,Tabla1[],MATCH(A12,Tabla1[#Headers],0),FALSE) -> 200 | C12: =VLOOKUP($A$3,Tabla2[],MATCH(A12,Tabla2[#Headers],0),FALSE) -> 177 | D12: =VLOOKUP($A$3,Tabla3[],MATCH(A12,Tabla3[#Headers],0),FALSE) -> 155
A13: Enfermedades del sistema nervioso | B13: =VLOOKUP($A$3,Tabla1[],MATCH(A13,Tabla1[#Headers],0),FALSE) -> 558 | C13: =VLOOKUP($A$3,Tabla2[],MATCH(A13,Tabla2[#Headers],0),FALSE) -> 583 | D13: =VLOOKUP($A$3,Tabla3[],MATCH(A13,Tabla3[#Headers],0),FALSE) -> 571
A14: Enfermedades del ojo y sus anexos | B14: =VLOOKUP($A$3,Tabla1[],MATCH(A14,Tabla1[#Headers],0),FALSE) -> 1 | C14: =VLOOKUP($A$3,Tabla2[],MATCH(A14,Tabla2[#Headers],0),FALSE) -> 0 | D14: =VLOOKUP($A$3,Tabla3[],MATCH(A14,Tabla3[#Headers],0),FALSE) -> 1
A15: Enfermedades del oído y de la apófisis mastoides | B15: =VLOOKUP($A$3,Tabla1[],MATCH(A15,Tabla1[#Headers],0),FALSE) -> 0 | C15: =VLOOKUP($A$3,Tabla2[],MATCH(A15,Tabla2[#Headers],0),FALSE) -> 2 | D15: =VLOOKUP($A$3,Tabla3[],MATCH(A15,Tabla3[#Headers],0),FALSE) -> 2
A16: Enfermedades del sistema digestivo | B16: =VLOOKUP($A$3,Tabla1[],MATCH(A16,Tabla1[#Headers],0),FALSE) -> 3305 | C16: =VLOOKUP($A$3,Tabla2[],MATCH(A16,Tabla2[#Headers],0),FALSE) -> 3609 | D16: =VLOOKUP($A$3,Tabla3[],MATCH(A16,Tabla3[#Headers],0),FALSE) -> 3452
A17: Enfermedades de la piel y del tejido subcutáneo | B17: =VLOOKUP($A$3,Tabla1[],MATCH(A17,Tabla1[#Headers],0),FALSE) -> 153 | C17: =VLOOKUP($A$3,Tabla2[],MATCH(A17,Tabla2[#Headers],0),FALSE) -> 162 | D17: =VLOOKUP($A$3,Tabla3[],MATCH(A17,Tabla3[#Headers],0),FALSE) -> 155
A18: Enfermedades del sistema osteomuscular y del tejido conjuntivo | B18: =VLOOKUP($A$3,Tabla1[],MATCH(A18,Tabla1[#Headers],0),FALSE) -> 220 | C18: =VLOOKUP($A$3,Tabla2[],MATCH(A18,Tabla2[#Headers],0),FALSE) -> 203 | D18: =VLOOKUP($A$3,Tabla3[],MATCH(A18,Tabla3[#Headers],0),FALSE) -> 215
A19: Enfermedades del sistema genitourinario | B19: =VLOOKUP($A$3,Tabla1[],MATCH(A19,Tabla1[#Headers],0),FALSE) -> 1152 | C19: =VLOOKUP($A$3,Tabla2[],MATCH(A19,Tabla2[#Headers],0),FALSE) -> 1220 | D19: =VLOOKUP($A$3,Tabla3[],MATCH(A19,Tabla3[#Headers],0),FALSE) -> 1362
A20: Embarazo, parto y puerperio | B20: =VLOOKUP($A$3,Tabla1[],MATCH(A20,Tabla1[#Headers],0),FALSE) -> 46 | C20: =VLOOKUP($A$3,Tabla2[],MATCH(A20,Tabla2[#Headers],0),FALSE) -> 41 | D20: =VLOOKUP($A$3,Tabla3[],MATCH(A20,Tabla3[#Headers],0),FALSE) -> 35
A21: Ciertas afecciones originadas en el periodo perinatal | B21: =VLOOKUP($A$3,Tabla1[],MATCH(A21,Tabla1[#Headers],0),FALSE) -> 477 | C21: =VLOOKUP($A$3,Tabla2[],MATCH(A21,Tabla2[#Headers],0),FALSE) -> 449 | D21: =VLOOKUP($A$3,Tabla3[],MATCH(A21,Tabla3[#Headers],0),FALSE) -> 441
A22: Malformaciones congénitas, deformidades y anomalías cromosómicas | B22: =VLOOKUP($A$3,Tabla1[],MATCH(A22,Tabla1[#Headers],0),FALSE) -> 434 | C22: =VLOOKUP($A$3,Tabla2[],MATCH(A22,Tabla2[#Headers],0),FALSE) -> 408 | D22: =VLOOKUP($A$3,Tabla3[],MATCH(A22,Tabla3[#Headers],0),FALSE) -> 413
A23: Síntomas, signos y hallazgos anormales clínicos y de laboratorio, no clasificados en otra parte | B23: =VLOOKUP($A$3,Tabla1[],MATCH(A23,Tabla1[#Headers],0),FALSE) -> 219 | C23: =VLOOKUP($A$3,Tabla2[],MATCH(A23,Tabla2[#Headers],0),FALSE) -> 238 | D23: =VLOOKUP($A$3,Tabla3[],MATCH(A23,Tabla3[#Headers],0),FALSE) -> 269
A24: Total | B24: =SUBTOTAL(109,TablaA2[2020]) -> 52131 | C24: =SUBTOTAL(109,TablaA2[2021]) -> 56499 | D24: =SUBTOTAL(109,TablaA2[2022]) -> 43018

Sheet GCMxAño-E
A1: Grandes Causas de Mortalidad
B2: SELECCIONE UNA ENTIDAD
A3: ID | B3: Sinaloa | C3: 2020 | D3: 2021 | E3: 2022
A4: 1 | B4: Enfermedades del sistema circulatorio | C4: =VLOOKUP($B$3,Tabla1[],MATCH(B4,Tabla1[#Headers],0),FALSE) -> 6094 | D4: =VLOOKUP($B$3,Tabla2[],MATCH(B4,Tabla2[#Headers],0),FALSE) -> 6007 | E4: =VLOOKUP($B$3,Tabla3[],MATCH(B4,Tabla3[#Headers],0),FALSE) -> 5316
A5: 2 | B5: Asignación provisoria de nuevas afecciones de etiología incierta o de uso emergente, sin especificación | C5: =VLOOKUP($B$3,Tabla1[],MATCH(B5,Tabla1[#Headers],0),FALSE) -> 5505 | D5: =VLOOKUP($B$3,Tabla2[],MATCH(B5,Tabla2[#Headers],0),FALSE) -> 5583 | E5: =VLOOKUP($B$3,Tabla3[],MATCH(B5,Tabla3[#Headers],0),FALSE) -> 844
A6: 3 | B6: Enfermedades endocrinas, nutricionales y metabólicas | C6: =VLOOKUP($B$3,Tabla1[],MATCH(B6,Tabla1[#Headers],0),FALSE) -> 2403 | D6: =VLOOKUP($B$3,Tabla2[],MATCH(B6,Tabla2[#Headers],0),FALSE) -> 2065 | E6: =VLOOKUP($B$3,Tabla3[],MATCH(B6,Tabla3[#Headers],0),FALSE) -> 2004
A7: 4 | B7: Tumores (neoplasias) | C7: =VLOOKUP($B$3,Tabla1[],MATCH(B7,Tabla1[#Headers],0),FALSE) -> 2439 | D7: =VLOOKUP($B$3,Tabla2[],MATCH(B7,Tabla2[#Headers],0),FALSE) -> 2530 | E7: =VLOOKUP($B$3,Tabla3[],MATCH(B7,Tabla3[#Headers],0),FALSE) -> 2478
A8: 5 | B8: Enfermedades del sistema respiratorio | C8: =VLOOKUP($B$3,Tabla1[],MATCH(B8,Tabla1[#Headers],0),FALSE) -> 2538 | D8: =VLOOKUP($B$3,Tabla2[],MATCH(B8,Tabla2[#Headers],0),FALSE) -> 2251 | E8: =VLOOKUP($B$3,Tabla3[],MATCH(B8,Tabla3[#Headers],0),FALSE) -> 1394
A9: 6 | B9: Causas externas de morbilidad y de mortalidad | C9: =VLOOKUP($B$3,Tabla1[],MATCH(B9,Tabla1[#Headers],0),FALSE) -> 2371 | D9: =VLOOKUP($B$3,Tabla2[],MATCH(B9,Tabla2[#Headers],0),FALSE) -> 2293 | E9: =VLOOKUP($B$3,Tabla3[],MATCH(B9,Tabla3[#Headers],0),FALSE) -> 2134
A10: 7 | B10: Ciertas enfermedades infecciosas y parasitarias | C10: =VLOOKUP($B$3,Tabla1[],MATCH(B10,Tabla1[#Headers],0),FALSE) -> 408 | D10: =VLOOKUP($B$3,Tabla2[],MATCH(B10,Tabla2[#Headers],0),FALSE) -> 673 | E10: =VLOOKUP($B$3,Tabla3[],MATCH(B10,Tabla3[#Headers],0),FALSE) -> 459
A11: 8 | B11: Enfermedades de la sangre y de los órganos hematopoyéticos, y ciertos trastornos que afectan el mecanismo de la inmunidad | C11: =VLOOKUP($B$3,Tabla1[],MATCH(B11,Tabla1[#Headers],0),FALSE) -> 81 | D11: =VLOOKUP($B$3,Tabla2[],MATCH(B11,Tabla2[#Headers],0),FALSE) -> 104 | E11: =VLOOKUP($B$3,Tabla3[],MATCH(B11,Tabla3[#Headers],0),FALSE) -> 82
A12: 9 | B12: Trastornos mentales y del comportamiento | C12: =VLOOKUP($B$3,Tabla1[],MATCH(B12,Tabla1[#Headers],0),FALSE) -> 76 | D12: =VLOOKUP($B$3,Tabla2[],MATCH(B12,Tabla2[#Headers],0),FALSE) -> 81 | E12: =VLOOKUP($B$3,Tabla3[],MATCH(B12,Tabla3[#Headers],0),FALSE) -> 70
A13: 10 | B13: Enfermedades del sistema nervioso | C13: =VLOOKUP($B$3,Tabla1[],MATCH(B13,Tabla1[#Headers],0),FALSE) -> 375 | D13: =VLOOKUP($B$3,Tabla2[],MATCH(B13,Tabla2[#Headers],0),FALSE) -> 344 | E13: =VLOOKUP($B$3,Tabla3[],MATCH(B13,Tabla3[#Headers],0),FALSE) -> 333
A14: 11 | B14: Enfermedades del ojo y sus anexos | C14: =VLOOKUP($B$3,Tabla1[],MATCH(B14,Tabla1[#Headers],0),FALSE) -> 1 | D14: =VLOOKUP($B$3,Tabla2[],MATCH(B14,Tabla2[#Headers],0),FALSE) -> 0 | E14: =VLOOKUP($B$3,Tabla3[],MATCH(B14,Tabla3[#Headers],0),FALSE) -> 0
A15: 12 | B15: Enfermedades del oído y de la apófisis mastoides | C15: =VLOOKUP($B$3,Tabla1[],MATCH(B15,Tabla1[#Headers],0),FALSE) -> 2 | D15: =VLOOKUP($B$3,Tabla2[],MATCH(B15,Tabla2[#Headers],0),FALSE) -> 1 | E15: =VLOOKUP($B$3,Tabla3[],MATCH(B15,Tabla3[#Headers],0),FALSE) -> 0
A16: 13 | B16: Enfermedades del sistema digestivo | C16: =VLOOKUP($B$3,Tabla1[],MATCH(B16,Tabla1[#Headers],0),FALSE) -> 853 | D16: =VLOOKUP($B$3,Tabla2[],MATCH(B16,Tabla2[#Headers],0),FALSE) -> 989 | E16: =VLOOKUP($B$3,Tabla3[],MATCH(B16,Tabla3[#Headers],0),FALSE) -> 985
A17: 14 | B17: Enfermedades de la piel y del tejido subcutáneo | C17: =VLOOKUP($B$3,Tabla1[],MATCH(B17,Tabla1[#Headers],0),FALSE) -> 33 | D17: =VLOOKUP($B$3,Tabla2[],MATCH(B17,Tabla2[#Headers],0),FALSE) -> 38 | E17: =VLOOKUP($B$3,Tabla3[],MATCH(B17,Tabla3[#Headers],0),FALSE) -> 82
A18: 15 | B18: Enfermedades del sistema osteomuscular y del tejido conjuntivo | C18: =VLOOKUP($B$3,Tabla1[],MATCH(B18,Tabla1[#Headers],0),FALSE) -> 152 | D18: =VLOOKUP($B$3,Tabla2[],MATCH(B18,Tabla2[#Headers],0),FALSE) -> 127 | E18: =VLOOKUP($B$3,Tabla3[],MATCH(B18,Tabla3[#Headers],0),FALSE) -> 139
A19: 16 | B19: Enfermedades del sistema genitourinario | C19: =VLOOKUP($B$3,Tabla1[],MATCH(B19,Tabla1[#Headers],0),FALSE) -> 490 | D19: =VLOOKUP($B$3,Tabla2[],MATCH(B19,Tabla2[#Headers],0),FALSE) -> 497 | E19: =VLOOKUP($B$3,Tabla3[],MATCH(B19,Tabla3[#Headers],0),FALSE) -> 534
A20: 17 | B20: Embarazo, parto y puerperio | C20: =VLOOKUP($B$3,Tabla1[],MATCH(B20,Tabla1[#Headers],0),FALSE) -> 34 | D20: =VLOOKUP($B$3,Tabla2[],MATCH(B20,Tabla2[#Headers],0),FALSE) -> 40 | E20: =VLOOKUP($B$3,Tabla3[],MATCH(B20,Tabla3[#Headers],0),FALSE) -> 13
A21: 18 | B21: Ciertas afecciones originadas en el periodo perinatal | C21: =VLOOKUP($B$3,Tabla1[],MATCH(B21,Tabla1[#Headers],0),FALSE) -> 159 | D21: =VLOOKUP($B$3,Tabla2[],MATCH(B21,Tabla2[#Headers],0),FALSE) -> 224 | E21: =VLOOKUP($B$3,Tabla3[],MATCH(B21,Tabla3[#Headers],0),FALSE) -> 58
A22: 19 | B22: Malformaciones congénitas, deformidades y anomalías cromosómicas | C22: =VLOOKUP($B$3,Tabla1[],MATCH(B22,Tabla1[#Headers],0),FALSE) -> 106 | D22: =VLOOKUP($B$3,Tabla2[],MATCH(B22,Tabla2[#Headers],0),FALSE) -> 121 | E22: =VLOOKUP($B$3,Tabla3[],MATCH(B22,Tabla3[#Headers],0),FALSE) -> 70
A23: 20 | B23: Síntomas, signos y hallazgos anormales clínicos y de laboratorio, no clasificados en otra parte | C23: =VLOOKUP($B$3,Tabla1[],MATCH(B23,Tabla1[#Headers],0),FALSE) -> 188 | D23: =VLOOKUP($B$3,Tabla2[],MATCH(B23,Tabla2[#Headers],0),FALSE) -> 202 | E23: =VLOOKUP($B$3,Tabla3[],MATCH(B23,Tabla3[#Headers],0),FALSE) -> 233
B24: Total | C24: =SUBTOTAL(109,TablaA3[2020]) -> 24308 | D24: =SUBTOTAL(109,TablaA3[2021]) -> 24170 | E24: =SUBTOTAL(109,TablaA3[2022]) -> 17228

Sheet T-1GE-D (hidden)
A1: 1 | B1: 2 | C1: 3 | D1: 4 | E1: 5 | F1: 6 | G1: 7 | H1: 8 | I1: 9 | J1: 10 | K1: 11 | L1: 12 | M1: 13 | N1: 14 | O1: 15 | P1: 16 | Q1: 17 | R1: 18 | S1: 19 | T1: 20 | U1: 21 | V1: 22 | W1: 23 | X1: 24 | Y1: 25 | Z1: 26 | AA1: 27 | AB1: 28 | AC1: 29 | AD1: 30 | AE1: 31 | AF1: 32 | AG1: 33 | AH1: 34 | AI1: 35 | AJ1: 36 | AK1: 37 | AL1: 38 | AM1: 39 | AN1: 40 | AO1: 41 | AP1: 42 | AQ1: 43 | AR1: 44 | AS1: 45 | AT1: 46 | AU1: 47 | AV1: 48 | AW1: 49 | AX1: 50 | AY1: 51 | AZ1: 52 | BA1: 53 | BB1: 54 | BC1: 55 | BD1: 56 | BE1: 57 | BF1: 58 | BG1: 59 | BH1: 60 | BI1: 61 | BJ1: 62 | BK1: 63 | BL1: 64
A2: Enfermedades del sistema circulatorio
A3: ESTADO | B3: Fiebre reumática aguda y enfermedades cardiacas reumáticas crónicas | E3: Enfermedades hipertensivas | H3: Enfermedades isquémicas del corazón | K3: Otras enfermedades del corazón | N3: Enfermedades cerebrovasculares | Q3: Aterosclerosis | T3: Resto de enfermedades del sistema circulatorio | W3: 2020 | AK3: 2021 | AY3: 2022
B4: 2020 | C4: 2021 | D4: 2022 | E4: 2020 | F4: 2021 | G4: 2022 | H4: 2020 | I4: 2021 | J4: 2022 | K4: 2020 | L4: 2021 | M4: 2022 | N4: 2020 | O4: 2021 | P4: 2022 | Q4: 2020 | R4: 2021 | S4: 2022 | T4: 2020 | U4: 2021 | V4: 2022 | W4: Hombres 2020(1) | X4: Hombres 2020(2) | Y4: Hombres 2020(3) | Z4: Hombres 2020(4) | AA4: Hombres 2020(5) | AB4: Hombres 2020(6) | AC4: Hombres 2020(7) | AD4: Mujeres 2020(1) | AE4: Mujeres 2020(2) | AF4: Mujeres 2020(3) | AG4: Mujeres 2020(4) | AH4: Mujeres 2020(5) | AI4: Mujeres 2020(6) | AJ4: Mujeres 2020(7) | AK4: Hombres 2021(1) | AL4: Hombres 2021(2) | AM4: Hombres 2021(3) | AN4: Hombres 2021(4) | AO4: Hombres 2021(5) | AP4: Hombres 2021(6) | AQ4: Hombres 2021(7) | AR4: Mujeres 2021(1) | AS4: Mujeres 2021(2) | AT4: Mujeres 2021(3) | AU4: Mujeres 2021(4) | AV4: Mujeres 2021(5) | AW4: Mujeres 2021(6) | AX4: Mujeres 2021(7) | AY4: Hombres 2022(1) | AZ4: Hombres 2022(2) | BA4: Hombres 2022(3) | BB4: Hombres 2022(4) | BC4: Hombres 2022(5) | BD4: Hombres 2022(6) | BE4: Hombres 2022(7) | BF4: Mujeres 2022(1) | BG4: Mujeres 2022(2) | BH4: Mujeres 2022(3) | BI4: Mujeres 2022(4) | BJ4: Mujeres 2022(5) | BK4: Mujeres 2022(6) | BL4: Mujeres 2022(7)
A5: Aguascalientes | B5: 9 | C5: 4 | D5: 7 | E5: 339 | F5: 338 | G5: 289 | H5: 899 | I5: 1054 | J5: 1037 | K5: 151 | L5: 168 | M5: 193 | N5: 325 | O5: 347 | P5: 346 | Q5: 2 | R5: 0 | S5: 0 | T5: 62 | U5: 67 | V5: 54 | W5: 5 | X5: 167 | Y5: 542 | Z5: 70 | AA5: 151 | AB5: 1 | AC5: 32 | AD5: 4 | AE5: 172 | AF5: 357 | AG5: 81 | AH5: 174 | AI5: 1 | AJ5: 30 | AK5: 2 | AL5: 165 | AM5: 624 | AN5: 89 | AO5: 170 | AP5: 0 | AQ5: 38 | AR5: 2 | AS5: 173 | AT5: 430 | AU5: 79 | AV5: 177 | AW5: 0 | AX5: 29 | AY5: 3 | AZ5: 134 | BA5: 622 | BB5: 86 | BC5: 166 | BD5: 0 | BE5: 31 | BF5: 4 | BG5: 155 | BH5: 415 | BI5: 107 | BJ5: 180 | BK5: 0 | BL5: 23
A6: Baja California | B6: 10 | C6: 5 | D6: 20 | E6: 912 | F6: 824 | G6: 848 | H6: 3872 | I6: 3558 | J6: 3534 | K6: 833 | L6: 827 | M6: 984 | N6: 1041 | O6: 1130 | P6: 1157 | Q6: 50 | R6: 3 | S6: 2 | T6: 103 | U6: 100 | V6: 109 | W6: 3 | X6: 437 | Y6: 2543 | Z6: 521 | AA6: 610 | AB6: 30 | AC6: 61 | AD6: 7 | AE6: 475 | AF6: 1329 | AG6: 312 | AH6: 431 | AI6: 20 | AJ6: 42 | AK6: 1 | AL6: 416 | AM6: 2331 | AN6: 538 | AO6: 627 | AP6: 0 | AQ6: 64 | AR6: 4 | AS6: 408 | AT6: 1227 | AU6: 289 | AV6: 503 | AW6: 3 | AX6: 36 | AY6: 8 | AZ6: 435 | BA6: 2321 | BB6: 630 | BC6: 646 | BD6: 1 | BE6: 58 | BF6: 12 | BG6: 413 | BH6: 1213 | BI6: 354 | BJ6: 511 | BK6: 1 | BL6: 51
A7: Baja California Sur | B7: 3 | C7: 2 | D7: 2 | E7: 109 | F7: 90 | G7: 102 | H7: 739 | I7: 770 | J7: 769 | K7: 80 | L7: 78 | M7: 90 | N7: 149 | O7: 163 | P7: 194 | Q7: 2 | R7: 1 | S7: 0 | T7: 19 | U7: 22 | V7: 24 | W7: 1 | X7: 54 | Y7: 484 | Z7: 42 | AA7: 81 | AB7: 1 | AC7: 15 | AD7: 2 | AE7: 55 | AF7: 255 | AG7: 38 | AH7: 68 | AI7: 1 | AJ7: 4 | AK7: 1 | AL7: 45 | AM7: 490 | AN7: 45 | AO7: 83 | AP7: 1 | AQ7: 12 | AR7: 1 | AS7: 45 | AT7: 280 | AU7: 33 | AV7: 80 | AW7: 0 | AX7: 10 | AY7: 0 | AZ7: 50 | BA7: 480 | BB7: 44 | BC7: 113 | BD7: 0 | BE7: 14 | BF7: 2 | BG7: 52 | BH7: 289 | BI7: 46 | BJ7: 81 | BK7: 0 | BL7: 10
A8: Campeche | B8: 3 | C8: 2 | D8: 0 | E8: 194 | F8: 163 | G8: 143 | H8: 1218 | I8: 1256 | J8: 1048 | K8: 94 | L8: 92 | M8: 88 | N8: 218 | O8: 212 | P8: 220 | Q8: 1 | R8: 0 | S8: 0 | T8: 24 | U8: 21 | V8: 13 | W8: 2 | X8: 95 | Y8: 737 | Z8: 55 | AA8: 116 | AB8: 1 | AC8: 14 | AD8: 1 | AE8: 99 | AF8: 481 | AG8: 39 | AH8: 102 | AI8: 0 | AJ8: 10 | AK8: 1 | AL8: 78 | AM8: 767 | AN8: 51 | AO8: 105 | AP8: 0 | AQ8: 13 | AR8: 1 | AS8: 85 | AT8: 489 | AU8: 41 | AV8: 107 | AW8: 0 | AX8: 8 | AY8: 0 | AZ8: 65 | BA8: 576 | BB8: 42 | BC8: 130 | BD8: 0 | BE8: 7 | BF8: 0 | BG8: 78 | BH8: 472 | BI8: 46 | BJ8: 90 | BK8: 0 | BL8: 6
A9: Coahuila | B9: 12 | C9: 15 | D9: 17 | E9: 1489 | F9: 1038 | G9: 698 | H9: 3754 | I9: 3408 | J9: 3646 | K9: 498 | L9: 659 | M9: 929 | N9: 884 | O9: 872 | P9: 887 | Q9: 11 | R9: 2 | S9: 2 | T9: 83 | U9: 66 | V9: 96 | W9: 8 | X9: 724 | Y9: 2246 | Z9: 260 | AA9: 490 | AB9: 5 | AC9: 45 | AD9: 4 | AE9: 765 | AF9: 1508 | AG9: 238 | AH9: 394 | AI9: 6 | AJ9: 38 | AK9: 8 | AL9: 541 | AM9: 2047 | AN9: 357 | AO9: 485 | AP9: 0 | AQ9: 30 | AR9: 7 | AS9: 497 | AT9: 1361 | AU9: 302 | AV9: 387 | AW9: 2 | AX9: 36 | AY9: 8 | AZ9: 337 | BA9: 2123 | BB9: 499 | BC9: 478 | BD9: 1 | BE9: 54 | BF9: 9 | BG9: 361 | BH9: 1523 | BI9: 430 | BJ9: 409 | BK9: 1 | BL9: 42
A10: Colima | B10: 2 | C10: 4 | D10: 1 | E10: 143 | F10: 153 | G10: 166 | H10: 867 | I10: 982 | J10: 763 | K10: 103 | L10: 85 | M10: 90 | N10: 190 | O10: 202 | P10: 232 | Q10: 0 | R10: 0 | S10: 2 | T10: 28 | U10: 22 | V10: 21 | W10: 0 | X10: 72 | Y10: 512 | Z10: 49 | AA10: 101 | AB10: 0 | AC10: 14 | AD10: 2 | AE10: 71 | AF10: 355 | AG10: 54 | AH10: 89 | AI10: 0 | AJ10: 14 | AK10: 0 | AL10: 86 | AM10: 599 | AN10: 36 | AO10: 102 | AP10: 0 | AQ10: 8 | AR10: 4 | AS10: 67 | AT10: 383 | AU10: 49 | AV10: 100 | AW10: 0 | AX10: 14 | AY10: 0 | AZ10: 70 | BA10: 476 | BB10: 48 | BC10: 125 | BD10: 0 | BE10: 11 | BF10: 1 | BG10: 96 | BH10: 287 | BI10: 42 | BJ10: 107 | BK10: 2 | BL10: 10
A11: Chiapas | B11: 17 | C11: 15 | D11: 11 | E11: 1290 | F11: 1251 | G11: 1088 | H11: 6734 | I11: 7176 | J11: 6047 | K11: 500 | L11: 494 | M11: 438 | N11: 1286 | O11: 1274 | P11: 1169 | Q11: 8 | R11: 3 | S11: 2 | T11: 117 | U11: 94 | V11: 106 | W11: 8 | X11: 649 | Y11: 3999 | Z11: 289 | AA11: 679 | AB11: 3 | AC11: 55 | AD11: 9 | AE11: 641 | AF11: 2735 | AG11: 211 | AH11: 607 | AI11: 5 | AJ11: 62 | AK11: 2 | AL11: 639 | AM11: 4151 | AN11: 262 | AO11: 714 | AP11: 1 | AQ11: 52 | AR11: 13 | AS11: 612 | AT11: 3025 | AU11: 232 | AV11: 560 | AW11: 2 | AX11: 42 | AY11: 3 | AZ11: 549 | BA11: 3337 | BB11: 222 | BC11: 634 | BD11: 0 | BE11: 56 | BF11: 8 | BG11: 539 | BH11: 2710 | BI11: 216 | BJ11: 535 | BK11: 2 | BL11: 50
A12: Chihuahua | B12: 12 | C12: 19 | D12: 17 | E12: 1045 | F12: 895 | G12: 968 | H12: 5860 | I12: 5053 | J12: 5078 | K12: 1188 | L12: 737 | M12: 577 | N12: 1097 | O12: 1092 | P12: 1073 | Q12: 53 | R12: 34 | S12: 38 | T12: 152 | U12: 150 | V12: 172 | W12: 4 | X12: 473 | Y12: 3488 | Z12: 593 | AA12: 575 | AB12: 29 | AC12: 80 | AD12: 8 | AE12: 572 | AF12: 2372 | AG12: 595 | AH12: 522 | AI12: 24 | AJ12: 72 | AK12: 5 | AL12: 413 | AM12: 3003 | AN12: 364 | AO12: 575 | AP12: 21 | AQ12: 77 | AR12: 14 | AS12: 482 | AT12: 2050 | AU12: 373 | AV12: 517 | AW12: 13 | AX12: 73 | AY12: 7 | AZ12: 432 | BA12: 3081 | BB12: 300 | BC12: 559 | BD12: 22 | BE12: 86 | BF12: 10 | BG12: 536 | BH12: 1997 | BI12: 277 | BJ12: 514 | BK12: 16 | BL12: 86
A13: Ciudad de México | B13: 129 | C13: 130 | D13: 151 | E13: 4421 | F13: 3903 | G13: 2854 | H13: 17835 | I13: 15949 | J13: 13348 | K13: 2092 | L13: 2100 | M13: 2245 | N13: 3596 | O13: 3585 | P13: 3547 | Q13: 11 | R13: 27 | S13: 38 | T13: 532 | U13: 567 | V13: 574 | W13: 39 | X13: 2144 | Y13: 9717 | Z13: 952 | AA13: 1647 | AB13: 4 | AC13: 285 | AD13: 90 | AE13: 2277 | AF13: 8118 | AG13: 1140 | AH13: 1949 | AI13: 7 | AJ13: 247 | AK13: 33 | AL13: 1846 | AM13: 8403 | AN13: 928 | AO13: 1621 | AP13: 8 | AQ13: 266 | AR13: 97 | AS13: 2057 | AT13: 7546 | AU13: 1172 | AV13: 1964 | AW13: 19 | AX13: 301 | AY13: 51 | AZ13: 1223 | BA13: 6700 | BB13: 1001 | BC13: 1617 | BD13: 22 | BE13: 289 | BF13: 100 | BG13: 1631 | BH13: 6648 | BI13: 1244 | BJ13: 1930 | BK13: 16 | BL13: 285
A14: Durango | B14: 7 | C14: 8 | D14: 7 | E14: 313 | F14: 238 | G14: 236 | H14: 3225 | I14: 3254 | J14: 2976 | K14: 165 | L14: 170 | M14: 171 | N14: 430 | O14: 388 | P14: 401 | Q14: 0 | R14: 0 | S14: 0 | T14: 47 | U14: 59 | V14: 45 | W14: 3 | X14: 146 | Y14: 1849 | Z14: 69 | AA14: 239 | AB14: 0 | AC14: 23 | AD14: 4 | AE14: 167 | AF14: 1376 | AG14: 96 | AH14: 191 | AI14: 0 | AJ14: 24 | AK14: 2 | AL14: 108 | AM14: 1784 | AN14: 89 | AO14: 211 | AP14: 0 | AQ14: 28 | AR14: 6 | AS14: 130 | AT14: 1470 | AU14: 81 | AV14: 177 | AW14: 0 | AX14: 31 | AY14: 2 | AZ14: 111 | BA14: 1684 | BB14: 77 | BC14: 201 | BD14: 0 | BE14: 17 | BF14: 5 | BG14: 125 | BH14: 1292 | BI14: 94 | BJ14: 200 | BK14: 0 | BL14: 28
A15: Guanajuato | B15: 39 | C15: 29 | D15: 19 | E15: 1154 | F15: 1196 | G15: 1117 | H15: 8970 | I15: 10538 | J15: 8890 | K15: 736 | L15: 669 | M15: 679 | N15: 1644 | O15: 1697 | P15: 1499 | Q15: 5 | R15: 4 | S15: 5 | T15: 173 | U15: 210 | V15: 174 | W15: 12 | X15: 505 | Y15: 4913 | Z15: 383 | AA15: 832 | AB15: 1 | AC15: 104 | AD15: 27 | AE15: 649 | AF15: 4057 | AG15: 353 | AH15: 812 | AI15: 4 | AJ15: 69 | AK15: 12 | AL15: 545 | AM15: 5803 | AN15: 319 | AO15: 874 | AP15: 3 | AQ15: 109 | AR15: 17 | AS15: 651 | AT15: 4735 | AU15: 350 | AV15: 823 | AW15: 1 | AX15: 101 | AY15: 5 | AZ15: 506 | BA15: 4813 | BB15: 339 | BC15: 728 | BD15: 0 | BE15: 79 | BF15: 14 | BG15: 611 | BH15: 4077 | BI15: 340 | BJ15: 771 | BK15: 5 | BL15: 95
A16: Guerrero | B16: 7 | C16: 4 | D16: 6 | E16: 896 | F16: 874 | G16: 839 | H16: 3592 | I16: 3937 | J16: 3384 | K16: 310 | L16: 256 | M16: 270 | N16: 1006 | O16: 937 | P16: 869 | Q16: 1 | R16: 3 | S16: 2 | T16: 79 | U16: 90 | V16: 68 | W16: 2 | X16: 435 | Y16: 2079 | Z16: 159 | AA16: 519 | AB16: 0 | AC16: 40 | AD16: 5 | AE16: 461 | AF16: 1513 | AG16: 151 | AH16: 487 | AI16: 1 | AJ16: 39 | AK16: 2 | AL16: 406 | AM16: 2246 | AN16: 125 | AO16: 489 | AP16: 1 | AQ16: 45 | AR16: 2 | AS16: 468 | AT16: 1691 | AU16: 131 | AV16: 448 | AW16: 2 | AX16: 45 | AY16: 0 | AZ16: 379 | BA16: 1914 | BB16: 132 | BC16: 454 | BD16: 2 | BE16: 31 | BF16: 6 | BG16: 460 | BH16: 1470 | BI16: 138 | BJ16: 415 | BK16: 0 | BL16: 37
A17: Hidalgo | B17: 12 | C17: 4 | D17: 10 | E17: 683 | F17: 640 | G17: 593 | H17: 3851 | I17: 4210 | J17: 3603 | K17: 379 | L17: 409 | M17: 463 | N17: 903 | O17: 914 | P17: 939 | Q17: 1 | R17: 0 | S17: 5 | T17: 96 | U17: 70 | V17: 80 | W17: 2 | X17: 317 | Y17: 2154 | Z17: 177 | AA17: 455 | AB17: 0 | AC17: 48 | AD17: 10 | AE17: 366 | AF17: 1697 | AG17: 202 | AH17: 448 | AI17: 1 | AJ17: 48 | AK17: 3 | AL17: 324 | AM17: 2319 | AN17: 196 | AO17: 474 | AP17: 0 | AQ17: 38 | AR17: 1 | AS17: 316 | AT17: 1891 | AU17: 213 | AV17: 440 | AW17: 0 | AX17: 32 | AY17: 3 | AZ17: 281 | BA17: 1947 | BB17: 218 | BC17: 458 | BD17: 3 | BE17: 40 | BF17: 7 | BG17: 312 | BH17: 1656 | BI17: 245 | BJ17: 481 | BK17: 2 | BL17: 40
A18: Jalisco | B18: 45 | C18: 49 | D18: 47 | E18: 2243 | F18: 2352 | G18: 2276 | H18: 9207 | I18: 10300 | J18: 8584 | K18: 1323 | L18: 1362 | M18: 1554 | N18: 2330 | O18: 2337 | P18: 2417 | Q18: 15 | R18: 9 | S18: 5 | T18: 421 | U18: 412 | V18: 414 | W18: 16 | X18: 1106 | Y18: 5308 | Z18: 685 | AA18: 1177 | AB18: 6 | AC18: 235 | AD18: 29 | AE18: 1137 | AF18: 3899 | AG18: 638 | AH18: 1153 | AI18: 9 | AJ18: 186 | AK18: 13 | AL18: 1086 | AM18: 5932 | AN18: 738 | AO18: 1184 | AP18: 4 | AQ18: 211 | AR18: 36 | AS18: 1266 | AT18: 4368 | AU18: 624 | AV18: 1153 | AW18: 5 | AX18: 201 | AY18: 14 | AZ18: 1040 | BA18: 4997 | BB18: 776 | BC18: 1209 | BD18: 2 | BE18: 214 | BF18: 33 | BG18: 1236 | BH18: 3587 | BI18: 778 | BJ18: 1208 | BK18: 3 | BL18: 200
A19: México | B19: 53 | C19: 53 | D19: 70 | E19: 4342 | F19: 3498 | G19: 3324 | H19: 19954 | I19: 19811 | J19: 15973 | K19: 1059 | L19: 1112 | M19: 1361 | N19: 3953 | O19: 3679 | P19: 3636 | Q19: 9 | R19: 7 | S19: 12 | T19: 391 | U19: 386 | V19: 421 | W19: 21 | X19: 2152 | Y19: 11619 | Z19: 507 | AA19: 1988 | AB19: 4 | AC19: 216 | AD19: 32 | AE19: 2190 | AF19: 8335 | AG19: 552 | AH19: 1965 | AI19: 5 | AJ19: 175 | AK19: 20 | AL19: 1669 | AM19: 10820 | AN19: 527 | AO19: 1836 | AP19: 4 | AQ19: 192 | AR19: 33 | AS19: 1829 | AT19: 8991 | AU19: 585 | AV19: 1843 | AW19: 3 | AX19: 194 | AY19: 19 | AZ19: 1577 | BA19: 8354 | BB19: 627 | BC19: 1762 | BD19: 8 | BE19: 215 | BF19: 51 | BG19: 1747 | BH19: 7619 | BI19: 734 | BJ19: 1874 | BK19: 4 | BL19: 206
A20: Michoacán | B20: 24 | C20: 23 | D20: 18 | E20: 1171 | F20: 1237 | G20: 1027 | H20: 5520 | I20: 7083 | J20: 5923 | K20: 596 | L20: 633 | M20: 591 | N20: 1424 | O20: 1406 | P20: 1341 | Q20: 7 | R20: 9 | S20: 12 | T20: 167 | U20: 190 | V20: 175 | W20: 10 | X20: 541 | Y20: 3060 | Z20: 287 | AA20: 698 | AB20: 4 | AC20: 89 | AD20: 14 | AE20: 630 | AF20: 2460 | AG20: 309 | AH20: 726 | AI20: 3 | AJ20: 78 | AK20: 9 | AL20: 576 | AM20: 3968 | AN20: 311 | AO20: 710 | AP20: 4 | AQ20: 100 | AR20: 14 | AS20: 661 | AT20: 3115 | AU20: 322 | AV20: 696 | AW20: 5 | AX20: 90 | AY20: 5 | AZ20: 477 | BA20: 3268 | BB20: 307 | BC20: 667 | BD20: 7 | BE20: 79 | BF20: 13 | BG20: 550 | BH20: 2655 | BI20: 284 | BJ20: 674 | BK20: 5 | BL20: 96
A21: Morelos | B21: 7 | C21: 6 | D21: 6 | E21: 504 | F21: 456 | G21: 452 | H21: 3061 | I21: 3789 | J21: 3183 | K21: 171 | L21: 254 | M21: 205 | N21: 600 | O21: 581 | P21: 577 | Q21: 3 | R21: 2 | S21: 1 | T21: 63 | U21: 68 | V21: 51 | W21: 4 | X21: 251 | Y21: 1714 | Z21: 77 | AA21: 313 | AB21: 1 | AC21: 26 | AD21: 3 | AE21: 253 | AF21: 1347 | AG21: 94 | AH21: 287 | AI21: 2 | AJ21: 37 | AK21: 3 | AL21: 236 | AM21: 2086 | AN21: 144 | AO21: 287 | AP21: 1 | AQ21: 36 | AR21: 3 | AS21: 220 | AT21: 1703 | AU21: 110 | AV21: 294 | AW21: 1 | AX21: 32 | AY21: 0 | AZ21: 232 | BA21: 1730 | BB21: 94 | BC21: 280 | BD21: 1 | BE21: 33 | BF21: 6 | BG21: 220 | BH21: 1453 | BI21: 111 | BJ21: 297 | BK21: 0 | BL21: 18
A22: Nayarit | B22: 3 | C22: 5 | D22: 4 | E22: 323 | F22: 291 | G22: 299 | H22: 1185 | I22: 1281 | J22: 1081 | K22: 165 | L22: 160 | M22: 218 | N22: 318 | O22: 402 | P22: 296 | Q22: 0 | R22: 0 | S22: 0 | T22: 24 | U22: 30 | V22: 31 | W22: 0 | X22: 161 | Y22: 741 | Z22: 78 | AA22: 179 | AB22: 0 | AC22: 12 | AD22: 3 | AE22: 162 | AF22: 444 | AG22: 87 | AH22: 139 | AI22: 0 | AJ22: 12 | AK22: 2 | AL22: 143 | AM22: 771 | AN22: 65 | AO22: 207 | AP22: 0 | AQ22: 20 | AR22: 3 | AS22: 148 | AT22: 510 | AU22: 95 | AV22: 195 | AW22: 0 | AX22: 10 | AY22: 1 | AZ22: 135 | BA22: 657 | BB22: 115 | BC22: 161 | BD22: 0 | BE22: 19 | BF22: 3 | BG22: 164 | BH22: 424 | BI22: 103 | BJ22: 135 | BK22: 0 | BL22: 12
A23: Nuevo León | B23: 22 | C23: 29 | D23: 23 | E23: 1022 | F23: 922 | G23: 983 | H23: 7320 | I23: 8017 | J23: 8199 | K23: 709 | L23: 693 | M23: 861 | N23: 1828 | O23: 1773 | P23: 2006 | Q23: 4 | R23: 2 | S23: 6 | T23: 128 | U23: 123 | V23: 163 | W23: 11 | X23: 466 | Y23: 4410 | Z23: 354 | AA23: 1014 | AB23: 2 | AC23: 75 | AD23: 11 | AE23: 556 | AF23: 2910 | AG23: 355 | AH23: 814 | AI23: 2 | AJ23: 53 | AK23: 10 | AL23: 444 | AM23: 4725 | AN23: 374 | AO23: 962 | AP23: 1 | AQ23: 70 | AR23: 19 | AS23: 478 | AT23: 3292 | AU23: 319 | AV23: 811 | AW23: 1 | AX23: 53 | AY23: 10 | AZ23: 454 | BA23: 4689 | BB23: 431 | BC23: 1036 | BD23: 2 | BE23: 97 | BF23: 13 | BG23: 529 | BH23: 3510 | BI23: 430 | BJ23: 970 | BK23: 4 | BL23: 66
A24: Oaxaca | B24: 26 | C24: 21 | D24: 32 | E24: 1626 | F24: 1758 | G24: 1522 | H24: 4618 | I24: 5474 | J24: 4673 | K24: 586 | L24: 674 | M24: 644 | N24: 1663 | O24: 1904 | P24: 1669 | Q24: 9 | R24: 12 | S24: 9 | T24: 114 | U24: 144 | V24: 123 | W24: 9 | X24: 759 | Y24: 2528 | Z24: 317 | AA24: 762 | AB24: 4 | AC24: 56 | AD24: 17 | AE24: 867 | AF24: 2090 | AG24: 269 | AH24: 901 | AI24: 5 | AJ24: 58 | AK24: 9 | AL24: 816 | AM24: 3004 | AN24: 342 | AO24: 930 | AP24: 6 | AQ24: 65 | AR24: 12 | AS24: 942 | AT24: 2470 | AU24: 332 | AV24: 974 | AW24: 6 | AX24: 79 | AY24: 12 | AZ24: 660 | BA24: 2393 | BB24: 322 | BC24: 802 | BD24: 4 | BE24: 58 | BF24: 20 | BG24: 862 | BH24: 2280 | BI24: 322 | BJ24: 867 | BK24: 5 | BL24: 65
A25: Puebla | B25: 49 | C25: 29 | D25: 34 | E25: 1702 | F25: 1825 | G25: 1393 | H25: 9654 | I25: 12441 | J25: 9501 | K25: 785 | L25: 852 | M25: 788 | N25: 2319 | O25: 2282 | P25: 1974 | Q25: 8 | R25: 9 | S25: 3 | T25: 191 | U25: 185 | V25: 161 | W25: 19 | X25: 797 | Y25: 5302 | Z25: 389 | AA25: 1155 | AB25: 4 | AC25: 92 | AD25: 30 | AE25: 905 | AF25: 4352 | AG25: 396 | AH25: 1164 | AI25: 4 | AJ25: 99 | AK25: 13 | AL25: 856 | AM25: 6569 | AN25: 432 | AO25: 1097 | AP25: 4 | AQ25: 87 | AR25: 16 | AS25: 969 | AT25: 5872 | AU25: 420 | AV25: 1185 | AW25: 5 | AX25: 98 | AY25: 14 | AZ25: 616 | BA25: 4856 | BB25: 384 | BC25: 965 | BD25: 0 | BE25: 88 | BF25: 20 | BG25: 777 | BH25: 4645 | BI25: 404 | BJ25: 1009 | BK25: 3 | BL25: 73
A26: Querétaro | B26: 7 | C26: 13 | D26: 12 | E26: 345 | F26: 352 | G26: 336 | H26: 2162 | I26: 2576 | J26: 2244 | K26: 230 | L26: 203 | M26: 276 | N26: 662 | O26: 669 | P26: 638 | Q26: 2 | R26: 1 | S26: 1 | T26: 77 | U26: 132 | V26: 137 | W26: 0 | X26: 166 | Y26: 1233 | Z26: 116 | AA26: 319 | AB26: 2 | AC26: 42 | AD26: 7 | AE26: 179 | AF26: 929 | AG26: 114 | AH26: 343 | AI26: 0 | AJ26: 35 | AK26: 5 | AL26: 164 | AM26: 1416 | AN26: 98 | AO26: 335 | AP26: 1 | AQ26: 68 | AR26: 8 | AS26: 188 | AT26: 1160 | AU26: 105 | AV26: 334 | AW26: 0 | AX26: 64 | AY26: 5 | AZ26: 151 | BA26: 1246 | BB26: 131 | BC26: 325 | BD26: 1 | BE26: 75 | BF26: 7 | BG26: 185 | BH26: 998 | BI26: 145 | BJ26: 313 | BK26: 0 | BL26: 62
A27: Quintana Roo | B27: 4 | C27: 7 | D27: 7 | E27: 237 | F27: 231 | G27: 225 | H27: 971 | I27: 1215 | J27: 1128 | K27: 119 | L27: 155 | M27: 151 | N27: 321 | O27: 355 | P27: 377 | Q27: 1 | R27: 0 | S27: 0 | T27: 22 | U27: 33 | V27: 31 | W27: 2 | X27: 111 | Y27: 642 | Z27: 60 | AA27: 185 | AB27: 0 | AC27: 12 | AD27: 2 | AE27: 126 | AF27: 329 | AG27: 59 | AH27: 136 | AI27: 1 | AJ27: 10 | AK27: 2 | AL27: 105 | AM27: 788 | AN27: 80 | AO27: 218 | AP27: 0 | AQ27: 21 | AR27: 5 | AS27: 126 | AT27: 427 | AU27: 75 | AV27: 137 | AW27: 0 | AX27: 12 | AY27: 4 | AZ27: 90 | BA27: 720 | BB27: 81 | BC27: 218 | BD27: 0 | BE27: 22 | BF27: 3 | BG27: 135 | BH27: 408 | BI27: 70 | BJ27: 159 | BK27: 0 | BL27: 9
A28: San Luis Potosí | B28: 9 | C28: 1 | D28: 6 | E28: 953 | F28: 917 | G28: 898 | H28: 3676 | I28: 4008 | J28: 3728 | K28: 715 | L28: 714 | M28: 659 | N28: 856 | O28: 837 | P28: 828 | Q28: 2 | R28: 9 | S28: 9 | T28: 100 | U28: 85 | V28: 80 | W28: 3 | X28: 417 | Y28: 2131 | Z28: 364 | AA28: 452 | AB28: 1 | AC28: 40 | AD28: 6 | AE28: 536 | AF28: 1545 | AG28: 351 | AH28: 404 | AI28: 1 | AJ28: 60 | AK28: 0 | AL28: 416 | AM28: 2318 | AN28: 370 | AO28: 448 | AP28: 6 | AQ28: 40 | AR28: 1 | AS28: 501 | AT28: 1690 | AU28: 344 | AV28: 389 | AW28: 3 | AX28: 45 | AY28: 4 | AZ28: 414 | BA28: 2064 | BB28: 337 | BC28: 412 | BD28: 4 | BE28: 44 | BF28: 2 | BG28: 484 | BH28: 1664 | BI28: 322 | BJ28: 416 | BK28: 5 | BL28: 36
A29: Sinaloa | B29: 3 | C29: 5 | D29: 5 | E29: 608 | F29: 510 | G29: 576 | H29: 4072 | I29: 4087 | J29: 3389 | K29: 579 | L29: 526 | M29: 526 | N29: 751 | O29: 797 | P29: 735 | Q29: 3 | R29: 7 | S29: 6 | T29: 78 | U29: 75 | V29: 79 | W29: 1 | X29: 296 | Y29: 2505 | Z29: 303 | AA29: 418 | AB29: 0 | AC29: 42 | AD29: 2 | AE29: 312 | AF29: 1567 | AG29: 276 | AH29: 333 | AI29: 3 | AJ29: 36 | AK29: 0 | AL29: 230 | AM29: 2391 | AN29: 262 | AO29: 430 | AP29: 2 | AQ29: 39 | AR29: 5 | AS29: 280 | AT29: 1696 | AU29: 264 | AV29: 367 | AW29: 5 | AX29: 36 | AY29: 2 | AZ29: 276 | BA29: 1975 | BB29: 255 | BC29: 398 | BD29: 2 | BE29: 38 | BF29: 3 | BG29: 300 | BH29: 1414 | BI29: 271 | BJ29: 337 | BK29: 4 | BL29: 41
A30: Sonora | B30: 8 | C30: 6 | D30: 7 | E30: 681 | F30: 591 | G30: 589 | H30: 4702 | I30: 4376 | J30: 4286 | K30: 656 | L30: 464 | M30: 489 | N30: 803 | O30: 812 | P30: 837 | Q30: 6 | R30: 4 | S30: 2 | T30: 122 | U30: 92 | V30: 116 | W30: 2 | X30: 345 | Y30: 2854 | Z30: 387 | AA30: 459 | AB30: 4 | AC30: 71 | AD30: 6 | AE30: 336 | AF30: 1848 | AG30: 269 | AH30: 344 | AI30: 2 | AJ30: 51 | AK30: 3 | AL30: 272 | AM30: 2666 | AN30: 253 | AO30: 476 | AP30: 1 | AQ30: 49 | AR30: 3 | AS30: 319 | AT30: 1710 | AU30: 211 | AV30: 336 | AW30: 3 | AX30: 43 | AY30: 1 | AZ30: 287 | BA30: 2575 | BB30: 290 | BC30: 452 | BD30: 0 | BE30: 64 | BF30: 6 | BG30: 302 | BH30: 1711 | BI30: 199 | BJ30: 385 | BK30: 2 | BL30: 52
A31: Tabasco | B31: 5 | C31: 5 | D31: 5 | E31: 946 | F31: 703 | G31: 704 | H31: 3349 | I31: 3252 | J31: 3020 | K31: 229 | L31: 217 | M31: 234 | N31: 681 | O31: 708 | P31: 632 | Q31: 2 | R31: 1 | S31: 2 | T31: 50 | U31: 33 | V31: 49 | W31: 2 | X31: 498 | Y31: 1985 | Z31: 132 | AA31: 361 | AB31: 1 | AC31: 26 | AD31: 3 | AE31: 448 | AF31: 1364 | AG31: 97 | AH31: 320 | AI31: 1 | AJ31: 24 | AK31: 0 | AL31: 365 | AM31: 1895 | AN31: 124 | AO31: 393 | AP31: 0 | AQ31: 13 | AR31: 5 | AS31: 338 | AT31: 1357 | AU31: 93 | AV31: 315 | AW31: 1 | AX31: 20 | AY31: 2 | AZ31: 365 | BA31: 1720 | BB31: 120 | BC31: 352 | BD31: 1 | BE31: 18 | BF31: 3 | BG31: 339 | BH31: 1300 | BI31: 114 | BJ31: 280 | BK31: 1 | BL31: 31
A32: Tamaulipas | B32: 8 | C32: 9 | D32: 11 | E32: 852 | F32: 843 | G32: 829 | H32: 4739 | I32: 4793 | J32: 4563 | K32: 379 | L32: 381 | M32: 453 | N32: 959 | O32: 982 | P32: 937 | Q32: 3 | R32: 4 | S32: 15 | T32: 78 | U32: 75 | V32: 70 | W32: 3 | X32: 443 | Y32: 2893 | Z32: 199 | AA32: 525 | AB32: 1 | AC32: 38 | AD32: 5 | AE32: 409 | AF32: 1846 | AG32: 180 | AH32: 434 | AI32: 2 | AJ32: 40 | AK32: 2 | AL32: 377 | AM32: 2924 | AN32: 199 | AO32: 530 | AP32: 2 | AQ32: 39 | AR32: 7 | AS32: 466 | AT32: 1869 | AU32: 182 | AV32: 452 | AW32: 2 | AX32: 36 | AY32: 4 | AZ32: 402 | BA32: 2719 | BB32: 215 | BC32: 492 | BD32: 7 | BE32: 39 | BF32: 7 | BG32: 427 | BH32: 1844 | BI32: 238 | BJ32: 445 | BK32: 8 | BL32: 31
A33: Tlaxcala | B33: 6 | C33: 4 | D33: 7 | E33: 385 | F33: 308 | G33: 296 | H33: 1644 | I33: 1900 | J33: 1521 | K33: 158 | L33: 175 | M33: 179 | N33: 396 | O33: 337 | P33: 322 | Q33: 0 | R33: 1 | S33: 0 | T33: 40 | U33: 37 | V33: 34 | W33: 4 | X33: 174 | Y33: 937 | Z33: 84 | AA33: 207 | AB33: 0 | AC33: 24 | AD33: 2 | AE33: 211 | AF33: 707 | AG33: 74 | AH33: 189 | AI33: 0 | AJ33: 16 | AK33: 2 | AL33: 148 | AM33: 1062 | AN33: 89 | AO33: 176 | AP33: 0 | AQ33: 19 | AR33: 2 | AS33: 160 | AT33: 838 | AU33: 86 | AV33: 161 | AW33: 1 | AX33: 18 | AY33: 2 | AZ33: 131 | BA33: 802 | BB33: 87 | BC33: 140 | BD33: 0 | BE33: 12 | BF33: 5 | BG33: 165 | BH33: 719 | BI33: 92 | BJ33: 182 | BK33: 0 | BL33: 22
A34: Veracruz | B34: 30 | C34: 33 | D34: 31 | E34: 2418 | F34: 2220 | G34: 2183 | H34: 14073 | I34: 15130 | J34: 12720 | K34: 967 | L34: 1026 | M34: 1074 | N34: 3105 | O34: 3196 | P34: 3079 | Q34: 19 | R34: 16 | S34: 15 | T34: 255 | U34: 232 | V34: 248 | W34: 14 | X34: 1205 | Y34: 7888 | Z34: 514 | AA34: 1571 | AB34: 11 | AC34: 119 | AD34: 16 | AE34: 1213 | AF34: 6185 | AG34: 453 | AH34: 1534 | AI34: 8 | AJ34: 136 | AK34: 13 | AL34: 1058 | AM34: 8377 | AN34: 536 | AO34: 1660 | AP34: 10 | AQ34: 111 | AR34: 20 | AS34: 1162 | AT34: 6753 | AU34: 490 | AV34: 1536 | AW34: 6 | AX34: 121 | AY34: 11 | AZ34: 971 | BA34: 6821 | BB34: 518 | BC34: 1502 | BD34: 4 | BE34: 124 | BF34: 20 | BG34: 1212 | BH34: 5899 | BI34: 556 | BJ34: 1577 | BK34: 11 | BL34: 124
A35: Yucatán | B35: 7 | C35: 9 | D35: 10 | E35: 374 | F35: 357 | G35: 361 | H35: 3723 | I35: 3836 | J35: 3432 | K35: 237 | L35: 274 | M35: 312 | N35: 779 | O35: 797 | P35: 863 | Q35: 21 | R35: 10 | S35: 12 | T35: 38 | U35: 39 | V35: 50 | W35: 3 | X35: 190 | Y35: 2062 | Z35: 136 | AA35: 425 | AB35: 12 | AC35: 22 | AD35: 4 | AE35: 184 | AF35: 1661 | AG35: 101 | AH35: 354 | AI35: 9 | AJ35: 16 | AK35: 1 | AL35: 186 | AM35: 2140 | AN35: 143 | AO35: 421 | AP35: 5 | AQ35: 22 | AR35: 8 | AS35: 171 | AT35: 1696 | AU35: 131 | AV35: 376 | AW35: 5 | AX35: 17 | AY35: 6 | AZ35: 173 | BA35: 1878 | BB35: 159 | BC35: 462 | BD35: 3 | BE35: 27 | BF35: 4 | BG35: 188 | BH35: 1554 | BI35: 153 | BJ35: 401 | BK35: 9 | BL35: 23
A36: Zacatecas | B36: 6 | C36: 9 | D36: 8 | E36: 473 | F36: 408 | G36: 411 | H36: 1813 | I36: 2117 | J36: 1929 | K36: 260 | L36: 251 | M36: 254 | N36: 501 | O36: 502 | P36: 455 | Q36: 4 | R36: 6 | S36: 5 | T36: 78 | U36: 85 | V36: 69 | W36: 2 | X36: 218 | Y36: 1009 | Z36: 135 | AA36: 243 | AB36: 1 | AC36: 38 | AD36: 4 | AE36: 255 | AF36: 804 | AG36: 125 | AH36: 258 | AI36: 3 | AJ36: 40 | AK36: 3 | AL36: 177 | AM36: 1161 | AN36: 129 | AO36: 249 | AP36: 6 | AQ36: 47 | AR36: 6 | AS36: 231 | AT36: 956 | AU36: 122 | AV36: 253 | AW36: 0 | AX36: 38 | AY36: 4 | AZ36: 196 | BA36: 1038 | BB36: 144 | BC36: 211 | BD36: 2 | BE36: 29 | BF36: 4 | BG36: 215 | BH36: 891 | BI36: 110 | BJ36: 244 | BK36: 3 | BL36: 40

Sheet 1D-GCM
A1: Enfermedades del sistema circulatorio
A2: SELECCIONE UNA ENTIDAD
A3: Guerrero | B3: 2020 | C3: H - 2020 | D3: M - 2020 | E3: 2021 | F3: H - 2021 | G3: M - 2021 | H3: 2022 | I3: H - 2022 | J3: M - 2022
A4: Fiebre reumática aguda y enfermedades cardiacas reumáticas crónicas | B4: =VLOOKUP($A$3,'T-1GE-D'!$A$5:$BL$36,2,0) -> 7 | C4: =VLOOKUP($A$3,'T-1GE-D'!$A$5:$BL$36,23,0) -> 2 | D4: =VLOOKUP($A$3,'T-1GE-D'!$A$5:$BL$36,30,0) -> 5 | E4: =VLOOKUP($A$3,'T-1GE-D'!$A$5:$BL$36,3,0) -> 4 | F4: =VLOOKUP($A$3,'T-1GE-D'!$A$5:$BL$36,37,0) -> 2 | G4: =VLOOKUP($A$3,'T-1GE-D'!$A$5:$BL$36,44,0) -> 2 | H4: =VLOOKUP($A$3,'T-1GE-D'!$A$5:$BL$36,4,0) -> 6 | I4: =VLOOKUP($A$3,'T-1GE-D'!$A$5:$BL$36,51,0) -> 0 | J4: =VLOOKUP($A$3,'T-1GE-D'!$A$5:$BL$36,58,0) -> 6
A5: Enfermedades hipertensivas | B5: =VLOOKUP($A$3,'T-1GE-D'!$A$5:$BL$36,5,0) -> 896 | C5: =VLOOKUP($A$3,'T-1GE-D'!$A$5:$BL$36,24,0) -> 435 | D5: =VLOOKUP($A$3,'T-1GE-D'!$A$5:$BL$36,31,0) -> 461 | E5: =VLOOKUP($A$3,'T-1GE-D'!$A$5:$BL$36,6,0) -> 874 | F5: =VLOOKUP($A$3,'T-1GE-D'!$A$5:$BL$36,38,0) -> 406 | G5: =VLOOKUP($A$3,'T-1GE-D'!$A$5:$BL$36,45,0) -> 468 | H5: =VLOOKUP($A$3,'T-1GE-D'!$A$5:$BL$36,7,0) -> 839 | I5: =VLOOKUP($A$3,'T-1GE-D'!$A$5:$BL$36,52,0) -> 379 | J5: =VLOOKUP($A$3,'T-1GE-D'!$A$5:$BL$36,59,0) -> 460
A6: Enfermedades isquémicas del corazón | B6: =VLOOKUP($A$3,'T-1GE-D'!$A$5:$BL$36,8,0) -> 3592 | C6: =VLOOKUP($A$3,'T-1GE-D'!$A$5:$BL$36,25,0) -> 2079 | D6: =VLOOKUP($A$3,'T-1GE-D'!$A$5:$BL$36,32,0) -> 1513 | E6: =VLOOKUP($A$3,'T-1GE-D'!$A$5:$BL$36,9,0) -> 3937 | F6: =VLOOKUP($A$3,'T-1GE-D'!$A$5:$BL$36,39,0) -> 2246 | G6: =VLOOKUP($A$3,'T-1GE-D'!$A$5:$BL$36,46,0) -> 1691 | H6: =VLOOKUP($A$3,'T-1GE-D'!$A$5:$BL$36,10,0) -> 3384 | I6: =VLOOKUP($A$3,'T-1GE-D'!$A$5:$BL$36,53,0) -> 1914 | J6: =VLOOKUP($A$3,'T-1GE-D'!$A$5:$BL$36,60,0) -> 1470
A7: Otras enfermedades del corazón | B7: =VLOOKUP($A$3,'T-1GE-D'!$A$5:$BL$36,11,0) -> 310 | C7: =VLOOKUP($A$3,'T-1GE-D'!$A$5:$BL$36,26,0) -> 159 | D7: =VLOOKUP($A$3,'T-1GE-D'!$A$5:$BL$36,33,0) -> 151 | E7: =VLOOKUP($A$3,'T-1GE-D'!$A$5:$BL$36,12,0) -> 256 | F7: =VLOOKUP($A$3,'T-1GE-D'!$A$5:$BL$36,40,0) -> 125 | G7: =VLOOKUP($A$3,'T-1GE-D'!$A$5:$BL$36,47,0) -> 131 | H7: =VLOOKUP($A$3,'T-1GE-D'!$A$5:$BL$36,13,0) -> 270 | I7: =VLOOKUP($A$3,'T-1GE-D'!$A$5:$BL$36,54,0) -> 132 | J7: =VLOOKUP($A$3,'T-1GE-D'!$A$5:$BL$36,61,0) -> 138
A8: Enfermedades cerebrovasculares | B8: =VLOOKUP($A$3,'T-1GE-D'!$A$5:$BL$36,14,0) -> 1006 | C8: =VLOOKUP($A$3,'T-1GE-D'!$A$5:$BL$36,27,0) -> 519 | D8: =VLOOKUP($A$3,'T-1GE-D'!$A$5:$BL$36,34,0) -> 487 | E8: =VLOOKUP($A$3,'T-1GE-D'!$A$5:$BL$36,15,0) -> 937 | F8: =VLOOKUP($A$3,'T-1GE-D'!$A$5:$BL$36,41,0) -> 489 | G8: =VLOOKUP($A$3,'T-1GE-D'!$A$5:$BL$36,48,0) -> 448 | H8: =VLOOKUP($A$3,'T-1GE-D'!$A$5:$BL$36,16,0) -> 869 | I8: =VLOOKUP($A$3,'T-1GE-D'!$A$5:$BL$36,55,0) -> 454 | J8: =VLOOKUP($A$3,'T-1GE-D'!$A$5:$BL$36,62,0) -> 415
A9: Aterosclerosis | B9: =VLOOKUP($A$3,'T-1GE-D'!$A$5:$BL$36,17,0) -> 1 | C9: =VLOOKUP($A$3,'T-1GE-D'!$A$5:$BL$36,28,0) -> 0 | D9: =VLOOKUP($A$3,'T-1GE-D'!$A$5:$BL$36,35,0) -> 1 | E9: =VLOOKUP($A$3,'T-1GE-D'!$A$5:$BL$36,18,0) -> 3 | F9: =VLOOKUP($A$3,'T-1GE-D'!$A$5:$BL$36,42,0) -> 1 | G9: =VLOOKUP($A$3,'T-1GE-D'!$A$5:$BL$36,49,0) -> 2 | H9: =VLOOKUP($A$3,'T-1GE-D'!$A$5:$BL$36,19,0) -> 2 | I9: =VLOOKUP($A$3,'T-1GE-D'!$A$5:$BL$36,56,0) -> 2 | J9: =VLOOKUP($A$3,'T-1GE-D'!$A$5:$BL$36,63,0) -> 0
A10: Resto de enfermedades del sistema circulatorio | B10: =VLOOKUP($A$3,'T-1GE-D'!$A$5:$BL$36,20,0) -> 79 | C10: =VLOOKUP($A$3,'T-1GE-D'!$A$5:$BL$36,29,0) -> 40 | D10: =VLOOKUP($A$3,'T-1GE-D'!$A$5:$BL$36,36,0) -> 39 | E10: =VLOOKUP($A$3,'T-1GE-D'!$A$5:$BL$36,21,0) -> 90 | F10: =VLOOKUP($A$3,'T-1GE-D'!$A$5:$BL$36,43,0) -> 45 | G10: =VLOOKUP($A$3,'T-1GE-D'!$A$5:$BL$36,50,0) -> 45 | H10: =VLOOKUP($A$3,'T-1GE-D'!$A$5:$BL$36,22,0) -> 68 | I10: =VLOOKUP($A$3,'T-1GE-D'!$A$5:$BL$36,57,0) -> 31 | J10: =VLOOKUP($A$3,'T-1GE-D'!$A$5:$BL$36,64,0) -> 37
A11: Total | B11: =SUM(B4:B10) -> 5891 | C11: 3234 | D11: 2657 | E11: 6101 | F11: 3314 | G11: 2787 | H11: 5438 | I11: 2912 | J11: 2526

Sheet T-2GE-D (hidden)
A1: 1 | B1: 2 | C1: 3 | D1: 4 | E1: 5 | F1: 6 | G1: 7 | H1: 8 | I1: 9 | J1: 10
A2: Asignación provisoria de nuevas afecciones
A3: ESTADO | B3: Asignación provisoria de nuevas afecciones de etiología incierta o de uso emergente, sin especificación | E3: 2020 | G3: 2021 | I3: 2022
B4: 2020 | C4: 2021 | D4: 2022 | E4: Hombres 2020(1) | F4: Mujeres 2020(1) | G4: Hombres 2021(1) | H4: Mujeres 2021(1) | I4: Hombres 2022(1) | J4: Mujeres 2022(1)
A5: Aguascalientes | B5: 2445 | C5: 2200 | D5: 646 | E5: 1525 | F5: 920 | G5: 1281 | H5: 919 | I5: 412 | J5: 234
A6: Baja California | B6: 8248 | C6: 5586 | D6: 1413 | E6: 5020 | F6: 3228 | G6: 3442 | H6: 2143 | I6: 832 | J6: 581
A7: Baja California Sur | B7: 943 | C7: 2057 | D7: 399 | E7: 577 | F7: 366 | G7: 1263 | H7: 794 | I7: 253 | J7: 146
A8: Campeche | B8: 1452 | C8: 1533 | D8: 197 | E8: 947 | F8: 505 | G8: 911 | H8: 622 | I8: 118 | J8: 79
A9: Coahuila | B9: 6397 | C9: 4608 | D9: 1441 | E9: 3838 | F9: 2559 | G9: 2670 | H9: 1938 | I9: 841 | J9: 600
A10: Colima | B10: 956 | C10: 1685 | D10: 256 | E10: 592 | F10: 364 | G10: 1031 | H10: 654 | I10: 167 | J10: 89
A11: Chiapas | B11: 2704 | C11: 3119 | D11: 336 | E11: 1871 | F11: 833 | G11: 1892 | H11: 1227 | I11: 213 | J11: 123
A12: Chihuahua | B12: 7370 | C12: 4012 | D12: 1656 | E12: 4532 | F12: 2838 | G12: 2239 | H12: 1773 | I12: 953 | J12: 703
A13: Ciudad de México | B13: 37978 | C13: 42272 | D13: 5428 | E13: 25342 | F13: 12636 | G13: 26146 | H13: 16126 | I13: 3273 | J13: 2155
A14: Durango | B14: 2787 | C14: 2189 | D14: 608 | E14: 1696 | F14: 1091 | G14: 1206 | H14: 983 | I14: 361 | J14: 247
A15: Guanajuato | B15: 7256 | C15: 10111 | D15: 1777 | E15: 4581 | F15: 2675 | G15: 5965 | H15: 4146 | I15: 1067 | J15: 710
A16: Guerrero | B16: 4459 | C16: 6694 | D16: 740 | E16: 2989 | F16: 1470 | G16: 4123 | H16: 2571 | I16: 470 | J16: 270
A17: Hidalgo | B17: 4258 | C17: 6034 | D17: 591 | E17: 2823 | F17: 1435 | G17: 3759 | H17: 2275 | I17: 362 | J17: 229
A18: Jalisco | B18: 8834 | C18: 16673 | D18: 2955 | E18: 5669 | F18: 3165 | G18: 10112 | H18: 6560 | I18: 1821 | J18: 1134
A19: México | B19: 28613 | C19: 30583 | D19: 3336 | E19: 19059 | F19: 9554 | G19: 19209 | H19: 11372 | I19: 2078 | J19: 1258
A20: Michoacán | B20: 3813 | C20: 9246 | D20: 956 | E20: 2432 | F20: 1381 | G20: 5597 | H20: 3649 | I20: 600 | J20: 356
A21: Morelos | B21: 2796 | C21: 5947 | D21: 770 | E21: 1900 | F21: 896 | G21: 3788 | H21: 2159 | I21: 496 | J21: 274
A22: Nayarit | B22: 1286 | C22: 2333 | D22: 361 | E22: 835 | F22: 451 | G22: 1413 | H22: 920 | I22: 227 | J22: 134
A23: Nuevo León | B23: 9227 | C23: 11182 | D23: 2002 | E23: 5729 | F23: 3498 | G23: 6713 | H23: 4469 | I23: 1184 | J23: 818
A24: Oaxaca | B24: 3344 | C24: 6731 | D24: 911 | E24: 2258 | F24: 1086 | G24: 4202 | H24: 2529 | I24: 588 | J24: 323
A25: Puebla | B25: 8371 | C25: 13179 | D25: 1178 | E25: 5487 | F25: 2884 | G25: 8174 | H25: 5004 | I25: 702 | J25: 476
A26: Querétaro | B26: 2812 | C26: 4919 | D26: 864 | E26: 1805 | F26: 1007 | G26: 3085 | H26: 1834 | I26: 555 | J26: 309
A27: Quintana Roo | B27: 2700 | C27: 2597 | D27: 312 | E27: 1803 | F27: 897 | G27: 1639 | H27: 958 | I27: 203 | J27: 109
A28: San Luis Potosí | B28: 4039 | C28: 4554 | D28: 900 | E28: 2478 | F28: 1561 | G28: 2714 | H28: 1840 | I28: 565 | J28: 335
A29: Sinaloa | B29: 5505 | C29: 5583 | D29: 844 | E29: 3279 | F29: 2226 | G29: 3179 | H29: 2404 | I29: 500 | J29: 344
A30: Sonora | B30: 6242 | C30: 4780 | D30: 1295 | E30: 3679 | F30: 2563 | G30: 2711 | H30: 2069 | I30: 763 | J30: 532
A31: Tabasco | B31: 4201 | C31: 3185 | D31: 395 | E31: 2621 | F31: 1580 | G31: 1876 | H31: 1309 | I31: 214 | J31: 181
A32: Tamaulipas | B32: 4888 | C32: 5042 | D32: 1169 | E32: 2951 | F32: 1937 | G32: 2956 | H32: 2086 | I32: 705 | J32: 464
A33: Tlaxcala | B33: 1504 | C33: 2204 | D33: 200 | E33: 991 | F33: 513 | G33: 1322 | H33: 882 | I33: 141 | J33: 59
A34: Veracruz | B34: 9343 | C34: 11823 | D34: 1623 | E34: 6058 | F34: 3285 | G34: 6870 | H34: 4953 | I34: 961 | J34: 662
A35: Yucatán | B35: 3165 | C35: 4062 | D35: 756 | E35: 2016 | F35: 1149 | G35: 2438 | H35: 1624 | I35: 445 | J35: 311
A36: Zacatecas | B36: 2329 | C36: 2058 | D36: 562 | E36: 1419 | F36: 910 | G36: 1197 | H36: 861 | I36: 324 | J36: 238

Sheet 2D-GCM
A1: Asignación provisoria de nuevas afecciones
A2: SELECCIONE UNA ENTIDAD
A3: Nuevo León | B3: 2020 | C3: Hombres - 2020 | D3: Mujeres - 2020 | E3: 2021 | F3: Hombres - 2021 | G3: Mujeres - 2021 | H3: 2022 | I3: Hombres - 2022 | J3: Mujeres - 2022
A4: Asignación provisoria de nuevas afecciones de etiología incierta o de uso emergente, sin especificación | B4: =VLOOKUP($A$3,'T-2GE-D'!$A$5:$J$36,2,0) -> 9227 | C4: =VLOOKUP($A$3,'T-2GE-D'!$A$5:$J$36,5,0) -> 5729 | D4: =VLOOKUP($A$3,'T-2GE-D'!$A$5:$J$36,6,0) -> 3498 | E4: =VLOOKUP($A$3,'T-2GE-D'!$A$5:$J$36,3,0) -> 11182 | F4: =VLOOKUP($A$3,'T-2GE-D'!$A$5:$J$36,7,0) -> 6713 | G4: =VLOOKUP($A$3,'T-2GE-D'!$A$5:$J$36,8,0) -> 4469 | H4: =VLOOKUP($A$3,'T-2GE-D'!$A$5:$J$36,4,0) -> 2002 | I4: =VLOOKUP($A$3,'T-2GE-D'!$A$5:$J$36,9,0) -> 1184 | J4: =VLOOKUP($A$3,'T-2GE-D'!$A$5:$J$36,10,0) -> 818
A5: Total | B5: =SUM(B4:B4) -> 9227 | C5: 5729 | D5: 3498 | E5: 11182 | F5: 6713 | G5: 4469 | H5: 2002 | I5: 1184 | J5: 818

Sheet T-3GE-D (hidden)
A1: 1 | B1: 2 | C1: 3 | D1: 4 | E1: 5 | F1: 6 | G1: 7 | H1: 8 | I1: 9 | J1: 10 | K1: 11 | L1: 12 | M1: 13 | N1: 14 | O1: 15 | P1: 16 | Q1: 17 | R1: 18 | S1: 19 | T1: 20 | U1: 21 | V1: 22 | W1: 23 | X1: 24 | Y1: 25 | Z1: 26 | AA1: 27 | AB1: 28
A2: Enfermedades endocrinas, nutricionales y metabólicas
A3: ESTADO | B3: Diabetes mellitus | E3: Desnutrición | H3: Resto de enfermedades endocrinas, nutricionales y metabólicas | K3: 2020 | Q3: 2021 | W3: 2022
B4: 2020 | C4: 2021 | D4: 2022 | E4: 2020 | F4: 2021 | G4: 2022 | H4: 2020 | I4: 2021 | J4: 2022 | K4: Hombres 2020(1) | L4: Hombres 2020(2) | M4: Hombres 2020(3) | N4: Mujeres 2020(1) | O4: Mujeres 2020(2) | P4: Mujeres 2020(3) | Q4: Hombres 2021(1) | R4: Hombres 2021(2) | S4: Hombres 2021(3) | T4: Mujeres 2021(1) | U4: Mujeres 2021(2) | V4: Mujeres 2021(3) | W4: Hombres 2022(1) | X4: Hombres 2022(2) | Y4: Hombres 2022(3) | Z4: Mujeres 2022(1) | AA4: Mujeres 2022(2) | AB4: Mujeres 2022(3)
A5: Aguascalientes | B5: 899 | C5: 892 | D5: 920 | E5: 125 | F5: 127 | G5: 112 | H5: 117 | I5: 156 | J5: 187 | K5: 471 | L5: 53 | M5: 63 | N5: 428 | O5: 72 | P5: 54 | Q5: 471 | R5: 77 | S5: 76 | T5: 421 | U5: 50 | V5: 80 | W5: 472 | X5: 56 | Y5: 83 | Z5: 448 | AA5: 56 | AB5: 104
A6: Baja California | B6: 3583 | C6: 2720 | D6: 2607 | E6: 110 | F6: 74 | G6: 88 | H6: 311 | I6: 315 | J6: 328 | K6: 1982 | L6: 54 | M6: 165 | N6: 1601 | O6: 56 | P6: 146 | Q6: 1528 | R6: 42 | S6: 175 | T6: 1192 | U6: 32 | V6: 140 | W6: 1425 | X6: 46 | Y6: 185 | Z6: 1182 | AA6: 42 | AB6: 143
A7: Baja California Sur | B7: 506 | C7: 424 | D7: 397 | E7: 34 | F7: 30 | G7: 27 | H7: 42 | I7: 38 | J7: 55 | K7: 279 | L7: 10 | M7: 17 | N7: 227 | O7: 24 | P7: 25 | Q7: 225 | R7: 14 | S7: 22 | T7: 199 | U7: 16 | V7: 16 | W7: 210 | X7: 18 | Y7: 25 | Z7: 187 | AA7: 9 | AB7: 30
A8: Campeche | B8: 1081 | C8: 893 | D8: 748 | E8: 24 | F8: 42 | G8: 41 | H8: 53 | I8: 54 | J8: 58 | K8: 528 | L8: 16 | M8: 33 | N8: 553 | O8: 8 | P8: 20 | Q8: 403 | R8: 24 | S8: 31 | T8: 490 | U8: 18 | V8: 23 | W8: 328 | X8: 28 | Y8: 33 | Z8: 420 | AA8: 13 | AB8: 25
A9: Coahuila | B9: 3912 | C9: 3221 | D9: 3073 | E9: 165 | F9: 150 | G9: 175 | H9: 346 | I9: 253 | J9: 301 | K9: 1973 | L9: 92 | M9: 178 | N9: 1939 | O9: 73 | P9: 168 | Q9: 1537 | R9: 82 | S9: 124 | T9: 1684 | U9: 68 | V9: 129 | W9: 1527 | X9: 94 | Y9: 158 | Z9: 1546 | AA9: 81 | AB9: 143
A10: Colima | B10: 774 | C10: 829 | D10: 685 | E10: 32 | F10: 28 | G10: 22 | H10: 32 | I10: 59 | J10: 47 | K10: 414 | L10: 18 | M10: 20 | N10: 360 | O10: 14 | P10: 12 | Q10: 443 | R10: 15 | S10: 32 | T10: 386 | U10: 13 | V10: 27 | W10: 348 | X10: 15 | Y10: 17 | Z10: 337 | AA10: 7 | AB10: 30
A11: Chiapas | B11: 5998 | C11: 5818 | D11: 4650 | E11: 611 | F11: 423 | G11: 270 | H11: 439 | I11: 424 | J11: 329 | K11: 2909 | L11: 307 | M11: 242 | N11: 3089 | O11: 304 | P11: 197 | Q11: 2631 | R11: 229 | S11: 227 | T11: 3187 | U11: 194 | V11: 197 | W11: 2034 | X11: 142 | Y11: 176 | Z11: 2616 | AA11: 128 | AB11: 153
A12: Chihuahua | B12: 3849 | C12: 2831 | D12: 2912 | E12: 132 | F12: 145 | G12: 139 | H12: 560 | I12: 439 | J12: 456 | K12: 1948 | L12: 73 | M12: 286 | N12: 1901 | O12: 59 | P12: 274 | Q12: 1362 | R12: 83 | S12: 224 | T12: 1469 | U12: 62 | V12: 215 | W12: 1494 | X12: 81 | Y12: 232 | Z12: 1418 | AA12: 58 | AB12: 224
A13: Ciudad de México | B13: 17347 | C13: 13903 | D13: 10288 | E13: 155 | F13: 138 | G13: 131 | H13: 1581 | I13: 1474 | J13: 1292 | K13: 9464 | L13: 76 | M13: 867 | N13: 7883 | O13: 79 | P13: 714 | Q13: 7481 | R13: 62 | S13: 792 | T13: 6422 | U13: 76 | V13: 682 | W13: 5313 | X13: 74 | Y13: 653 | Z13: 4975 | AA13: 57 | AB13: 639
A14: Durango | B14: 1454 | C14: 1410 | D14: 1212 | E14: 45 | F14: 33 | G14: 41 | H14: 148 | I14: 167 | J14: 146 | K14: 740 | L14: 20 | M14: 85 | N14: 714 | O14: 25 | P14: 63 | Q14: 695 | R14: 24 | S14: 84 | T14: 715 | U14: 9 | V14: 83 | W14: 608 | X14: 19 | Y14: 71 | Z14: 604 | AA14: 22 | AB14: 75
A15: Guanajuato | B15: 7477 | C15: 7704 | D15: 6431 | E15: 443 | F15: 483 | G15: 378 | H15: 511 | I15: 558 | J15: 466 | K15: 3823 | L15: 225 | M15: 274 | N15: 3654 | O15: 218 | P15: 237 | Q15: 3795 | R15: 225 | S15: 294 | T15: 3909 | U15: 258 | V15: 264 | W15: 3156 | X15: 194 | Y15: 235 | Z15: 3275 | AA15: 184 | AB15: 231
A16: Guerrero | B16: 4035 | C16: 3731 | D16: 3356 | E16: 259 | F16: 294 | G16: 180 | H16: 340 | I16: 373 | J16: 316 | K16: 2080 | L16: 125 | M16: 190 | N16: 1955 | O16: 134 | P16: 150 | Q16: 1901 | R16: 154 | S16: 195 | T16: 1830 | U16: 140 | V16: 178 | W16: 1668 | X16: 95 | Y16: 169 | Z16: 1688 | AA16: 85 | AB16: 147
A17: Hidalgo | B17: 3019 | C17: 2948 | D17: 2484 | E17: 144 | F17: 170 | G17: 154 | H17: 235 | I17: 270 | J17: 263 | K17: 1579 | L17: 68 | M17: 109 | N17: 1440 | O17: 76 | P17: 126 | Q17: 1541 | R17: 86 | S17: 138 | T17: 1407 | U17: 84 | V17: 132 | W17: 1234 | X17: 72 | Y17: 130 | Z17: 1250 | AA17: 82 | AB17: 133
A18: Jalisco | B18: 7137 | C18: 7024 | D18: 5952 | E18: 489 | F18: 466 | G18: 421 | H18: 845 | I18: 947 | J18: 900 | K18: 3826 | L18: 248 | M18: 437 | N18: 3311 | O18: 241 | P18: 408 | Q18: 3693 | R18: 210 | S18: 489 | T18: 3331 | U18: 256 | V18: 458 | W18: 3100 | X18: 200 | Y18: 458 | Z18: 2852 | AA18: 221 | AB18: 442
A19: México | B19: 23748 | C19: 21943 | D19: 17063 | E19: 528 | F19: 509 | G19: 617 | H19: 1681 | I19: 1839 | J19: 1312 | K19: 13117 | L19: 231 | M19: 968 | N19: 10631 | O19: 297 | P19: 713 | Q19: 11635 | R19: 239 | S19: 950 | T19: 10308 | U19: 270 | V19: 889 | W19: 8775 | X19: 290 | Y19: 658 | Z19: 8288 | AA19: 327 | AB19: 654
A20: Michoacán | B20: 5619 | C20: 6270 | D20: 4650 | E20: 295 | F20: 320 | G20: 271 | H20: 523 | I20: 647 | J20: 455 | K20: 2862 | L20: 158 | M20: 259 | N20: 2757 | O20: 137 | P20: 264 | Q20: 3116 | R20: 177 | S20: 336 | T20: 3154 | U20: 143 | V20: 311 | W20: 2362 | X20: 147 | Y20: 246 | Z20: 2288 | AA20: 124 | AB20: 209
A21: Morelos | B21: 2648 | C21: 2652 | D21: 2217 | E21: 163 | F21: 159 | G21: 160 | H21: 235 | I21: 256 | J21: 255 | K21: 1400 | L21: 89 | M21: 124 | N21: 1248 | O21: 74 | P21: 111 | Q21: 1364 | R21: 87 | S21: 130 | T21: 1288 | U21: 72 | V21: 126 | W21: 1063 | X21: 57 | Y21: 125 | Z21: 1154 | AA21: 103 | AB21: 130
A22: Nayarit | B22: 990 | C22: 1072 | D22: 852 | E22: 107 | F22: 97 | G22: 87 | H22: 100 | I22: 99 | J22: 105 | K22: 506 | L22: 53 | M22: 53 | N22: 484 | O22: 54 | P22: 47 | Q22: 565 | R22: 51 | S22: 49 | T22: 507 | U22: 46 | V22: 50 | W22: 435 | X22: 50 | Y22: 53 | Z22: 417 | AA22: 37 | AB22: 52
A23: Nuevo León | B23: 4246 | C23: 4263 | D23: 4065 | E23: 170 | F23: 160 | G23: 174 | H23: 356 | I23: 436 | J23: 436 | K23: 2277 | L23: 84 | M23: 181 | N23: 1969 | O23: 86 | P23: 175 | Q23: 2200 | R23: 73 | S23: 224 | T23: 2063 | U23: 87 | V23: 212 | W23: 2109 | X23: 90 | Y23: 220 | Z23: 1956 | AA23: 84 | AB23: 216
A24: Oaxaca | B24: 5044 | C24: 5580 | D24: 4500 | E24: 624 | F24: 694 | G24: 623 | H24: 483 | I24: 556 | J24: 454 | K24: 2517 | L24: 285 | M24: 265 | N24: 2527 | O24: 339 | P24: 218 | Q24: 2640 | R24: 301 | S24: 286 | T24: 2940 | U24: 393 | V24: 270 | W24: 2109 | X24: 290 | Y24: 231 | Z24: 2391 | AA24: 333 | AB24: 223
A25: Puebla | B25: 10138 | C25: 10461 | D25: 7683 | E25: 459 | F25: 533 | G25: 486 | H25: 681 | I25: 723 | J25: 488 | K25: 5192 | L25: 227 | M25: 363 | N25: 4946 | O25: 232 | P25: 318 | Q25: 5314 | R25: 256 | S25: 382 | T25: 5147 | U25: 277 | V25: 341 | W25: 3708 | X25: 238 | Y25: 242 | Z25: 3975 | AA25: 248 | AB25: 246
A26: Querétaro | B26: 1930 | C26: 1900 | D26: 1452 | E26: 106 | F26: 128 | G26: 97 | H26: 188 | I26: 197 | J26: 211 | K26: 1040 | L26: 64 | M26: 104 | N26: 890 | O26: 42 | P26: 84 | Q26: 985 | R26: 62 | S26: 114 | T26: 915 | U26: 66 | V26: 83 | W26: 716 | X26: 43 | Y26: 107 | Z26: 736 | AA26: 54 | AB26: 104
A27: Quintana Roo | B27: 1266 | C27: 1110 | D27: 1100 | E27: 33 | F27: 45 | G27: 57 | H27: 140 | I27: 130 | J27: 107 | K27: 669 | L27: 15 | M27: 72 | N27: 597 | O27: 18 | P27: 68 | Q27: 571 | R27: 32 | S27: 71 | T27: 539 | U27: 13 | V27: 59 | W27: 573 | X27: 34 | Y27: 57 | Z27: 527 | AA27: 23 | AB27: 50
A28: San Luis Potosí | B28: 3248 | C28: 3129 | D28: 2678 | E28: 180 | F28: 148 | G28: 137 | H28: 308 | I28: 307 | J28: 356 | K28: 1626 | L28: 100 | M28: 166 | N28: 1622 | O28: 80 | P28: 142 | Q28: 1536 | R28: 71 | S28: 163 | T28: 1593 | U28: 77 | V28: 144 | W28: 1329 | X28: 71 | Y28: 180 | Z28: 1349 | AA28: 66 | AB28: 176
A29: Sinaloa | B29: 2145 | C29: 1791 | D29: 1695 | E29: 75 | F29: 67 | G29: 84 | H29: 183 | I29: 207 | J29: 225 | K29: 1111 | L29: 36 | M29: 98 | N29: 1034 | O29: 39 | P29: 85 | Q29: 972 | R29: 36 | S29: 99 | T29: 819 | U29: 31 | V29: 108 | W29: 904 | X29: 50 | Y29: 113 | Z29: 791 | AA29: 34 | AB29: 112
A30: Sonora | B30: 2296 | C30: 1809 | D30: 1662 | E30: 125 | F30: 92 | G30: 107 | H30: 246 | I30: 234 | J30: 253 | K30: 1165 | L30: 75 | M30: 123 | N30: 1131 | O30: 50 | P30: 123 | Q30: 909 | R30: 68 | S30: 114 | T30: 900 | U30: 24 | V30: 120 | W30: 822 | X30: 72 | Y30: 125 | Z30: 840 | AA30: 35 | AB30: 128
A31: Tabasco | B31: 4278 | C31: 3312 | D31: 2832 | E31: 100 | F31: 98 | G31: 111 | H31: 230 | I31: 197 | J31: 181 | K31: 2146 | L31: 58 | M31: 131 | N31: 2132 | O31: 42 | P31: 99 | Q31: 1557 | R31: 52 | S31: 96 | T31: 1755 | U31: 46 | V31: 101 | W31: 1357 | X31: 69 | Y31: 97 | Z31: 1475 | AA31: 42 | AB31: 84
A32: Tamaulipas | B32: 4074 | C32: 3513 | D32: 3143 | E32: 139 | F32: 130 | G32: 130 | H32: 272 | I32: 258 | J32: 263 | K32: 2093 | L32: 73 | M32: 141 | N32: 1981 | O32: 66 | P32: 131 | Q32: 1749 | R32: 75 | S32: 122 | T32: 1764 | U32: 55 | V32: 136 | W32: 1617 | X32: 71 | Y32: 137 | Z32: 1526 | AA32: 59 | AB32: 126
A33: Tlaxcala | B33: 2111 | C33: 1938 | D33: 1318 | E33: 87 | F33: 74 | G33: 67 | H33: 168 | I33: 134 | J33: 118 | K33: 1157 | L33: 47 | M33: 104 | N33: 954 | O33: 40 | P33: 64 | Q33: 1015 | R33: 33 | S33: 73 | T33: 923 | U33: 41 | V33: 61 | W33: 640 | X33: 24 | Y33: 61 | Z33: 678 | AA33: 43 | AB33: 57
A34: Veracruz | B34: 12699 | C34: 12649 | D34: 10364 | E34: 843 | F34: 779 | G34: 740 | H34: 790 | I34: 836 | J34: 785 | K34: 6327 | L34: 447 | M34: 419 | N34: 6372 | O34: 396 | P34: 371 | Q34: 6088 | R34: 377 | S34: 449 | T34: 6561 | U34: 402 | V34: 387 | W34: 4887 | X34: 381 | Y34: 403 | Z34: 5477 | AA34: 359 | AB34: 382
A35: Yucatán | B35: 1904 | C35: 1511 | D35: 1404 | E35: 74 | F35: 94 | G35: 60 | H35: 175 | I35: 135 | J35: 150 | K35: 896 | L35: 44 | M35: 86 | N35: 1008 | O35: 30 | P35: 89 | Q35: 652 | R35: 59 | S35: 66 | T35: 859 | U35: 35 | V35: 69 | W35: 613 | X35: 28 | Y35: 76 | Z35: 791 | AA35: 32 | AB35: 74
A36: Zacatecas | B36: 1561 | C36: 1475 | D36: 1274 | E36: 160 | F36: 153 | G36: 156 | H36: 209 | I36: 277 | J36: 250 | K36: 805 | L36: 79 | M36: 100 | N36: 756 | O36: 81 | P36: 109 | Q36: 756 | R36: 80 | S36: 146 | T36: 719 | U36: 73 | V36: 131 | W36: 614 | X36: 83 | Y36: 118 | Z36: 660 | AA36: 73 | AB36: 132

Sheet 3D-GCM
A1: Enfermedades endocrinas, nutricionales y metabólicas
A2: SELECCIONE UNA ENTIDAD
A3: Aguascalientes | B3: 2020 | C3: H - 2020 | D3: M - 2020 | E3: 2021 | F3: H - 2021 | G3: M - 2021 | H3: 2022 | I3: H - 2022 | J3: M - 2022
A4: Diabetes mellitus | B4: =VLOOKUP($A$3,'T-3GE-D'!$A$5:$BL$36,2,0) -> 899 | C4: =VLOOKUP($A$3,'T-3GE-D'!$A$5:$BL$36,11,0) -> 471 | D4: =VLOOKUP($A$3,'T-3GE-D'!$A$5:$BL$36,14,0) -> 428 | E4: =VLOOKUP($A$3,'T-3GE-D'!$A$5:$BL$36,3,0) -> 892 | F4: =VLOOKUP($A$3,'T-3GE-D'!$A$5:$BL$36,17,0) -> 471 | G4: =VLOOKUP($A$3,'T-3GE-D'!$A$5:$BL$36,20,0) -> 421 | H4: =VLOOKUP($A$3,'T-3GE-D'!$A$5:$BL$36,4,0) -> 920 | I4: =VLOOKUP($A$3,'T-3GE-D'!$A$5:$BL$36,23,0) -> 472 | J4: =VLOOKUP($A$3,'T-3GE-D'!$A$5:$BL$36,26,0) -> 448
A5: Desnutrición | B5: =VLOOKUP($A$3,'T-3GE-D'!$A$5:$BL$36,5,0) -> 125 | C5: =VLOOKUP($A$3,'T-3GE-D'!$A$5:$BL$36,12,0) -> 53 | D5: =VLOOKUP($A$3,'T-3GE-D'!$A$5:$BL$36,15,0) -> 72 | E5: =VLOOKUP($A$3,'T-3GE-D'!$A$5:$BL$36,6,0) -> 127 | F5: =VLOOKUP($A$3,'T-3GE-D'!$A$5:$BL$36,18,0) -> 77 | G5: =VLOOKUP($A$3,'T-3GE-D'!$A$5:$BL$36,21,0) -> 50 | H5: =VLOOKUP($A$3,'T-3GE-D'!$A$5:$BL$36,7,0) -> 112 | I5: =VLOOKUP($A$3,'T-3GE-D'!$A$5:$BL$36,24,0) -> 56 | J5: =VLOOKUP($A$3,'T-3GE-D'!$A$5:$BL$36,27,0) -> 56
A6: Resto de enfermedades endocrinas, nutricionales y metabólicas | B6: =VLOOKUP($A$3,'T-3GE-D'!$A$5:$BL$36,8,0) -> 117 | C6: =VLOOKUP($A$3,'T-3GE-D'!$A$5:$BL$36,13,0) -> 63 | D6: =VLOOKUP($A$3,'T-3GE-D'!$A$5:$BL$36,16,0) -> 54 | E6: =VLOOKUP($A$3,'T-3GE-D'!$A$5:$BL$36,9,0) -> 156 | F6: =VLOOKUP($A$3,'T-3GE-D'!$A$5:$BL$36,19,0) -> 76 | G6: =VLOOKUP($A$3,'T-3GE-D'!$A$5:$BL$36,22,0) -> 80 | H6: =VLOOKUP($A$3,'T-3GE-D'!$A$5:$BL$36,10,0) -> 187 | I6: =VLOOKUP($A$3,'T-3GE-D'!$A$5:$BL$36,25,0) -> 83 | J6: =VLOOKUP($A$3,'T-3GE-D'!$A$5:$BL$36,28,0) -> 104
A7: Total | B7: =SUM(B4:B6) -> 1141 | C7: 587 | D7: 554 | E7: 1175 | F7: 624 | G7: 551 | H7: 1219 | I7: 611 | J7: 608

Sheet T-4GE-D (hidden)
A1: 1 | B1: 2 | C1: 3 | D1: 4 | E1: 5 | F1: 6 | G1: 7 | H1: 8 | I1: 9 | J1: 10 | K1: 11 | L1: 12 | M1: 13 | N1: 14 | O1: 15 | P1: 16 | Q1: 17 | R1: 18 | S1: 19 | T1: 20 | U1: 21 | V1: 22 | W1: 23 | X1: 24 | Y1: 25 | Z1: 26 | AA1: 27 | AB1: 28 | AC1: 29 | AD1: 30 | AE1: 31 | AF1: 32 | AG1: 33 | AH1: 34 | AI1: 35 | AJ1: 36 | AK1: 37 | AL1: 38 | AM1: 39 | AN1: 40 | AO1: 41 | AP1: 42 | AQ1: 43 | AR1: 44 | AS1: 45 | AT1: 46 | AU1: 47 | AV1: 48 | AW1: 49 | AX1: 50 | AY1: 51 | AZ1: 52 | BA1: 53 | BB1: 54 | BC1: 55 | BD1: 56 | BE1: 57 | BF1: 58 | BG1: 59 | BH1: 60 | BI1: 61 | BJ1: 62 | BK1: 63 | BL1: 64 | BM1: 65 | BN1: 66 | BO1: 67 | BP1: 68 | BQ1: 69 | BR1: 70 | BS1: 71 | BT1: 72 | BU1: 73 | BV1: 74 | BW1: 75 | BX1: 76 | BY1: 77 | BZ1: 78 | CA1: 79 | CB1: 80 | CC1: 81 | CD1: 82 | CE1: 83 | CF1: 84 | CG1: 85 | CH1: 86 | CI1: 87 | CJ1: 88 | CK1: 89 | CL1: 90 | CM1: 91 | CN1: 92 | CO1: 93 | CP1: 94 | CQ1: 95 | CR1: 96 | CS1: 97 | CT1: 98 | CU1: 99 | CV1: 100 | CW1: 101 | CX1: 102 | CY1: 103 | CZ1: 104 | DA1: 105 | DB1: 106 | DC1: 107 | DD1: 108 | DE1: 109 | DF1: 110 | DG1: 111 | DH1: 112 | DI1: 113 | DJ1: 114 | DK1: 115 | DL1: 116 | DM1: 117 | DN1: 118 | DO1: 119 | DP1: 120 | DQ1: 121 | DR1: 122 | DS1: 123 | DT1: 124 | DU1: 125 | DV1: 126 | DW1: 127 | DX1: 128 | DY1: 129 | DZ1: 130 | EA1: 131 | EB1: 132 | EC1: 133 | ED1: 134 | EE1: 135 | EF1: 136 | EG1: 137 | EH1: 138 | EI1: 139 | EJ1: 140 | EK1: 141 | EL1: 142 | EM1: 143 | EN1: 144 | EO1: 145 | EP1: 146 | EQ1: 147 | ER1: 148 | ES1: 149 | ET1: 150 | EU1: 151 | EV1: 152 | EW1: 153 | EX1: 154 | EY1: 155 | EZ1: 156 | FA1: 157 | FB1: 158 | FC1: 159 | FD1: 160 | FE1: 161 | FF1: 162 | FG1: 163 | FH1: 164 | FI1: 165 | FJ1: 166 | FK1: 167 | FL1: 168 | FM1: 169 | FN1: 170 | FO1: 171 | FP1: 172 | FQ1: 173 | FR1: 174 | FS1: 175 | FT1: 176 | FU1: 177 | FV1: 178 | FW1: 179 | FX1: 180 | FY1: 181 | FZ1: 182 | GA1: 183 | GB1: 184 | GC1: 185 | GD1: 186 | GE1: 187 | GF1: 188 | GG1: 189 | GH1: 190
A2: Tumores (neoplasias)
A3: ESTADO | B3: Tumores malignos del labio, de la cavidad bucal y de la faringe | E3: Tumor maligno del esófago | H3: Tumor maligno del estómago | K3: Tumor maligno del colon, del recto y del ano | N3: Tumor maligno del hígado y de las vías biliares intrahepáticas | Q3: Tumor maligno del páncreas | T3: Tumor maligno de la laringe | W3: Tumor maligno de la tráquea, de los bronquios y del pulmón | Z3: Melanoma maligno de la piel | AC3: Tumor maligno de la mama | AF3: Tumor maligno del cuello del útero | AI3: Tumor maligno de otras partes y de las no especificadas del útero | AL3: Tumor maligno del ovario | AO3: Tumor maligno de la próstata | AR3: Tumor maligno de la vejiga urinaria | AU3: Tumor maligno de las meninges, del encéfalo y de otras partes del sistema nervioso central | AX3: Linfoma no Hodgkin | BA3: Mieloma múltiple y tumores malignos de células plasmáticas | BD3: Leucemia | BG3: Resto de tumores malignos | BJ3: Resto de tumores | BM3: 2020 | DC3: 2021 | ES3: 2022
B4: 2020 | C4: 2021 | D4: 2022 | E4: 2020 | F4: 2021 | G4: 2022 | H4: 2020 | I4: 2021 | J4: 2022 | K4: 2020 | L4: 2021 | M4: 2022 | N4: 2020 | O4: 2021 | P4: 2022 | Q4: 2020 | R4: 2021 | S4: 2022 | T4: 2020 | U4: 2021 | V4: 2022 | W4: 2020 | X4: 2021 | Y4: 2022 | Z4: 2020 | AA4: 2021 | AB4: 2022 | AC4: 2020 | AD4: 2021 | AE4: 2022 | AF4: 2020 | AG4: 2021 | AH4: 2022 | AI4: 2020 | AJ4: 2021 | AK4: 2022 | AL4: 2020 | AM4: 2021 | AN4: 2022 | AO4: 2020 | AP4: 2021 | AQ4: 2022 | AR4: 2020 | AS4: 2021 | AT4: 2022 | AU4: 2020 | AV4: 2021 | AW4: 2022 | AX4: 2020 | AY4: 2021 | AZ4: 2022 | BA4: 2020 | BB4: 2021 | BC4: 2022 | BD4: 2020 | BE4: 2021 | BF4: 2022 | BG4: 2020 | BH4: 2021 | BI4: 2022 | BJ4: 2020 | BK4: 2021 | BL4: 2022 | BM4: Hombres 2020(1) | BN4: Hombres 2020(2) | BO4: Hombres 2020(3) | BP4: Hombres 2020(4) | BQ4: Hombres 2020(5) | BR4: Hombres 2020(6) | BS4: Hombres 2020(7) | BT4: Hombres 2020(8) | BU4: Hombres 2020(9) | BV4: Hombres 2020(10) | BW4: Hombres 2020(11) | BX4: Hombres 2020(12) | BY4: Hombres 2020(13) | BZ4: Hombres 2020(14) | CA4: Hombres 2020(15) | CB4: Hombres 2020(16) | CC4: Hombres 2020(17) | CD4: Hombres 2020(18) | CE4: Hombres 2020(19) | CF4: Hombres 2020(20) | CG4: Hombres 2020(21) | CH4: Mujeres 2020(1) | CI4: Mujeres 2020(2) | CJ4: Mujeres 2020(3) | CK4: Mujeres 2020(4) | CL4: Mujeres 2020(5) | CM4: Mujeres 2020(6) | CN4: Mujeres 2020(7) | CO4: Mujeres 2020(8) | CP4: Mujeres 2020(9) | CQ4: Mujeres 2020(10) | CR4: Mujeres 2020(11) | CS4: Mujeres 2020(12) | CT4: Mujeres 2020(13) | CU4: Mujeres 2020(14) | CV4: Mujeres 2020(15) | CW4: Mujeres 2020(16) | CX4: Mujeres 2020(17) | CY4: Mujeres 2020(18) | CZ4: Mujeres 2020(19) | DA4: Mujeres 2020(20) | DB4: Mujeres 2020(21) | DC4: Hombres 2021(1) | DD4: Hombres 2021(2) | DE4: Hombres 2021(3) | DF4: Hombres 2021(4) | DG4: Hombres 2021(5) | DH4: Hombres 2021(6) | DI4: Hombres 2021(7) | DJ4: Hombres 2021(8) | DK4: Hombres 2021(9) | DL4: Hombres 2021(10) | DM4: Hombres 2021(11) | DN4: Hombres 2021(12) | DO4: Hombres 2021(13) | DP4: Hombres 2021(14) | DQ4: Hombres 2021(15) | DR4: Hombres 2021(16) | DS4: Hombres 2021(17) | DT4: Hombres 2021(18) | DU4: Hombres 2021(19) | DV4: Hombres 2021(20) | DW4: Hombres 2021(21) | DX4: Mujeres 2021(1) | DY4: Mujeres 2021(2) | DZ4: Mujeres 2021(3) | EA4: Mujeres 2021(4) | EB4: Mujeres 2021(5) | EC4: Mujeres 2021(6) | ED4: Mujeres 2021(7) | EE4: Mujeres 2021(8) | EF4: Mujeres 2021(9) | EG4: Mujeres 2021(10) | EH4: Mujeres 2021(11) | EI4: Mujeres 2021(12) | EJ4: Mujeres 2021(13) | EK4: Mujeres 2021(14) | EL4: Mujeres 2021(15) | EM4: Mujeres 2021(16) | EN4: Mujeres 2021(17) | EO4: Mujeres 2021(18) | EP4: Mujeres 2021(19) | EQ4: Mujeres 2021(20) | ER4: Mujeres 2021(21) | ES4: Hombres 2022(1) | ET4: Hombres 2022(2) | EU4: Hombres 2022(3) | EV4: Hombres 2022(4) | EW4: Hombres 2022(5) | EX4: Hombres 2022(6) | EY4: Hombres 2022(7) | EZ4: Hombres 2022(8) | FA4: Hombres 2022(9) | FB4: Hombres 2022(10) | FC4: Hombres 2022(11) | FD4: Hombres 2022(12) | FE4: Hombres 2022(13) | FF4: Hombres 2022(14) | FG4: Hombres 2022(15) | FH4: Hombres 2022(16) | FI4: Hombres 2022(17) | FJ4: Hombres 2022(18) | FK4: Hombres 2022(19) | FL4: Hombres 2022(20) | FM4: Hombres 2022(21) | FN4: Mujeres 2022(1) | FO4: Mujeres 2022(2) | FP4: Mujeres 2022(3) | FQ4: Mujeres 2022(4) | FR4: Mujeres 2022(5) | FS4: Mujeres 2022(6) | FT4: Mujeres 2022(7) | FU4: Mujeres 2022(8) | FV4: Mujeres 2022(9) | FW4: Mujeres 2022(10) | FX4: Mujeres 2022(11) | FY4: Mujeres 2022(12) | FZ4: Mujeres 2022(13) | GA4: Mujeres 2022(14) | GB4: Mujeres 2022(15) | GC4: Mujeres 2022(16) | GD4: Mujeres 2022(17) | GE4: Mujeres 2022(18) | GF4: Mujeres 2022(19) | GG4: Mujeres 2022(20) | GH4: Mujeres 2022(21)
A5: Aguascalientes | B5: 13 | C5: 13 | D5: 12 | E5: 16 | F5: 14 | G5: 14 | H5: 65 | I5: 39 | J5: 59 | K5: 79 | L5: 70 | M5: 73 | N5: 44 | O5: 55 | P5: 40 | Q5: 55 | R5: 51 | S5: 55 | T5: 5 | U5: 3 | V5: 6 | W5: 90 | X5: 95 | Y5: 100 | Z5: 8 | AA5: 7 | AB5: 6 | AC5: 89 | AD5: 77 | AE5: 79 | AF5: 32 | AG5: 41 | AH5: 43 | AI5: 18 | AJ5: 16 | AK5: 22 | AL5: 28 | AM5: 44 | AN5: 29 | AO5: 103 | AP5: 87 | AQ5: 73 | AR5: 13 | AS5: 19 | AT5: 9 | AU5: 27 | AV5: 32 | AW5: 28 | AX5: 35 | AY5: 29 | AZ5: 31 | BA5: 15 | BB5: 22 | BC5: 15 | BD5: 49 | BE5: 58 | BF5: 38 | BG5: 162 | BH5: 195 | BI5: 185 | BJ5: 72 | BK5: 81 | BL5: 95 | BM5: 10 | BN5: 15 | BO5: 34 | BP5: 45 | BQ5: 23 | BR5: 24 | BS5: 4 | BT5: 56 | BU5: 6 | BV5: 0 | BW5: NA | BX5: NA | BY5: NA | BZ5: 103 | CA5: 10 | CB5: 14 | CC5: 20 | CD5: 8 | CE5: 30 | CF5: 94 | CG5: 37 | CH5: 3 | CI5: 1 | CJ5: 31 | CK5: 34 | CL5: 21 | CM5: 31 | CN5: 1 | CO5: 34 | CP5: 2 | CQ5: 89 | CR5: 32 | CS5: 18 | CT5: 28 | CU5: NA | CV5: 3 | CW5: 13 | CX5: 15 | CY5: 7 | CZ5: 19 | DA5: 68 | DB5: 35 | DC5: 9 | DD5: 10 | DE5: 14 | DF5: 40 | DG5: 24 | DH5: 24 | DI5: 3 | DJ5: 48 | DK5: 3 | DL5: 0 | DM5: NA | DN5: NA | DO5: NA | DP5: 87 | DQ5: 13 | DR5: 12 | DS5: 16 | DT5: 13 | DU5: 35 | DV5: 88 | DW5: 34 | DX5: 4 | DY5: 4 | DZ5: 25 | EA5: 30 | EB5: 31 | EC5: 27 | ED5: 0 | EE5: 47 | EF5: 4 | EG5: 77 | EH5: 41 | EI5: 16 | EJ5: 44 | EK5: NA | EL5: 6 | EM5: 20 | EN5: 13 | EO5: 9 | EP5: 23 | EQ5: 107 | ER5: 47 | ES5: 9 | ET5: 11 | EU5: 28 | EV5: 37 | EW5: 22 | EX5: 22 | EY5: 6 | EZ5: 57 | FA5: 2 | FB5: 1 | FC5: NA | FD5: NA | FE5: NA | FF5: 73 | FG5: 7 | FH5: 12 | FI5: 17 | FJ5: 9 | FK5: 23 | FL5: 98 | FM5: 48 | FN5: 3 | FO5: 3 | FP5: 31 | FQ5: 36 | FR5: 18 | FS5: 33 | FT5: 0 | FU5: 43 | FV5: 4 | FW5: 78 | FX5: 43 | FY5: 22 | FZ5: 29 | GA5: NA | GB5: 2 | GC5: 16 | GD5: 14 | GE5: 6 | GF5: 15 | GG5: 87 | GH5: 47
A6: Baja California | B6: 47 | C6: 47 | D6: 44 | E6: 33 | F6: 44 | G6: 34 | H6: 170 | I6: 201 | J6: 168 | K6: 307 | L6: 329 | M6: 297 | N6: 182 | O6: 147 | P6: 174 | Q6: 162 | R6: 151 | S6: 167 | T6: 20 | U6: 27 | V6: 22 | W6: 233 | X6: 245 | Y6: 230 | Z6: 16 | AA6: 12 | AB6: 19 | AC6: 271 | AD6: 290 | AE6: 267 | AF6: 149 | AG6: 121 | AH6: 138 | AI6: 43 | AJ6: 52 | AK6: 59 | AL6: 64 | AM6: 55 | AN6: 83 | AO6: 184 | AP6: 217 | AQ6: 177 | AR6: 38 | AS6: 33 | AT6: 39 | AU6: 78 | AV6: 78 | AW6: 81 | AX6: 73 | AY6: 83 | AZ6: 79 | BA6: 33 | BB6: 34 | BC6: 38 | BD6: 136 | BE6: 126 | BF6: 120 | BG6: 515 | BH6: 487 | BI6: 509 | BJ6: 218 | BK6: 247 | BL6: 282 | BM6: 29 | BN6: 27 | BO6: 95 | BP6: 182 | BQ6: 96 | BR6: 78 | BS6: 20 | BT6: 144 | BU6: 7 | BV6: 2 | BW6: NA | BX6: NA | BY6: NA | BZ6: 184 | CA6: 26 | CB6: 43 | CC6: 41 | CD6: 12 | CE6: 75 | CF6: 285 | CG6: 112 | CH6: 18 | CI6: 6 | CJ6: 75 | CK6: 125 | CL6: 86 | CM6: 84 | CN6: 0 | CO6: 89 | CP6: 9 | CQ6: 269 | CR6: 149 | CS6: 43 | CT6: 64 | CU6: NA | CV6: 12 | CW6: 35 | CX6: 32 | CY6: 21 | CZ6: 61 | DA6: 230 | DB6: 106 | DC6: 34 | DD6: 39 | DE6: 114 | DF6: 181 | DG6: 87 | DH6: 69 | DI6: 23 | DJ6: 151 | DK6: 6 | DL6: 1 | DM6: NA | DN6: NA | DO6: NA | DP6: 217 | DQ6: 22 | DR6: 43 | DS6: 43 | DT6: 22 | DU6: 73 | DV6: 259 | DW6: 131 | DX6: 13 | DY6: 5 | DZ6: 87 | EA6: 148 | EB6: 60 | EC6: 82 | ED6: 4 | EE6: 94 | EF6: 6 | EG6: 289 | EH6: 121 | EI6: 52 | EJ6: 55 | EK6: NA | EL6: 11 | EM6: 35 | EN6: 40 | EO6: 12 | EP6: 53 | EQ6: 228 | ER6: 116 | ES6: 34 | ET6: 29 | EU6: 95 | EV6: 166 | EW6: 96 | EX6: 83 | EY6: 20 | EZ6: 125 | FA6: 13 | FB6: 1 | FC6: NA | FD6: NA | FE6: NA | FF6: 177 | FG6: 23 | FH6: 49 | FI6: 42 | FJ6: 21 | FK6: 66 | FL6: 276 | FM6: 130 | FN6: 10 | FO6: 5 | FP6: 73 | FQ6: 131 | FR6: 78 | FS6: 84 | FT6: 2 | FU6: 105 | FV6: 6 | FW6: 266 | FX6: 138 | FY6: 59 | FZ6: 83 | GA6: NA | GB6: 16 | GC6: 32 | GD6: 37 | GE6: 17 | GF6: 54 | GG6: 233 | GH6: 152
A7: Baja California Sur | B7: 9 | C7: 13 | D7: 5 | E7: 12 | F7: 13 | G7: 8 | H7: 36 | I7: 29 | J7: 39 | K7: 66 | L7: 49 | M7: 71 | N7: 28 | O7: 38 | P7: 33 | Q7: 39 | R7: 45 | S7: 32 | T7: 10 | U7: 4 | V7: 2 | W7: 51 | X7: 71 | Y7: 45 | Z7: 4 | AA7: 1 | AB7: 3 | AC7: 56 | AD7: 58 | AE7: 53 | AF7: 20 | AG7: 24 | AH7: 17 | AI7: 4 | AJ7: 11 | AK7: 8 | AL7: 17 | AM7: 16 | AN7: 12 | AO7: 29 | AP7: 44 | AQ7: 51 | AR7: 9 | AS7: 9 | AT7: 10 | AU7: 10 | AV7: 10 | AW7: 15 | AX7: 23 | AY7: 13 | AZ7: 14 | BA7: 7 | BB7: 8 | BC7: 8 | BD7: 32 | BE7: 19 | BF7: 31 | BG7: 107 | BH7: 82 | BI7: 114 | BJ7: 50 | BK7: 56 | BL7: 59 | BM7: 6 | BN7: 11 | BO7: 23 | BP7: 32 | BQ7: 15 | BR7: 21 | BS7: 9 | BT7: 27 | BU7: 2 | BV7: 0 | BW7: NA | BX7: NA | BY7: NA | BZ7: 29 | CA7: 6 | CB7: 7 | CC7: 9 | CD7: 7 | CE7: 19 | CF7: 70 | CG7: 29 | CH7: 3 | CI7: 1 | CJ7: 13 | CK7: 34 | CL7: 13 | CM7: 18 | CN7: 1 | CO7: 24 | CP7: 2 | CQ7: 56 | CR7: 20 | CS7: 4 | CT7: 17 | CU7: NA | CV7: 3 | CW7: 3 | CX7: 14 | CY7: 0 | CZ7: 13 | DA7: 37 | DB7: 21 | DC7: 10 | DD7: 10 | DE7: 17 | DF7: 32 | DG7: 24 | DH7: 22 | DI7: 4 | DJ7: 50 | DK7: 1 | DL7: 0 | DM7: NA | DN7: NA | DO7: NA | DP7: 44 | DQ7: 5 | DR7: 6 | DS7: 7 | DT7: 6 | DU7: 11 | DV7: 55 | DW7: 29 | DX7: 3 | DY7: 3 | DZ7: 12 | EA7: 17 | EB7: 14 | EC7: 23 | ED7: 0 | EE7: 21 | EF7: 0 | EG7: 58 | EH7: 24 | EI7: 11 | EJ7: 16 | EK7: NA | EL7: 4 | EM7: 4 | EN7: 6 | EO7: 2 | EP7: 8 | EQ7: 27 | ER7: 27 | ES7: 3 | ET7: 7 | EU7: 24 | EV7: 48 | EW7: 12 | EX7: 15 | EY7: 1 | EZ7: 28 | FA7: 3 | FB7: 0 | FC7: NA | FD7: NA | FE7: NA | FF7: 51 | FG7: 6 | FH7: 9 | FI7: 7 | FJ7: 2 | FK7: 22 | FL7: 73 | FM7: 37 | FN7: 2 | FO7: 1 | FP7: 15 | FQ7: 23 | FR7: 21 | FS7: 17 | FT7: 1 | FU7: 17 | FV7: 0 | FW7: 53 | FX7: 17 | FY7: 8 | FZ7: 12 | GA7: NA | GB7: 4 | GC7: 6 | GD7: 7 | GE7: 6 | GF7: 9 | GG7: 41 | GH7: 22
A8: Campeche | B8: 14 | C8: 15 | D8: 12 | E8: 5 | F8: 5 | G8: 5 | H8: 71 | I8: 59 | J8: 59 | K8: 42 | L8: 53 | M8: 49 | N8: 49 | O8: 68 | P8: 74 | Q8: 21 | R8: 20 | S8: 28 | T8: 3 | U8: 4 | V8: 5 | W8: 36 | X8: 37 | Y8: 43 | Z8: 2 | AA8: 1 | AB8: 5 | AC8: 49 | AD8: 42 | AE8: 38 | AF8: 37 | AG8: 33 | AH8: 43 | AI8: 8 | AJ8: 16 | AK8: 7 | AL8: 14 | AM8: 15 | AN8: 19 | AO8: 65 | AP8: 44 | AQ8: 49 | AR8: 8 | AS8: 7 | AT8: 5 | AU8: 16 | AV8: 19 | AW8: 15 | AX8: 31 | AY8: 23 | AZ8: 22 | BA8: 6 | BB8: 4 | BC8: 8 | BD8: 25 | BE8: 28 | BF8: 33 | BG8: 101 | BH8: 110 | BI8: 130 | BJ8: 43 | BK8: 37 | BL8: 46 | BM8: 8 | BN8: 5 | BO8: 40 | BP8: 21 | BQ8: 28 | BR8: 13 | BS8: 3 | BT8: 19 | BU8: 1 | BV8: 1 | BW8: NA | BX8: NA | BY8: NA | BZ8: 65 | CA8: 6 | CB8: 9 | CC8: 21 | CD8: 3 | CE8: 18 | CF8: 51 | CG8: 28 | CH8: 6 | CI8: 0 | CJ8: 31 | CK8: 21 | CL8: 21 | CM8: 8 | CN8: 0 | CO8: 17 | CP8: 1 | CQ8: 48 | CR8: 37 | CS8: 8 | CT8: 14 | CU8: NA | CV8: 2 | CW8: 7 | CX8: 10 | CY8: 3 | CZ8: 7 | DA8: 50 | DB8: 15 | DC8: 10 | DD8: 3 | DE8: 24 | DF8: 28 | DG8: 39 | DH8: 14 | DI8: 4 | DJ8: 21 | DK8: 0 | DL8: 0 | DM8: NA | DN8: NA | DO8: NA | DP8: 44 | DQ8: 6 | DR8: 9 | DS8: 9 | DT8: 4 | DU8: 18 | DV8: 67 | DW8: 19 | DX8: 5 | DY8: 2 | DZ8: 35 | EA8: 25 | EB8: 29 | EC8: 6 | ED8: 0 | EE8: 16 | EF8: 1 | EG8: 42 | EH8: 33 | EI8: 16 | EJ8: 15 | EK8: NA | EL8: 1 | EM8: 10 | EN8: 14 | EO8: 0 | EP8: 10 | EQ8: 43 | ER8: 18 | ES8: 7 | ET8: 4 | EU8: 29 | EV8: 24 | EW8: 39 | EX8: 12 | EY8: 4 | EZ8: 26 | FA8: 3 | FB8: 0 | FC8: NA | FD8: NA | FE8: NA | FF8: 49 | FG8: 2 | FH8: 10 | FI8: 14 | FJ8: 4 | FK8: 13 | FL8: 82 | FM8: 25 | FN8: 5 | FO8: 1 | FP8: 30 | FQ8: 25 | FR8: 35 | FS8: 16 | FT8: 1 | FU8: 17 | FV8: 2 | FW8: 38 | FX8: 43 | FY8: 7 | FZ8: 19 | GA8: NA | GB8: 3 | GC8: 5 | GD8: 8 | GE8: 4 | GF8: 20 | GG8: 48 | GH8: 21
A9: Coahuila | B9: 48 | C9: 33 | D9: 27 | E9: 25 | F9: 22 | G9: 38 | H9: 170 | I9: 150 | J9: 139 | K9: 235 | L9: 242 | M9: 252 | N9: 118 | O9: 127 | P9: 122 | Q9: 123 | R9: 129 | S9: 124 | T9: 19 | U9: 24 | V9: 20 | W9: 246 | X9: 219 | Y9: 197 | Z9: 8 | AA9: 14 | AB9: 12 | AC9: 250 | AD9: 223 | AE9: 223 | AF9: 121 | AG9: 120 | AH9: 120 | AI9: 20 | AJ9: 35 | AK9: 33 | AL9: 78 | AM9: 54 | AN9: 77 | AO9: 190 | AP9: 176 | AQ9: 153 | AR9: 43 | AS9: 29 | AT9: 45 | AU9: 60 | AV9: 70 | AW9: 55 | AX9: 36 | AY9: 52 | AZ9: 47 | BA9: 30 | BB9: 30 | BC9: 33 | BD9: 89 | BE9: 85 | BF9: 93 | BG9: 442 | BH9: 440 | BI9: 471 | BJ9: 169 | BK9: 201 | BL9: 258 | BM9: 32 | BN9: 20 | BO9: 84 | BP9: 142 | BQ9: 67 | BR9: 68 | BS9: 15 | BT9: 155 | BU9: 5 | BV9: 4 | BW9: NA | BX9: NA | BY9: NA | BZ9: 190 | CA9: 30 | CB9: 43 | CC9: 18 | CD9: 16 | CE9: 58 | CF9: 247 | CG9: 81 | CH9: 16 | CI9: 5 | CJ9: 86 | CK9: 93 | CL9: 51 | CM9: 55 | CN9: 4 | CO9: 91 | CP9: 3 | CQ9: 246 | CR9: 121 | CS9: 20 | CT9: 78 | CU9: NA | CV9: 13 | CW9: 17 | CX9: 18 | CY9: 14 | CZ9: 31 | DA9: 195 | DB9: 88 | DC9: 20 | DD9: 18 | DE9: 80 | DF9: 136 | DG9: 68 | DH9: 76 | DI9: 21 | DJ9: 132 | DK9: 6 | DL9: 3 | DM9: NA | DN9: NA | DO9: NA | DP9: 176 | DQ9: 22 | DR9: 42 | DS9: 29 | DT9: 17 | DU9: 53 | DV9: 228 | DW9: 103 | DX9: 13 | DY9: 4 | DZ9: 70 | EA9: 106 | EB9: 59 | EC9: 53 | ED9: 3 | EE9: 87 | EF9: 8 | EG9: 220 | EH9: 120 | EI9: 35 | EJ9: 54 | EK9: NA | EL9: 7 | EM9: 28 | EN9: 23 | EO9: 13 | EP9: 32 | EQ9: 212 | ER9: 98 | ES9: 15 | ET9: 31 | EU9: 63 | EV9: 143 | EW9: 67 | EX9: 62 | EY9: 19 | EZ9: 125 | FA9: 3 | FB9: 0 | FC9: NA | FD9: NA | FE9: NA | FF9: 153 | FG9: 32 | FH9: 30 | FI9: 25 | FJ9: 20 | FK9: 54 | FL9: 263 | FM9: 112 | FN9: 12 | FO9: 7 | FP9: 76 | FQ9: 109 | FR9: 55 | FS9: 62 | FT9: 1 | FU9: 72 | FV9: 9 | FW9: 223 | FX9: 120 | FY9: 33 | FZ9: 77 | GA9: NA | GB9: 13 | GC9: 25 | GD9: 22 | GE9: 13 | GF9: 39 | GG9: 208 | GH9: 146
A10: Colima | B10: 9 | C10: 9 | D10: 13 | E10: 7 | F10: 8 | G10: 5 | H10: 26 | I10: 28 | J10: 35 | K10: 65 | L10: 58 | M10: 44 | N10: 33 | O10: 44 | P10: 29 | Q10: 39 | R10: 33 | S10: 37 | T10: 3 | U10: 5 | V10: 5 | W10: 45 | X10: 56 | Y10: 47 | Z10: 2 | AA10: 10 | AB10: 6 | AC10: 67 | AD10: 70 | AE10: 60 | AF10: 42 | AG10: 40 | AH10: 27 | AI10: 8 | AJ10: 7 | AK10: 13 | AL10: 18 | AM10: 24 | AN10: 18 | AO10: 58 | AP10: 71 | AQ10: 63 | AR10: 12 | AS10: 12 | AT10: 3 | AU10: 28 | AV10: 10 | AW10: 27 | AX10: 23 | AY10: 24 | AZ10: 22 | BA10: 4 | BB10: 12 | BC10: 12 | BD10: 25 | BE10: 23 | BF10: 31 | BG10: 84 | BH10: 109 | BI10: 103 | BJ10: 44 | BK10: 47 | BL10: 55 | BM10: 4 | BN10: 3 | BO10: 16 | BP10: 34 | BQ10: 17 | BR10: 22 | BS10: 3 | BT10: 28 | BU10: 1 | BV10: 0 | BW10: NA | BX10: NA | BY10: NA | BZ10: 58 | CA10: 8 | CB10: 16 | CC10: 11 | CD10: 3 | CE10: 10 | CF10: 48 | CG10: 23 | CH10: 5 | CI10: 4 | CJ10: 10 | CK10: 31 | CL10: 16 | CM10: 17 | CN10: 0 | CO10: 17 | CP10: 1 | CQ10: 67 | CR10: 42 | CS10: 8 | CT10: 18 | CU10: NA | CV10: 4 | CW10: 12 | CX10: 12 | CY10: 1 | CZ10: 15 | DA10: 36 | DB10: 21 | DC10: 5 | DD10: 7 | DE10: 15 | DF10: 37 | DG10: 23 | DH10: 15 | DI10: 4 | DJ10: 39 | DK10: 5 | DL10: 0 | DM10: NA | DN10: NA | DO10: NA | DP10: 71 | DQ10: 6 | DR10: 6 | DS10: 12 | DT10: 6 | DU10: 9 | DV10: 62 | DW10: 24 | DX10: 4 | DY10: 1 | DZ10: 13 | EA10: 21 | EB10: 21 | EC10: 18 | ED10: 1 | EE10: 17 | EF10: 5 | EG10: 70 | EH10: 40 | EI10: 7 | EJ10: 24 | EK10: NA | EL10: 6 | EM10: 4 | EN10: 12 | EO10: 6 | EP10: 14 | EQ10: 47 | ER10: 23 | ES10: 8 | ET10: 5 | EU10: 23 | EV10: 27 | EW10: 17 | EX10: 18 | EY10: 5 | EZ10: 33 | FA10: 2 | FB10: 0 | FC10: NA | FD10: NA | FE10: NA | FF10: 63 | FG10: 2 | FH10: 14 | FI10: 12 | FJ10: 4 | FK10: 17 | FL10: 59 | FM10: 24 | FN10: 5 | FO10: 0 | FP10: 12 | FQ10: 17 | FR10: 12 | FS10: 19 | FT10: 0 | FU10: 14 | FV10: 4 | FW10: 60 | FX10: 27 | FY10: 13 | FZ10: 18 | GA10: NA | GB10: 1 | GC10: 13 | GD10: 10 | GE10: 8 | GF10: 14 | GG10: 44 | GH10: 31
A11: Chiapas | B11: 43 | C11: 56 | D11: 46 | E11: 38 | F11: 34 | G11: 36 | H11: 420 | I11: 490 | J11: 391 | K11: 244 | L11: 200 | M11: 203 | N11: 402 | O11: 413 | P11: 386 | Q11: 132 | R11: 139 | S11: 126 | T11: 29 | U11: 16 | V11: 22 | W11: 162 | X11: 166 | Y11: 165 | Z11: 25 | AA11: 23 | AB11: 22 | AC11: 197 | AD11: 195 | AE11: 181 | AF11: 278 | AG11: 265 | AH11: 260 | AI11: 36 | AJ11: 33 | AK11: 42 | AL11: 81 | AM11: 80 | AN11: 77 | AO11: 355 | AP11: 346 | AQ11: 249 | AR11: 22 | AS11: 23 | AT11: 21 | AU11: 88 | AV11: 93 | AW11: 82 | AX11: 76 | AY11: 75 | AZ11: 77 | BA11: 27 | BB11: 24 | BC11: 28 | BD11: 239 | BE11: 260 | BF11: 268 | BG11: 632 | BH11: 672 | BI11: 583 | BJ11: 220 | BK11: 241 | BL11: 241 | BM11: 27 | BN11: 28 | BO11: 216 | BP11: 133 | BQ11: 191 | BR11: 55 | BS11: 25 | BT11: 104 | BU11: 19 | BV11: 3 | BW11: NA | BX11: NA | BY11: NA | BZ11: 355 | CA11: 9 | CB11: 51 | CC11: 43 | CD11: 17 | CE11: 128 | CF11: 324 | CG11: 106 | CH11: 16 | CI11: 10 | CJ11: 204 | CK11: 111 | CL11: 211 | CM11: 77 | CN11: 4 | CO11: 58 | CP11: 6 | CQ11: 194 | CR11: 278 | CS11: 36 | CT11: 81 | CU11: NA | CV11: 13 | CW11: 37 | CX11: 33 | CY11: 10 | CZ11: 111 | DA11: 308 | DB11: 114 | DC11: 33 | DD11: 30 | DE11: 260 | DF11: 100 | DG11: 185 | DH11: 65 | DI11: 14 | DJ11: 93 | DK11: 9 | DL11: 1 | DM11: NA | DN11: NA | DO11: NA | DP11: 346 | DQ11: 18 | DR11: 57 | DS11: 49 | DT11: 12 | DU11: 147 | DV11: 333 | DW11: 132 | DX11: 23 | DY11: 4 | DZ11: 230 | EA11: 100 | EB11: 228 | EC11: 74 | ED11: 2 | EE11: 73 | EF11: 14 | EG11: 194 | EH11: 265 | EI11: 33 | EJ11: 80 | EK11: NA | EL11: 5 | EM11: 36 | EN11: 26 | EO11: 12 | EP11: 113 | EQ11: 339 | ER11: 109 | ES11: 27 | ET11: 24 | EU11: 194 | EV11: 106 | EW11: 173 | EX11: 69 | EY11: 16 | EZ11: 94 | FA11: 11 | FB11: 0 | FC11: NA | FD11: NA | FE11: NA | FF11: 249 | FG11: 10 | FH11: 40 | FI11: 46 | FJ11: 13 | FK11: 163 | FL11: 297 | FM11: 136 | FN11: 19 | FO11: 12 | FP11: 197 | FQ11: 97 | FR11: 213 | FS11: 57 | FT11: 6 | FU11: 71 | FV11: 11 | FW11: 181 | FX11: 260 | FY11: 42 | FZ11: 77 | GA11: NA | GB11: 11 | GC11: 42 | GD11: 31 | GE11: 15 | GF11: 105 | GG11: 286 | GH11: 105
A12: Chihuahua | B12: 49 | C12: 50 | D12: 39 | E12: 47 | F12: 39 | G12: 37 | H12: 163 | I12: 171 | J12: 157 | K12: 270 | L12: 296 | M12: 275 | N12: 177 | O12: 156 | P12: 156 | Q12: 155 | R12: 165 | S12: 138 | T12: 29 | U12: 18 | V12: 16 | W12: 344 | X12: 351 | Y12: 320 | Z12: 17 | AA12: 31 | AB12: 28 | AC12: 314 | AD12: 297 | AE12: 318 | AF12: 139 | AG12: 139 | AH12: 140 | AI12: 44 | AJ12: 51 | AK12: 44 | AL12: 94 | AM12: 82 | AN12: 108 | AO12: 280 | AP12: 253 | AQ12: 225 | AR12: 49 | AS12: 34 | AT12: 40 | AU12: 89 | AV12: 72 | AW12: 79 | AX12: 58 | AY12: 53 | AZ12: 71 | BA12: 42 | BB12: 33 | BC12: 39 | BD12: 137 | BE12: 136 | BF12: 134 | BG12: 584 | BH12: 561 | BI12: 608 | BJ12: 269 | BK12: 322 | BL12: 333 | BM12: 37 | BN12: 37 | BO12: 80 | BP12: 154 | BQ12: 88 | BR12: 83 | BS12: 24 | BT12: 202 | BU12: 10 | BV12: 6 | BW12: NA | BX12: NA | BY12: NA | BZ12: 280 | CA12: 37 | CB12: 52 | CC12: 28 | CD12: 24 | CE12: 77 | CF12: 324 | CG12: 129 | CH12: 12 | CI12: 10 | CJ12: 83 | CK12: 116 | CL12: 89 | CM12: 72 | CN12: 5 | CO12: 142 | CP12: 7 | CQ12: 308 | CR12: 139 | CS12: 44 | CT12: 94 | CU12: NA | CV12: 12 | CW12: 37 | CX12: 30 | CY12: 18 | CZ12: 60 | DA12: 260 | DB12: 140 | DC12: 30 | DD12: 31 | DE12: 90 | DF12: 172 | DG12: 78 | DH12: 90 | DI12: 17 | DJ12: 201 | DK12: 17 | DL12: 3 | DM12: NA | DN12: NA | DO12: NA | DP12: 253 | DQ12: 24 | DR12: 42 | DS12: 33 | DT12: 16 | DU12: 67 | DV12: 291 | DW12: 160 | DX12: 20 | DY12: 8 | DZ12: 81 | EA12: 124 | EB12: 78 | EC12: 75 | ED12: 1 | EE12: 150 | EF12: 14 | EG12: 294 | EH12: 139 | EI12: 51 | EJ12: 82 | EK12: NA | EL12: 10 | EM12: 30 | EN12: 20 | EO12: 17 | EP12: 69 | EQ12: 270 | ER12: 162 | ES12: 28 | ET12: 29 | EU12: 74 | EV12: 154 | EW12: 78 | EX12: 75 | EY12: 14 | EZ12: 198 | FA12: 19 | FB12: 2 | FC12: NA | FD12: NA | FE12: NA | FF12: 225 | FG12: 29 | FH12: 36 | FI12: 41 | FJ12: 20 | FK12: 75 | FL12: 331 | FM12: 190 | FN12: 11 | FO12: 8 | FP12: 83 | FQ12: 121 | FR12: 78 | FS12: 63 | FT12: 2 | FU12: 122 | FV12: 9 | FW12: 316 | FX12: 140 | FY12: 44 | FZ12: 108 | GA12: NA | GB12: 11 | GC12: 43 | GD12: 30 | GE12: 19 | GF12: 59 | GG12: 277 | GH12: 143
A13: Ciudad de México | B13: 170 | C13: 159 | D13: 155 | E13: 114 | F13: 133 | G13: 141 | H13: 817 | I13: 760 | J13: 745 | K13: 953 | L13: 983 | M13: 969 | N13: 720 | O13: 684 | P13: 712 | Q13: 667 | R13: 669 | S13: 668 | T13: 61 | U13: 60 | V13: 56 | W13: 779 | X13: 742 | Y13: 715 | Z13: 105 | AA13: 104 | AB13: 92 | AC13: 1038 | AD13: 1037 | AE13: 1094 | AF13: 478 | AG13: 420 | AH13: 390 | AI13: 224 | AJ13: 216 | AK13: 221 | AL13: 483 | AM13: 450 | AN13: 435 | AO13: 904 | AP13: 804 | AQ13: 734 | AR13: 179 | AS13: 186 | AT13: 182 | AU13: 315 | AV13: 315 | AW13: 322 | AX13: 480 | AY13: 455 | AZ13: 445 | BA13: 211 | BB13: 197 | BC13: 214 | BD13: 749 | BE13: 720 | BF13: 751 | BG13: 2173 | BH13: 2143 | BI13: 2254 | BJ13: 912 | BK13: 955 | BL13: 1072 | BM13: 105 | BN13: 84 | BO13: 442 | BP13: 501 | BQ13: 385 | BR13: 294 | BS13: 54 | BT13: 399 | BU13: 65 | BV13: 4 | BW13: NA | BX13: NA | BY13: NA | BZ13: 904 | CA13: 133 | CB13: 169 | CC13: 252 | CD13: 114 | CE13: 384 | CF13: 1185 | CG13: 462 | CH13: 65 | CI13: 30 | CJ13: 375 | CK13: 452 | CL13: 335 | CM13: 373 | CN13: 7 | CO13: 380 | CP13: 40 | CQ13: 1034 | CR13: 478 | CS13: 224 | CT13: 483 | CU13: NA | CV13: 46 | CW13: 146 | CX13: 228 | CY13: 97 | CZ13: 365 | DA13: 988 | DB13: 450 | DC13: 90 | DD13: 100 | DE13: 403 | DF13: 506 | DG13: 327 | DH13: 310 | DI13: 55 | DJ13: 390 | DK13: 54 | DL13: 4 | DM13: NA | DN13: NA | DO13: NA | DP13: 804 | DQ13: 128 | DR13: 177 | DS13: 240 | DT13: 94 | DU13: 382 | DV13: 1145 | DW13: 459 | DX13: 69 | DY13: 33 | DZ13: 357 | EA13: 477 | EB13: 357 | EC13: 359 | ED13: 5 | EE13: 352 | EF13: 50 | EG13: 1033 | EH13: 420 | EI13: 216 | EJ13: 450 | EK13: NA | EL13: 58 | EM13: 138 | EN13: 215 | EO13: 103 | EP13: 338 | EQ13: 998 | ER13: 496 | ES13: 101 | ET13: 112 | EU13: 396 | EV13: 483 | EW13: 351 | EX13: 290 | EY13: 44 | EZ13: 355 | FA13: 43 | FB13: 9 | FC13: NA | FD13: NA | FE13: NA | FF13: 734 | FG13: 122 | FH13: 164 | FI13: 231 | FJ13: 121 | FK13: 411 | FL13: 1178 | FM13: 482 | FN13: 54 | FO13: 29 | FP13: 349 | FQ13: 486 | FR13: 361 | FS13: 378 | FT13: 12 | FU13: 360 | FV13: 49 | FW13: 1085 | FX13: 390 | FY13: 221 | FZ13: 435 | GA13: NA | GB13: 60 | GC13: 158 | GD13: 214 | GE13: 93 | GF13: 340 | GG13: 1076 | GH13: 590
A14: Durango | B14: 12 | C14: 20 | D14: 19 | E14: 5 | F14: 18 | G14: 20 | H14: 57 | I14: 79 | J14: 61 | K14: 106 | L14: 95 | M14: 98 | N14: 68 | O14: 53 | P14: 92 | Q14: 54 | R14: 78 | S14: 51 | T14: 9 | U14: 6 | V14: 5 | W14: 108 | X14: 103 | Y14: 102 | Z14: 4 | AA14: 10 | AB14: 6 | AC14: 128 | AD14: 121 | AE14: 119 | AF14: 56 | AG14: 46 | AH14: 54 | AI14: 19 | AJ14: 21 | AK14: 19 | AL14: 32 | AM14: 37 | AN14: 33 | AO14: 101 | AP14: 104 | AQ14: 129 | AR14: 24 | AS14: 16 | AT14: 25 | AU14: 31 | AV14: 26 | AW14: 36 | AX14: 22 | AY14: 29 | AZ14: 32 | BA14: 23 | BB14: 23 | BC14: 13 | BD14: 57 | BE14: 63 | BF14: 45 | BG14: 209 | BH14: 213 | BI14: 245 | BJ14: 69 | BK14: 66 | BL14: 83 | BM14: 7 | BN14: 5 | BO14: 27 | BP14: 69 | BQ14: 30 | BR14: 25 | BS14: 8 | BT14: 70 | BU14: 3 | BV14: 1 | BW14: NA | BX14: NA | BY14: NA | BZ14: 101 | CA14: 18 | CB14: 17 | CC14: 17 | CD14: 13 | CE14: 28 | CF14: 123 | CG14: 30 | CH14: 5 | CI14: 0 | CJ14: 30 | CK14: 37 | CL14: 38 | CM14: 29 | CN14: 1 | CO14: 38 | CP14: 1 | CQ14: 127 | CR14: 56 | CS14: 19 | CT14: 32 | CU14: NA | CV14: 6 | CW14: 14 | CX14: 5 | CY14: 10 | CZ14: 29 | DA14: 86 | DB14: 39 | DC14: 14 | DD14: 14 | DE14: 43 | DF14: 58 | DG14: 24 | DH14: 37 | DI14: 6 | DJ14: 66 | DK14: 5 | DL14: 1 | DM14: NA | DN14: NA | DO14: NA | DP14: 104 | DQ14: 13 | DR14: 14 | DS14: 17 | DT14: 4 | DU14: 39 | DV14: 119 | DW14: 32 | DX14: 6 | DY14: 4 | DZ14: 36 | EA14: 37 | EB14: 29 | EC14: 41 | ED14: 0 | EE14: 37 | EF14: 5 | EG14: 120 | EH14: 46 | EI14: 21 | EJ14: 37 | EK14: NA | EL14: 3 | EM14: 12 | EN14: 12 | EO14: 19 | EP14: 24 | EQ14: 94 | ER14: 34 | ES14: 9 | ET14: 13 | EU14: 29 | EV14: 56 | EW14: 49 | EX14: 27 | EY14: 3 | EZ14: 65 | FA14: 1 | FB14: 0 | FC14: NA | FD14: NA | FE14: NA | FF14: 129 | FG14: 14 | FH14: 23 | FI14: 16 | FJ14: 6 | FK14: 24 | FL14: 130 | FM14: 51 | FN14: 10 | FO14: 7 | FP14: 32 | FQ14: 42 | FR14: 43 | FS14: 24 | FT14: 2 | FU14: 37 | FV14: 5 | FW14: 119 | FX14: 54 | FY14: 19 | FZ14: 33 | GA14: NA | GB14: 11 | GC14: 13 | GD14: 16 | GE14: 7 | GF14: 21 | GG14: 115 | GH14: 32
A15: Guanajuato | B15: 46 | C15: 52 | D15: 57 | E15: 39 | F15: 38 | G15: 37 | H15: 236 | I15: 293 | J15: 247 | K15: 273 | L15: 324 | M15: 330 | N15: 241 | O15: 231 | P15: 229 | Q15: 261 | R15: 242 | S15: 251 | T15: 32 | U15: 30 | V15: 21 | W15: 356 | X15: 294 | Y15: 304 | Z15: 40 | AA15: 33 | AB15: 26 | AC15: 348 | AD15: 368 | AE15: 374 | AF15: 149 | AG15: 186 | AH15: 147 | AI15: 58 | AJ15: 55 | AK15: 62 | AL15: 141 | AM15: 134 | AN15: 146 | AO15: 351 | AP15: 377 | AQ15: 344 | AR15: 60 | AS15: 63 | AT15: 44 | AU15: 101 | AV15: 132 | AW15: 116 | AX15: 109 | AY15: 108 | AZ15: 108 | BA15: 69 | BB15: 56 | BC15: 61 | BD15: 213 | BE15: 197 | BF15: 193 | BG15: 688 | BH15: 649 | BI15: 690 | BJ15: 290 | BK15: 268 | BL15: 305 | BM15: 31 | BN15: 34 | BO15: 132 | BP15: 147 | BQ15: 101 | BR15: 133 | BS15: 29 | BT15: 220 | BU15: 29 | BV15: 2 | BW15: NA | BX15: NA | BY15: NA | BZ15: 351 | CA15: 43 | CB15: 45 | CC15: 53 | CD15: 32 | CE15: 115 | CF15: 361 | CG15: 144 | CH15: 15 | CI15: 5 | CJ15: 104 | CK15: 126 | CL15: 140 | CM15: 128 | CN15: 3 | CO15: 136 | CP15: 11 | CQ15: 346 | CR15: 149 | CS15: 58 | CT15: 141 | CU15: NA | CV15: 17 | CW15: 56 | CX15: 56 | CY15: 37 | CZ15: 98 | DA15: 327 | DB15: 146 | DC15: 29 | DD15: 33 | DE15: 150 | DF15: 186 | DG15: 107 | DH15: 116 | DI15: 25 | DJ15: 174 | DK15: 16 | DL15: 0 | DM15: NA | DN15: NA | DO15: NA | DP15: 377 | DQ15: 45 | DR15: 80 | DS15: 59 | DT15: 35 | DU15: 114 | DV15: 341 | DW15: 132 | DX15: 23 | DY15: 5 | DZ15: 143 | EA15: 138 | EB15: 124 | EC15: 126 | ED15: 5 | EE15: 120 | EF15: 17 | EG15: 368 | EH15: 186 | EI15: 55 | EJ15: 134 | EK15: NA | EL15: 18 | EM15: 52 | EN15: 49 | EO15: 21 | EP15: 83 | EQ15: 308 | ER15: 136 | ES15: 31 | ET15: 25 | EU15: 133 | EV15: 169 | EW15: 101 | EX15: 127 | EY15: 15 | EZ15: 173 | FA15: 15 | FB15: 1 | FC15: NA | FD15: NA | FE15: NA | FF15: 344 | FG15: 30 | FH15: 65 | FI15: 61 | FJ15: 27 | FK15: 102 | FL15: 355 | FM15: 153 | FN15: 26 | FO15: 12 | FP15: 114 | FQ15: 161 | FR15: 128 | FS15: 124 | FT15: 6 | FU15: 131 | FV15: 11 | FW15: 373 | FX15: 147 | FY15: 62 | FZ15: 146 | GA15: NA | GB15: 14 | GC15: 51 | GD15: 47 | GE15: 34 | GF15: 91 | GG15: 335 | GH15: 152
A16: Guerrero | B16: 41 | C16: 27 | D16: 31 | E16: 25 | F16: 22 | G16: 17 | H16: 211 | I16: 177 | J16: 210 | K16: 125 | L16: 146 | M16: 148 | N16: 136 | O16: 163 | P16: 163 | Q16: 95 | R16: 97 | S16: 86 | T16: 17 | U16: 15 | V16: 12 | W16: 131 | X16: 124 | Y16: 110 | Z16: 5 | AA16: 13 | AB16: 13 | AC16: 128 | AD16: 132 | AE16: 130 | AF16: 102 | AG16: 93 | AH16: 119 | AI16: 23 | AJ16: 19 | AK16: 32 | AL16: 50 | AM16: 48 | AN16: 52 | AO16: 198 | AP16: 175 | AQ16: 172 | AR16: 13 | AS16: 23 | AT16: 21 | AU16: 39 | AV16: 44 | AW16: 39 | AX16: 47 | AY16: 36 | AZ16: 53 | BA16: 24 | BB16: 18 | BC16: 19 | BD16: 85 | BE16: 99 | BF16: 94 | BG16: 359 | BH16: 325 | BI16: 342 | BJ16: 102 | BK16: 103 | BL16: 131 | BM16: 30 | BN16: 18 | BO16: 100 | BP16: 65 | BQ16: 62 | BR16: 44 | BS16: 13 | BT16: 79 | BU16: 5 | BV16: 1 | BW16: NA | BX16: NA | BY16: NA | BZ16: 198 | CA16: 7 | CB16: 21 | CC16: 26 | CD16: 17 | CE16: 51 | CF16: 187 | CG16: 48 | CH16: 11 | CI16: 7 | CJ16: 111 | CK16: 60 | CL16: 74 | CM16: 51 | CN16: 4 | CO16: 52 | CP16: 0 | CQ16: 127 | CR16: 102 | CS16: 23 | CT16: 50 | CU16: NA | CV16: 6 | CW16: 18 | CX16: 21 | CY16: 7 | CZ16: 34 | DA16: 172 | DB16: 54 | DC16: 16 | DD16: 15 | DE16: 86 | DF16: 70 | DG16: 80 | DH16: 52 | DI16: 11 | DJ16: 68 | DK16: 9 | DL16: 2 | DM16: NA | DN16: NA | DO16: NA | DP16: 175 | DQ16: 16 | DR16: 26 | DS16: 22 | DT16: 11 | DU16: 58 | DV16: 155 | DW16: 47 | DX16: 11 | DY16: 7 | DZ16: 91 | EA16: 76 | EB16: 83 | EC16: 45 | ED16: 4 | EE16: 56 | EF16: 4 | EG16: 130 | EH16: 93 | EI16: 19 | EJ16: 48 | EK16: NA | EL16: 7 | EM16: 18 | EN16: 14 | EO16: 7 | EP16: 41 | EQ16: 170 | ER16: 56 | ES16: 21 | ET16: 9 | EU16: 116 | EV16: 70 | EW16: 83 | EX16: 47 | EY16: 12 | EZ16: 66 | FA16: 11 | FB16: 0 | FC16: NA | FD16: NA | FE16: NA | FF16: 172 | FG16: 13 | FH16: 26 | FI16: 29 | FJ16: 8 | FK16: 49 | FL16: 164 | FM16: 57 | FN16: 10 | FO16: 8 | FP16: 94 | FQ16: 78 | FR16: 80 | FS16: 39 | FT16: 0 | FU16: 44 | FV16: 2 | FW16: 130 | FX16: 119 | FY16: 32 | FZ16: 52 | GA16: NA | GB16: 8 | GC16: 13 | GD16: 24 | GE16: 11 | GF16: 45 | GG16: 178 | GH16: 74
A17: Hidalgo | B17: 30 | C17: 25 | D17: 34 | E17: 38 | F17: 36 | G17: 38 | H17: 154 | I17: 152 | J17: 155 | K17: 145 | L17: 149 | M17: 176 | N17: 212 | O17: 196 | P17: 207 | Q17: 85 | R17: 127 | S17: 82 | T17: 25 | U17: 15 | V17: 12 | W17: 110 | X17: 126 | Y17: 104 | Z17: 21 | AA17: 22 | AB17: 20 | AC17: 148 | AD17: 137 | AE17: 154 | AF17: 79 | AG17: 68 | AH17: 74 | AI17: 24 | AJ17: 30 | AK17: 25 | AL17: 59 | AM17: 47 | AN17: 59 | AO17: 172 | AP17: 164 | AQ17: 185 | AR17: 27 | AS17: 22 | AT17: 32 | AU17: 65 | AV17: 66 | AW17: 64 | AX17: 57 | AY17: 44 | AZ17: 63 | BA17: 28 | BB17: 24 | BC17: 36 | BD17: 111 | BE17: 84 | BF17: 83 | BG17: 449 | BH17: 446 | BI17: 410 | BJ17: 143 | BK17: 130 | BL17: 144 | BM17: 19 | BN17: 31 | BO17: 86 | BP17: 77 | BQ17: 104 | BR17: 37 | BS17: 22 | BT17: 60 | BU17: 10 | BV17: 4 | BW17: NA | BX17: NA | BY17: NA | BZ17: 172 | CA17: 20 | CB17: 39 | CC17: 33 | CD17: 16 | CE17: 60 | CF17: 233 | CG17: 67 | CH17: 11 | CI17: 7 | CJ17: 68 | CK17: 68 | CL17: 108 | CM17: 48 | CN17: 3 | CO17: 50 | CP17: 11 | CQ17: 144 | CR17: 79 | CS17: 24 | CT17: 59 | CU17: NA | CV17: 7 | CW17: 26 | CX17: 24 | CY17: 12 | CZ17: 51 | DA17: 216 | DB17: 76 | DC17: 19 | DD17: 31 | DE17: 82 | DF17: 87 | DG17: 106 | DH17: 57 | DI17: 12 | DJ17: 70 | DK17: 11 | DL17: 2 | DM17: NA | DN17: NA | DO17: NA | DP17: 164 | DQ17: 19 | DR17: 30 | DS17: 27 | DT17: 19 | DU17: 35 | DV17: 239 | DW17: 60 | DX17: 6 | DY17: 5 | DZ17: 70 | EA17: 62 | EB17: 90 | EC17: 70 | ED17: 3 | EE17: 56 | EF17: 11 | EG17: 135 | EH17: 68 | EI17: 30 | EJ17: 47 | EK17: NA | EL17: 3 | EM17: 36 | EN17: 17 | EO17: 5 | EP17: 49 | EQ17: 207 | ER17: 70 | ES17: 22 | ET17: 24 | EU17: 94 | EV17: 93 | EW17: 103 | EX17: 34 | EY17: 9 | EZ17: 46 | FA17: 12 | FB17: 1 | FC17: NA | FD17: NA | FE17: NA | FF17: 185 | FG17: 18 | FH17: 30 | FI17: 35 | FJ17: 22 | FK17: 39 | FL17: 219 | FM17: 65 | FN17: 12 | FO17: 14 | FP17: 61 | FQ17: 83 | FR17: 104 | FS17: 48 | FT17: 3 | FU17: 58 | FV17: 8 | FW17: 153 | FX17: 74 | FY17: 25 | FZ17: 59 | GA17: NA | GB17: 14 | GC17: 34 | GD17: 28 | GE17: 14 | GF17: 44 | GG17: 191 | GH17: 79
A18: Jalisco | B18: 90 | C18: 87 | D18: 80 | E18: 88 | F18: 79 | G18: 86 | H18: 358 | I18: 349 | J18: 323 | K18: 661 | L18: 668 | M18: 649 | N18: 342 | O18: 333 | P18: 336 | Q18: 415 | R18: 400 | S18: 401 | T18: 55 | U18: 45 | V18: 36 | W18: 554 | X18: 542 | Y18: 516 | Z18: 55 | AA18: 59 | AB18: 70 | AC18: 613 | AD18: 644 | AE18: 594 | AF18: 230 | AG18: 248 | AH18: 214 | AI18: 106 | AJ18: 109 | AK18: 114 | AL18: 199 | AM18: 206 | AN18: 222 | AO18: 628 | AP18: 671 | AQ18: 601 | AR18: 91 | AS18: 104 | AT18: 117 | AU18: 157 | AV18: 176 | AW18: 193 | AX18: 219 | AY18: 190 | AZ18: 168 | BA18: 110 | BB18: 106 | BC18: 95 | BD18: 305 | BE18: 270 | BF18: 304 | BG18: 1243 | BH18: 1178 | BI18: 1175 | BJ18: 589 | BK18: 626 | BL18: 639 | BM18: 63 | BN18: 69 | BO18: 174 | BP18: 372 | BQ18: 157 | BR18: 197 | BS18: 51 | BT18: 325 | BU18: 37 | BV18: 3 | BW18: NA | BX18: NA | BY18: NA | BZ18: 628 | CA18: 69 | CB18: 75 | CC18: 120 | CD18: 64 | CE18: 171 | CF18: 677 | CG18: 298 | CH18: 27 | CI18: 19 | CJ18: 184 | CK18: 289 | CL18: 185 | CM18: 218 | CN18: 4 | CO18: 229 | CP18: 18 | CQ18: 610 | CR18: 230 | CS18: 106 | CT18: 199 | CU18: NA | CV18: 22 | CW18: 82 | CX18: 99 | CY18: 46 | CZ18: 134 | DA18: 566 | DB18: 291 | DC18: 63 | DD18: 63 | DE18: 186 | DF18: 379 | DG18: 175 | DH18: 208 | DI18: 39 | DJ18: 300 | DK18: 33 | DL18: 4 | DM18: NA | DN18: NA | DO18: NA | DP18: 671 | DQ18: 81 | DR18: 98 | DS18: 109 | DT18: 52 | DU18: 150 | DV18: 625 | DW18: 300 | DX18: 24 | DY18: 16 | DZ18: 163 | EA18: 289 | EB18: 158 | EC18: 192 | ED18: 6 | EE18: 242 | EF18: 26 | EG18: 640 | EH18: 248 | EI18: 109 | EJ18: 206 | EK18: NA | EL18: 23 | EM18: 78 | EN18: 81 | EO18: 54 | EP18: 120 | EQ18: 553 | ER18: 326 | ES18: 50 | ET18: 73 | EU18: 179 | EV18: 376 | EW18: 155 | EX18: 204 | EY18: 27 | EZ18: 307 | FA18: 40 | FB18: 4 | FC18: NA | FD18: NA | FE18: NA | FF18: 601 | FG18: 86 | FH18: 98 | FI18: 94 | FJ18: 51 | FK18: 164 | FL18: 637 | FM18: 325 | FN18: 30 | FO18: 13 | FP18: 144 | FQ18: 273 | FR18: 181 | FS18: 197 | FT18: 9 | FU18: 209 | FV18: 30 | FW18: 590 | FX18: 214 | FY18: 114 | FZ18: 222 | GA18: NA | GB18: 31 | GC18: 95 | GD18: 74 | GE18: 44 | GF18: 140 | GG18: 538 | GH18: 314
A19: México | B19: 143 | C19: 126 | D19: 158 | E19: 84 | F19: 81 | G19: 106 | H19: 760 | I19: 734 | J19: 719 | K19: 739 | L19: 804 | M19: 856 | N19: 617 | O19: 581 | P19: 639 | Q19: 491 | R19: 528 | S19: 513 | T19: 51 | U19: 53 | V19: 48 | W19: 574 | X19: 525 | Y19: 563 | Z19: 94 | AA19: 121 | AB19: 128 | AC19: 784 | AD19: 786 | AE19: 832 | AF19: 397 | AG19: 409 | AH19: 442 | AI19: 156 | AJ19: 169 | AK19: 174 | AL19: 292 | AM19: 333 | AN19: 360 | AO19: 774 | AP19: 734 | AQ19: 757 | AR19: 106 | AS19: 103 | AT19: 108 | AU19: 259 | AV19: 226 | AW19: 254 | AX19: 222 | AY19: 216 | AZ19: 216 | BA19: 126 | BB19: 114 | BC19: 127 | BD19: 299 | BE19: 267 | BF19: 278 | BG19: 1763 | BH19: 1855 | BI19: 1905 | BJ19: 574 | BK19: 607 | BL19: 805 | BM19: 75 | BN19: 66 | BO19: 389 | BP19: 407 | BQ19: 293 | BR19: 217 | BS19: 47 | BT19: 337 | BU19: 45 | BV19: 2 | BW19: NA | BX19: NA | BY19: NA | BZ19: 774 | CA19: 73 | CB19: 134 | CC19: 116 | CD19: 68 | CE19: 149 | CF19: 950 | CG19: 287 | CH19: 68 | CI19: 18 | CJ19: 371 | CK19: 332 | CL19: 324 | CM19: 274 | CN19: 4 | CO19: 237 | CP19: 49 | CQ19: 782 | CR19: 397 | CS19: 156 | CT19: 292 | CU19: NA | CV19: 33 | CW19: 125 | CX19: 106 | CY19: 58 | CZ19: 150 | DA19: 813 | DB19: 287 | DC19: 72 | DD19: 58 | DE19: 364 | DF19: 405 | DG19: 280 | DH19: 250 | DI19: 42 | DJ19: 280 | DK19: 66 | DL19: 6 | DM19: NA | DN19: NA | DO19: NA | DP19: 734 | DQ19: 65 | DR19: 111 | DS19: 112 | DT19: 62 | DU19: 151 | DV19: 949 | DW19: 291 | DX19: 54 | DY19: 23 | DZ19: 370 | EA19: 399 | EB19: 301 | EC19: 278 | ED19: 11 | EE19: 245 | EF19: 55 | EG19: 780 | EH19: 409 | EI19: 169 | EJ19: 333 | EK19: NA | EL19: 38 | EM19: 115 | EN19: 104 | EO19: 52 | EP19: 116 | EQ19: 906 | ER19: 316 | ES19: 93 | ET19: 80 | EU19: 343 | EV19: 452 | EW19: 296 | EX19: 242 | EY19: 39 | EZ19: 294 | FA19: 60 | FB19: 6 | FC19: NA | FD19: NA | FE19: NA | FF19: 757 | FG19: 66 | FH19: 133 | FI19: 120 | FJ19: 64 | FK19: 154 | FL19: 957 | FM19: 378 | FN19: 65 | FO19: 26 | FP19: 376 | FQ19: 404 | FR19: 343 | FS19: 271 | FT19: 9 | FU19: 269 | FV19: 68 | FW19: 826 | FX19: 442 | FY19: 174 | FZ19: 360 | GA19: NA | GB19: 42 | GC19: 121 | GD19: 96 | GE19: 63 | GF19: 124 | GG19: 948 | GH19: 427
A20: Michoacán | B20: 31 | C20: 62 | D20: 47 | E20: 24 | F20: 32 | G20: 38 | H20: 248 | I20: 249 | J20: 240 | K20: 288 | L20: 307 | M20: 296 | N20: 229 | O20: 215 | P20: 239 | Q20: 227 | R20: 210 | S20: 231 | T20: 27 | U20: 31 | V20: 25 | W20: 274 | X20: 283 | Y20: 249 | Z20: 30 | AA20: 9 | AB20: 34 | AC20: 241 | AD20: 259 | AE20: 259 | AF20: 149 | AG20: 139 | AH20: 173 | AI20: 47 | AJ20: 50 | AK20: 40 | AL20: 112 | AM20: 104 | AN20: 111 | AO20: 391 | AP20: 380 | AQ20: 360 | AR20: 46 | AS20: 47 | AT20: 42 | AU20: 122 | AV20: 123 | AW20: 114 | AX20: 92 | AY20: 82 | AZ20: 81 | BA20: 54 | BB20: 53 | BC20: 47 | BD20: 175 | BE20: 168 | BF20: 135 | BG20: 567 | BH20: 549 | BI20: 518 | BJ20: 165 | BK20: 199 | BL20: 226 | BM20: 22 | BN20: 19 | BO20: 119 | BP20: 162 | BQ20: 107 | BR20: 114 | BS20: 23 | BT20: 159 | BU20: 16 | BV20: 3 | BW20: NA | BX20: NA | BY20: NA | BZ20: 391 | CA20: 32 | CB20: 60 | CC20: 53 | CD20: 30 | CE20: 93 | CF20: 280 | CG20: 87 | CH20: 9 | CI20: 5 | CJ20: 129 | CK20: 126 | CL20: 122 | CM20: 113 | CN20: 4 | CO20: 115 | CP20: 14 | CQ20: 238 | CR20: 149 | CS20: 47 | CT20: 112 | CU20: NA | CV20: 14 | CW20: 62 | CX20: 39 | CY20: 24 | CZ20: 82 | DA20: 287 | DB20: 78 | DC20: 42 | DD20: 21 | DE20: 129 | DF20: 165 | DG20: 117 | DH20: 109 | DI20: 29 | DJ20: 180 | DK20: 2 | DL20: 3 | DM20: NA | DN20: NA | DO20: NA | DP20: 380 | DQ20: 29 | DR20: 61 | DS20: 51 | DT20: 34 | DU20: 87 | DV20: 281 | DW20: 99 | DX20: 20 | DY20: 11 | DZ20: 120 | EA20: 142 | EB20: 98 | EC20: 101 | ED20: 2 | EE20: 103 | EF20: 7 | EG20: 256 | EH20: 139 | EI20: 50 | EJ20: 104 | EK20: NA | EL20: 18 | EM20: 62 | EN20: 31 | EO20: 19 | EP20: 81 | EQ20: 268 | ER20: 100 | ES20: 34 | ET20: 27 | EU20: 135 | EV20: 170 | EW20: 116 | EX20: 105 | EY20: 20 | EZ20: 151 | FA20: 14 | FB20: 0 | FC20: NA | FD20: NA | FE20: NA | FF20: 360 | FG20: 29 | FH20: 66 | FI20: 44 | FJ20: 31 | FK20: 73 | FL20: 268 | FM20: 125 | FN20: 13 | FO20: 11 | FP20: 105 | FQ20: 126 | FR20: 123 | FS20: 126 | FT20: 5 | FU20: 98 | FV20: 20 | FW20: 259 | FX20: 173 | FY20: 40 | FZ20: 111 | GA20: NA | GB20: 13 | GC20: 48 | GD20: 37 | GE20: 16 | GF20: 62 | GG20: 250 | GH20: 101
A21: Morelos | B21: 26 | C21: 28 | D21: 20 | E21: 11 | F21: 21 | G21: 18 | H21: 145 | I21: 128 | J21: 130 | K21: 154 | L21: 152 | M21: 116 | N21: 127 | O21: 93 | P21: 103 | Q21: 85 | R21: 78 | S21: 93 | T21: 14 | U21: 9 | V21: 11 | W21: 109 | X21: 114 | Y21: 92 | Z21: 16 | AA21: 21 | AB21: 21 | AC21: 110 | AD21: 125 | AE21: 120 | AF21: 89 | AG21: 79 | AH21: 88 | AI21: 16 | AJ21: 28 | AK21: 32 | AL21: 44 | AM21: 52 | AN21: 49 | AO21: 137 | AP21: 134 | AQ21: 132 | AR21: 25 | AS21: 18 | AT21: 30 | AU21: 36 | AV21: 41 | AW21: 40 | AX21: 47 | AY21: 30 | AZ21: 46 | BA21: 24 | BB21: 21 | BC21: 21 | BD21: 76 | BE21: 67 | BF21: 79 | BG21: 299 | BH21: 282 | BI21: 262 | BJ21: 110 | BK21: 124 | BL21: 117 | BM21: 19 | BN21: 10 | BO21: 69 | BP21: 73 | BQ21: 57 | BR21: 40 | BS21: 13 | BT21: 67 | BU21: 7 | BV21: 2 | BW21: NA | BX21: NA | BY21: NA | BZ21: 137 | CA21: 19 | CB21: 19 | CC21: 33 | CD21: 17 | CE21: 41 | CF21: 149 | CG21: 62 | CH21: 7 | CI21: 1 | CJ21: 76 | CK21: 81 | CL21: 70 | CM21: 45 | CN21: 1 | CO21: 42 | CP21: 9 | CQ21: 108 | CR21: 89 | CS21: 16 | CT21: 44 | CU21: NA | CV21: 6 | CW21: 17 | CX21: 14 | CY21: 7 | CZ21: 35 | DA21: 150 | DB21: 48 | DC21: 14 | DD21: 16 | DE21: 59 | DF21: 80 | DG21: 40 | DH21: 44 | DI21: 9 | DJ21: 64 | DK21: 14 | DL21: 3 | DM21: NA | DN21: NA | DO21: NA | DP21: 134 | DQ21: 8 | DR21: 28 | DS21: 19 | DT21: 13 | DU21: 35 | DV21: 151 | DW21: 63 | DX21: 14 | DY21: 5 | DZ21: 69 | EA21: 72 | EB21: 53 | EC21: 34 | ED21: 0 | EE21: 50 | EF21: 7 | EG21: 122 | EH21: 79 | EI21: 28 | EJ21: 52 | EK21: NA | EL21: 10 | EM21: 13 | EN21: 11 | EO21: 8 | EP21: 32 | EQ21: 131 | ER21: 61 | ES21: 8 | ET21: 13 | EU21: 70 | EV21: 66 | EW21: 52 | EX21: 40 | EY21: 10 | EZ21: 56 | FA21: 10 | FB21: 2 | FC21: NA | FD21: NA | FE21: NA | FF21: 132 | FG21: 18 | FH21: 16 | FI21: 22 | FJ21: 6 | FK21: 45 | FL21: 136 | FM21: 52 | FN21: 12 | FO21: 5 | FP21: 60 | FQ21: 50 | FR21: 51 | FS21: 53 | FT21: 1 | FU21: 36 | FV21: 11 | FW21: 118 | FX21: 88 | FY21: 32 | FZ21: 49 | GA21: NA | GB21: 12 | GC21: 24 | GD21: 24 | GE21: 15 | GF21: 34 | GG21: 126 | GH21: 65
A22: Nayarit | B22: 25 | C22: 13 | D22: 10 | E22: 8 | F22: 6 | G22: 7 | H22: 43 | I22: 51 | J22: 58 | K22: 69 | L22: 80 | M22: 59 | N22: 58 | O22: 56 | P22: 57 | Q22: 42 | R22: 57 | S22: 49 | T22: 5 | U22: 3 | V22: 10 | W22: 97 | X22: 99 | Y22: 93 | Z22: 5 | AA22: 6 | AB22: 3 | AC22: 68 | AD22: 72 | AE22: 85 | AF22: 49 | AG22: 56 | AH22: 45 | AI22: 8 | AJ22: 11 | AK22: 13 | AL22: 22 | AM22: 23 | AN22: 17 | AO22: 119 | AP22: 147 | AQ22: 101 | AR22: 14 | AS22: 8 | AT22: 14 | AU22: 33 | AV22: 23 | AW22: 27 | AX22: 23 | AY22: 16 | AZ22: 29 | BA22: 12 | BB22: 16 | BC22: 16 | BD22: 42 | BE22: 36 | BF22: 39 | BG22: 171 | BH22: 167 | BI22: 173 | BJ22: 57 | BK22: 87 | BL22: 70 | BM22: 22 | BN22: 7 | BO22: 27 | BP22: 37 | BQ22: 33 | BR22: 22 | BS22: 4 | BT22: 63 | BU22: 3 | BV22: 0 | BW22: NA | BX22: NA | BY22: NA | BZ22: 119 | CA22: 11 | CB22: 13 | CC22: 14 | CD22: 6 | CE22: 16 | CF22: 94 | CG22: 30 | CH22: 3 | CI22: 1 | CJ22: 16 | CK22: 32 | CL22: 25 | CM22: 20 | CN22: 1 | CO22: 34 | CP22: 2 | CQ22: 68 | CR22: 49 | CS22: 8 | CT22: 22 | CU22: NA | CV22: 3 | CW22: 20 | CX22: 9 | CY22: 6 | CZ22: 26 | DA22: 77 | DB22: 27 | DC22: 10 | DD22: 5 | DE22: 29 | DF22: 45 | DG22: 26 | DH22: 34 | DI22: 3 | DJ22: 71 | DK22: 2 | DL22: 0 | DM22: NA | DN22: NA | DO22: NA | DP22: 147 | DQ22: 5 | DR22: 17 | DS22: 7 | DT22: 6 | DU22: 25 | DV22: 91 | DW22: 46 | DX22: 3 | DY22: 1 | DZ22: 22 | EA22: 35 | EB22: 30 | EC22: 23 | ED22: 0 | EE22: 28 | EF22: 4 | EG22: 72 | EH22: 56 | EI22: 11 | EJ22: 23 | EK22: NA | EL22: 3 | EM22: 6 | EN22: 9 | EO22: 10 | EP22: 11 | EQ22: 76 | ER22: 41 | ES22: 7 | ET22: 6 | EU22: 35 | EV22: 36 | EW22: 26 | EX22: 26 | EY22: 10 | EZ22: 62 | FA22: 3 | FB22: 1 | FC22: NA | FD22: NA | FE22: NA | FF22: 101 | FG22: 11 | FH22: 13 | FI22: 17 | FJ22: 11 | FK22: 26 | FL22: 88 | FM22: 42 | FN22: 3 | FO22: 1 | FP22: 23 | FQ22: 23 | FR22: 31 | FS22: 23 | FT22: 0 | FU22: 31 | FV22: 0 | FW22: 84 | FX22: 45 | FY22: 13 | FZ22: 17 | GA22: NA | GB22: 3 | GC22: 14 | GD22: 12 | GE22: 5 | GF22: 13 | GG22: 85 | GH22: 28
A23: Nuevo León | B23: 82 | C23: 84 | D23: 94 | E23: 74 | F23: 81 | G23: 64 | H23: 199 | I23: 219 | J23: 206 | K23: 452 | L23: 413 | M23: 448 | N23: 288 | O23: 251 | P23: 296 | Q23: 269 | R23: 257 | S23: 261 | T23: 49 | U23: 50 | V23: 52 | W23: 352 | X23: 353 | Y23: 367 | Z23: 31 | AA23: 31 | AB23: 35 | AC23: 479 | AD23: 458 | AE23: 514 | AF23: 158 | AG23: 167 | AH23: 226 | AI23: 77 | AJ23: 85 | AK23: 107 | AL23: 145 | AM23: 155 | AN23: 166 | AO23: 279 | AP23: 301 | AQ23: 336 | AR23: 77 | AS23: 78 | AT23: 76 | AU23: 130 | AV23: 133 | AW23: 102 | AX23: 173 | AY23: 136 | AZ23: 147 | BA23: 64 | BB23: 66 | BC23: 93 | BD23: 232 | BE23: 230 | BF23: 246 | BG23: 829 | BH23: 813 | BI23: 958 | BJ23: 348 | BK23: 430 | BL23: 497 | BM23: 60 | BN23: 61 | BO23: 117 | BP23: 273 | BQ23: 153 | BR23: 124 | BS23: 46 | BT23: 240 | BU23: 17 | BV23: 1 | BW23: NA | BX23: NA | BY23: NA | BZ23: 279 | CA23: 58 | CB23: 67 | CC23: 100 | CD23: 33 | CE23: 128 | CF23: 483 | CG23: 191 | CH23: 22 | CI23: 13 | CJ23: 82 | CK23: 179 | CL23: 135 | CM23: 145 | CN23: 3 | CO23: 112 | CP23: 14 | CQ23: 478 | CR23: 158 | CS23: 77 | CT23: 145 | CU23: NA | CV23: 19 | CW23: 63 | CX23: 73 | CY23: 31 | CZ23: 104 | DA23: 346 | DB23: 157 | DC23: 56 | DD23: 68 | DE23: 115 | DF23: 246 | DG23: 152 | DH23: 119 | DI23: 46 | DJ23: 214 | DK23: 15 | DL23: 3 | DM23: NA | DN23: NA | DO23: NA | DP23: 301 | DQ23: 53 | DR23: 67 | DS23: 78 | DT23: 36 | DU23: 122 | DV23: 466 | DW23: 229 | DX23: 28 | DY23: 13 | DZ23: 104 | EA23: 167 | EB23: 99 | EC23: 138 | ED23: 4 | EE23: 139 | EF23: 16 | EG23: 455 | EH23: 167 | EI23: 85 | EJ23: 155 | EK23: NA | EL23: 25 | EM23: 66 | EN23: 58 | EO23: 30 | EP23: 108 | EQ23: 347 | ER23: 201 | ES23: 60 | ET23: 54 | EU23: 102 | EV23: 275 | EW23: 169 | EX23: 139 | EY23: 49 | EZ23: 243 | FA23: 14 | FB23: 3 | FC23: NA | FD23: NA | FE23: NA | FF23: 336 | FG23: 59 | FH23: 61 | FI23: 72 | FJ23: 55 | FK23: 130 | FL23: 558 | FM23: 273 | FN23: 34 | FO23: 10 | FP23: 104 | FQ23: 173 | FR23: 127 | FS23: 122 | FT23: 3 | FU23: 124 | FV23: 21 | FW23: 511 | FX23: 226 | FY23: 107 | FZ23: 166 | GA23: NA | GB23: 17 | GC23: 41 | GD23: 75 | GE23: 38 | GF23: 116 | GG23: 400 | GH23: 224
A24: Oaxaca | B24: 49 | C24: 40 | D24: 50 | E24: 51 | F24: 56 | G24: 36 | H24: 271 | I24: 291 | J24: 271 | K24: 143 | L24: 168 | M24: 165 | N24: 357 | O24: 356 | P24: 333 | Q24: 151 | R24: 156 | S24: 152 | T24: 25 | U24: 20 | V24: 12 | W24: 124 | X24: 122 | Y24: 116 | Z24: 11 | AA24: 17 | AB24: 20 | AC24: 164 | AD24: 185 | AE24: 173 | AF24: 153 | AG24: 164 | AH24: 171 | AI24: 38 | AJ24: 49 | AK24: 40 | AL24: 85 | AM24: 111 | AN24: 103 | AO24: 219 | AP24: 262 | AQ24: 209 | AR24: 23 | AS24: 33 | AT24: 31 | AU24: 70 | AV24: 78 | AW24: 70 | AX24: 104 | AY24: 99 | AZ24: 98 | BA24: 47 | BB24: 38 | BC24: 43 | BD24: 165 | BE24: 138 | BF24: 152 | BG24: 522 | BH24: 594 | BI24: 518 | BJ24: 189 | BK24: 214 | BL24: 227 | BM24: 36 | BN24: 28 | BO24: 140 | BP24: 82 | BQ24: 177 | BR24: 67 | BS24: 24 | BT24: 74 | BU24: 6 | BV24: 0 | BW24: NA | BX24: NA | BY24: NA | BZ24: 219 | CA24: 17 | CB24: 39 | CC24: 62 | CD24: 25 | CE24: 79 | CF24: 248 | CG24: 97 | CH24: 13 | CI24: 23 | CJ24: 131 | CK24: 61 | CL24: 180 | CM24: 84 | CN24: 1 | CO24: 50 | CP24: 5 | CQ24: 164 | CR24: 153 | CS24: 38 | CT24: 85 | CU24: NA | CV24: 6 | CW24: 31 | CX24: 42 | CY24: 22 | CZ24: 86 | DA24: 274 | DB24: 92 | DC24: 28 | DD24: 36 | DE24: 145 | DF24: 83 | DG24: 162 | DH24: 70 | DI24: 19 | DJ24: 72 | DK24: 11 | DL24: 1 | DM24: NA | DN24: NA | DO24: NA | DP24: 262 | DQ24: 13 | DR24: 47 | DS24: 55 | DT24: 20 | DU24: 65 | DV24: 304 | DW24: 110 | DX24: 12 | DY24: 20 | DZ24: 146 | EA24: 85 | EB24: 194 | EC24: 86 | ED24: 1 | EE24: 50 | EF24: 6 | EG24: 184 | EH24: 164 | EI24: 49 | EJ24: 111 | EK24: NA | EL24: 20 | EM24: 31 | EN24: 44 | EO24: 18 | EP24: 73 | EQ24: 290 | ER24: 104 | ES24: 29 | ET24: 25 | EU24: 142 | EV24: 89 | EW24: 156 | EX24: 67 | EY24: 10 | EZ24: 58 | FA24: 14 | FB24: 1 | FC24: NA | FD24: NA | FE24: NA | FF24: 209 | FG24: 17 | FH24: 40 | FI24: 55 | FJ24: 25 | FK24: 74 | FL24: 236 | FM24: 98 | FN24: 21 | FO24: 11 | FP24: 129 | FQ24: 76 | FR24: 177 | FS24: 85 | FT24: 2 | FU24: 58 | FV24: 6 | FW24: 172 | FX24: 171 | FY24: 40 | FZ24: 103 | GA24: NA | GB24: 14 | GC24: 30 | GD24: 43 | GE24: 18 | GF24: 78 | GG24: 282 | GH24: 129
A25: Puebla | B25: 65 | C25: 45 | D25: 40 | E25: 59 | F25: 50 | G25: 45 | H25: 426 | I25: 406 | J25: 352 | K25: 273 | L25: 275 | M25: 311 | N25: 403 | O25: 383 | P25: 341 | Q25: 222 | R25: 201 | S25: 202 | T25: 24 | U25: 24 | V25: 16 | W25: 194 | X25: 196 | Y25: 192 | Z25: 40 | AA25: 36 | AB25: 46 | AC25: 339 | AD25: 308 | AE25: 318 | AF25: 215 | AG25: 245 | AH25: 216 | AI25: 69 | AJ25: 46 | AK25: 59 | AL25: 156 | AM25: 136 | AN25: 146 | AO25: 319 | AP25: 290 | AQ25: 304 | AR25: 53 | AS25: 33 | AT25: 39 | AU25: 112 | AV25: 90 | AW25: 97 | AX25: 130 | AY25: 120 | AZ25: 131 | BA25: 44 | BB25: 43 | BC25: 46 | BD25: 279 | BE25: 233 | BF25: 237 | BG25: 821 | BH25: 811 | BI25: 823 | BJ25: 323 | BK25: 322 | BL25: 354 | BM25: 41 | BN25: 44 | BO25: 212 | BP25: 128 | BQ25: 189 | BR25: 100 | BS25: 16 | BT25: 109 | BU25: 20 | BV25: 3 | BW25: NA | BX25: NA | BY25: NA | BZ25: 319 | CA25: 35 | CB25: 57 | CC25: 72 | CD25: 25 | CE25: 141 | CF25: 427 | CG25: 158 | CH25: 24 | CI25: 15 | CJ25: 214 | CK25: 145 | CL25: 214 | CM25: 122 | CN25: 8 | CO25: 85 | CP25: 20 | CQ25: 336 | CR25: 215 | CS25: 69 | CT25: 156 | CU25: NA | CV25: 18 | CW25: 55 | CX25: 58 | CY25: 19 | CZ25: 138 | DA25: 394 | DB25: 165 | DC25: 29 | DD25: 35 | DE25: 209 | DF25: 135 | DG25: 179 | DH25: 83 | DI25: 20 | DJ25: 112 | DK25: 21 | DL25: 2 | DM25: NA | DN25: NA | DO25: NA | DP25: 290 | DQ25: 20 | DR25: 47 | DS25: 71 | DT25: 24 | DU25: 122 | DV25: 430 | DW25: 163 | DX25: 16 | DY25: 15 | DZ25: 197 | EA25: 140 | EB25: 204 | EC25: 118 | ED25: 4 | EE25: 84 | EF25: 15 | EG25: 306 | EH25: 245 | EI25: 46 | EJ25: 136 | EK25: NA | EL25: 13 | EM25: 43 | EN25: 49 | EO25: 19 | EP25: 111 | EQ25: 381 | ER25: 159 | ES25: 26 | ET25: 30 | EU25: 178 | EV25: 144 | EW25: 160 | EX25: 93 | EY25: 13 | EZ25: 105 | FA25: 24 | FB25: 1 | FC25: NA | FD25: NA | FE25: NA | FF25: 304 | FG25: 26 | FH25: 50 | FI25: 71 | FJ25: 29 | FK25: 129 | FL25: 420 | FM25: 167 | FN25: 14 | FO25: 15 | FP25: 174 | FQ25: 167 | FR25: 181 | FS25: 109 | FT25: 3 | FU25: 87 | FV25: 22 | FW25: 317 | FX25: 216 | FY25: 59 | FZ25: 146 | GA25: NA | GB25: 13 | GC25: 47 | GD25: 60 | GE25: 17 | GF25: 108 | GG25: 403 | GH25: 187
A26: Querétaro | B26: 26 | C26: 34 | D26: 25 | E26: 30 | F26: 18 | G26: 14 | H26: 83 | I26: 83 | J26: 89 | K26: 124 | L26: 134 | M26: 135 | N26: 95 | O26: 89 | P26: 114 | Q26: 79 | R26: 112 | S26: 86 | T26: 12 | U26: 7 | V26: 11 | W26: 103 | X26: 100 | Y26: 95 | Z26: 16 | AA26: 18 | AB26: 26 | AC26: 143 | AD26: 141 | AE26: 132 | AF26: 61 | AG26: 61 | AH26: 54 | AI26: 20 | AJ26: 26 | AK26: 31 | AL26: 50 | AM26: 50 | AN26: 63 | AO26: 119 | AP26: 136 | AQ26: 95 | AR26: 18 | AS26: 17 | AT26: 29 | AU26: 46 | AV26: 48 | AW26: 62 | AX26: 49 | AY26: 50 | AZ26: 48 | BA26: 33 | BB26: 24 | BC26: 19 | BD26: 95 | BE26: 79 | BF26: 88 | BG26: 286 | BH26: 286 | BI26: 320 | BJ26: 114 | BK26: 122 | BL26: 151 | BM26: 17 | BN26: 22 | BO26: 40 | BP26: 67 | BQ26: 46 | BR26: 37 | BS26: 10 | BT26: 59 | BU26: 9 | BV26: 2 | BW26: NA | BX26: NA | BY26: NA | BZ26: 119 | CA26: 13 | CB26: 27 | CC26: 25 | CD26: 18 | CE26: 51 | CF26: 155 | CG26: 63 | CH26: 9 | CI26: 8 | CJ26: 43 | CK26: 57 | CL26: 49 | CM26: 42 | CN26: 2 | CO26: 44 | CP26: 7 | CQ26: 141 | CR26: 61 | CS26: 20 | CT26: 50 | CU26: NA | CV26: 5 | CW26: 19 | CX26: 24 | CY26: 15 | CZ26: 44 | DA26: 131 | DB26: 51 | DC26: 15 | DD26: 10 | DE26: 37 | DF26: 74 | DG26: 45 | DH26: 51 | DI26: 5 | DJ26: 46 | DK26: 8 | DL26: 0 | DM26: NA | DN26: NA | DO26: NA | DP26: 136 | DQ26: 13 | DR26: 25 | DS26: 32 | DT26: 13 | DU26: 49 | DV26: 151 | DW26: 61 | DX26: 19 | DY26: 8 | DZ26: 46 | EA26: 60 | EB26: 44 | EC26: 61 | ED26: 2 | EE26: 54 | EF26: 10 | EG26: 141 | EH26: 61 | EI26: 26 | EJ26: 50 | EK26: NA | EL26: 4 | EM26: 23 | EN26: 18 | EO26: 11 | EP26: 30 | EQ26: 135 | ER26: 61 | ES26: 15 | ET26: 12 | EU26: 47 | EV26: 77 | EW26: 55 | EX26: 43 | EY26: 9 | EZ26: 58 | FA26: 18 | FB26: 0 | FC26: NA | FD26: NA | FE26: NA | FF26: 95 | FG26: 24 | FH26: 27 | FI26: 28 | FJ26: 15 | FK26: 51 | FL26: 176 | FM26: 75 | FN26: 10 | FO26: 2 | FP26: 42 | FQ26: 58 | FR26: 59 | FS26: 43 | FT26: 2 | FU26: 37 | FV26: 8 | FW26: 132 | FX26: 54 | FY26: 31 | FZ26: 63 | GA26: NA | GB26: 5 | GC26: 35 | GD26: 20 | GE26: 4 | GF26: 37 | GG26: 144 | GH26: 76
A27: Quintana Roo | B27: 17 | C27: 20 | D27: 15 | E27: 12 | F27: 14 | G27: 13 | H27: 65 | I27: 58 | J27: 55 | K27: 52 | L27: 62 | M27: 71 | N27: 61 | O27: 57 | P27: 74 | Q27: 29 | R27: 42 | S27: 34 | T27: 8 | U27: 9 | V27: 2 | W27: 54 | X27: 47 | Y27: 68 | Z27: 2 | AA27: 9 | AB27: 7 | AC27: 56 | AD27: 72 | AE27: 75 | AF27: 48 | AG27: 48 | AH27: 50 | AI27: 21 | AJ27: 16 | AK27: 26 | AL27: 36 | AM27: 26 | AN27: 30 | AO27: 52 | AP27: 50 | AQ27: 68 | AR27: 14 | AS27: 11 | AT27: 14 | AU27: 19 | AV27: 23 | AW27: 31 | AX27: 21 | AY27: 27 | AZ27: 13 | BA27: 7 | BB27: 6 | BC27: 6 | BD27: 46 | BE27: 32 | BF27: 61 | BG27: 165 | BH27: 169 | BI27: 169 | BJ27: 77 | BK27: 96 | BL27: 89 | BM27: 12 | BN27: 8 | BO27: 31 | BP27: 26 | BQ27: 33 | BR27: 15 | BS27: 6 | BT27: 31 | BU27: 0 | BV27: 0 | BW27: NA | BX27: NA | BY27: NA | BZ27: 52 | CA27: 11 | CB27: 14 | CC27: 10 | CD27: 4 | CE27: 22 | CF27: 88 | CG27: 48 | CH27: 5 | CI27: 4 | CJ27: 34 | CK27: 26 | CL27: 28 | CM27: 14 | CN27: 2 | CO27: 23 | CP27: 2 | CQ27: 56 | CR27: 48 | CS27: 21 | CT27: 36 | CU27: NA | CV27: 3 | CW27: 5 | CX27: 11 | CY27: 3 | CZ27: 24 | DA27: 77 | DB27: 29 | DC27: 15 | DD27: 8 | DE27: 33 | DF27: 31 | DG27: 28 | DH27: 22 | DI27: 8 | DJ27: 25 | DK27: 5 | DL27: 0 | DM27: NA | DN27: NA | DO27: NA | DP27: 50 | DQ27: 8 | DR27: 12 | DS27: 13 | DT27: 4 | DU27: 17 | DV27: 102 | DW27: 53 | DX27: 5 | DY27: 6 | DZ27: 25 | EA27: 31 | EB27: 29 | EC27: 20 | ED27: 1 | EE27: 22 | EF27: 4 | EG27: 72 | EH27: 48 | EI27: 16 | EJ27: 26 | EK27: NA | EL27: 3 | EM27: 11 | EN27: 14 | EO27: 2 | EP27: 15 | EQ27: 67 | ER27: 43 | ES27: 14 | ET27: 11 | EU27: 38 | EV27: 43 | EW27: 36 | EX27: 18 | EY27: 1 | EZ27: 38 | FA27: 2 | FB27: 0 | FC27: NA | FD27: NA | FE27: NA | FF27: 68 | FG27: 10 | FH27: 15 | FI27: 7 | FJ27: 0 | FK27: 34 | FL27: 95 | FM27: 48 | FN27: 1 | FO27: 2 | FP27: 17 | FQ27: 28 | FR27: 38 | FS27: 16 | FT27: 1 | FU27: 30 | FV27: 5 | FW27: 75 | FX27: 50 | FY27: 26 | FZ27: 30 | GA27: NA | GB27: 4 | GC27: 16 | GD27: 6 | GE27: 6 | GF27: 27 | GG27: 74 | GH27: 41
A28: San Luis Potosí | B28: 32 | C28: 27 | D28: 36 | E28: 24 | F28: 32 | G28: 38 | H28: 113 | I28: 134 | J28: 137 | K28: 133 | L28: 158 | M28: 138 | N28: 166 | O28: 207 | P28: 177 | Q28: 116 | R28: 99 | S28: 103 | T28: 21 | U28: 17 | V28: 14 | W28: 152 | X28: 147 | Y28: 149 | Z28: 17 | AA28: 16 | AB28: 21 | AC28: 174 | AD28: 187 | AE28: 170 | AF28: 100 | AG28: 77 | AH28: 90 | AI28: 20 | AJ28: 21 | AK28: 25 | AL28: 65 | AM28: 79 | AN28: 76 | AO28: 175 | AP28: 199 | AQ28: 186 | AR28: 25 | AS28: 32 | AT28: 27 | AU28: 50 | AV28: 47 | AW28: 39 | AX28: 53 | AY28: 54 | AZ28: 61 | BA28: 26 | BB28: 40 | BC28: 28 | BD28: 90 | BE28: 89 | BF28: 105 | BG28: 381 | BH28: 388 | BI28: 388 | BJ28: 165 | BK28: 168 | BL28: 165 | BM28: 19 | BN28: 16 | BO28: 59 | BP28: 80 | BQ28: 91 | BR28: 45 | BS28: 18 | BT28: 87 | BU28: 6 | BV28: 0 | BW28: NA | BX28: NA | BY28: NA | BZ28: 175 | CA28: 17 | CB28: 27 | CC28: 34 | CD28: 14 | CE28: 50 | CF28: 203 | CG28: 83 | CH28: 13 | CI28: 8 | CJ28: 54 | CK28: 53 | CL28: 75 | CM28: 71 | CN28: 3 | CO28: 65 | CP28: 11 | CQ28: 174 | CR28: 100 | CS28: 20 | CT28: 65 | CU28: NA | CV28: 8 | CW28: 23 | CX28: 19 | CY28: 12 | CZ28: 40 | DA28: 178 | DB28: 82 | DC28: 18 | DD28: 23 | DE28: 63 | DF28: 86 | DG28: 106 | DH28: 47 | DI28: 16 | DJ28: 95 | DK28: 9 | DL28: 2 | DM28: NA | DN28: NA | DO28: NA | DP28: 199 | DQ28: 22 | DR28: 26 | DS28: 30 | DT28: 23 | DU28: 45 | DV28: 210 | DW28: 79 | DX28: 9 | DY28: 9 | DZ28: 71 | EA28: 72 | EB28: 101 | EC28: 52 | ED28: 1 | EE28: 52 | EF28: 7 | EG28: 185 | EH28: 77 | EI28: 21 | EJ28: 79 | EK28: NA | EL28: 10 | EM28: 21 | EN28: 24 | EO28: 17 | EP28: 44 | EQ28: 178 | ER28: 89 | ES28: 24 | ET28: 28 | EU28: 76 | EV28: 77 | EW28: 98 | EX28: 41 | EY28: 14 | EZ28: 91 | FA28: 10 | FB28: 2 | FC28: NA | FD28: NA | FE28: NA | FF28: 186 | FG28: 17 | FH28: 24 | FI28: 39 | FJ28: 18 | FK28: 62 | FL28: 215 | FM28: 85 | FN28: 12 | FO28: 10 | FP28: 61 | FQ28: 61 | FR28: 79 | FS28: 62 | FT28: 0 | FU28: 58 | FV28: 11 | FW28: 168 | FX28: 90 | FY28: 25 | FZ28: 76 | GA28: NA | GB28: 10 | GC28: 15 | GD28: 22 | GE28: 10 | GF28: 43 | GG28: 173 | GH28: 80
A29: Sinaloa | B29: 39 | C29: 38 | D29: 35 | E29: 33 | F29: 22 | G29: 22 | H29: 157 | I29: 161 | J29: 150 | K29: 156 | L29: 184 | M29: 177 | N29: 143 | O29: 154 | P29: 135 | Q29: 137 | R29: 148 | S29: 133 | T29: 32 | U29: 29 | V29: 21 | W29: 310 | X29: 296 | Y29: 258 | Z29: 14 | AA29: 19 | AB29: 26 | AC29: 211 | AD29: 208 | AE29: 195 | AF29: 90 | AG29: 99 | AH29: 94 | AI29: 17 | AJ29: 30 | AK29: 25 | AL29: 59 | AM29: 64 | AN29: 65 | AO29: 258 | AP29: 257 | AQ29: 235 | AR29: 27 | AS29: 29 | AT29: 28 | AU29: 58 | AV29: 59 | AW29: 60 | AX29: 57 | AY29: 60 | AZ29: 67 | BA29: 46 | BB29: 28 | BC29: 50 | BD29: 71 | BE29: 90 | BF29: 110 | BG29: 350 | BH29: 382 | BI29: 386 | BJ29: 174 | BK29: 173 | BL29: 206 | BM29: 31 | BN29: 22 | BO29: 93 | BP29: 85 | BQ29: 85 | BR29: 68 | BS29: 31 | BT29: 215 | BU29: 8 | BV29: 2 | BW29: NA | BX29: NA | BY29: NA | BZ29: 258 | CA29: 19 | CB29: 29 | CC29: 33 | CD29: 21 | CE29: 38 | CF29: 194 | CG29: 97 | CH29: 8 | CI29: 11 | CJ29: 64 | CK29: 71 | CL29: 58 | CM29: 69 | CN29: 1 | CO29: 95 | CP29: 6 | CQ29: 209 | CR29: 90 | CS29: 17 | CT29: 59 | CU29: NA | CV29: 8 | CW29: 29 | CX29: 24 | CY29: 25 | CZ29: 33 | DA29: 156 | DB29: 77 | DC29: 27 | DD29: 20 | DE29: 89 | DF29: 109 | DG29: 83 | DH29: 75 | DI29: 26 | DJ29: 193 | DK29: 9 | DL29: 1 | DM29: NA | DN29: NA | DO29: NA | DP29: 257 | DQ29: 22 | DR29: 25 | DS29: 25 | DT29: 16 | DU29: 43 | DV29: 213 | DW29: 93 | DX29: 11 | DY29: 2 | DZ29: 72 | EA29: 75 | EB29: 71 | EC29: 73 | ED29: 3 | EE29: 103 | EF29: 10 | EG29: 207 | EH29: 99 | EI29: 30 | EJ29: 64 | EK29: NA | EL29: 7 | EM29: 34 | EN29: 35 | EO29: 12 | EP29: 47 | EQ29: 169 | ER29: 80 | ES29: 23 | ET29: 17 | EU29: 87 | EV29: 104 | EW29: 73 | EX29: 66 | EY29: 18 | EZ29: 176 | FA29: 16 | FB29: 2 | FC29: NA | FD29: NA | FE29: NA | FF29: 235 | FG29: 24 | FH29: 33 | FI29: 39 | FJ29: 30 | FK29: 66 | FL29: 233 | FM29: 112 | FN29: 12 | FO29: 5 | FP29: 63 | FQ29: 73 | FR29: 62 | FS29: 67 | FT29: 3 | FU29: 82 | FV29: 10 | FW29: 193 | FX29: 94 | FY29: 25 | FZ29: 65 | GA29: NA | GB29: 4 | GC29: 27 | GD29: 28 | GE29: 20 | GF29: 44 | GG29: 153 | GH29: 94
A30: Sonora | B30: 34 | C30: 27 | D30: 32 | E30: 34 | F30: 39 | G30: 35 | H30: 176 | I30: 174 | J30: 160 | K30: 223 | L30: 242 | M30: 235 | N30: 137 | O30: 133 | P30: 132 | Q30: 137 | R30: 145 | S30: 141 | T30: 28 | U30: 18 | V30: 23 | W30: 346 | X30: 261 | Y30: 260 | Z30: 15 | AA30: 9 | AB30: 16 | AC30: 245 | AD30: 235 | AE30: 236 | AF30: 105 | AG30: 101 | AH30: 115 | AI30: 35 | AJ30: 51 | AK30: 48 | AL30: 61 | AM30: 68 | AN30: 66 | AO30: 225 | AP30: 179 | AQ30: 209 | AR30: 44 | AS30: 33 | AT30: 36 | AU30: 75 | AV30: 45 | AW30: 63 | AX30: 76 | AY30: 60 | AZ30: 65 | BA30: 40 | BB30: 46 | BC30: 43 | BD30: 116 | BE30: 111 | BF30: 121 | BG30: 417 | BH30: 429 | BI30: 465 | BJ30: 213 | BK30: 222 | BL30: 271 | BM30: 23 | BN30: 25 | BO30: 105 | BP30: 127 | BQ30: 66 | BR30: 63 | BS30: 24 | BT30: 241 | BU30: 9 | BV30: 2 | BW30: NA | BX30: NA | BY30: NA | BZ30: 225 | CA30: 33 | CB30: 41 | CC30: 42 | CD30: 22 | CE30: 62 | CF30: 248 | CG30: 117 | CH30: 11 | CI30: 9 | CJ30: 71 | CK30: 96 | CL30: 71 | CM30: 74 | CN30: 4 | CO30: 105 | CP30: 6 | CQ30: 243 | CR30: 105 | CS30: 35 | CT30: 61 | CU30: NA | CV30: 11 | CW30: 34 | CX30: 34 | CY30: 18 | CZ30: 54 | DA30: 169 | DB30: 96 | DC30: 17 | DD30: 29 | DE30: 98 | DF30: 127 | DG30: 67 | DH30: 73 | DI30: 15 | DJ30: 177 | DK30: 7 | DL30: 1 | DM30: NA | DN30: NA | DO30: NA | DP30: 179 | DQ30: 21 | DR30: 29 | DS30: 31 | DT30: 22 | DU30: 66 | DV30: 238 | DW30: 109 | DX30: 10 | DY30: 10 | DZ30: 76 | EA30: 115 | EB30: 66 | EC30: 72 | ED30: 3 | EE30: 84 | EF30: 2 | EG30: 234 | EH30: 101 | EI30: 51 | EJ30: 68 | EK30: NA | EL30: 12 | EM30: 16 | EN30: 29 | EO30: 24 | EP30: 45 | EQ30: 191 | ER30: 113 | ES30: 24 | ET30: 27 | EU30: 97 | EV30: 131 | EW30: 67 | EX30: 75 | EY30: 21 | EZ30: 175 | FA30: 7 | FB30: 3 | FC30: NA | FD30: NA | FE30: NA | FF30: 209 | FG30: 21 | FH30: 44 | FI30: 35 | FJ30: 19 | FK30: 65 | FL30: 271 | FM30: 145 | FN30: 8 | FO30: 8 | FP30: 63 | FQ30: 104 | FR30: 65 | FS30: 66 | FT30: 2 | FU30: 85 | FV30: 9 | FW30: 233 | FX30: 115 | FY30: 48 | FZ30: 66 | GA30: NA | GB30: 15 | GC30: 19 | GD30: 30 | GE30: 24 | GF30: 56 | GG30: 194 | GH30: 126
A31: Tabasco | B31: 21 | C31: 31 | D31: 27 | E31: 6 | F31: 6 | G31: 12 | H31: 123 | I31: 130 | J31: 136 | K31: 91 | L31: 125 | M31: 111 | N31: 177 | O31: 178 | P31: 163 | Q31: 84 | R31: 61 | S31: 72 | T31: 11 | U31: 14 | V31: 19 | W31: 96 | X31: 89 | Y31: 88 | Z31: 7 | AA31: 8 | AB31: 8 | AC31: 135 | AD31: 131 | AE31: 131 | AF31: 98 | AG31: 64 | AH31: 59 | AI31: 12 | AJ31: 24 | AK31: 36 | AL31: 48 | AM31: 50 | AN31: 46 | AO31: 170 | AP31: 141 | AQ31: 121 | AR31: 10 | AS31: 10 | AT31: 10 | AU31: 39 | AV31: 38 | AW31: 42 | AX31: 48 | AY31: 43 | AZ31: 59 | BA31: 19 | BB31: 29 | BC31: 14 | BD31: 121 | BE31: 123 | BF31: 133 | BG31: 249 | BH31: 266 | BI31: 248 | BJ31: 123 | BK31: 169 | BL31: 164 | BM31: 16 | BN31: 6 | BO31: 68 | BP31: 44 | BQ31: 105 | BR31: 47 | BS31: 9 | BT31: 53 | BU31: 5 | BV31: 2 | BW31: NA | BX31: NA | BY31: NA | BZ31: 170 | CA31: 7 | CB31: 16 | CC31: 29 | CD31: 10 | CE31: 64 | CF31: 153 | CG31: 69 | CH31: 5 | CI31: 0 | CJ31: 55 | CK31: 47 | CL31: 72 | CM31: 37 | CN31: 2 | CO31: 43 | CP31: 2 | CQ31: 133 | CR31: 98 | CS31: 12 | CT31: 48 | CU31: NA | CV31: 3 | CW31: 23 | CX31: 19 | CY31: 9 | CZ31: 57 | DA31: 96 | DB31: 54 | DC31: 19 | DD31: 4 | DE31: 61 | DF31: 69 | DG31: 92 | DH31: 34 | DI31: 13 | DJ31: 57 | DK31: 5 | DL31: 1 | DM31: NA | DN31: NA | DO31: NA | DP31: 141 | DQ31: 4 | DR31: 21 | DS31: 25 | DT31: 13 | DU31: 75 | DV31: 151 | DW31: 92 | DX31: 12 | DY31: 2 | DZ31: 69 | EA31: 56 | EB31: 86 | EC31: 27 | ED31: 1 | EE31: 32 | EF31: 3 | EG31: 130 | EH31: 64 | EI31: 24 | EJ31: 50 | EK31: NA | EL31: 6 | EM31: 17 | EN31: 18 | EO31: 16 | EP31: 48 | EQ31: 115 | ER31: 77 | ES31: 23 | ET31: 10 | EU31: 69 | EV31: 60 | EW31: 87 | EX31: 33 | EY31: 18 | EZ31: 47 | FA31: 5 | FB31: 2 | FC31: NA | FD31: NA | FE31: NA | FF31: 121 | FG31: 7 | FH31: 26 | FI31: 34 | FJ31: 9 | FK31: 69 | FL31: 134 | FM31: 81 | FN31: 4 | FO31: 2 | FP31: 67 | FQ31: 51 | FR31: 76 | FS31: 39 | FT31: 1 | FU31: 41 | FV31: 3 | FW31: 129 | FX31: 59 | FY31: 36 | FZ31: 46 | GA31: NA | GB31: 3 | GC31: 16 | GD31: 25 | GE31: 5 | GF31: 64 | GG31: 114 | GH31: 83
A32: Tamaulipas | B32: 50 | C32: 46 | D32: 40 | E32: 31 | F32: 37 | G32: 34 | H32: 152 | I32: 116 | J32: 129 | K32: 245 | L32: 241 | M32: 239 | N32: 251 | O32: 225 | P32: 230 | Q32: 128 | R32: 107 | S32: 128 | T32: 33 | U32: 26 | V32: 23 | W32: 234 | X32: 214 | Y32: 209 | Z32: 13 | AA32: 21 | AB32: 16 | AC32: 268 | AD32: 304 | AE32: 256 | AF32: 114 | AG32: 150 | AH32: 124 | AI32: 43 | AJ32: 34 | AK32: 33 | AL32: 83 | AM32: 80 | AN32: 76 | AO32: 209 | AP32: 207 | AQ32: 195 | AR32: 28 | AS32: 47 | AT32: 53 | AU32: 43 | AV32: 60 | AW32: 66 | AX32: 62 | AY32: 69 | AZ32: 83 | BA32: 31 | BB32: 34 | BC32: 34 | BD32: 102 | BE32: 91 | BF32: 117 | BG32: 482 | BH32: 459 | BI32: 483 | BJ32: 155 | BK32: 163 | BL32: 188 | BM32: 38 | BN32: 29 | BO32: 89 | BP32: 135 | BQ32: 130 | BR32: 65 | BS32: 29 | BT32: 160 | BU32: 7 | BV32: 2 | BW32: NA | BX32: NA | BY32: NA | BZ32: 209 | CA32: 21 | CB32: 20 | CC32: 27 | CD32: 17 | CE32: 69 | CF32: 277 | CG32: 76 | CH32: 12 | CI32: 2 | CJ32: 63 | CK32: 110 | CL32: 121 | CM32: 63 | CN32: 4 | CO32: 74 | CP32: 6 | CQ32: 266 | CR32: 114 | CS32: 43 | CT32: 83 | CU32: NA | CV32: 7 | CW32: 23 | CX32: 35 | CY32: 14 | CZ32: 33 | DA32: 205 | DB32: 79 | DC32: 31 | DD32: 24 | DE32: 64 | DF32: 133 | DG32: 122 | DH32: 53 | DI32: 18 | DJ32: 132 | DK32: 6 | DL32: 3 | DM32: NA | DN32: NA | DO32: NA | DP32: 207 | DQ32: 31 | DR32: 38 | DS32: 40 | DT32: 16 | DU32: 39 | DV32: 251 | DW32: 80 | DX32: 15 | DY32: 13 | DZ32: 52 | EA32: 108 | EB32: 103 | EC32: 54 | ED32: 8 | EE32: 82 | EF32: 15 | EG32: 301 | EH32: 150 | EI32: 34 | EJ32: 80 | EK32: NA | EL32: 16 | EM32: 22 | EN32: 29 | EO32: 18 | EP32: 52 | EQ32: 208 | ER32: 83 | ES32: 29 | ET32: 28 | EU32: 76 | EV32: 142 | EW32: 122 | EX32: 66 | EY32: 18 | EZ32: 133 | FA32: 11 | FB32: 2 | FC32: NA | FD32: NA | FE32: NA | FF32: 195 | FG32: 40 | FH32: 35 | FI32: 42 | FJ32: 17 | FK32: 66 | FL32: 274 | FM32: 104 | FN32: 11 | FO32: 6 | FP32: 53 | FQ32: 97 | FR32: 108 | FS32: 62 | FT32: 5 | FU32: 76 | FV32: 5 | FW32: 254 | FX32: 124 | FY32: 33 | FZ32: 76 | GA32: NA | GB32: 13 | GC32: 31 | GD32: 41 | GE32: 17 | GF32: 51 | GG32: 209 | GH32: 84
A33: Tlaxcala | B33: 9 | C33: 8 | D33: 9 | E33: 5 | F33: 9 | G33: 4 | H33: 88 | I33: 71 | J33: 70 | K33: 51 | L33: 55 | M33: 69 | N33: 67 | O33: 54 | P33: 52 | Q33: 42 | R33: 41 | S33: 54 | T33: 8 | U33: 2 | V33: 2 | W33: 39 | X33: 30 | Y33: 38 | Z33: 11 | AA33: 5 | AB33: 8 | AC33: 59 | AD33: 45 | AE33: 52 | AF33: 30 | AG33: 35 | AH33: 30 | AI33: 13 | AJ33: 13 | AK33: 19 | AL33: 30 | AM33: 20 | AN33: 22 | AO33: 67 | AP33: 49 | AQ33: 50 | AR33: 9 | AS33: 3 | AT33: 7 | AU33: 25 | AV33: 15 | AW33: 16 | AX33: 17 | AY33: 13 | AZ33: 19 | BA33: 10 | BB33: 11 | BC33: 4 | BD33: 38 | BE33: 41 | BF33: 30 | BG33: 163 | BH33: 138 | BI33: 176 | BJ33: 40 | BK33: 40 | BL33: 47 | BM33: 6 | BN33: 3 | BO33: 33 | BP33: 30 | BQ33: 30 | BR33: 17 | BS33: 8 | BT33: 19 | BU33: 5 | BV33: 0 | BW33: NA | BX33: NA | BY33: NA | BZ33: 67 | CA33: 5 | CB33: 19 | CC33: 8 | CD33: 7 | CE33: 16 | CF33: 86 | CG33: 21 | CH33: 3 | CI33: 2 | CJ33: 55 | CK33: 21 | CL33: 37 | CM33: 25 | CN33: 0 | CO33: 20 | CP33: 6 | CQ33: 59 | CR33: 30 | CS33: 13 | CT33: 30 | CU33: NA | CV33: 4 | CW33: 6 | CX33: 9 | CY33: 3 | CZ33: 22 | DA33: 77 | DB33: 19 | DC33: 3 | DD33: 9 | DE33: 29 | DF33: 24 | DG33: 22 | DH33: 17 | DI33: 2 | DJ33: 13 | DK33: 3 | DL33: 0 | DM33: NA | DN33: NA | DO33: NA | DP33: 49 | DQ33: 3 | DR33: 10 | DS33: 8 | DT33: 5 | DU33: 22 | DV33: 71 | DW33: 19 | DX33: 5 | DY33: 0 | DZ33: 42 | EA33: 31 | EB33: 32 | EC33: 24 | ED33: 0 | EE33: 17 | EF33: 2 | EG33: 45 | EH33: 35 | EI33: 13 | EJ33: 20 | EK33: NA | EL33: 0 | EM33: 5 | EN33: 5 | EO33: 6 | EP33: 19 | EQ33: 67 | ER33: 21 | ES33: 6 | ET33: 2 | EU33: 37 | EV33: 40 | EW33: 28 | EX33: 22 | EY33: 1 | EZ33: 17 | FA33: 4 | FB33: 0 | FC33: NA | FD33: NA | FE33: NA | FF33: 50 | FG33: 7 | FH33: 10 | FI33: 11 | FJ33: 3 | FK33: 18 | FL33: 92 | FM33: 22 | FN33: 3 | FO33: 2 | FP33: 33 | FQ33: 29 | FR33: 24 | FS33: 32 | FT33: 1 | FU33: 21 | FV33: 4 | FW33: 52 | FX33: 30 | FY33: 19 | FZ33: 22 | GA33: NA | GB33: 0 | GC33: 6 | GD33: 8 | GE33: 1 | GF33: 12 | GG33: 84 | GH33: 25
A34: Veracruz | B34: 113 | C34: 123 | D34: 127 | E34: 94 | F34: 99 | G34: 86 | H34: 506 | I34: 487 | J34: 489 | K34: 492 | L34: 494 | M34: 549 | N34: 727 | O34: 776 | P34: 776 | Q34: 293 | R34: 279 | S34: 302 | T34: 53 | U34: 52 | V34: 47 | W34: 353 | X34: 344 | Y34: 330 | Z34: 53 | AA34: 44 | AB34: 31 | AC34: 516 | AD34: 525 | AE34: 463 | AF34: 339 | AG34: 353 | AH34: 362 | AI34: 94 | AJ34: 96 | AK34: 106 | AL34: 190 | AM34: 210 | AN34: 213 | AO34: 652 | AP34: 661 | AQ34: 605 | AR34: 73 | AS34: 65 | AT34: 56 | AU34: 159 | AV34: 161 | AW34: 147 | AX34: 179 | AY34: 144 | AZ34: 147 | BA34: 71 | BB34: 70 | BC34: 53 | BD34: 313 | BE34: 310 | BF34: 293 | BG34: 1181 | BH34: 1188 | BI34: 1153 | BJ34: 446 | BK34: 463 | BL34: 505 | BM34: 76 | BN34: 67 | BO34: 253 | BP34: 254 | BQ34: 349 | BR34: 132 | BS34: 47 | BT34: 208 | BU34: 31 | BV34: 4 | BW34: NA | BX34: NA | BY34: NA | BZ34: 652 | CA34: 45 | CB34: 82 | CC34: 93 | CD34: 34 | CE34: 162 | CF34: 628 | CG34: 219 | CH34: 37 | CI34: 27 | CJ34: 253 | CK34: 238 | CL34: 378 | CM34: 161 | CN34: 6 | CO34: 145 | CP34: 22 | CQ34: 512 | CR34: 339 | CS34: 94 | CT34: 190 | CU34: NA | CV34: 28 | CW34: 77 | CX34: 86 | CY34: 37 | CZ34: 151 | DA34: 553 | DB34: 227 | DC34: 78 | DD34: 72 | DE34: 261 | DF34: 248 | DG34: 350 | DH34: 128 | DI34: 43 | DJ34: 194 | DK34: 25 | DL34: 0 | DM34: NA | DN34: NA | DO34: NA | DP34: 661 | DQ34: 40 | DR34: 91 | DS34: 70 | DT34: 36 | DU34: 150 | DV34: 586 | DW34: 214 | DX34: 45 | DY34: 27 | DZ34: 226 | EA34: 246 | EB34: 426 | EC34: 151 | ED34: 9 | EE34: 150 | EF34: 19 | EG34: 525 | EH34: 353 | EI34: 96 | EJ34: 210 | EK34: NA | EL34: 25 | EM34: 70 | EN34: 74 | EO34: 34 | EP34: 160 | EQ34: 602 | ER34: 249 | ES34: 83 | ET34: 64 | EU34: 231 | EV34: 259 | EW34: 401 | EX34: 130 | EY34: 42 | EZ34: 174 | FA34: 15 | FB34: 3 | FC34: NA | FD34: NA | FE34: NA | FF34: 605 | FG34: 37 | FH34: 71 | FI34: 75 | FJ34: 28 | FK34: 144 | FL34: 613 | FM34: 262 | FN34: 44 | FO34: 22 | FP34: 258 | FQ34: 290 | FR34: 375 | FS34: 172 | FT34: 5 | FU34: 156 | FV34: 16 | FW34: 460 | FX34: 362 | FY34: 106 | FZ34: 213 | GA34: NA | GB34: 19 | GC34: 76 | GD34: 72 | GE34: 25 | GF34: 149 | GG34: 540 | GH34: 243
A35: Yucatán | B35: 25 | C35: 32 | D35: 29 | E35: 21 | F35: 20 | G35: 16 | H35: 134 | I35: 166 | J35: 125 | K35: 87 | L35: 103 | M35: 110 | N35: 172 | O35: 181 | P35: 172 | Q35: 77 | R35: 69 | S35: 63 | T35: 11 | U35: 18 | V35: 15 | W35: 110 | X35: 122 | Y35: 103 | Z35: 8 | AA35: 9 | AB35: 11 | AC35: 97 | AD35: 113 | AE35: 110 | AF35: 65 | AG35: 97 | AH35: 93 | AI35: 36 | AJ35: 23 | AK35: 33 | AL35: 35 | AM35: 46 | AN35: 43 | AO35: 115 | AP35: 121 | AQ35: 101 | AR35: 11 | AS35: 19 | AT35: 29 | AU35: 43 | AV35: 41 | AW35: 48 | AX35: 55 | AY35: 52 | AZ35: 58 | BA35: 27 | BB35: 16 | BC35: 14 | BD35: 112 | BE35: 100 | BF35: 110 | BG35: 273 | BH35: 337 | BI35: 400 | BJ35: 130 | BK35: 154 | BL35: 143 | BM35: 13 | BN35: 14 | BO35: 71 | BP35: 48 | BQ35: 92 | BR35: 39 | BS35: 10 | BT35: 58 | BU35: 4 | BV35: 1 | BW35: NA | BX35: NA | BY35: NA | BZ35: 115 | CA35: 8 | CB35: 23 | CC35: 32 | CD35: 14 | CE35: 71 | CF35: 132 | CG35: 76 | CH35: 12 | CI35: 7 | CJ35: 63 | CK35: 39 | CL35: 80 | CM35: 38 | CN35: 1 | CO35: 52 | CP35: 4 | CQ35: 96 | CR35: 65 | CS35: 36 | CT35: 35 | CU35: NA | CV35: 3 | CW35: 20 | CX35: 23 | CY35: 13 | CZ35: 41 | DA35: 141 | DB35: 54 | DC35: 21 | DD35: 12 | DE35: 88 | DF35: 49 | DG35: 86 | DH35: 32 | DI35: 17 | DJ35: 61 | DK35: 7 | DL35: 0 | DM35: NA | DN35: NA | DO35: NA | DP35: 121 | DQ35: 11 | DR35: 17 | DS35: 35 | DT35: 10 | DU35: 63 | DV35: 179 | DW35: 83 | DX35: 11 | DY35: 8 | DZ35: 78 | EA35: 54 | EB35: 95 | EC35: 37 | ED35: 1 | EE35: 61 | EF35: 2 | EG35: 113 | EH35: 97 | EI35: 23 | EJ35: 46 | EK35: NA | EL35: 8 | EM35: 24 | EN35: 17 | EO35: 6 | EP35: 37 | EQ35: 158 | ER35: 71 | ES35: 24 | ET35: 11 | EU35: 70 | EV35: 52 | EW35: 82 | EX35: 33 | EY35: 14 | EZ35: 45 | FA35: 5 | FB35: 2 | FC35: NA | FD35: NA | FE35: NA | FF35: 101 | FG35: 20 | FH35: 22 | FI35: 26 | FJ35: 6 | FK35: 59 | FL35: 211 | FM35: 63 | FN35: 5 | FO35: 5 | FP35: 55 | FQ35: 58 | FR35: 90 | FS35: 30 | FT35: 1 | FU35: 58 | FV35: 6 | FW35: 108 | FX35: 93 | FY35: 33 | FZ35: 43 | GA35: NA | GB35: 9 | GC35: 26 | GD35: 32 | GE35: 8 | GF35: 51 | GG35: 189 | GH35: 80
A36: Zacatecas | B36: 18 | C36: 15 | D36: 13 | E36: 16 | F36: 21 | G36: 9 | H36: 76 | I36: 57 | J36: 70 | K36: 86 | L36: 106 | M36: 72 | N36: 75 | O36: 77 | P36: 82 | Q36: 69 | R36: 89 | S36: 62 | T36: 8 | U36: 6 | V36: 3 | W36: 108 | X36: 107 | Y36: 94 | Z36: 15 | AA36: 11 | AB36: 14 | AC36: 89 | AD36: 99 | AE36: 85 | AF36: 39 | AG36: 52 | AH36: 35 | AI36: 22 | AJ36: 15 | AK36: 21 | AL36: 41 | AM36: 38 | AN36: 34 | AO36: 139 | AP36: 135 | AQ36: 108 | AR36: 22 | AS36: 18 | AT36: 16 | AU36: 38 | AV36: 31 | AW36: 48 | AX36: 34 | AY36: 47 | AZ36: 46 | BA36: 30 | BB36: 20 | BC36: 16 | BD36: 37 | BE36: 57 | BF36: 57 | BG36: 228 | BH36: 228 | BI36: 218 | BJ36: 80 | BK36: 82 | BL36: 83 | BM36: 13 | BN36: 13 | BO36: 44 | BP36: 48 | BQ36: 38 | BR36: 34 | BS36: 5 | BT36: 71 | BU36: 6 | BV36: 1 | BW36: NA | BX36: NA | BY36: NA | BZ36: 139 | CA36: 17 | CB36: 22 | CC36: 24 | CD36: 13 | CE36: 20 | CF36: 132 | CG36: 46 | CH36: 5 | CI36: 3 | CJ36: 32 | CK36: 38 | CL36: 37 | CM36: 35 | CN36: 3 | CO36: 37 | CP36: 9 | CQ36: 88 | CR36: 39 | CS36: 22 | CT36: 41 | CU36: NA | CV36: 5 | CW36: 16 | CX36: 10 | CY36: 17 | CZ36: 17 | DA36: 96 | DB36: 34 | DC36: 7 | DD36: 17 | DE36: 32 | DF36: 57 | DG36: 37 | DH36: 44 | DI36: 5 | DJ36: 56 | DK36: 5 | DL36: 1 | DM36: NA | DN36: NA | DO36: NA | DP36: 135 | DQ36: 11 | DR36: 20 | DS36: 27 | DT36: 15 | DU36: 30 | DV36: 103 | DW36: 38 | DX36: 8 | DY36: 4 | DZ36: 25 | EA36: 49 | EB36: 40 | EC36: 45 | ED36: 1 | EE36: 51 | EF36: 6 | EG36: 98 | EH36: 52 | EI36: 15 | EJ36: 38 | EK36: NA | EL36: 7 | EM36: 11 | EN36: 20 | EO36: 5 | EP36: 27 | EQ36: 125 | ER36: 44 | ES36: 9 | ET36: 8 | EU36: 36 | EV36: 45 | EW36: 34 | EX36: 27 | EY36: 3 | EZ36: 60 | FA36: 7 | FB36: 1 | FC36: NA | FD36: NA | FE36: NA | FF36: 108 | FG36: 8 | FH36: 20 | FI36: 27 | FJ36: 11 | FK36: 26 | FL36: 113 | FM36: 37 | FN36: 4 | FO36: 1 | FP36: 34 | FQ36: 27 | FR36: 48 | FS36: 35 | FT36: 0 | FU36: 34 | FV36: 7 | FW36: 84 | FX36: 35 | FY36: 21 | FZ36: 34 | GA36: NA | GB36: 8 | GC36: 28 | GD36: 19 | GE36: 5 | GF36: 31 | GG36: 105 | GH36: 46

Sheet 4DGCM
A1: Tumores (neoplasias)
A2: SELECCIONE UNA ENTIDAD
A3: Chiapas | B3: 2020 | C3: H - 2020 | D3: M - 2020 | E3: 2021 | F3: H - 2021 | G3: M - 2021 | H3: 2022 | I3: H - 2022 | J3: M - 2022
A4: Tumores malignos del labio, de la cavidad bucal y de la faringe | B4: =VLOOKUP($A$3,'T-4GE-D'!$A$5:$BL$36,2,0) -> 43 | C4: =VLOOKUP($A$3,'T-4GE-D'!$A$5:$GH$36,65,0) -> 27 | D4: =VLOOKUP($A$3,'T-4GE-D'!$A$5:$GH$36,86,0) -> 16 | E4: =VLOOKUP($A$3,'T-4GE-D'!$A$5:$BL$36,3,0) -> 56 | F4: =VLOOKUP($A$3,'T-4GE-D'!$A$5:$GH$36,107,0) -> 33 | G4: =VLOOKUP($A$3,'T-4GE-D'!$A$5:$GH$36,128,0) -> 23 | H4: =VLOOKUP($A$3,'T-4GE-D'!$A$5:$BL$36,4,0) -> 46 | I4: =VLOOKUP($A$3,'T-4GE-D'!$A$5:$GH$36,149,0) -> 27 | J4: =VLOOKUP($A$3,'T-4GE-D'!$A$5:$GH$36,170,0) -> 19
A5: Tumor maligno del esófago | B5: =VLOOKUP($A$3,'T-4GE-D'!$A$5:$BL$36,5,0) -> 38 | C5: =VLOOKUP($A$3,'T-4GE-D'!$A$5:$GH$36,66,0) -> 28 | D5: =VLOOKUP($A$3,'T-4GE-D'!$A$5:$GH$36,87,0) -> 10 | E5: =VLOOKUP($A$3,'T-4GE-D'!$A$5:$BL$36,6,0) -> 34 | F5: =VLOOKUP($A$3,'T-4GE-D'!$A$5:$GH$36,108,0) -> 30 | G5: =VLOOKUP($A$3,'T-4GE-D'!$A$5:$GH$36,129,0) -> 4 | H5: =VLOOKUP($A$3,'T-4GE-D'!$A$5:$BL$36,7,0) -> 36 | I5: =VLOOKUP($A$3,'T-4GE-D'!$A$5:$GH$36,150,0) -> 24 | J5: =VLOOKUP($A$3,'T-4GE-D'!$A$5:$GH$36,171,0) -> 12
A6: Tumor maligno del estómago | B6: =VLOOKUP($A$3,'T-4GE-D'!$A$5:$BL$36,8,0) -> 420 | C6: =VLOOKUP($A$3,'T-4GE-D'!$A$5:$GH$36,67,0) -> 216 | D6: =VLOOKUP($A$3,'T-4GE-D'!$A$5:$GH$36,88,0) -> 204 | E6: =VLOOKUP($A$3,'T-4GE-D'!$A$5:$BL$36,9,0) -> 490 | F6: =VLOOKUP($A$3,'T-4GE-D'!$A$5:$GH$36,109,0) -> 260 | G6: =VLOOKUP($A$3,'T-4GE-D'!$A$5:$GH$36,130,0) -> 230 | H6: =VLOOKUP($A$3,'T-4GE-D'!$A$5:$BL$36,10,0) -> 391 | I6: =VLOOKUP($A$3,'T-4GE-D'!$A$5:$GH$36,151,0) -> 194 | J6: =VLOOKUP($A$3,'T-4GE-D'!$A$5:$GH$36,172,0) -> 197
A7: Tumor maligno del colon, del recto y del ano | B7: =VLOOKUP($A$3,'T-4GE-D'!$A$5:$BL$36,11,0) -> 244 | C7: =VLOOKUP($A$3,'T-4GE-D'!$A$5:$GH$36,68,0) -> 133 | D7: =VLOOKUP($A$3,'T-4GE-D'!$A$5:$GH$36,89,0) -> 111 | E7: =VLOOKUP($A$3,'T-4GE-D'!$A$5:$BL$36,12,0) -> 200 | F7: =VLOOKUP($A$3,'T-4GE-D'!$A$5:$GH$36,110,0) -> 100 | G7: =VLOOKUP($A$3,'T-4GE-D'!$A$5:$GH$36,131,0) -> 100 | H7: =VLOOKUP($A$3,'T-4GE-D'!$A$5:$BL$36,13,0) -> 203 | I7: =VLOOKUP($A$3,'T-4GE-D'!$A$5:$GH$36,152,0) -> 106 | J7: =VLOOKUP($A$3,'T-4GE-D'!$A$5:$GH$36,173,0) -> 97
A8: Tumor maligno del hígado y de las vías biliares intrahepáticas | B8: =VLOOKUP($A$3,'T-4GE-D'!$A$5:$BL$36,14,0) -> 402 | C8: =VLOOKUP($A$3,'T-4GE-D'!$A$5:$GH$36,69,0) -> 191 | D8: =VLOOKUP($A$3,'T-4GE-D'!$A$5:$GH$36,90,0) -> 211 | E8: =VLOOKUP($A$3,'T-4GE-D'!$A$5:$BL$36,15,0) -> 413 | F8: =VLOOKUP($A$3,'T-4GE-D'!$A$5:$GH$36,111,0) -> 185 | G8: =VLOOKUP($A$3,'T-4GE-D'!$A$5:$GH$36,132,0) -> 228 | H8: =VLOOKUP($A$3,'T-4GE-D'!$A$5:$BL$36,16,0) -> 386 | I8: =VLOOKUP($A$3,'T-4GE-D'!$A$5:$GH$36,153,0) -> 173 | J8: =VLOOKUP($A$3,'T-4GE-D'!$A$5:$GH$36,174,0) -> 213
A9: Tumor maligno del páncreas | B9: =VLOOKUP($A$3,'T-4GE-D'!$A$5:$BL$36,17,0) -> 132 | C9: =VLOOKUP($A$3,'T-4GE-D'!$A$5:$GH$36,70,0) -> 55 | D9: =VLOOKUP($A$3,'T-4GE-D'!$A$5:$GH$36,91,0) -> 77 | E9: =VLOOKUP($A$3,'T-4GE-D'!$A$5:$BL$36,18,0) -> 139 | F9: =VLOOKUP($A$3,'T-4GE-D'!$A$5:$GH$36,112,0) -> 65 | G9: =VLOOKUP($A$3,'T-4GE-D'!$A$5:$GH$36,133,0) -> 74 | H9: =VLOOKUP($A$3,'T-4GE-D'!$A$5:$BL$36,19,0) -> 126 | I9: =VLOOKUP($A$3,'T-4GE-D'!$A$5:$GH$36,154,0) -> 69 | J9: =VLOOKUP($A$3,'T-4GE-D'!$A$5:$GH$36,175,0) -> 57
A10: Tumor maligno de la laringe | B10: =VLOOKUP($A$3,'T-4GE-D'!$A$5:$BL$36,20,0) -> 29 | C10: =VLOOKUP($A$3,'T-4GE-D'!$A$5:$GH$36,71,0) -> 25 | D10: =VLOOKUP($A$3,'T-4GE-D'!$A$5:$GH$36,92,0) -> 4 | E10: =VLOOKUP($A$3,'T-4GE-D'!$A$5:$BL$36,21,0) -> 16 | F10: =VLOOKUP($A$3,'T-4GE-D'!$A$5:$GH$36,113,0) -> 14 | G10: =VLOOKUP($A$3,'T-4GE-D'!$A$5:$GH$36,134,0) -> 2 | H10: =VLOOKUP($A$3,'T-4GE-D'!$A$5:$BL$36,22,0) -> 22 | I10: =VLOOKUP($A$3,'T-4GE-D'!$A$5:$GH$36,155,0) -> 16 | J10: =VLOOKUP($A$3,'T-4GE-D'!$A$5:$GH$36,176,0) -> 6
A11: Tumor maligno de la tráquea, de los bronquios y del pulmón | B11: =VLOOKUP($A$3,'T-4GE-D'!$A$5:$BL$36,23,0) -> 162 | C11: =VLOOKUP($A$3,'T-4GE-D'!$A$5:$GH$36,72,0) -> 104 | D11: =VLOOKUP($A$3,'T-4GE-D'!$A$5:$GH$36,93,0) -> 58 | E11: =VLOOKUP($A$3,'T-4GE-D'!$A$5:$BL$36,24,0) -> 166 | F11: =VLOOKUP($A$3,'T-4GE-D'!$A$5:$GH$36,114,0) -> 93 | G11: =VLOOKUP($A$3,'T-4GE-D'!$A$5:$GH$36,135,0) -> 73 | H11: =VLOOKUP($A$3,'T-4GE-D'!$A$5:$BL$36,25,0) -> 165 | I11: =VLOOKUP($A$3,'T-4GE-D'!$A$5:$GH$36,156,0) -> 94 | J11: =VLOOKUP($A$3,'T-4GE-D'!$A$5:$GH$36,177,0) -> 71
A12: Melanoma maligno de la piel | B12: =VLOOKUP($A$3,'T-4GE-D'!$A$5:$BL$36,26,0) -> 25 | C12: =VLOOKUP($A$3,'T-4GE-D'!$A$5:$GH$36,73,0) -> 19 | D12: =VLOOKUP($A$3,'T-4GE-D'!$A$5:$GH$36,94,0) -> 6 | E12: =VLOOKUP($A$3,'T-4GE-D'!$A$5:$BL$36,27,0) -> 23 | F12: =VLOOKUP($A$3,'T-4GE-D'!$A$5:$GH$36,115,0) -> 9 | G12: =VLOOKUP($A$3,'T-4GE-D'!$A$5:$GH$36,136,0) -> 14 | H12: =VLOOKUP($A$3,'T-4GE-D'!$A$5:$BL$36,28,0) -> 22 | I12: =VLOOKUP($A$3,'T-4GE-D'!$A$5:$GH$36,157,0) -> 11 | J12: =VLOOKUP($A$3,'T-4GE-D'!$A$5:$GH$36,178,0) -> 11
A13: Tumor maligno de la mama | B13: =VLOOKUP($A$3,'T-4GE-D'!$A$5:$BL$36,29,0) -> 197 | C13: =VLOOKUP($A$3,'T-4GE-D'!$A$5:$GH$36,74,0) -> 3 | D13: =VLOOKUP($A$3,'T-4GE-D'!$A$5:$GH$36,95,0) -> 194 | E13: =VLOOKUP($A$3,'T-4GE-D'!$A$5:$BL$36,30,0) -> 195 | F13: =VLOOKUP($A$3,'T-4GE-D'!$A$5:$GH$36,116,0) -> 1 | G13: =VLOOKUP($A$3,'T-4GE-D'!$A$5:$GH$36,137,0) -> 194 | H13: =VLOOKUP($A$3,'T-4GE-D'!$A$5:$BL$36,31,0) -> 181 | I13: =VLOOKUP($A$3,'T-4GE-D'!$A$5:$GH$36,158,0) -> 0 | J13: =VLOOKUP($A$3,'T-4GE-D'!$A$5:$GH$36,179,0) -> 181
A14: Tumor maligno del cuello del útero | B14: =VLOOKUP($A$3,'T-4GE-D'!$A$5:$BL$36,32,0) -> 278 | C14: =VLOOKUP($A$3,'T-4GE-D'!$A$5:$GH$36,75,0) -> NA | D14: =VLOOKUP($A$3,'T-4GE-D'!$A$5:$GH$36,96,0) -> 278 | E14: =VLOOKUP($A$3,'T-4GE-D'!$A$5:$BL$36,33,0) -> 265 | F14: =VLOOKUP($A$3,'T-4GE-D'!$A$5:$GH$36,117,0) -> NA | G14: =VLOOKUP($A$3,'T-4GE-D'!$A$5:$GH$36,138,0) -> 265 | H14: =VLOOKUP($A$3,'T-4GE-D'!$A$5:$BL$36,34,0) -> 260 | I14: =VLOOKUP($A$3,'T-4GE-D'!$A$5:$GH$36,159,0) -> NA | J14: =VLOOKUP($A$3,'T-4GE-D'!$A$5:$GH$36,180,0) -> 260
A15: Tumor maligno de otras partes y de las no especificadas del útero | B15: =VLOOKUP($A$3,'T-4GE-D'!$A$5:$BL$36,35,0) -> 36 | C15: =VLOOKUP($A$3,'T-4GE-D'!$A$5:$GH$36,76,0) -> NA | D15: =VLOOKUP($A$3,'T-4GE-D'!$A$5:$GH$36,97,0) -> 36 | E15: =VLOOKUP($A$3,'T-4GE-D'!$A$5:$BL$36,36,0) -> 33 | F15: =VLOOKUP($A$3,'T-4GE-D'!$A$5:$GH$36,118,0) -> NA | G15: =VLOOKUP($A$3,'T-4GE-D'!$A$5:$GH$36,139,0) -> 33 | H15: =VLOOKUP($A$3,'T-4GE-D'!$A$5:$BL$36,37,0) -> 42 | I15: =VLOOKUP($A$3,'T-4GE-D'!$A$5:$GH$36,160,0) -> NA | J15: =VLOOKUP($A$3,'T-4GE-D'!$A$5:$GH$36,181,0) -> 42
A16: Tumor maligno del ovario | B16: =VLOOKUP($A$3,'T-4GE-D'!$A$5:$BL$36,38,0) -> 81 | C16: =VLOOKUP($A$3,'T-4GE-D'!$A$5:$GH$36,77,0) -> NA | D16: =VLOOKUP($A$3,'T-4GE-D'!$A$5:$GH$36,98,0) -> 81 | E16: =VLOOKUP($A$3,'T-4GE-D'!$A$5:$BL$36,39,0) -> 80 | F16: =VLOOKUP($A$3,'T-4GE-D'!$A$5:$GH$36,119,0) -> NA | G16: =VLOOKUP($A$3,'T-4GE-D'!$A$5:$GH$36,140,0) -> 80 | H16: =VLOOKUP($A$3,'T-4GE-D'!$A$5:$BL$36,40,0) -> 77 | I16: =VLOOKUP($A$3,'T-4GE-D'!$A$5:$GH$36,161,0) -> NA | J16: =VLOOKUP($A$3,'T-4GE-D'!$A$5:$GH$36,182,0) -> 77
A17: Tumor maligno de la próstata | B17: =VLOOKUP($A$3,'T-4GE-D'!$A$5:$BL$36,41,0) -> 355 | C17: =VLOOKUP($A$3,'T-4GE-D'!$A$5:$GH$36,78,0) -> 355 | D17: =VLOOKUP($A$3,'T-4GE-D'!$A$5:$GH$36,99,0) -> NA | E17: =VLOOKUP($A$3,'T-4GE-D'!$A$5:$BL$36,42,0) -> 346 | F17: =VLOOKUP($A$3,'T-4GE-D'!$A$5:$GH$36,120,0) -> 346 | G17: =VLOOKUP($A$3,'T-4GE-D'!$A$5:$GH$36,141,0) -> NA | H17: =VLOOKUP($A$3,'T-4GE-D'!$A$5:$BL$36,43,0) -> 249 | I17: =VLOOKUP($A$3,'T-4GE-D'!$A$5:$GH$36,162,0) -> 249 | J17: =VLOOKUP($A$3,'T-4GE-D'!$A$5:$GH$36,183,0) -> NA
A18: Tumor maligno de la vejiga urinaria | B18: =VLOOKUP($A$3,'T-4GE-D'!$A$5:$BL$36,44,0) -> 22 | C18: =VLOOKUP($A$3,'T-4GE-D'!$A$5:$GH$36,79,0) -> 9 | D18: =VLOOKUP($A$3,'T-4GE-D'!$A$5:$GH$36,100,0) -> 13 | E18: =VLOOKUP($A$3,'T-4GE-D'!$A$5:$BL$36,45,0) -> 23 | F18: =VLOOKUP($A$3,'T-4GE-D'!$A$5:$GH$36,121,0) -> 18 | G18: =VLOOKUP($A$3,'T-4GE-D'!$A$5:$GH$36,142,0) -> 5 | H18: =VLOOKUP($A$3,'T-4GE-D'!$A$5:$BL$36,46,0) -> 21 | I18: =VLOOKUP($A$3,'T-4GE-D'!$A$5:$GH$36,163,0) -> 10 | J18: =VLOOKUP($A$3,'T-4GE-D'!$A$5:$GH$36,184,0) -> 11
A19: Tumor maligno de las meninges, del encéfalo y de otras partes del sistema nervioso central | B19: =VLOOKUP($A$3,'T-4GE-D'!$A$5:$BL$36,47,0) -> 88 | C19: =VLOOKUP($A$3,'T-4GE-D'!$A$5:$GH$36,80,0) -> 51 | D19: =VLOOKUP($A$3,'T-4GE-D'!$A$5:$GH$36,101,0) -> 37 | E19: =VLOOKUP($A$3,'T-4GE-D'!$A$5:$BL$36,48,0) -> 93 | F19: =VLOOKUP($A$3,'T-4GE-D'!$A$5:$GH$36,122,0) -> 57 | G19: =VLOOKUP($A$3,'T-4GE-D'!$A$5:$GH$36,143,0) -> 36 | H19: =VLOOKUP($A$3,'T-4GE-D'!$A$5:$BL$36,49,0) -> 82 | I19: =VLOOKUP($A$3,'T-4GE-D'!$A$5:$GH$36,164,0) -> 40 | J19: =VLOOKUP($A$3,'T-4GE-D'!$A$5:$GH$36,185,0) -> 42
A20: Linfoma de Hodgkin | B20: =VLOOKUP($A$3,'T-4GE-D'!$A$5:$BL$36,50,0) -> 76 | C20: =VLOOKUP($A$3,'T-4GE-D'!$A$5:$GH$36,81,0) -> 43 | D20: =VLOOKUP($A$3,'T-4GE-D'!$A$5:$GH$36,102,0) -> 33 | E20: =VLOOKUP($A$3,'T-4GE-D'!$A$5:$BL$36,51,0) -> 75 | F20: =VLOOKUP($A$3,'T-4GE-D'!$A$5:$GH$36,123,0) -> 49 | G20: =VLOOKUP($A$3,'T-4GE-D'!$A$5:$GH$36,144,0) -> 26 | H20: =VLOOKUP($A$3,'T-4GE-D'!$A$5:$BL$36,52,0) -> 77 | I20: =VLOOKUP($A$3,'T-4GE-D'!$A$5:$GH$36,165,0) -> 46 | J20: =VLOOKUP($A$3,'T-4GE-D'!$A$5:$GH$36,186,0) -> 31
A21: Mieloma múltiple y tumores malignos de células plasmáticas | B21: =VLOOKUP($A$3,'T-4GE-D'!$A$5:$BL$36,53,0) -> 27 | C21: =VLOOKUP($A$3,'T-4GE-D'!$A$5:$GH$36,82,0) -> 17 | D21: =VLOOKUP($A$3,'T-4GE-D'!$A$5:$GH$36,103,0) -> 10 | E21: =VLOOKUP($A$3,'T-4GE-D'!$A$5:$BL$36,54,0) -> 24 | F21: =VLOOKUP($A$3,'T-4GE-D'!$A$5:$GH$36,124,0) -> 12 | G21: =VLOOKUP($A$3,'T-4GE-D'!$A$5:$GH$36,145,0) -> 12 | H21: =VLOOKUP($A$3,'T-4GE-D'!$A$5:$BL$36,55,0) -> 28 | I21: =VLOOKUP($A$3,'T-4GE-D'!$A$5:$GH$36,166,0) -> 13 | J21: =VLOOKUP($A$3,'T-4GE-D'!$A$5:$GH$36,187,0) -> 15
A22: Leucemia | B22: =VLOOKUP($A$3,'T-4GE-D'!$A$5:$BL$36,56,0) -> 239 | C22: =VLOOKUP($A$3,'T-4GE-D'!$A$5:$GH$36,83,0) -> 128 | D22: =VLOOKUP($A$3,'T-4GE-D'!$A$5:$GH$36,104,0) -> 111 | E22: =VLOOKUP($A$3,'T-4GE-D'!$A$5:$BL$36,57,0) -> 260 | F22: =VLOOKUP($A$3,'T-4GE-D'!$A$5:$GH$36,125,0) -> 147 | G22: =VLOOKUP($A$3,'T-4GE-D'!$A$5:$GH$36,146,0) -> 113 | H22: =VLOOKUP($A$3,'T-4GE-D'!$A$5:$BL$36,58,0) -> 268 | I22: =VLOOKUP($A$3,'T-4GE-D'!$A$5:$GH$36,167,0) -> 163 | J22: =VLOOKUP($A$3,'T-4GE-D'!$A$5:$GH$36,188,0) -> 105
A23: Resto de tumores malignos | B23: =VLOOKUP($A$3,'T-4GE-D'!$A$5:$BL$36,59,0) -> 632 | C23: =VLOOKUP($A$3,'T-4GE-D'!$A$5:$GH$36,84,0) -> 324 | D23: =VLOOKUP($A$3,'T-4GE-D'!$A$5:$GH$36,105,0) -> 308 | E23: =VLOOKUP($A$3,'T-4GE-D'!$A$5:$BL$36,60,0) -> 672 | F23: =VLOOKUP($A$3,'T-4GE-D'!$A$5:$GH$36,126,0) -> 333 | G23: =VLOOKUP($A$3,'T-4GE-D'!$A$5:$GH$36,147,0) -> 339 | H23: =VLOOKUP($A$3,'T-4GE-D'!$A$5:$BL$36,61,0) -> 583 | I23: =VLOOKUP($A$3,'T-4GE-D'!$A$5:$GH$36,168,0) -> 297 | J23: =VLOOKUP($A$3,'T-4GE-D'!$A$5:$GH$36,189,0) -> 286
A24: Resto de tumores | B24: =VLOOKUP($A$3,'T-4GE-D'!$A$5:$BL$36,62,0) -> 220 | C24: =VLOOKUP($A$3,'T-4GE-D'!$A$5:$GH$36,85,0) -> 106 | D24: =VLOOKUP($A$3,'T-4GE-D'!$A$5:$GH$36,106,0) -> 114 | E24: =VLOOKUP($A$3,'T-4GE-D'!$A$5:$BL$36,63,0) -> 241 | F24: =VLOOKUP($A$3,'T-4GE-D'!$A$5:$GH$36,127,0) -> 132 | G24: =VLOOKUP($A$3,'T-4GE-D'!$A$5:$GH$36,148,0) -> 109 | H24: =VLOOKUP($A$3,'T-4GE-D'!$A$5:$BL$36,64,0) -> 241 | I24: =VLOOKUP($A$3,'T-4GE-D'!$A$5:$GH$36,169,0) -> 136 | J24: =VLOOKUP($A$3,'T-4GE-D'!$A$5:$GH$36,190,0) -> 105
A25: Total | B25: =SUM(B4:B24) -> 3746 | C25: =SUM(C4:C24) -> 1834 | D25: 1912 | E25: 3844 | F25: 1884 | G25: 1960 | H25: 3506 | I25: 1668 | J25: 1838

Sheet T-5GE-D (hidden)
A1: 1 | B1: 2 | C1: 3 | D1: 4 | E1: 5 | F1: 6 | G1: 7 | H1: 8 | I1: 9 | J1: 10 | K1: 11 | L1: 12 | M1: 13 | N1: 14 | O1: 15 | P1: 16 | Q1: 17 | R1: 18 | S1: 19 | T1: 20 | U1: 21 | V1: 22 | W1: 23 | X1: 24 | Y1: 25 | Z1: 26 | AA1: 27 | AB1: 28 | AC1: 29 | AD1: 30 | AE1: 31 | AF1: 32 | AG1: 33 | AH1: 34 | AI1: 35 | AJ1: 36 | AK1: 37 | AL1: 38 | AM1: 39 | AN1: 40 | AO1: 41 | AP1: 42 | AQ1: 43 | AR1: 44 | AS1: 45 | AT1: 46
A2: Enfermedades del sistema respiratorio
A3: ESTADO | B3: Influenza (gripe) | E3: Neumonía | H3: Otras infecciones agudas de las vías respiratorias inferiores | K3: Enfermedades crónicas de las vías respiratorias inferiores | N3: Resto de enfermedades del sistema respiratorio | Q3: 2020 | AA3: 2021 | AK3: 2022
B4: 2020 | C4: 2021 | D4: 2022 | E4: 2020 | F4: 2021 | G4: 2022 | H4: 2020 | I4: 2021 | J4: 2022 | K4: 2020 | L4: 2021 | M4: 2022 | N4: 2020 | O4: 2021 | P4: 2022 | Q4: Hombres 2020(1) | R4: Hombres 2020(2) | S4: Hombres 2020(3) | T4: Hombres 2020(4) | U4: Hombres 2020(5) | V4: Mujeres 2020(1) | W4: Mujeres 2020(2) | X4: Mujeres 2020(3) | Y4: Mujeres 2020(4) | Z4: Mujeres 2020(5) | AA4: Hombres 2021(1) | AB4: Hombres 2021(2) | AC4: Hombres 2021(3) | AD4: Hombres 2021(4) | AE4: Hombres 2021(5) | AF4: Mujeres 2021(1) | AG4: Mujeres 2021(2) | AH4: Mujeres 2021(3) | AI4: Mujeres 2021(4) | AJ4: Mujeres 2021(5) | AK4: Hombres 2022(1) | AL4: Hombres 2022(2) | AM4: Hombres 2022(3) | AN4: Hombres 2022(4) | AO4: Hombres 2022(5) | AP4: Mujeres 2022(1) | AQ4: Mujeres 2022(2) | AR4: Mujeres 2022(3) | AS4: Mujeres 2022(4) | AT4: Mujeres 2022(5)
A5: Aguascalientes | B5: 15 | C5: 0 | D5: 5 | E5: 556 | F5: 526 | G5: 310 | H5: 17 | I5: 25 | J5: 9 | K5: 335 | L5: 306 | M5: 283 | N5: 114 | O5: 112 | P5: 137 | Q5: 12 | R5: 316 | S5: 11 | T5: 181 | U5: 68 | V5: 3 | W5: 240 | X5: 6 | Y5: 154 | Z5: 46 | AA5: 0 | AB5: 311 | AC5: 14 | AD5: 156 | AE5: 59 | AF5: 0 | AG5: 215 | AH5: 11 | AI5: 150 | AJ5: 53 | AK5: 4 | AL5: 183 | AM5: 3 | AN5: 141 | AO5: 72 | AP5: 1 | AQ5: 127 | AR5: 6 | AS5: 142 | AT5: 65
A6: Baja California | B6: 17 | C6: 2 | D6: 15 | E6: 1745 | F6: 1184 | G6: 810 | H6: 26 | I6: 13 | J6: 7 | K6: 625 | L6: 432 | M6: 477 | N6: 785 | O6: 714 | P6: 730 | Q6: 12 | R6: 1141 | S6: 15 | T6: 378 | U6: 574 | V6: 5 | W6: 604 | X6: 11 | Y6: 247 | Z6: 211 | AA6: 2 | AB6: 730 | AC6: 8 | AD6: 265 | AE6: 528 | AF6: 0 | AG6: 454 | AH6: 5 | AI6: 167 | AJ6: 186 | AK6: 7 | AL6: 513 | AM6: 3 | AN6: 281 | AO6: 528 | AP6: 8 | AQ6: 297 | AR6: 4 | AS6: 196 | AT6: 202
A7: Baja California Sur | B7: 5 | C7: 0 | D7: 1 | E7: 303 | F7: 233 | G7: 200 | H7: 6 | I7: 2 | J7: 5 | K7: 105 | L7: 61 | M7: 105 | N7: 52 | O7: 51 | P7: 48 | Q7: 1 | R7: 171 | S7: 3 | T7: 70 | U7: 31 | V7: 4 | W7: 132 | X7: 3 | Y7: 35 | Z7: 21 | AA7: 0 | AB7: 150 | AC7: 0 | AD7: 39 | AE7: 36 | AF7: 0 | AG7: 83 | AH7: 2 | AI7: 22 | AJ7: 15 | AK7: 0 | AL7: 114 | AM7: 3 | AN7: 69 | AO7: 24 | AP7: 1 | AQ7: 86 | AR7: 2 | AS7: 36 | AT7: 24
A8: Campeche | B8: 1 | C8: 1 | D8: 2 | E8: 394 | F8: 277 | G8: 142 | H8: 31 | I8: 8 | J8: 7 | K8: 157 | L8: 134 | M8: 92 | N8: 115 | O8: 68 | P8: 71 | Q8: 1 | R8: 240 | S8: 19 | T8: 88 | U8: 68 | V8: 0 | W8: 154 | X8: 12 | Y8: 69 | Z8: 47 | AA8: 1 | AB8: 166 | AC8: 2 | AD8: 83 | AE8: 39 | AF8: 0 | AG8: 111 | AH8: 6 | AI8: 51 | AJ8: 29 | AK8: 1 | AL8: 86 | AM8: 4 | AN8: 62 | AO8: 37 | AP8: 1 | AQ8: 56 | AR8: 3 | AS8: 30 | AT8: 34
A9: Coahuila | B9: 16 | C9: 0 | D9: 8 | E9: 1499 | F9: 914 | G9: 748 | H9: 20 | I9: 8 | J9: 15 | K9: 500 | L9: 369 | M9: 391 | N9: 390 | O9: 327 | P9: 302 | Q9: 12 | R9: 868 | S9: 19 | T9: 306 | U9: 246 | V9: 4 | W9: 631 | X9: 1 | Y9: 194 | Z9: 144 | AA9: 0 | AB9: 530 | AC9: 6 | AD9: 233 | AE9: 195 | AF9: 0 | AG9: 384 | AH9: 2 | AI9: 136 | AJ9: 132 | AK9: 7 | AL9: 388 | AM9: 6 | AN9: 241 | AO9: 177 | AP9: 1 | AQ9: 360 | AR9: 9 | AS9: 150 | AT9: 125
A10: Colima | B10: 3 | C10: 0 | D10: 2 | E10: 356 | F10: 380 | G10: 235 | H10: 4 | I10: 3 | J10: 2 | K10: 102 | L10: 116 | M10: 111 | N10: 92 | O10: 105 | P10: 62 | Q10: 2 | R10: 206 | S10: 4 | T10: 60 | U10: 63 | V10: 1 | W10: 150 | X10: 0 | Y10: 42 | Z10: 29 | AA10: 0 | AB10: 229 | AC10: 1 | AD10: 67 | AE10: 72 | AF10: 0 | AG10: 151 | AH10: 2 | AI10: 49 | AJ10: 33 | AK10: 2 | AL10: 129 | AM10: 2 | AN10: 59 | AO10: 37 | AP10: 0 | AQ10: 106 | AR10: 0 | AS10: 52 | AT10: 25
A11: Chiapas | B11: 14 | C11: 4 | D11: 3 | E11: 1816 | F11: 1939 | G11: 999 | H11: 46 | I11: 30 | J11: 29 | K11: 911 | L11: 787 | M11: 626 | N11: 470 | O11: 448 | P11: 401 | Q11: 9 | R11: 1197 | S11: 28 | T11: 504 | U11: 271 | V11: 5 | W11: 619 | X11: 18 | Y11: 407 | Z11: 199 | AA11: 3 | AB11: 1180 | AC11: 13 | AD11: 439 | AE11: 248 | AF11: 1 | AG11: 759 | AH11: 17 | AI11: 348 | AJ11: 200 | AK11: 1 | AL11: 586 | AM11: 14 | AN11: 359 | AO11: 233 | AP11: 2 | AQ11: 413 | AR11: 15 | AS11: 267 | AT11: 168
A12: Chihuahua | B12: 63 | C12: 1 | D12: 8 | E12: 1963 | F12: 1390 | G12: 1068 | H12: 29 | I12: 19 | J12: 13 | K12: 945 | L12: 644 | M12: 782 | N12: 592 | O12: 369 | P12: 301 | Q12: 38 | R12: 1133 | S12: 15 | T12: 602 | U12: 370 | V12: 25 | W12: 830 | X12: 14 | Y12: 343 | Z12: 222 | AA12: 1 | AB12: 795 | AC12: 11 | AD12: 385 | AE12: 205 | AF12: 0 | AG12: 595 | AH12: 8 | AI12: 259 | AJ12: 164 | AK12: 3 | AL12: 575 | AM12: 6 | AN12: 495 | AO12: 176 | AP12: 5 | AQ12: 493 | AR12: 7 | AS12: 287 | AT12: 125
A13: Ciudad de México | B13: 66 | C13: 2 | D13: 34 | E13: 7644 | F13: 5612 | G13: 3700 | H13: 85 | I13: 33 | J13: 28 | K13: 2534 | L13: 1942 | M13: 1933 | N13: 1154 | O13: 954 | P13: 1055 | Q13: 44 | R13: 4782 | S13: 48 | T13: 1307 | U13: 638 | V13: 22 | W13: 2862 | X13: 37 | Y13: 1227 | Z13: 516 | AA13: 2 | AB13: 3422 | AC13: 16 | AD13: 967 | AE13: 561 | AF13: 0 | AG13: 2190 | AH13: 17 | AI13: 975 | AJ13: 393 | AK13: 18 | AL13: 2103 | AM13: 16 | AN13: 946 | AO13: 529 | AP13: 16 | AQ13: 1597 | AR13: 12 | AS13: 987 | AT13: 526
A14: Durango | B14: 4 | C14: 2 | D14: 1 | E14: 680 | F14: 642 | G14: 457 | H14: 16 | I14: 6 | J14: 8 | K14: 413 | L14: 357 | M14: 420 | N14: 147 | O14: 147 | P14: 140 | Q14: 3 | R14: 396 | S14: 6 | T14: 246 | U14: 95 | V14: 1 | W14: 284 | X14: 10 | Y14: 167 | Z14: 52 | AA14: 2 | AB14: 381 | AC14: 5 | AD14: 210 | AE14: 70 | AF14: 0 | AG14: 261 | AH14: 1 | AI14: 147 | AJ14: 77 | AK14: 1 | AL14: 265 | AM14: 4 | AN14: 254 | AO14: 91 | AP14: 0 | AQ14: 192 | AR14: 4 | AS14: 166 | AT14: 49
A15: Guanajuato | B15: 27 | C15: 0 | D15: 14 | E15: 2385 | F15: 2604 | G15: 1205 | H15: 44 | I15: 46 | J15: 22 | K15: 1432 | L15: 1208 | M15: 1058 | N15: 502 | O15: 518 | P15: 420 | Q15: 16 | R15: 1432 | S15: 27 | T15: 810 | U15: 259 | V15: 11 | W15: 953 | X15: 17 | Y15: 622 | Z15: 243 | AA15: 0 | AB15: 1611 | AC15: 26 | AD15: 657 | AE15: 273 | AF15: 0 | AG15: 993 | AH15: 20 | AI15: 551 | AJ15: 245 | AK15: 7 | AL15: 660 | AM15: 13 | AN15: 569 | AO15: 240 | AP15: 7 | AQ15: 545 | AR15: 9 | AS15: 489 | AT15: 180
A16: Guerrero | B16: 5 | C16: 0 | D16: 5 | E16: 1028 | F16: 981 | G16: 379 | H16: 16 | I16: 14 | J16: 9 | K16: 600 | L16: 512 | M16: 480 | N16: 260 | O16: 215 | P16: 221 | Q16: 5 | R16: 649 | S16: 13 | T16: 349 | U16: 166 | V16: 0 | W16: 379 | X16: 3 | Y16: 251 | Z16: 94 | AA16: 0 | AB16: 614 | AC16: 7 | AD16: 295 | AE16: 143 | AF16: 0 | AG16: 367 | AH16: 7 | AI16: 217 | AJ16: 72 | AK16: 2 | AL16: 232 | AM16: 5 | AN16: 282 | AO16: 127 | AP16: 3 | AQ16: 147 | AR16: 4 | AS16: 198 | AT16: 94
A17: Hidalgo | B17: 19 | C17: 0 | D17: 8 | E17: 704 | F17: 843 | G17: 440 | H17: 20 | I17: 7 | J17: 5 | K17: 628 | L17: 513 | M17: 565 | N17: 175 | O17: 180 | P17: 176 | Q17: 7 | R17: 425 | S17: 11 | T17: 289 | U17: 106 | V17: 12 | W17: 279 | X17: 9 | Y17: 339 | Z17: 69 | AA17: 0 | AB17: 530 | AC17: 4 | AD17: 263 | AE17: 112 | AF17: 0 | AG17: 313 | AH17: 3 | AI17: 250 | AJ17: 68 | AK17: 4 | AL17: 263 | AM17: 4 | AN17: 279 | AO17: 112 | AP17: 4 | AQ17: 177 | AR17: 1 | AS17: 286 | AT17: 64
A18: Jalisco | B18: 59 | C18: 4 | D18: 28 | E18: 4068 | F18: 4639 | G18: 3390 | H18: 60 | I18: 48 | J18: 44 | K18: 2493 | L18: 2125 | M18: 1980 | N18: 540 | O18: 629 | P18: 670 | Q18: 25 | R18: 2349 | S18: 28 | T18: 1317 | U18: 293 | V18: 34 | W18: 1719 | X18: 32 | Y18: 1176 | Z18: 247 | AA18: 3 | AB18: 2694 | AC18: 26 | AD18: 1075 | AE18: 379 | AF18: 1 | AG18: 1945 | AH18: 22 | AI18: 1050 | AJ18: 250 | AK18: 8 | AL18: 1883 | AM18: 25 | AN18: 1039 | AO18: 355 | AP18: 20 | AQ18: 1507 | AR18: 19 | AS18: 941 | AT18: 315
A19: México | B19: 22 | C19: 4 | D19: 8 | E19: 7005 | F19: 6952 | G19: 2983 | H19: 129 | I19: 70 | J19: 42 | K19: 3252 | L19: 2776 | M19: 2797 | N19: 756 | O19: 737 | P19: 896 | Q19: 11 | R19: 4488 | S19: 80 | T19: 1742 | U19: 432 | V19: 11 | W19: 2517 | X19: 49 | Y19: 1510 | Z19: 324 | AA19: 2 | AB19: 4375 | AC19: 46 | AD19: 1412 | AE19: 421 | AF19: 2 | AG19: 2577 | AH19: 24 | AI19: 1364 | AJ19: 316 | AK19: 3 | AL19: 1728 | AM19: 21 | AN19: 1351 | AO19: 470 | AP19: 5 | AQ19: 1255 | AR19: 21 | AS19: 1446 | AT19: 426
A20: Michoacán | B20: 11 | C20: 5 | D20: 6 | E20: 1382 | F20: 2077 | G20: 855 | H20: 47 | I20: 37 | J20: 20 | K20: 1262 | L20: 1253 | M20: 1050 | N20: 351 | O20: 379 | P20: 392 | Q20: 5 | R20: 815 | S20: 28 | T20: 720 | U20: 204 | V20: 6 | W20: 567 | X20: 19 | Y20: 542 | Z20: 147 | AA20: 4 | AB20: 1245 | AC20: 21 | AD20: 682 | AE20: 233 | AF20: 1 | AG20: 832 | AH20: 16 | AI20: 571 | AJ20: 146 | AK20: 2 | AL20: 507 | AM20: 13 | AN20: 568 | AO20: 215 | AP20: 4 | AQ20: 348 | AR20: 7 | AS20: 482 | AT20: 177
A21: Morelos | B21: 12 | C21: 0 | D21: 3 | E21: 919 | F21: 873 | G21: 463 | H21: 17 | I21: 8 | J21: 8 | K21: 495 | L21: 389 | M21: 408 | N21: 151 | O21: 149 | P21: 157 | Q21: 10 | R21: 576 | S21: 15 | T21: 262 | U21: 96 | V21: 2 | W21: 343 | X21: 2 | Y21: 233 | Z21: 55 | AA21: 0 | AB21: 524 | AC21: 5 | AD21: 203 | AE21: 87 | AF21: 0 | AG21: 349 | AH21: 3 | AI21: 186 | AJ21: 62 | AK21: 1 | AL21: 257 | AM21: 6 | AN21: 213 | AO21: 90 | AP21: 2 | AQ21: 206 | AR21: 2 | AS21: 195 | AT21: 67
A22: Nayarit | B22: 4 | C22: 0 | D22: 0 | E22: 297 | F22: 395 | G22: 321 | H22: 8 | I22: 26 | J22: 4 | K22: 299 | L22: 302 | M22: 292 | N22: 110 | O22: 139 | P22: 108 | Q22: 3 | R22: 169 | S22: 5 | T22: 179 | U22: 60 | V22: 1 | W22: 128 | X22: 3 | Y22: 120 | Z22: 50 | AA22: 0 | AB22: 239 | AC22: 15 | AD22: 194 | AE22: 91 | AF22: 0 | AG22: 156 | AH22: 11 | AI22: 108 | AJ22: 48 | AK22: 0 | AL22: 192 | AM22: 1 | AN22: 176 | AO22: 75 | AP22: 0 | AQ22: 129 | AR22: 3 | AS22: 116 | AT22: 33
A23: Nuevo León | B23: 0 | C23: 0 | D23: 12 | E23: 3312 | F23: 3049 | G23: 2181 | H23: 39 | I23: 34 | J23: 36 | K23: 670 | L23: 559 | M23: 606 | N23: 478 | O23: 569 | P23: 650 | Q23: 0 | R23: 1970 | S23: 24 | T23: 407 | U23: 273 | V23: 0 | W23: 1342 | X23: 15 | Y23: 263 | Z23: 205 | AA23: 0 | AB23: 1814 | AC23: 20 | AD23: 334 | AE23: 354 | AF23: 0 | AG23: 1235 | AH23: 14 | AI23: 225 | AJ23: 215 | AK23: 3 | AL23: 1230 | AM23: 19 | AN23: 358 | AO23: 367 | AP23: 9 | AQ23: 951 | AR23: 17 | AS23: 248 | AT23: 283
A24: Oaxaca | B24: 12 | C24: 6 | D24: 3 | E24: 916 | F24: 1203 | G24: 641 | H24: 39 | I24: 33 | J24: 34 | K24: 867 | L24: 877 | M24: 807 | N24: 298 | O24: 383 | P24: 351 | Q24: 5 | R24: 592 | S24: 18 | T24: 446 | U24: 174 | V24: 7 | W24: 324 | X24: 21 | Y24: 421 | Z24: 124 | AA24: 3 | AB24: 780 | AC24: 18 | AD24: 456 | AE24: 230 | AF24: 3 | AG24: 423 | AH24: 15 | AI24: 421 | AJ24: 153 | AK24: 2 | AL24: 394 | AM24: 21 | AN24: 376 | AO24: 210 | AP24: 1 | AQ24: 247 | AR24: 13 | AS24: 431 | AT24: 141
A25: Puebla | B25: 6 | C25: 0 | D25: 19 | E25: 3183 | F25: 4074 | G25: 1162 | H25: 38 | I25: 32 | J25: 36 | K25: 1286 | L25: 1241 | M25: 1062 | N25: 438 | O25: 454 | P25: 487 | Q25: 3 | R25: 2017 | S25: 28 | T25: 628 | U25: 232 | V25: 3 | W25: 1166 | X25: 10 | Y25: 658 | Z25: 206 | AA25: 0 | AB25: 2542 | AC25: 19 | AD25: 585 | AE25: 262 | AF25: 0 | AG25: 1532 | AH25: 13 | AI25: 656 | AJ25: 192 | AK25: 6 | AL25: 658 | AM25: 17 | AN25: 484 | AO25: 258 | AP25: 13 | AQ25: 504 | AR25: 19 | AS25: 578 | AT25: 229
A26: Querétaro | B26: 8 | C26: 1 | D26: 8 | E26: 721 | F26: 774 | G26: 638 | H26: 2 | I26: 3 | J26: 2 | K26: 406 | L26: 356 | M26: 351 | N26: 106 | O26: 151 | P26: 151 | Q26: 8 | R26: 454 | S26: 1 | T26: 199 | U26: 66 | V26: 0 | W26: 267 | X26: 1 | Y26: 207 | Z26: 40 | AA26: 1 | AB26: 468 | AC26: 3 | AD26: 177 | AE26: 87 | AF26: 0 | AG26: 306 | AH26: 0 | AI26: 179 | AJ26: 64 | AK26: 5 | AL26: 368 | AM26: 1 | AN26: 177 | AO26: 95 | AP26: 3 | AQ26: 270 | AR26: 1 | AS26: 174 | AT26: 56
A27: Quintana Roo | B27: 4 | C27: 15 | D27: 1 | E27: 530 | F27: 411 | G27: 230 | H27: 48 | I27: 9 | J27: 9 | K27: 209 | L27: 183 | M27: 165 | N27: 120 | O27: 113 | P27: 110 | Q27: 3 | R27: 352 | S27: 32 | T27: 118 | U27: 75 | V27: 1 | W27: 178 | X27: 16 | Y27: 91 | Z27: 45 | AA27: 6 | AB27: 272 | AC27: 6 | AD27: 97 | AE27: 75 | AF27: 9 | AG27: 139 | AH27: 3 | AI27: 86 | AJ27: 38 | AK27: 1 | AL27: 140 | AM27: 3 | AN27: 105 | AO27: 67 | AP27: 0 | AQ27: 90 | AR27: 6 | AS27: 60 | AT27: 43
A28: San Luis Potosí | B28: 11 | C28: 0 | D28: 4 | E28: 1261 | F28: 1264 | G28: 571 | H28: 43 | I28: 24 | J28: 18 | K28: 843 | L28: 665 | M28: 703 | N28: 224 | O28: 262 | P28: 245 | Q28: 5 | R28: 730 | S28: 23 | T28: 474 | U28: 137 | V28: 6 | W28: 531 | X28: 20 | Y28: 369 | Z28: 87 | AA28: 0 | AB28: 775 | AC28: 12 | AD28: 389 | AE28: 166 | AF28: 0 | AG28: 489 | AH28: 12 | AI28: 276 | AJ28: 96 | AK28: 2 | AL28: 347 | AM28: 7 | AN28: 368 | AO28: 136 | AP28: 2 | AQ28: 224 | AR28: 11 | AS28: 335 | AT28: 109
A29: Sinaloa | B29: 8 | C29: 2 | D29: 2 | E29: 1727 | F29: 1399 | G29: 655 | H29: 38 | I29: 20 | J29: 23 | K29: 534 | L29: 531 | M29: 467 | N29: 231 | O29: 299 | P29: 247 | Q29: 6 | R29: 1025 | S29: 21 | T29: 354 | U29: 137 | V29: 2 | W29: 702 | X29: 17 | Y29: 180 | Z29: 94 | AA29: 1 | AB29: 827 | AC29: 11 | AD29: 357 | AE29: 189 | AF29: 1 | AG29: 572 | AH29: 9 | AI29: 174 | AJ29: 110 | AK29: 1 | AL29: 360 | AM29: 12 | AN29: 279 | AO29: 144 | AP29: 1 | AQ29: 295 | AR29: 11 | AS29: 188 | AT29: 103
A30: Sonora | B30: 35 | C30: 3 | D30: 9 | E30: 1566 | F30: 1485 | G30: 1023 | H30: 51 | I30: 17 | J30: 12 | K30: 629 | L30: 478 | M30: 556 | N30: 398 | O30: 330 | P30: 322 | Q30: 18 | R30: 940 | S30: 21 | T30: 402 | U30: 266 | V30: 17 | W30: 626 | X30: 30 | Y30: 227 | Z30: 132 | AA30: 1 | AB30: 856 | AC30: 12 | AD30: 320 | AE30: 190 | AF30: 2 | AG30: 629 | AH30: 5 | AI30: 158 | AJ30: 140 | AK30: 5 | AL30: 602 | AM30: 6 | AN30: 363 | AO30: 184 | AP30: 4 | AQ30: 421 | AR30: 6 | AS30: 193 | AT30: 138
A31: Tabasco | B31: 0 | C31: 4 | D31: 2 | E31: 1219 | F31: 761 | G31: 315 | H31: 11 | I31: 7 | J31: 6 | K31: 451 | L31: 398 | M31: 357 | N31: 165 | O31: 174 | P31: 169 | Q31: 0 | R31: 766 | S31: 6 | T31: 272 | U31: 96 | V31: 0 | W31: 453 | X31: 5 | Y31: 179 | Z31: 69 | AA31: 3 | AB31: 466 | AC31: 3 | AD31: 199 | AE31: 101 | AF31: 1 | AG31: 295 | AH31: 4 | AI31: 199 | AJ31: 73 | AK31: 0 | AL31: 179 | AM31: 5 | AN31: 191 | AO31: 88 | AP31: 2 | AQ31: 136 | AR31: 1 | AS31: 166 | AT31: 81
A32: Tamaulipas | B32: 8 | C32: 1 | D32: 5 | E32: 2205 | F32: 1413 | G32: 746 | H32: 48 | I32: 10 | J32: 16 | K32: 595 | L32: 413 | M32: 479 | N32: 266 | O32: 276 | P32: 298 | Q32: 5 | R32: 1357 | S32: 28 | T32: 359 | U32: 153 | V32: 3 | W32: 848 | X32: 20 | Y32: 236 | Z32: 113 | AA32: 1 | AB32: 838 | AC32: 7 | AD32: 246 | AE32: 156 | AF32: 0 | AG32: 575 | AH32: 3 | AI32: 167 | AJ32: 120 | AK32: 2 | AL32: 434 | AM32: 7 | AN32: 274 | AO32: 181 | AP32: 3 | AQ32: 312 | AR32: 9 | AS32: 205 | AT32: 117
A33: Tlaxcala | B33: 1 | C33: 0 | D33: 1 | E33: 1520 | F33: 1462 | G33: 185 | H33: 14 | I33: 2 | J33: 6 | K33: 355 | L33: 239 | M33: 206 | N33: 106 | O33: 87 | P33: 85 | Q33: 0 | R33: 1017 | S33: 10 | T33: 175 | U33: 62 | V33: 1 | W33: 503 | X33: 4 | Y33: 180 | Z33: 44 | AA33: 0 | AB33: 921 | AC33: 1 | AD33: 126 | AE33: 55 | AF33: 0 | AG33: 541 | AH33: 1 | AI33: 113 | AJ33: 32 | AK33: 1 | AL33: 115 | AM33: 5 | AN33: 93 | AO33: 56 | AP33: 0 | AQ33: 70 | AR33: 1 | AS33: 113 | AT33: 29
A34: Veracruz | B34: 13 | C34: 0 | D34: 8 | E34: 2685 | F34: 3115 | G34: 1618 | H34: 107 | I34: 70 | J34: 47 | K34: 1984 | L34: 1790 | M34: 1605 | N34: 678 | O34: 764 | P34: 723 | Q34: 7 | R34: 1640 | S34: 60 | T34: 1038 | U34: 409 | V34: 6 | W34: 1045 | X34: 47 | Y34: 946 | Z34: 269 | AA34: 0 | AB34: 1800 | AC34: 41 | AD34: 942 | AE34: 431 | AF34: 0 | AG34: 1315 | AH34: 29 | AI34: 848 | AJ34: 333 | AK34: 3 | AL34: 913 | AM34: 27 | AN34: 811 | AO34: 399 | AP34: 5 | AQ34: 705 | AR34: 20 | AS34: 794 | AT34: 324
A35: Yucatán | B35: 0 | C35: 2 | D35: 6 | E35: 1353 | F35: 1082 | G35: 789 | H35: 13 | I35: 14 | J35: 8 | K35: 417 | L35: 326 | M35: 286 | N35: 179 | O35: 180 | P35: 190 | Q35: 0 | R35: 810 | S35: 8 | T35: 232 | U35: 96 | V35: 0 | W35: 543 | X35: 5 | Y35: 185 | Z35: 83 | AA35: 1 | AB35: 647 | AC35: 11 | AD35: 168 | AE35: 113 | AF35: 1 | AG35: 435 | AH35: 3 | AI35: 158 | AJ35: 67 | AK35: 5 | AL35: 429 | AM35: 5 | AN35: 144 | AO35: 106 | AP35: 1 | AQ35: 360 | AR35: 3 | AS35: 142 | AT35: 84
A36: Zacatecas | B36: 13 | C36: 0 | D36: 6 | E36: 608 | F36: 581 | G36: 354 | H36: 12 | I36: 14 | J36: 10 | K36: 650 | L36: 466 | M36: 502 | N36: 131 | O36: 139 | P36: 148 | Q36: 10 | R36: 348 | S36: 9 | T36: 371 | U36: 85 | V36: 3 | W36: 260 | X36: 3 | Y36: 279 | Z36: 46 | AA36: 0 | AB36: 332 | AC36: 6 | AD36: 274 | AE36: 92 | AF36: 0 | AG36: 249 | AH36: 8 | AI36: 192 | AJ36: 47 | AK36: 3 | AL36: 211 | AM36: 6 | AN36: 286 | AO36: 82 | AP36: 3 | AQ36: 143 | AR36: 4 | AS36: 216 | AT36: 66

Sheet 5D-GCM
A1: Enfermedades del sistema respiratorio
A2: SELECCIONE UNA ENTIDAD
A3: Chiapas | B3: 2020 | C3: H - 2020 | D3: M - 2020 | E3: 2021 | F3: H - 2021 | G3: M - 2021 | H3: 2022 | I3: H - 2022 | J3: M - 2022
A4: Influenza (gripe) | B4: =VLOOKUP($A$3,'T-5GE-D'!$A$5:$AT$36,2,0) -> 14 | C4: =VLOOKUP($A$3,'T-5GE-D'!$A$5:$AT$36,17,0) -> 9 | D4: =VLOOKUP($A$3,'T-5GE-D'!$A$5:$AT$36,22,0) -> 5 | E4: =VLOOKUP($A$3,'T-5GE-D'!$A$5:$AT$36,3,0) -> 4 | F4: =VLOOKUP($A$3,'T-5GE-D'!$A$5:$AT$36,27,0) -> 3 | G4: =VLOOKUP($A$3,'T-5GE-D'!$A$5:$AT$36,32,0) -> 1 | H4: =VLOOKUP($A$3,'T-5GE-D'!$A$5:$AT$36,4,0) -> 3 | I4: =VLOOKUP($A$3,'T-5GE-D'!$A$5:$AT$36,37,0) -> 1 | J4: =VLOOKUP($A$3,'T-5GE-D'!$A$5:$AT$36,42,0) -> 2
A5: Neumonía | B5: =VLOOKUP($A$3,'T-5GE-D'!$A$5:$AT$36,5,0) -> 1816 | C5: =VLOOKUP($A$3,'T-5GE-D'!$A$5:$AT$36,18,0) -> 1197 | D5: =VLOOKUP($A$3,'T-5GE-D'!$A$5:$AT$36,23,0) -> 619 | E5: =VLOOKUP($A$3,'T-5GE-D'!$A$5:$AT$36,6,0) -> 1939 | F5: =VLOOKUP($A$3,'T-5GE-D'!$A$5:$AT$36,28,0) -> 1180 | G5: =VLOOKUP($A$3,'T-5GE-D'!$A$5:$AT$36,33,0) -> 759 | H5: =VLOOKUP($A$3,'T-5GE-D'!$A$5:$AT$36,7,0) -> 999 | I5: =VLOOKUP($A$3,'T-5GE-D'!$A$5:$AT$36,38,0) -> 586 | J5: =VLOOKUP($A$3,'T-5GE-D'!$A$5:$AT$36,43,0) -> 413
A6: Otras infecciones agudas de las vías respiratorias inferiores | B6: =VLOOKUP($A$3,'T-5GE-D'!$A$5:$AT$36,8,0) -> 46 | C6: =VLOOKUP($A$3,'T-5GE-D'!$A$5:$AT$36,19,0) -> 28 | D6: =VLOOKUP($A$3,'T-5GE-D'!$A$5:$AT$36,24,0) -> 18 | E6: =VLOOKUP($A$3,'T-5GE-D'!$A$5:$AT$36,9,0) -> 30 | F6: =VLOOKUP($A$3,'T-5GE-D'!$A$5:$AT$36,29,0) -> 13 | G6: =VLOOKUP($A$3,'T-5GE-D'!$A$5:$AT$36,34,0) -> 17 | H6: =VLOOKUP($A$3,'T-5GE-D'!$A$5:$AT$36,10,0) -> 29 | I6: =VLOOKUP($A$3,'T-5GE-D'!$A$5:$AT$36,39,0) -> 14 | J6: =VLOOKUP($A$3,'T-5GE-D'!$A$5:$AT$36,44,0) -> 15
A7: Enfermedades crónicas de las vías respiratorias inferiores | B7: =VLOOKUP($A$3,'T-5GE-D'!$A$5:$AT$36,11,0) -> 911 | C7: =VLOOKUP($A$3,'T-5GE-D'!$A$5:$AT$36,20,0) -> 504 | D7: =VLOOKUP($A$3,'T-5GE-D'!$A$5:$AT$36,25,0) -> 407 | E7: =VLOOKUP($A$3,'T-5GE-D'!$A$5:$AT$36,12,0) -> 787 | F7: =VLOOKUP($A$3,'T-5GE-D'!$A$5:$AT$36,30,0) -> 439 | G7: =VLOOKUP($A$3,'T-5GE-D'!$A$5:$AT$36,35,0) -> 348 | H7: =VLOOKUP($A$3,'T-5GE-D'!$A$5:$AT$36,13,0) -> 626 | I7: =VLOOKUP($A$3,'T-5GE-D'!$A$5:$AT$36,40,0) -> 359 | J7: =VLOOKUP($A$3,'T-5GE-D'!$A$5:$AT$36,45,0) -> 267
A8: Resto de enfermedades del sistema respiratorio | B8: =VLOOKUP($A$3,'T-5GE-D'!$A$5:$AT$36,14,0) -> 470 | C8: =VLOOKUP($A$3,'T-5GE-D'!$A$5:$AT$36,21,0) -> 271 | D8: =VLOOKUP($A$3,'T-5GE-D'!$A$5:$AT$36,26,0) -> 199 | E8: =VLOOKUP($A$3,'T-5GE-D'!$A$5:$AT$36,15,0) -> 448 | F8: =VLOOKUP($A$3,'T-5GE-D'!$A$5:$AT$36,31,0) -> 248 | G8: =VLOOKUP($A$3,'T-5GE-D'!$A$5:$AT$36,36,0) -> 200 | H8: =VLOOKUP($A$3,'T-5GE-D'!$A$5:$AT$36,16,0) -> 401 | I8: =VLOOKUP($A$3,'T-5GE-D'!$A$5:$AT$36,41,0) -> 233 | J8: =VLOOKUP($A$3,'T-5GE-D'!$A$5:$AT$36,46,0) -> 168
A9: Total | B9: =SUM(B4:B8) -> 3257 | C9: 2009 | D9: 1248 | E9: 3208 | F9: 1883 | G9: 1325 | H9: 2058 | I9: 1193 | J9: 865

Sheet T-6GE-D (hidden)
A1: 1 | B1: 2 | C1: 3 | D1: 4 | E1: 5 | F1: 6 | G1: 7 | H1: 8 | I1: 9 | J1: 10 | K1: 11 | L1: 12 | M1: 13 | N1: 14 | O1: 15 | P1: 16 | Q1: 17 | R1: 18 | S1: 19 | T1: 20 | U1: 21 | V1: 22 | W1: 23 | X1: 24 | Y1: 25 | Z1: 26 | AA1: 27 | AB1: 28 | AC1: 29 | AD1: 30 | AE1: 31 | AF1: 32 | AG1: 33 | AH1: 34 | AI1: 35 | AJ1: 36 | AK1: 37 | AL1: 38 | AM1: 39 | AN1: 40 | AO1: 41 | AP1: 42 | AQ1: 43 | AR1: 44 | AS1: 45 | AT1: 46 | AU1: 47 | AV1: 48 | AW1: 49 | AX1: 50 | AY1: 51 | AZ1: 52 | BA1: 53 | BB1: 54 | BC1: 55 | BD1: 56 | BE1: 57 | BF1: 58 | BG1: 59 | BH1: 60 | BI1: 61 | BJ1: 62 | BK1: 63 | BL1: 64 | BM1: 65 | BN1: 66 | BO1: 67 | BP1: 68 | BQ1: 69 | BR1: 70 | BS1: 71 | BT1: 72 | BU1: 73
A2: Causas externas de morbilidad y de mortalidad
A3: ESTADO | B3: Accidentes de transporte | E3: Caídas | H3: Ahogamiento y sumersión accidentales | K3: Exposición al humo, fuego y llamas | N3: Envenenamiento accidental por, y exposición a sustancias nocivas | Q3: Lesiones autoinfligidas intencionalmente | T3: Agresiones | W3: Todas las demás causas externas | Z3: 2020 | AP3: 2021 | BF3: 2022
B4: 2020 | C4: 2021 | D4: 2022 | E4: 2020 | F4: 2021 | G4: 2022 | H4: 2020 | I4: 2021 | J4: 2022 | K4: 2020 | L4: 2021 | M4: 2022 | N4: 2020 | O4: 2021 | P4: 2022 | Q4: 2020 | R4: 2021 | S4: 2022 | T4: 2020 | U4: 2021 | V4: 2022 | W4: 2020 | X4: 2021 | Y4: 2022 | Z4: Hombres 2020(1) | AA4: Hombres 2020(2) | AB4: Hombres 2020(3) | AC4: Hombres 2020(4) | AD4: Hombres 2020(5) | AE4: Hombres 2020(6) | AF4: Hombres 2020(7) | AG4: Hombres 2020(8) | AH4: Mujeres 2020(1) | AI4: Mujeres 2020(2) | AJ4: Mujeres 2020(3) | AK4: Mujeres 2020(4) | AL4: Mujeres 2020(5) | AM4: Mujeres 2020(6) | AN4: Mujeres 2020(7) | AO4: Mujeres 2020(8) | AP4: Hombres 2021(1) | AQ4: Hombres 2021(2) | AR4: Hombres 2021(3) | AS4: Hombres 2021(4) | AT4: Hombres 2021(5) | AU4: Hombres 2021(6) | AV4: Hombres 2021(7) | AW4: Hombres 2021(8) | AX4: Mujeres 2021(1) | AY4: Mujeres 2021(2) | AZ4: Mujeres 2021(3) | BA4: Mujeres 2021(4) | BB4: Mujeres 2021(5) | BC4: Mujeres 2021(6) | BD4: Mujeres 2021(7) | BE4: Mujeres 2021(8) | BF4: Hombres 2022(1) | BG4: Hombres 2022(2) | BH4: Hombres 2022(3) | BI4: Hombres 2022(4) | BJ4: Hombres 2022(5) | BK4: Hombres 2022(6) | BL4: Hombres 2022(7) | BM4: Hombres 2022(8) | BN4: Mujeres 2022(1) | BO4: Mujeres 2022(2) | BP4: Mujeres 2022(3) | BQ4: Mujeres 2022(4) | BR4: Mujeres 2022(5) | BS4: Mujeres 2022(6) | BT4: Mujeres 2022(7) | BU4: Mujeres 2022(8)
A5: Aguascalientes | B5: 226 | C5: 236 | D5: 266 | E5: 52 | F5: 37 | G5: 27 | H5: 14 | I5: 14 | J5: 12 | K5: 11 | L5: 3 | M5: 9 | N5: 6 | O5: 17 | P5: 9 | Q5: 184 | R5: 180 | S5: 159 | T5: 93 | U5: 103 | V5: 86 | W5: 156 | X5: 156 | Y5: 176 | Z5: 188 | AA5: 34 | AB5: 11 | AC5: 5 | AD5: 5 | AE5: 160 | AF5: 86 | AG5: 91 | AH5: 38 | AI5: 18 | AJ5: 3 | AK5: 6 | AL5: 1 | AM5: 24 | AN5: 7 | AO5: 65 | AP5: 192 | AQ5: 26 | AR5: 13 | AS5: 2 | AT5: 9 | AU5: 149 | AV5: 90 | AW5: 105 | AX5: 44 | AY5: 11 | AZ5: 1 | BA5: 1 | BB5: 8 | BC5: 31 | BD5: 13 | BE5: 51 | BF5: 216 | BG5: 21 | BH5: 10 | BI5: 6 | BJ5: 8 | BK5: 126 | BL5: 73 | BM5: 120 | BN5: 50 | BO5: 6 | BP5: 2 | BQ5: 3 | BR5: 1 | BS5: 33 | BT5: 13 | BU5: 56
A6: Baja California | B6: 213 | C6: 266 | D6: 188 | E6: 28 | F6: 22 | G6: 23 | H6: 43 | I6: 58 | J6: 63 | K6: 56 | L6: 62 | M6: 48 | N6: 90 | O6: 60 | P6: 112 | Q6: 108 | R6: 131 | S6: 108 | T6: 2861 | U6: 3103 | V6: 2570 | W6: 1421 | X6: 1738 | Y6: 1776 | Z6: 173 | AA6: 24 | AB6: 36 | AC6: 44 | AD6: 70 | AE6: 95 | AF6: 2563 | AG6: 1167 | AH6: 40 | AI6: 4 | AJ6: 7 | AK6: 12 | AL6: 20 | AM6: 13 | AN6: 298 | AO6: 254 | AP6: 215 | AQ6: 20 | AR6: 51 | AS6: 46 | AT6: 52 | AU6: 113 | AV6: 2754 | AW6: 1419 | AX6: 51 | AY6: 2 | AZ6: 7 | BA6: 16 | BB6: 8 | BC6: 18 | BD6: 349 | BE6: 319 | BF6: 143 | BG6: 20 | BH6: 57 | BI6: 42 | BJ6: 90 | BK6: 89 | BL6: 2279 | BM6: 1418 | BN6: 45 | BO6: 3 | BP6: 6 | BQ6: 6 | BR6: 22 | BS6: 19 | BT6: 291 | BU6: 358
A7: Baja California Sur | B7: 106 | C7: 134 | D7: 131 | E7: 11 | F7: 14 | G7: 21 | H7: 26 | I7: 22 | J7: 34 | K7: 7 | L7: 0 | M7: 3 | N7: 7 | O7: 5 | P7: 4 | Q7: 70 | R7: 63 | S7: 73 | T7: 78 | U7: 76 | V7: 89 | W7: 64 | X7: 67 | Y7: 70 | Z7: 80 | AA7: 10 | AB7: 23 | AC7: 4 | AD7: 6 | AE7: 62 | AF7: 71 | AG7: 51 | AH7: 26 | AI7: 1 | AJ7: 3 | AK7: 3 | AL7: 1 | AM7: 8 | AN7: 7 | AO7: 13 | AP7: 102 | AQ7: 11 | AR7: 15 | AS7: 0 | AT7: 4 | AU7: 58 | AV7: 65 | AW7: 45 | AX7: 32 | AY7: 3 | AZ7: 7 | BA7: 0 | BB7: 1 | BC7: 5 | BD7: 11 | BE7: 22 | BF7: 102 | BG7: 16 | BH7: 27 | BI7: 3 | BJ7: 4 | BK7: 67 | BL7: 74 | BM7: 48 | BN7: 29 | BO7: 5 | BP7: 7 | BQ7: 0 | BR7: 0 | BS7: 6 | BT7: 15 | BU7: 22
A8: Campeche | B8: 121 | C8: 160 | D8: 170 | E8: 5 | F8: 7 | G8: 11 | H8: 11 | I8: 12 | J8: 19 | K8: 3 | L8: 4 | M8: 2 | N8: 15 | O8: 9 | P8: 11 | Q8: 72 | R8: 111 | S8: 91 | T8: 76 | U8: 107 | V8: 108 | W8: 112 | X8: 115 | Y8: 110 | Z8: 99 | AA8: 4 | AB8: 10 | AC8: 1 | AD8: 12 | AE8: 50 | AF8: 69 | AG8: 81 | AH8: 22 | AI8: 1 | AJ8: 1 | AK8: 2 | AL8: 3 | AM8: 22 | AN8: 7 | AO8: 31 | AP8: 129 | AQ8: 5 | AR8: 11 | AS8: 3 | AT8: 8 | AU8: 93 | AV8: 93 | AW8: 83 | AX8: 31 | AY8: 2 | AZ8: 1 | BA8: 1 | BB8: 1 | BC8: 18 | BD8: 14 | BE8: 32 | BF8: 141 | BG8: 10 | BH8: 18 | BI8: 1 | BJ8: 9 | BK8: 76 | BL8: 95 | BM8: 77 | BN8: 29 | BO8: 1 | BP8: 1 | BQ8: 1 | BR8: 2 | BS8: 15 | BT8: 13 | BU8: 33
A9: Coahuila | B9: 313 | C9: 367 | D9: 436 | E9: 38 | F9: 46 | G9: 43 | H9: 43 | I9: 54 | J9: 113 | K9: 15 | L9: 19 | M9: 17 | N9: 27 | O9: 49 | P9: 42 | Q9: 275 | R9: 301 | S9: 312 | T9: 242 | U9: 171 | V9: 169 | W9: 386 | X9: 396 | Y9: 439 | Z9: 268 | AA9: 36 | AB9: 38 | AC9: 11 | AD9: 19 | AE9: 237 | AF9: 209 | AG9: 270 | AH9: 45 | AI9: 2 | AJ9: 5 | AK9: 4 | AL9: 8 | AM9: 38 | AN9: 33 | AO9: 116 | AP9: 289 | AQ9: 39 | AR9: 48 | AS9: 14 | AT9: 40 | AU9: 255 | AV9: 145 | AW9: 265 | AX9: 78 | AY9: 7 | AZ9: 6 | BA9: 5 | BB9: 9 | BC9: 46 | BD9: 26 | BE9: 131 | BF9: 336 | BG9: 38 | BH9: 104 | BI9: 13 | BJ9: 23 | BK9: 263 | BL9: 143 | BM9: 295 | BN9: 100 | BO9: 5 | BP9: 9 | BQ9: 4 | BR9: 19 | BS9: 49 | BT9: 26 | BU9: 144
A10: Colima | B10: 102 | C10: 168 | D10: 187 | E10: 12 | F10: 14 | G10: 14 | H10: 25 | I10: 21 | J10: 23 | K10: 2 | L10: 2 | M10: 3 | N10: 6 | O10: 5 | P10: 11 | Q10: 55 | R10: 77 | S10: 64 | T10: 693 | U10: 605 | V10: 865 | W10: 145 | X10: 94 | Y10: 123 | Z10: 91 | AA10: 10 | AB10: 22 | AC10: 2 | AD10: 5 | AE10: 45 | AF10: 588 | AG10: 103 | AH10: 11 | AI10: 2 | AJ10: 3 | AK10: 0 | AL10: 1 | AM10: 10 | AN10: 105 | AO10: 42 | AP10: 138 | AQ10: 13 | AR10: 20 | AS10: 0 | AT10: 2 | AU10: 69 | AV10: 539 | AW10: 54 | AX10: 30 | AY10: 1 | AZ10: 1 | BA10: 2 | BB10: 3 | BC10: 8 | BD10: 66 | BE10: 40 | BF10: 154 | BG10: 11 | BH10: 20 | BI10: 3 | BJ10: 8 | BK10: 56 | BL10: 755 | BM10: 80 | BN10: 33 | BO10: 3 | BP10: 3 | BQ10: 0 | BR10: 3 | BS10: 8 | BT10: 110 | BU10: 43
A11: Chiapas | B11: 432 | C11: 548 | D11: 670 | E11: 63 | F11: 71 | G11: 68 | H11: 80 | I11: 93 | J11: 75 | K11: 9 | L11: 6 | M11: 4 | N11: 53 | O11: 33 | P11: 33 | Q11: 211 | R11: 251 | S11: 266 | T11: 535 | U11: 564 | V11: 497 | W11: 362 | X11: 330 | Y11: 282 | Z11: 363 | AA11: 58 | AB11: 72 | AC11: 8 | AD11: 46 | AE11: 174 | AF11: 461 | AG11: 260 | AH11: 69 | AI11: 5 | AJ11: 8 | AK11: 1 | AL11: 7 | AM11: 37 | AN11: 74 | AO11: 102 | AP11: 451 | AQ11: 62 | AR11: 77 | AS11: 6 | AT11: 26 | AU11: 195 | AV11: 498 | AW11: 209 | AX11: 97 | AY11: 9 | AZ11: 16 | BA11: 0 | BB11: 7 | BC11: 56 | BD11: 66 | BE11: 121 | BF11: 558 | BG11: 55 | BH11: 64 | BI11: 4 | BJ11: 28 | BK11: 227 | BL11: 432 | BM11: 193 | BN11: 112 | BO11: 13 | BP11: 11 | BQ11: 0 | BR11: 5 | BS11: 39 | BT11: 65 | BU11: 89
